Workbook

Sheet SOURCE >>

Sheet Check start >>>

Sheet Timeline&Flags
A1: =RIGHT(CELL("filename",$A$1),LEN(CELL("filename",$A$1))-FIND("]",CELL("filename",$A$1))) -> Timeline&Flags
A2: =SUM(A4:A146) -> 0 | B2: =A2&" Errors in worksheet" -> 0 Errors in worksheet | AU2: =AU106 -> 0 | AV2: 0 | AW2: 0 | AX2: 0 | AY2: 0 | AZ2: 0 | BA2: 0 | BB2: 0 | BC2: 0 | BD2: 0 | BE2: 0 | BF2: 0 | BG2: 0 | BH2: 0 | BI2: 0 | BJ2: 0 | BK2: 0 | BL2: 0 | BM2: 0 | BN2: 0 | BO2: 0 | BP2: 0 | BQ2: 0 | BR2: 0 | BS2: 0 | BT2: 0 | BU2: 0 | BV2: 0 | BW2: 0 | BX2: 0 | BY2: 0 | BZ2: 0 | CA2: 0 | CB2: 0 | CC2: 0 | CD2: 0 | CE2: 0 | CF2: 0 | CG2: 0 | CH2: 0 | CI2: 0 | CJ2: 0 | CK2: 0 | CL2: 0 | CM2: 0 | CN2: 0 | CO2: 0 | CP2: 0 | CQ2: 0 | CR2: 0 | CS2: 0 | CT2: 0 | CU2: 0 | CV2: 0 | CW2: 0 | CX2: 0 | CY2: 0 | CZ2: 0 | DA2: 0 | DB2: 0
A3: =SUM('Check start >>>:<<< Check End'!A2) -> 4 | B3: =A3&" Errors in workbook" -> 4 Errors in workbook
B4: General Flags - MONTHLY
E6: Start date | F6: =NTBInputs!F9 -> 2018-01-01 | S6: =$F$6 -> 2018-01-01 | T6: =S7+1 -> 2018-04-01 | U6: 2019-04-01 | V6: 2020-04-01 | W6: 2021-04-01 | X6: 2022-04-01 | Y6: 2023-04-01 | Z6: 2024-04-01 | AA6: 2025-04-01 | AB6: 2026-04-01 | AC6: 2027-04-01 | AD6: 2028-04-01 | AE6: 2029-04-01 | AF6: 2030-04-01 | AG6: 2031-04-01 | AH6: 2032-04-01 | AI6: 2033-04-01 | AJ6: 2034-04-01 | AK6: 2035-04-01 | AL6: 2036-04-01 | AM6: 2037-04-01 | AN6: 2038-04-01 | AO6: 2039-04-01 | AP6: 2040-04-01 | AQ6: 2041-04-01 | AU6: =$F$6 -> 2018-01-01 | AV6: =AU7+1 -> 2018-02-01 | AW6: =AV7+1 -> 2018-03-01 | AX6: 2018-04-01 | AY6: 2018-05-01 | AZ6: 2018-06-01 | BA6: 2018-07-01 | BB6: 2018-08-01 | BC6: 2018-09-01 | BD6: 2018-10-01 | BE6: 2018-11-01 | BF6: 2018-12-01 | BG6: 2019-01-01 | BH6: 2019-02-01 | BI6: 2019-03-01 | BJ6: 2019-04-01 | BK6: 2019-05-01 | BL6: 2019-06-01 | BM6: 2019-07-01 | BN6: 2019-08-01 | BO6: 2019-09-01 | BP6: 2019-10-01 | BQ6: 2019-11-01 | BR6: 2019-12-01 | BS6: 2020-01-01 | BT6: 2020-02-01 | BU6: 2020-03-01 | BV6: 2020-04-01 | BW6: 2020-05-01 | BX6: 2020-06-01 | BY6: 2020-07-01 | BZ6: 2020-08-01 | CA6: 2020-09-01 | CB6: 2020-10-01 | CC6: 2020-11-01 | CD6: 2020-12-01 | CE6: 2021-01-01 | CF6: 2021-02-01 | CG6: 2021-03-01 | CH6: 2021-04-01 | CI6: 2021-05-01 | CJ6: 2021-06-01 | CK6: 2021-07-01 | CL6: 2021-08-01 | CM6: 2021-09-01 | CN6: 2021-10-01 | CO6: 2021-11-01 | CP6: 2021-12-01 | CQ6: 2022-01-01 | CR6: 2022-02-01 | CS6: 2022-03-01 | CT6: 2022-04-01 | CU6: 2022-05-01 | CV6: 2022-06-01 | CW6: 2022-07-01 | CX6: 2022-08-01 | CY6: 2022-09-01 | CZ6: 2022-10-01 | DA6: 2022-11-01 | DB6: 2022-12-01 | DC6: 2023-01-01 | DD6: 2023-02-01 | DE6: 2023-03-01 | DF6: 2023-04-01 | DG6: 2023-05-01 | DH6: 2023-06-01 | DI6: =DH7+1 -> 2023-07-01 | DJ6: 2023-08-01 | DK6: 2023-09-01 | DL6: 2023-10-01 | DM6: 2023-11-01 | DN6: 2023-12-01 | DO6: 2024-01-01 | DP6: 2024-02-01 | DQ6: 2024-03-01 | DR6: 2024-04-01 | DS6: 2024-05-01 | DT6: 2024-06-01 | DU6: 2024-07-01 | DV6: 2024-08-01 | DW6: 2024-09-01 | DX6: 2024-10-01 | DY6: 2024-11-01 | DZ6: 2024-12-01 | EA6: 2025-01-01 | EB6: 2025-02-01 | EC6: 2025-03-01 | ED6: 2025-04-01 | EE6: 2025-05-01 | EF6: 2025-06-01 | EG6: 2025-07-01 | EH6: 2025-08-01 | EI6: 2025-09-01 | EJ6: 2025-10-01 | EK6: 2025-11-01 | EL6: 2025-12-01 | EM6: 2026-01-01 | EN6: 2026-02-01 | EO6: 2026-03-01 | EP6: 2026-04-01 | EQ6: 2026-05-01 | ER6: 2026-06-01 | ES6: 2026-07-01 | ET6: 2026-08-01 | EU6: 2026-09-01 | EV6: 2026-10-01 | EW6: 2026-11-01 | EX6: 2026-12-01 | EY6: 2027-01-01 | EZ6: 2027-02-01 | FA6: 2027-03-01 | FB6: 2027-04-01 | FC6: 2027-05-01 | FD6: 2027-06-01 | FE6: 2027-07-01 | FF6: 2027-08-01 | FG6: 2027-09-01 | FH6: 2027-10-01 | FI6: 2027-11-01 | FJ6: 2027-12-01 | FK6: 2028-01-01 | FL6: 2028-02-01 | FM6: 2028-03-01 | FN6: 2028-04-01 | FO6: 2028-05-01 | FP6: 2028-06-01 | FQ6: 2028-07-01 | FR6: 2028-08-01 | FS6: 2028-09-01 | FT6: 2028-10-01 | FU6: =FT7+1 -> 2028-11-01 | FV6: 2028-12-01 | FW6: 2029-01-01 | FX6: 2029-02-01 | FY6: 2029-03-01 | FZ6: 2029-04-01 | GA6: 2029-05-01 | GB6: 2029-06-01 | GC6: 2029-07-01 | GD6: 2029-08-01 | GE6: 2029-09-01 | GF6: 2029-10-01 | GG6: 2029-11-01 | GH6: 2029-12-01 | GI6: 2030-01-01 | GJ6: 2030-02-01 | GK6: 2030-03-01 | GL6: 2030-04-01 | GM6: 2030-05-01 | GN6: 2030-06-01 | GO6: 2030-07-01 | GP6: 2030-08-01 | GQ6: 2030-09-01 | GR6: 2030-10-01 | GS6: 2030-11-01 | GT6: 2030-12-01 | GU6: 2031-01-01 | GV6: 2031-02-01 | GW6: 2031-03-01 | GX6: 2031-04-01 | GY6: 2031-05-01 | GZ6: 2031-06-01 | HA6: 2031-07-01 | HB6: 2031-08-01 | HC6: 2031-09-01 | HD6: 2031-10-01 | HE6: 2031-11-01 | HF6: 2031-12-01 | HG6: 2032-01-01 | HH6: 2032-02-01 | HI6: 2032-03-01 | HJ6: 2032-04-01 | HK6: 2032-05-01 | HL6: 2032-06-01 | HM6: 2032-07-01 | HN6: 2032-08-01 | HO6: 2032-09-01 | HP6: 2032-10-01 | HQ6: 2032-11-01 | HR6: 2032-12-01 | HS6: 2033-01-01 | HT6: 2033-02-01 | HU6: 2033-03-01 | HV6: 2033-04-01 | HW6: 2033-05-01 | HX6: 2033-06-01 | HY6: 2033-07-01 | HZ6: 2033-08-01 | IA6: 2033-09-01 | IB6: 2033-10-01 | IC6: 2033-11-01 | ID6: 2033-12-01 | IE6: 2034-01-01 | IF6: 2034-02-01 | IG6: =IF7+1 -> 2034-03-01 | IH6: 2034-04-01 | II6: 2034-05-01 | IJ6: 2034-06-01 | IK6: 2034-07-01 | IL6: 2034-08-01 | IM6: 2034-09-01 | IN6: 2034-10-01 | IO6: 2034-11-01 | IP6: 2034-12-01 | IQ6: 2035-01-01 | IR6: 2035-02-01 | IS6: 2035-03-01 | IT6: 2035-04-01 | IU6: 2035-05-01 | IV6: 2035-06-01 | IW6: 2035-07-01 | IX6: 2035-08-01 | IY6: 2035-09-01 | IZ6: 2035-10-01 | JA6: 2035-11-01 | JB6: 2035-12-01 | JC6: 2036-01-01 | JD6: 2036-02-01 | JE6: 2036-03-01 | JF6: 2036-04-01 | JG6: 2036-05-01 | JH6: 2036-06-01 | JI6: 2036-07-01 | JJ6: 2036-08-01 | JK6: 2036-09-01 | JL6: 2036-10-01 | JM6: 2036-11-01 | JN6: 2036-12-01 | JO6: 2037-01-01 | JP6: 2037-02-01 | JQ6: 2037-03-01 | JR6: 2037-04-01 | JS6: 2037-05-01 | JT6: 2037-06-01 | JU6: 2037-07-01 | JV6: 2037-08-01 | JW6: 2037-09-01 | JX6: 2037-10-01 | JY6: 2037-11-01 | JZ6: 2037-12-01 | KA6: 2038-01-01 | KB6: 2038-02-01 | KC6: 2038-03-01 | KD6: 2038-04-01 | KE6: 2038-05-01 | KF6: 2038-06-01 | KG6: 2038-07-01 | KH6: 2038-08-01 | KI6: 2038-09-01 | KJ6: 2038-10-01 | KK6: 2038-11-01 | KL6: 2038-12-01 | KM6: 2039-01-01 | KN6: 2039-02-01 | KO6: 2039-03-01 | KP6: 2039-04-01 | KQ6: 2039-05-01 | KR6: 2039-06-01 | KS6: =KR7+1 -> 2039-07-01 | KT6: 2039-08-01 | KU6: 2039-09-01 | KV6: 2039-10-01 | KW6: 2039-11-01 | KX6: 2039-12-01 | KY6: 2040-01-01 | KZ6: 2040-02-01 | LA6: 2040-03-01 | LB6: 2040-04-01 | LC6: 2040-05-01 | LD6: 2040-06-01 | LE6: 2040-07-01 | LF6: 2040-08-01 | LG6: 2040-09-01 | LH6: 2040-10-01 | LI6: 2040-11-01 | LJ6: 2040-12-01 | LK6: 2041-01-01 | LL6: 2041-02-01 | LM6: 2041-03-01 | LN6: 2041-04-01 | LO6: 2041-05-01 | LP6: 2041-06-01 | LQ6: 2041-07-01 | LR6: 2041-08-01 | LS6: 2041-09-01 | LT6: 2041-10-01 | LU6: 2041-11-01 | LV6: 2041-12-01 | LW6: 2042-01-01 | LX6: 2042-02-01 | LY6: 2042-03-01 | LZ6: 2042-04-01 | MA6: 2042-05-01 | MB6: 2042-06-01 | MC6: 2042-07-01 | MD6: 2042-08-01 | ME6: 2042-09-01 | MF6: 2042-10-01 | MG6: 2042-11-01 | MH6: 2042-12-01
E7: End date | F7: =NTBInputs!F10 -> 2018-03-31 | S7: =$F$7 -> 2018-03-31 | T7: =EOMONTH(T6,11) -> 2019-03-31 | U7: 2020-03-31 | V7: 2021-03-31 | W7: 2022-03-31 | X7: 2023-03-31 | Y7: 2024-03-31 | Z7: 2025-03-31 | AA7: 2026-03-31 | AB7: 2027-03-31 | AC7: 2028-03-31 | AD7: 2029-03-31 | AE7: 2030-03-31 | AF7: 2031-03-31 | AG7: 2032-03-31 | AH7: 2033-03-31 | AI7: 2034-03-31 | AJ7: 2035-03-31 | AK7: 2036-03-31 | AL7: 2037-03-31 | AM7: 2038-03-31 | AN7: 2039-03-31 | AO7: 2040-03-31 | AP7: 2041-03-31 | AQ7: 2042-03-31 | AU7: =EOMONTH(AU6,0) -> 2018-01-31 | AV7: =EOMONTH(AV6,0) -> 2018-02-28 | AW7: =EOMONTH(AW6,0) -> 2018-03-31 | AX7: 2018-04-30 | AY7: 2018-05-31 | AZ7: 2018-06-30 | BA7: 2018-07-31 | BB7: 2018-08-31 | BC7: 2018-09-30 | BD7: 2018-10-31 | BE7: 2018-11-30 | BF7: 2018-12-31 | BG7: 2019-01-31 | BH7: 2019-02-28 | BI7: 2019-03-31 | BJ7: 2019-04-30 | BK7: 2019-05-31 | BL7: 2019-06-30 | BM7: 2019-07-31 | BN7: 2019-08-31 | BO7: 2019-09-30 | BP7: 2019-10-31 | BQ7: 2019-11-30 | BR7: 2019-12-31 | BS7: 2020-01-31 | BT7: 2020-02-29 | BU7: 2020-03-31 | BV7: 2020-04-30 | BW7: 2020-05-31 | BX7: 2020-06-30 | BY7: 2020-07-31 | BZ7: 2020-08-31 | CA7: 2020-09-30 | CB7: 2020-10-31 | CC7: 2020-11-30 | CD7: 2020-12-31 | CE7: 2021-01-31 | CF7: 2021-02-28 | CG7: 2021-03-31 | CH7: 2021-04-30 | CI7: 2021-05-31 | CJ7: 2021-06-30 | CK7: 2021-07-31 | CL7: 2021-08-31 | CM7: 2021-09-30 | CN7: 2021-10-31 | CO7: 2021-11-30 | CP7: 2021-12-31 | CQ7: 2022-01-31 | CR7: 2022-02-28 | CS7: 2022-03-31 | CT7: 2022-04-30 | CU7: 2022-05-31 | CV7: 2022-06-30 | CW7: 2022-07-31 | CX7: 2022-08-31 | CY7: 2022-09-30 | CZ7: 2022-10-31 | DA7: 2022-11-30 | DB7: 2022-12-31 | DC7: 2023-01-31 | DD7: 2023-02-28 | DE7: 2023-03-31 | DF7: 2023-04-30 | DG7: 2023-05-31 | DH7: 2023-06-30 | DI7: =EOMONTH(DI6,0) -> 2023-07-31 | DJ7: 2023-08-31 | DK7: 2023-09-30 | DL7: 2023-10-31 | DM7: 2023-11-30 | DN7: 2023-12-31 | DO7: 2024-01-31 | DP7: 2024-02-29 | DQ7: 2024-03-31 | DR7: 2024-04-30 | DS7: 2024-05-31 | DT7: 2024-06-30 | DU7: 2024-07-31 | DV7: 2024-08-31 | DW7: 2024-09-30 | DX7: 2024-10-31 | DY7: 2024-11-30 | DZ7: 2024-12-31 | EA7: 2025-01-31 | EB7: 2025-02-28 | EC7: 2025-03-31 | ED7: 2025-04-30 | EE7: 2025-05-31 | EF7: 2025-06-30 | EG7: 2025-07-31 | EH7: 2025-08-31 | EI7: 2025-09-30 | EJ7: 2025-10-31 | EK7: 2025-11-30 | EL7: 2025-12-31 | EM7: 2026-01-31 | EN7: 2026-02-28 | EO7: 2026-03-31 | EP7: 2026-04-30 | EQ7: 2026-05-31 | ER7: 2026-06-30 | ES7: 2026-07-31 | ET7: 2026-08-31 | EU7: 2026-09-30 | EV7: 2026-10-31 | EW7: 2026-11-30 | EX7: 2026-12-31 | EY7: 2027-01-31 | EZ7: 2027-02-28 | FA7: 2027-03-31 | FB7: 2027-04-30 | FC7: 2027-05-31 | FD7: 2027-06-30 | FE7: 2027-07-31 | FF7: 2027-08-31 | FG7: 2027-09-30 | FH7: 2027-10-31 | FI7: 2027-11-30 | FJ7: 2027-12-31 | FK7: 2028-01-31 | FL7: 2028-02-29 | FM7: 2028-03-31 | FN7: 2028-04-30 | FO7: 2028-05-31 | FP7: 2028-06-30 | FQ7: 2028-07-31 | FR7: 2028-08-31 | FS7: 2028-09-30 | FT7: 2028-10-31 | FU7: =EOMONTH(FU6,0) -> 2028-11-30 | FV7: 2028-12-31 | FW7: 2029-01-31 | FX7: 2029-02-28 | FY7: 2029-03-31 | FZ7: 2029-04-30 | GA7: 2029-05-31 | GB7: 2029-06-30 | GC7: 2029-07-31 | GD7: 2029-08-31 | GE7: 2029-09-30 | GF7: 2029-10-31 | GG7: 2029-11-30 | GH7: 2029-12-31 | GI7: 2030-01-31 | GJ7: 2030-02-28 | GK7: 2030-03-31 | GL7: 2030-04-30 | GM7: 2030-05-31 | GN7: 2030-06-30 | GO7: 2030-07-31 | GP7: 2030-08-31 | GQ7: 2030-09-30 | GR7: 2030-10-31 | GS7: 2030-11-30 | GT7: 2030-12-31 | GU7: 2031-01-31 | GV7: 2031-02-28 | GW7: 2031-03-31 | GX7: 2031-04-30 | GY7: 2031-05-31 | GZ7: 2031-06-30 | HA7: 2031-07-31 | HB7: 2031-08-31 | HC7: 2031-09-30 | HD7: 2031-10-31 | HE7: 2031-11-30 | HF7: 2031-12-31 | HG7: 2032-01-31 | HH7: 2032-02-29 | HI7: 2032-03-31 | HJ7: 2032-04-30 | HK7: 2032-05-31 | HL7: 2032-06-30 | HM7: 2032-07-31 | HN7: 2032-08-31 | HO7: 2032-09-30 | HP7: 2032-10-31 | HQ7: 2032-11-30 | HR7: 2032-12-31 | HS7: 2033-01-31 | HT7: 2033-02-28 | HU7: 2033-03-31 | HV7: 2033-04-30 | HW7: 2033-05-31 | HX7: 2033-06-30 | HY7: 2033-07-31 | HZ7: 2033-08-31 | IA7: 2033-09-30 | IB7: 2033-10-31 | IC7: 2033-11-30 | ID7: 2033-12-31 | IE7: 2034-01-31 | IF7: 2034-02-28 | IG7: =EOMONTH(IG6,0) -> 2034-03-31 | IH7: 2034-04-30 | II7: 2034-05-31 | IJ7: 2034-06-30 | IK7: 2034-07-31 | IL7: 2034-08-31 | IM7: 2034-09-30 | IN7: 2034-10-31 | IO7: 2034-11-30 | IP7: 2034-12-31 | IQ7: 2035-01-31 | IR7: 2035-02-28 | IS7: 2035-03-31 | IT7: 2035-04-30 | IU7: 2035-05-31 | IV7: 2035-06-30 | IW7: 2035-07-31 | IX7: 2035-08-31 | IY7: 2035-09-30 | IZ7: 2035-10-31 | JA7: 2035-11-30 | JB7: 2035-12-31 | JC7: 2036-01-31 | JD7: 2036-02-29 | JE7: 2036-03-31 | JF7: 2036-04-30 | JG7: 2036-05-31 | JH7: 2036-06-30 | JI7: 2036-07-31 | JJ7: 2036-08-31 | JK7: 2036-09-30 | JL7: 2036-10-31 | JM7: 2036-11-30 | JN7: 2036-12-31 | JO7: 2037-01-31 | JP7: 2037-02-28 | JQ7: 2037-03-31 | JR7: 2037-04-30 | JS7: 2037-05-31 | JT7: 2037-06-30 | JU7: 2037-07-31 | JV7: 2037-08-31 | JW7: 2037-09-30 | JX7: 2037-10-31 | JY7: 2037-11-30 | JZ7: 2037-12-31 | KA7: 2038-01-31 | KB7: 2038-02-28 | KC7: 2038-03-31 | KD7: 2038-04-30 | KE7: 2038-05-31 | KF7: 2038-06-30 | KG7: 2038-07-31 | KH7: 2038-08-31 | KI7: 2038-09-30 | KJ7: 2038-10-31 | KK7: 2038-11-30 | KL7: 2038-12-31 | KM7: 2039-01-31 | KN7: 2039-02-28 | KO7: 2039-03-31 | KP7: 2039-04-30 | KQ7: 2039-05-31 | KR7: 2039-06-30 | KS7: =EOMONTH(KS6,0) -> 2039-07-31 | KT7: 2039-08-31 | KU7: 2039-09-30 | KV7: 2039-10-31 | KW7: 2039-11-30 | KX7: 2039-12-31 | KY7: 2040-01-31 | KZ7: 2040-02-29 | LA7: 2040-03-31 | LB7: 2040-04-30 | LC7: 2040-05-31 | LD7: 2040-06-30 | LE7: 2040-07-31 | LF7: 2040-08-31 | LG7: 2040-09-30 | LH7: 2040-10-31 | LI7: 2040-11-30 | LJ7: 2040-12-31 | LK7: 2041-01-31 | LL7: 2041-02-28 | LM7: 2041-03-31 | LN7: 2041-04-30 | LO7: 2041-05-31 | LP7: 2041-06-30 | LQ7: 2041-07-31 | LR7: 2041-08-31 | LS7: 2041-09-30 | LT7: 2041-10-31 | LU7: 2041-11-30 | LV7: 2041-12-31 | LW7: 2042-01-31 | LX7: 2042-02-28 | LY7: 2042-03-31 | LZ7: 2042-04-30 | MA7: 2042-05-31 | MB7: 2042-06-30 | MC7: 2042-07-31 | MD7: 2042-08-31 | ME7: 2042-09-30 | MF7: 2042-10-31 | MG7: =EOMONTH(MG6,0) -> 2042-11-30 | MH7: =EOMONTH(MH6,0) -> 2042-12-31
E8: Summary period | S8: =R8+1 -> 1 | T8: =S8+1 -> 2 | U8: 3 | V8: =U8+1 -> 4 | W8: 5 | X8: 6 | Y8: 7 | Z8: 8 | AA8: 9 | AB8: 10 | AC8: 11 | AD8: 12 | AE8: 13 | AF8: 14 | AG8: 15 | AH8: 16 | AI8: 17 | AJ8: 18 | AK8: 19 | AL8: 20 | AM8: 21 | AN8: 22 | AO8: 23 | AP8: 24 | AQ8: 25 | AU8: =MATCH(AU7,$S$6:$AQ$6,1) -> 1 | AV8: =MATCH(AV7,$S$6:$AQ$6,1) -> 1 | AW8: 1 | AX8: 2 | AY8: 2 | AZ8: 2 | BA8: 2 | BB8: 2 | BC8: 2 | BD8: 2 | BE8: 2 | BF8: 2 | BG8: 2 | BH8: 2 | BI8: 2 | BJ8: 3 | BK8: 3 | BL8: 3 | BM8: 3 | BN8: 3 | BO8: 3 | BP8: 3 | BQ8: 3 | BR8: 3 | BS8: 3 | BT8: 3 | BU8: 3 | BV8: 4 | BW8: 4 | BX8: 4 | BY8: 4 | BZ8: 4 | CA8: 4 | CB8: 4 | CC8: 4 | CD8: 4 | CE8: 4 | CF8: 4 | CG8: 4 | CH8: 5 | CI8: 5 | CJ8: 5 | CK8: 5 | CL8: 5 | CM8: 5 | CN8: 5 | CO8: 5 | CP8: 5 | CQ8: 5 | CR8: 5 | CS8: 5 | CT8: 6 | CU8: 6 | CV8: 6 | CW8: 6 | CX8: 6 | CY8: 6 | CZ8: 6 | DA8: 6 | DB8: 6 | DC8: 6 | DD8: 6 | DE8: 6 | DF8: 7 | DG8: 7 | DH8: =MATCH(DH7,$S$6:$AQ$6,1) -> 7 | DI8: 7 | DJ8: 7 | DK8: 7 | DL8: 7 | DM8: 7 | DN8: 7 | DO8: 7 | DP8: 7 | DQ8: 7 | DR8: 8 | DS8: 8 | DT8: 8 | DU8: 8 | DV8: 8 | DW8: 8 | DX8: 8 | DY8: 8 | DZ8: 8 | EA8: 8 | EB8: 8 | EC8: 8 | ED8: 9 | EE8: 9 | EF8: 9 | EG8: 9 | EH8: 9 | EI8: 9 | EJ8: 9 | EK8: 9 | EL8: 9 | EM8: 9 | EN8: 9 | EO8: 9 | EP8: 10 | EQ8: 10 | ER8: 10 | ES8: 10 | ET8: 10 | EU8: 10 | EV8: 10 | EW8: 10 | EX8: 10 | EY8: 10 | EZ8: 10 | FA8: 10 | FB8: 11 | FC8: 11 | FD8: 11 | FE8: 11 | FF8: 11 | FG8: 11 | FH8: 11 | FI8: 11 | FJ8: 11 | FK8: 11 | FL8: 11 | FM8: 11 | FN8: 12 | FO8: 12 | FP8: 12 | FQ8: 12 | FR8: 12 | FS8: 12 | FT8: =MATCH(FT7,$S$6:$AQ$6,1) -> 12 | FU8: 12 | FV8: 12 | FW8: 12 | FX8: 12 | FY8: 12 | FZ8: 13 | GA8: 13 | GB8: 13 | GC8: 13 | GD8: 13 | GE8: 13 | GF8: 13 | GG8: 13 | GH8: 13 | GI8: 13 | GJ8: 13 | GK8: 13 | GL8: 14 | GM8: 14 | GN8: 14 | GO8: 14 | GP8: 14 | GQ8: 14 | GR8: 14 | GS8: 14 | GT8: 14 | GU8: 14 | GV8: 14 | GW8: 14 | GX8: 15 | GY8: 15 | GZ8: 15 | HA8: 15 | HB8: 15 | HC8: 15 | HD8: 15 | HE8: 15 | HF8: 15 | HG8: 15 | HH8: 15 | HI8: 15 | HJ8: 16 | HK8: 16 | HL8: 16 | HM8: 16 | HN8: 16 | HO8: 16 | HP8: 16 | HQ8: 16 | HR8: 16 | HS8: 16 | HT8: 16 | HU8: 16 | HV8: 17 | HW8: 17 | HX8: 17 | HY8: 17 | HZ8: 17 | IA8: 17 | IB8: 17 | IC8: 17 | ID8: 17 | IE8: 17 | IF8: =MATCH(IF7,$S$6:$AQ$6,1) -> 17 | IG8: 17 | IH8: 18 | II8: 18 | IJ8: 18 | IK8: 18 | IL8: 18 | IM8: 18 | IN8: 18 | IO8: 18 | IP8: 18 | IQ8: 18 | IR8: 18 | IS8: 18 | IT8: 19 | IU8: 19 | IV8: 19 | IW8: 19 | IX8: 19 | IY8: 19 | IZ8: 19 | JA8: 19 | JB8: 19 | JC8: 19 | JD8: 19 | JE8: 19 | JF8: 20 | JG8: 20 | JH8: 20 | JI8: 20 | JJ8: 20 | JK8: 20 | JL8: 20 | JM8: 20 | JN8: 20 | JO8: 20 | JP8: 20 | JQ8: 20 | JR8: 21 | JS8: 21 | JT8: 21 | JU8: 21 | JV8: 21 | JW8: 21 | JX8: 21 | JY8: 21 | JZ8: 21 | KA8: 21 | KB8: 21 | KC8: 21 | KD8: 22 | KE8: 22 | KF8: 22 | KG8: 22 | KH8: 22 | KI8: 22 | KJ8: 22 | KK8: 22 | KL8: 22 | KM8: 22 | KN8: 22 | KO8: 22 | KP8: 23 | KQ8: 23 | KR8: =MATCH(KR7,$S$6:$AQ$6,1) -> 23 | KS8: 23 | KT8: 23 | KU8: 23 | KV8: 23 | KW8: 23 | KX8: 23 | KY8: 23 | KZ8: 23 | LA8: 23 | LB8: 24 | LC8: 24 | LD8: 24 | LE8: 24 | LF8: 24 | LG8: 24 | LH8: 24 | LI8: 24 | LJ8: 24 | LK8: 24 | LL8: 24 | LM8: 24 | LN8: 25 | LO8: 25 | LP8: 25 | LQ8: 25 | LR8: 25 | LS8: 25 | LT8: 25 | LU8: 25 | LV8: 25 | LW8: 25 | LX8: 25 | LY8: 25 | LZ8: 25 | MA8: 25 | MB8: 25 | MC8: 25 | MD8: 25 | ME8: 25 | MF8: 25 | MG8: 25 | MH8: 25
E9: Calendar year | S9: =YEAR(S7) -> 2018 | T9: =YEAR(T7) -> 2019 | U9: 2020 | V9: 2021 | W9: 2022 | X9: 2023 | Y9: 2024 | Z9: 2025 | AA9: 2026 | AB9: 2027 | AC9: 2028 | AD9: 2029 | AE9: 2030 | AF9: 2031 | AG9: 2032 | AH9: 2033 | AI9: 2034 | AJ9: 2035 | AK9: 2036 | AL9: 2037 | AM9: 2038 | AN9: 2039 | AO9: 2040 | AP9: 2041 | AQ9: 2042 | AU9: =YEAR(AU7) -> 2018 | AV9: =YEAR(AV7) -> 2018 | AW9: 2018 | AX9: 2018 | AY9: 2018 | AZ9: 2018 | BA9: 2018 | BB9: 2018 | BC9: 2018 | BD9: 2018 | BE9: 2018 | BF9: 2018 | BG9: 2019 | BH9: 2019 | BI9: 2019 | BJ9: 2019 | BK9: 2019 | BL9: 2019 | BM9: 2019 | BN9: 2019 | BO9: 2019 | BP9: 2019 | BQ9: 2019 | BR9: 2019 | BS9: 2020 | BT9: 2020 | BU9: 2020 | BV9: 2020 | BW9: 2020 | BX9: 2020 | BY9: 2020 | BZ9: 2020 | CA9: 2020 | CB9: 2020 | CC9: 2020 | CD9: 2020 | CE9: 2021 | CF9: 2021 | CG9: 2021 | CH9: 2021 | CI9: 2021 | CJ9: 2021 | CK9: 2021 | CL9: 2021 | CM9: 2021 | CN9: 2021 | CO9: 2021 | CP9: 2021 | CQ9: 2022 | CR9: 2022 | CS9: 2022 | CT9: 2022 | CU9: 2022 | CV9: 2022 | CW9: 2022 | CX9: 2022 | CY9: 2022 | CZ9: 2022 | DA9: 2022 | DB9: 2022 | DC9: 2023 | DD9: 2023 | DE9: 2023 | DF9: 2023 | DG9: 2023 | DH9: =YEAR(DH7) -> 2023 | DI9: 2023 | DJ9: 2023 | DK9: 2023 | DL9: 2023 | DM9: 2023 | DN9: 2023 | DO9: 2024 | DP9: 2024 | DQ9: 2024 | DR9: 2024 | DS9: 2024 | DT9: 2024 | DU9: 2024 | DV9: 2024 | DW9: 2024 | DX9: 2024 | DY9: 2024 | DZ9: 2024 | EA9: 2025 | EB9: 2025 | EC9: 2025 | ED9: 2025 | EE9: 2025 | EF9: 2025 | EG9: 2025 | EH9: 2025 | EI9: 2025 | EJ9: 2025 | EK9: 2025 | EL9: 2025 | EM9: 2026 | EN9: 2026 | EO9: 2026 | EP9: 2026 | EQ9: 2026 | ER9: 2026 | ES9: 2026 | ET9: 2026 | EU9: 2026 | EV9: 2026 | EW9: 2026 | EX9: 2026 | EY9: 2027 | EZ9: 2027 | FA9: 2027 | FB9: 2027 | FC9: 2027 | FD9: 2027 | FE9: 2027 | FF9: 2027 | FG9: 2027 | FH9: 2027 | FI9: 2027 | FJ9: 2027 | FK9: 2028 | FL9: 2028 | FM9: 2028 | FN9: 2028 | FO9: 2028 | FP9: 2028 | FQ9: 2028 | FR9: 2028 | FS9: 2028 | FT9: =YEAR(FT7) -> 2028 | FU9: 2028 | FV9: 2028 | FW9: 2029 | FX9: 2029 | FY9: 2029 | FZ9: 2029 | GA9: 2029 | GB9: 2029 | GC9: 2029 | GD9: 2029 | GE9: 2029 | GF9: 2029 | GG9: 2029 | GH9: 2029 | GI9: 2030 | GJ9: 2030 | GK9: 2030 | GL9: 2030 | GM9: 2030 | GN9: 2030 | GO9: 2030 | GP9: 2030 | GQ9: 2030 | GR9: 2030 | GS9: 2030 | GT9: 2030 | GU9: 2031 | GV9: 2031 | GW9: 2031 | GX9: 2031 | GY9: 2031 | GZ9: 2031 | HA9: 2031 | HB9: 2031 | HC9: 2031 | HD9: 2031 | HE9: 2031 | HF9: 2031 | HG9: 2032 | HH9: 2032 | HI9: 2032 | HJ9: 2032 | HK9: 2032 | HL9: 2032 | HM9: 2032 | HN9: 2032 | HO9: 2032 | HP9: 2032 | HQ9: 2032 | HR9: 2032 | HS9: 2033 | HT9: 2033 | HU9: 2033 | HV9: 2033 | HW9: 2033 | HX9: 2033 | HY9: 2033 | HZ9: 2033 | IA9: 2033 | IB9: 2033 | IC9: 2033 | ID9: 2033 | IE9: 2034 | IF9: =YEAR(IF7) -> 2034 | IG9: 2034 | IH9: 2034 | II9: 2034 | IJ9: 2034 | IK9: 2034 | IL9: 2034 | IM9: 2034 | IN9: 2034 | IO9: 2034 | IP9: 2034 | IQ9: 2035 | IR9: 2035 | IS9: 2035 | IT9: 2035 | IU9: 2035 | IV9: 2035 | IW9: 2035 | IX9: 2035 | IY9: 2035 | IZ9: 2035 | JA9: 2035 | JB9: 2035 | JC9: 2036 | JD9: 2036 | JE9: 2036 | JF9: 2036 | JG9: 2036 | JH9: 2036 | JI9: 2036 | JJ9: 2036 | JK9: 2036 | JL9: 2036 | JM9: 2036 | JN9: 2036 | JO9: 2037 | JP9: 2037 | JQ9: 2037 | JR9: 2037 | JS9: 2037 | JT9: 2037 | JU9: 2037 | JV9: 2037 | JW9: 2037 | JX9: 2037 | JY9: 2037 | JZ9: 2037 | KA9: 2038 | KB9: 2038 | KC9: 2038 | KD9: 2038 | KE9: 2038 | KF9: 2038 | KG9: 2038 | KH9: 2038 | KI9: 2038 | KJ9: 2038 | KK9: 2038 | KL9: 2038 | KM9: 2039 | KN9: 2039 | KO9: 2039 | KP9: 2039 | KQ9: 2039 | KR9: =YEAR(KR7) -> 2039 | KS9: 2039 | KT9: 2039 | KU9: 2039 | KV9: 2039 | KW9: 2039 | KX9: 2039 | KY9: 2040 | KZ9: 2040 | LA9: 2040 | LB9: 2040 | LC9: 2040 | LD9: 2040 | LE9: 2040 | LF9: 2040 | LG9: 2040 | LH9: 2040 | LI9: 2040 | LJ9: 2040 | LK9: 2041 | LL9: 2041 | LM9: 2041 | LN9: 2041 | LO9: 2041 | LP9: 2041 | LQ9: 2041 | LR9: 2041 | LS9: 2041 | LT9: 2041 | LU9: 2041 | LV9: 2041 | LW9: 2042 | LX9: 2042 | LY9: 2042 | LZ9: 2042 | MA9: 2042 | MB9: 2042 | MC9: 2042 | MD9: 2042 | ME9: 2042 | MF9: 2042 | MG9: =YEAR(MG7) -> 2042 | MH9: =YEAR(MH7) -> 2042
E10: Month in calendar year | S10: =SUMIF(_MonthEnds,S$7,$AU10:$MH10) -> 3 | T10: 3 | U10: 3 | V10: 3 | W10: 3 | X10: 3 | Y10: 3 | Z10: 3 | AA10: 3 | AB10: 3 | AC10: =SUMIF(_MonthEnds,AC$7,$AU10:$MH10) -> 3 | AD10: 3 | AE10: 3 | AF10: 3 | AG10: 3 | AH10: 3 | AI10: 3 | AJ10: 3 | AK10: 3 | AL10: 3 | AM10: 3 | AN10: 3 | AO10: 3 | AP10: 3 | AQ10: 3 | AU10: =MONTH(AU7) -> 1 | AV10: =MONTH(AV7) -> 2 | AW10: 3 | AX10: 4 | AY10: 5 | AZ10: 6 | BA10: 7 | BB10: 8 | BC10: 9 | BD10: 10 | BE10: 11 | BF10: 12 | BG10: 1 | BH10: 2 | BI10: 3 | BJ10: 4 | BK10: 5 | BL10: 6 | BM10: 7 | BN10: 8 | BO10: 9 | BP10: 10 | BQ10: 11 | BR10: 12 | BS10: 1 | BT10: 2 | BU10: 3 | BV10: 4 | BW10: 5 | BX10: 6 | BY10: 7 | BZ10: 8 | CA10: 9 | CB10: 10 | CC10: 11 | CD10: 12 | CE10: 1 | CF10: 2 | CG10: 3 | CH10: 4 | CI10: 5 | CJ10: 6 | CK10: 7 | CL10: 8 | CM10: 9 | CN10: 10 | CO10: 11 | CP10: 12 | CQ10: 1 | CR10: 2 | CS10: 3 | CT10: 4 | CU10: 5 | CV10: 6 | CW10: 7 | CX10: 8 | CY10: 9 | CZ10: 10 | DA10: 11 | DB10: 12 | DC10: 1 | DD10: 2 | DE10: 3 | DF10: 4 | DG10: 5 | DH10: =MONTH(DH7) -> 6 | DI10: 7 | DJ10: 8 | DK10: 9 | DL10: 10 | DM10: 11 | DN10: 12 | DO10: 1 | DP10: 2 | DQ10: 3 | DR10: 4 | DS10: 5 | DT10: 6 | DU10: 7 | DV10: 8 | DW10: 9 | DX10: 10 | DY10: 11 | DZ10: 12 | EA10: 1 | EB10: 2 | EC10: 3 | ED10: 4 | EE10: 5 | EF10: 6 | EG10: 7 | EH10: 8 | EI10: 9 | EJ10: 10 | EK10: 11 | EL10: 12 | EM10: 1 | EN10: 2 | EO10: 3 | EP10: 4 | EQ10: 5 | ER10: 6 | ES10: 7 | ET10: 8 | EU10: 9 | EV10: 10 | EW10: 11 | EX10: 12 | EY10: 1 | EZ10: 2 | FA10: 3 | FB10: 4 | FC10: 5 | FD10: 6 | FE10: 7 | FF10: 8 | FG10: 9 | FH10: 10 | FI10: 11 | FJ10: 12 | FK10: 1 | FL10: 2 | FM10: 3 | FN10: 4 | FO10: 5 | FP10: 6 | FQ10: 7 | FR10: 8 | FS10: 9 | FT10: =MONTH(FT7) -> 10 | FU10: 11 | FV10: 12 | FW10: 1 | FX10: 2 | FY10: 3 | FZ10: 4 | GA10: 5 | GB10: 6 | GC10: 7 | GD10: 8 | GE10: 9 | GF10: 10 | GG10: 11 | GH10: 12 | GI10: 1 | GJ10: 2 | GK10: 3 | GL10: 4 | GM10: 5 | GN10: 6 | GO10: 7 | GP10: 8 | GQ10: 9 | GR10: 10 | GS10: 11 | GT10: 12 | GU10: 1 | GV10: 2 | GW10: 3 | GX10: 4 | GY10: 5 | GZ10: 6 | HA10: 7 | HB10: 8 | HC10: 9 | HD10: 10 | HE10: 11 | HF10: 12 | HG10: 1 | HH10: 2 | HI10: 3 | HJ10: 4 | HK10: 5 | HL10: 6 | HM10: 7 | HN10: 8 | HO10: 9 | HP10: 10 | HQ10: 11 | HR10: 12 | HS10: 1 | HT10: 2 | HU10: 3 | HV10: 4 | HW10: 5 | HX10: 6 | HY10: 7 | HZ10: 8 | IA10: 9 | IB10: 10 | IC10: 11 | ID10: 12 | IE10: 1 | IF10: =MONTH(IF7) -> 2 | IG10: 3 | IH10: 4 | II10: 5 | IJ10: 6 | IK10: 7 | IL10: 8 | IM10: 9 | IN10: 10 | IO10: 11 | IP10: 12 | IQ10: 1 | IR10: 2 | IS10: 3 | IT10: 4 | IU10: 5 | IV10: 6 | IW10: 7 | IX10: 8 | IY10: 9 | IZ10: 10 | JA10: 11 | JB10: 12 | JC10: 1 | JD10: 2 | JE10: 3 | JF10: 4 | JG10: 5 | JH10: 6 | JI10: 7 | JJ10: 8 | JK10: 9 | JL10: 10 | JM10: 11 | JN10: 12 | JO10: 1 | JP10: 2 | JQ10: 3 | JR10: 4 | JS10: 5 | JT10: 6 | JU10: 7 | JV10: 8 | JW10: 9 | JX10: 10 | JY10: 11 | JZ10: 12 | KA10: 1 | KB10: 2 | KC10: 3 | KD10: 4 | KE10: 5 | KF10: 6 | KG10: 7 | KH10: 8 | KI10: 9 | KJ10: 10 | KK10: 11 | KL10: 12 | KM10: 1 | KN10: 2 | KO10: 3 | KP10: 4 | KQ10: 5 | KR10: =MONTH(KR7) -> 6 | KS10: 7 | KT10: 8 | KU10: 9 | KV10: 10 | KW10: 11 | KX10: 12 | KY10: 1 | KZ10: 2 | LA10: 3 | LB10: 4 | LC10: 5 | LD10: 6 | LE10: 7 | LF10: 8 | LG10: 9 | LH10: 10 | LI10: 11 | LJ10: 12 | LK10: 1 | LL10: 2 | LM10: 3 | LN10: 4 | LO10: 5 | LP10: 6 | LQ10: 7 | LR10: 8 | LS10: 9 | LT10: 10 | LU10: 11 | LV10: 12 | LW10: 1 | LX10: 2 | LY10: 3 | LZ10: 4 | MA10: 5 | MB10: 6 | MC10: 7 | MD10: 8 | ME10: 9 | MF10: 10 | MG10: =MONTH(MG7) -> 11 | MH10: =MONTH(MH7) -> 12
E11: Financial year | F11: =NTBInputs!$F$7 -> 3 | S11: 2018 | T11: 2019 | U11: 2020 | V11: 2021 | W11: 2022 | X11: 2023 | Y11: 2024 | Z11: 2025 | AA11: 2026 | AB11: 2027 | AC11: 2028 | AD11: 2029 | AE11: 2030 | AF11: 2031 | AG11: 2032 | AH11: 2033 | AI11: 2034 | AJ11: 2035 | AK11: 2036 | AL11: 2037 | AM11: 2038 | AN11: 2039 | AO11: 2040 | AP11: 2041 | AQ11: 2042 | AU11: =IF(AU10<=$F11,AU9,AU9+1) -> 2018 | AV11: =IF(AV10<=$F11,AV9,AV9+1) -> 2018 | AW11: 2018 | AX11: 2019 | AY11: 2019 | AZ11: 2019 | BA11: 2019 | BB11: 2019 | BC11: 2019 | BD11: 2019 | BE11: 2019 | BF11: 2019 | BG11: 2019 | BH11: 2019 | BI11: 2019 | BJ11: 2020 | BK11: 2020 | BL11: 2020 | BM11: 2020 | BN11: 2020 | BO11: 2020 | BP11: 2020 | BQ11: 2020 | BR11: 2020 | BS11: 2020 | BT11: 2020 | BU11: 2020 | BV11: 2021 | BW11: 2021 | BX11: 2021 | BY11: 2021 | BZ11: 2021 | CA11: 2021 | CB11: 2021 | CC11: 2021 | CD11: 2021 | CE11: 2021 | CF11: 2021 | CG11: 2021 | CH11: 2022 | CI11: 2022 | CJ11: 2022 | CK11: 2022 | CL11: 2022 | CM11: 2022 | CN11: 2022 | CO11: 2022 | CP11: 2022 | CQ11: 2022 | CR11: 2022 | CS11: 2022 | CT11: 2023 | CU11: 2023 | CV11: 2023 | CW11: 2023 | CX11: 2023 | CY11: 2023 | CZ11: 2023 | DA11: 2023 | DB11: 2023 | DC11: 2023 | DD11: 2023 | DE11: 2023 | DF11: 2024 | DG11: 2024 | DH11: =IF(DH10<=$F11,DH9,DH9+1) -> 2024 | DI11: 2024 | DJ11: 2024 | DK11: 2024 | DL11: 2024 | DM11: 2024 | DN11: 2024 | DO11: 2024 | DP11: 2024 | DQ11: 2024 | DR11: 2025 | DS11: 2025 | DT11: 2025 | DU11: 2025 | DV11: 2025 | DW11: 2025 | DX11: 2025 | DY11: 2025 | DZ11: 2025 | EA11: 2025 | EB11: 2025 | EC11: 2025 | ED11: 2026 | EE11: 2026 | EF11: 2026 | EG11: 2026 | EH11: 2026 | EI11: 2026 | EJ11: 2026 | EK11: 2026 | EL11: 2026 | EM11: 2026 | EN11: 2026 | EO11: 2026 | EP11: 2027 | EQ11: 2027 | ER11: 2027 | ES11: 2027 | ET11: 2027 | EU11: 2027 | EV11: 2027 | EW11: 2027 | EX11: 2027 | EY11: 2027 | EZ11: 2027 | FA11: 2027 | FB11: 2028 | FC11: 2028 | FD11: 2028 | FE11: 2028 | FF11: 2028 | FG11: 2028 | FH11: 2028 | FI11: 2028 | FJ11: 2028 | FK11: 2028 | FL11: 2028 | FM11: 2028 | FN11: 2029 | FO11: 2029 | FP11: 2029 | FQ11: 2029 | FR11: 2029 | FS11: 2029 | FT11: =IF(FT10<=$F11,FT9,FT9+1) -> 2029 | FU11: 2029 | FV11: 2029 | FW11: 2029 | FX11: 2029 | FY11: 2029 | FZ11: 2030 | GA11: 2030 | GB11: 2030 | GC11: 2030 | GD11: 2030 | GE11: 2030 | GF11: 2030 | GG11: 2030 | GH11: 2030 | GI11: 2030 | GJ11: 2030 | GK11: 2030 | GL11: 2031 | GM11: 2031 | GN11: 2031 | GO11: 2031 | GP11: 2031 | GQ11: 2031 | GR11: 2031 | GS11: 2031 | GT11: 2031 | GU11: 2031 | GV11: 2031 | GW11: 2031 | GX11: 2032 | GY11: 2032 | GZ11: 2032 | HA11: 2032 | HB11: 2032 | HC11: 2032 | HD11: 2032 | HE11: 2032 | HF11: 2032 | HG11: 2032 | HH11: 2032 | HI11: 2032 | HJ11: 2033 | HK11: 2033 | HL11: 2033 | HM11: 2033 | HN11: 2033 | HO11: 2033 | HP11: 2033 | HQ11: 2033 | HR11: 2033 | HS11: 2033 | HT11: 2033 | HU11: 2033 | HV11: 2034 | HW11: 2034 | HX11: 2034 | HY11: 2034 | HZ11: 2034 | IA11: 2034 | IB11: 2034 | IC11: 2034 | ID11: 2034 | IE11: 2034 | IF11: =IF(IF10<=$F11,IF9,IF9+1) -> 2034 | IG11: 2034 | IH11: 2035 | II11: 2035 | IJ11: 2035 | IK11: 2035 | IL11: 2035 | IM11: 2035 | IN11: 2035 | IO11: 2035 | IP11: 2035 | IQ11: 2035 | IR11: 2035 | IS11: 2035 | IT11: 2036 | IU11: 2036 | IV11: 2036 | IW11: 2036 | IX11: 2036 | IY11: 2036 | IZ11: 2036 | JA11: 2036 | JB11: 2036 | JC11: 2036 | JD11: 2036 | JE11: 2036 | JF11: 2037 | JG11: 2037 | JH11: 2037 | JI11: 2037 | JJ11: 2037 | JK11: 2037 | JL11: 2037 | JM11: 2037 | JN11: 2037 | JO11: 2037 | JP11: 2037 | JQ11: 2037 | JR11: 2038 | JS11: 2038 | JT11: 2038 | JU11: 2038 | JV11: 2038 | JW11: 2038 | JX11: 2038 | JY11: 2038 | JZ11: 2038 | KA11: 2038 | KB11: 2038 | KC11: 2038 | KD11: 2039 | KE11: 2039 | KF11: 2039 | KG11: 2039 | KH11: 2039 | KI11: 2039 | KJ11: 2039 | KK11: 2039 | KL11: 2039 | KM11: 2039 | KN11: 2039 | KO11: 2039 | KP11: 2040 | KQ11: 2040 | KR11: =IF(KR10<=$F11,KR9,KR9+1) -> 2040 | KS11: 2040 | KT11: 2040 | KU11: 2040 | KV11: 2040 | KW11: 2040 | KX11: 2040 | KY11: 2040 | KZ11: 2040 | LA11: 2040 | LB11: 2041 | LC11: 2041 | LD11: 2041 | LE11: 2041 | LF11: 2041 | LG11: 2041 | LH11: 2041 | LI11: 2041 | LJ11: 2041 | LK11: 2041 | LL11: 2041 | LM11: 2041 | LN11: 2042 | LO11: 2042 | LP11: 2042 | LQ11: 2042 | LR11: 2042 | LS11: 2042 | LT11: 2042 | LU11: 2042 | LV11: 2042 | LW11: 2042 | LX11: 2042 | LY11: 2042 | LZ11: 2043 | MA11: 2043 | MB11: 2043 | MC11: 2043 | MD11: 2043 | ME11: 2043 | MF11: 2043 | MG11: =IF(MG10<=$F11,MG9,MG9+1) -> 2043 | MH11: =IF(MH10<=$F11,MH9,MH9+1) -> 2043
E12: Month in financial year | F12: =NTBInputs!$F$7 -> 3 | S12: 12 | T12: 12 | U12: 12 | V12: 12 | W12: 12 | X12: 12 | Y12: 12 | Z12: 12 | AA12: 12 | AB12: 12 | AC12: 12 | AD12: 12 | AE12: 12 | AF12: 12 | AG12: 12 | AH12: 12 | AI12: 12 | AJ12: 12 | AK12: 12 | AL12: 12 | AM12: 12 | AN12: 12 | AO12: 12 | AP12: 12 | AQ12: 12 | AU12: =12-MOD($F12-AU10,12) -> 10 | AV12: 11 | AW12: 12 | AX12: 1 | AY12: 2 | AZ12: 3 | BA12: 4 | BB12: 5 | BC12: 6 | BD12: 7 | BE12: 8 | BF12: 9 | BG12: 10 | BH12: 11 | BI12: 12 | BJ12: 1 | BK12: 2 | BL12: 3 | BM12: 4 | BN12: 5 | BO12: 6 | BP12: 7 | BQ12: 8 | BR12: 9 | BS12: 10 | BT12: 11 | BU12: 12 | BV12: 1 | BW12: 2 | BX12: 3 | BY12: 4 | BZ12: 5 | CA12: 6 | CB12: 7 | CC12: 8 | CD12: 9 | CE12: 10 | CF12: 11 | CG12: 12 | CH12: 1 | CI12: 2 | CJ12: 3 | CK12: 4 | CL12: 5 | CM12: 6 | CN12: 7 | CO12: 8 | CP12: 9 | CQ12: 10 | CR12: 11 | CS12: 12 | CT12: 1 | CU12: 2 | CV12: 3 | CW12: 4 | CX12: 5 | CY12: 6 | CZ12: 7 | DA12: 8 | DB12: 9 | DC12: 10 | DD12: 11 | DE12: 12 | DF12: 1 | DG12: =12-MOD($F12-DG10,12) -> 2 | DH12: 3 | DI12: 4 | DJ12: 5 | DK12: 6 | DL12: 7 | DM12: 8 | DN12: 9 | DO12: 10 | DP12: 11 | DQ12: 12 | DR12: 1 | DS12: 2 | DT12: 3 | DU12: 4 | DV12: 5 | DW12: 6 | DX12: 7 | DY12: 8 | DZ12: 9 | EA12: 10 | EB12: 11 | EC12: 12 | ED12: 1 | EE12: 2 | EF12: 3 | EG12: 4 | EH12: 5 | EI12: 6 | EJ12: 7 | EK12: 8 | EL12: 9 | EM12: 10 | EN12: 11 | EO12: 12 | EP12: 1 | EQ12: 2 | ER12: 3 | ES12: 4 | ET12: 5 | EU12: 6 | EV12: 7 | EW12: 8 | EX12: 9 | EY12: 10 | EZ12: 11 | FA12: 12 | FB12: 1 | FC12: 2 | FD12: 3 | FE12: 4 | FF12: 5 | FG12: 6 | FH12: 7 | FI12: 8 | FJ12: 9 | FK12: 10 | FL12: 11 | FM12: 12 | FN12: 1 | FO12: 2 | FP12: 3 | FQ12: 4 | FR12: 5 | FS12: =12-MOD($F12-FS10,12) -> 6 | FT12: 7 | FU12: 8 | FV12: 9 | FW12: 10 | FX12: 11 | FY12: 12 | FZ12: 1 | GA12: 2 | GB12: 3 | GC12: 4 | GD12: 5 | GE12: 6 | GF12: 7 | GG12: 8 | GH12: 9 | GI12: 10 | GJ12: 11 | GK12: 12 | GL12: 1 | GM12: 2 | GN12: 3 | GO12: 4 | GP12: 5 | GQ12: 6 | GR12: 7 | GS12: 8 | GT12: 9 | GU12: 10 | GV12: 11 | GW12: 12 | GX12: 1 | GY12: 2 | GZ12: 3 | HA12: 4 | HB12: 5 | HC12: 6 | HD12: 7 | HE12: 8 | HF12: 9 | HG12: 10 | HH12: 11 | HI12: 12 | HJ12: 1 | HK12: 2 | HL12: 3 | HM12: 4 | HN12: 5 | HO12: 6 | HP12: 7 | HQ12: 8 | HR12: 9 | HS12: 10 | HT12: 11 | HU12: 12 | HV12: 1 | HW12: 2 | HX12: 3 | HY12: 4 | HZ12: 5 | IA12: 6 | IB12: 7 | IC12: 8 | ID12: 9 | IE12: =12-MOD($F12-IE10,12) -> 10 | IF12: 11 | IG12: 12 | IH12: 1 | II12: 2 | IJ12: 3 | IK12: 4 | IL12: 5 | IM12: 6 | IN12: 7 | IO12: 8 | IP12: 9 | IQ12: 10 | IR12: 11 | IS12: 12 | IT12: 1 | IU12: 2 | IV12: 3 | IW12: 4 | IX12: 5 | IY12: 6 | IZ12: 7 | JA12: 8 | JB12: 9 | JC12: 10 | JD12: 11 | JE12: 12 | JF12: 1 | JG12: 2 | JH12: 3 | JI12: 4 | JJ12: 5 | JK12: 6 | JL12: 7 | JM12: 8 | JN12: 9 | JO12: 10 | JP12: 11 | JQ12: 12 | JR12: 1 | JS12: 2 | JT12: 3 | JU12: 4 | JV12: 5 | JW12: 6 | JX12: 7 | JY12: 8 | JZ12: 9 | KA12: 10 | KB12: 11 | KC12: 12 | KD12: 1 | KE12: 2 | KF12: 3 | KG12: 4 | KH12: 5 | KI12: 6 | KJ12: 7 | KK12: 8 | KL12: 9 | KM12: 10 | KN12: 11 | KO12: 12 | KP12: 1 | KQ12: =12-MOD($F12-KQ10,12) -> 2 | KR12: 3 | KS12: 4 | KT12: 5 | KU12: 6 | KV12: 7 | KW12: 8 | KX12: 9 | KY12: 10 | KZ12: 11 | LA12: 12 | LB12: 1 | LC12: 2 | LD12: 3 | LE12: 4 | LF12: 5 | LG12: 6 | LH12: 7 | LI12: 8 | LJ12: 9 | LK12: 10 | LL12: 11 | LM12: 12 | LN12: 1 | LO12: 2 | LP12: 3 | LQ12: 4 | LR12: 5 | LS12: 6 | LT12: 7 | LU12: 8 | LV12: 9 | LW12: 10 | LX12: 11 | LY12: 12 | LZ12: 1 | MA12: 2 | MB12: 3 | MC12: 4 | MD12: 5 | ME12: 6 | MF12: 7 | MG12: =12-MOD($F12-MG10,12) -> 8 | MH12: =12-MOD($F12-MH10,12) -> 9
E13: Days in period | S13: =SUMIF($AU$8:$MH$8,S$8,$AU13:$MH13) -> 90 | T13: =SUMIF($AU$8:$MH$8,T$8,$AU13:$MH13) -> 365 | U13: 366 | V13: 365 | W13: 365 | X13: 365 | Y13: 366 | Z13: 365 | AA13: 365 | AB13: 365 | AC13: 366 | AD13: 365 | AE13: 365 | AF13: 365 | AG13: 366 | AH13: 365 | AI13: 365 | AJ13: 365 | AK13: 366 | AL13: 365 | AM13: 365 | AN13: 365 | AO13: 366 | AP13: 365 | AQ13: 640 | AU13: =AU7-AU6+1 -> 31 | AV13: =AV7-AV6+1 -> 28 | AW13: 31 | AX13: 30 | AY13: 31 | AZ13: 30 | BA13: 31 | BB13: 31 | BC13: 30 | BD13: 31 | BE13: 30 | BF13: 31 | BG13: 31 | BH13: 28 | BI13: 31 | BJ13: 30 | BK13: 31 | BL13: 30 | BM13: 31 | BN13: 31 | BO13: 30 | BP13: 31 | BQ13: 30 | BR13: 31 | BS13: 31 | BT13: 29 | BU13: 31 | BV13: 30 | BW13: 31 | BX13: 30 | BY13: 31 | BZ13: 31 | CA13: 30 | CB13: 31 | CC13: 30 | CD13: 31 | CE13: 31 | CF13: 28 | CG13: 31 | CH13: 30 | CI13: 31 | CJ13: 30 | CK13: 31 | CL13: 31 | CM13: 30 | CN13: 31 | CO13: 30 | CP13: 31 | CQ13: 31 | CR13: 28 | CS13: 31 | CT13: 30 | CU13: 31 | CV13: 30 | CW13: 31 | CX13: 31 | CY13: 30 | CZ13: 31 | DA13: 30 | DB13: 31 | DC13: 31 | DD13: 28 | DE13: 31 | DF13: 30 | DG13: 31 | DH13: =DH7-DH6+1 -> 30 | DI13: 31 | DJ13: 31 | DK13: 30 | DL13: 31 | DM13: 30 | DN13: 31 | DO13: 31 | DP13: 29 | DQ13: 31 | DR13: 30 | DS13: 31 | DT13: 30 | DU13: 31 | DV13: 31 | DW13: 30 | DX13: 31 | DY13: 30 | DZ13: 31 | EA13: 31 | EB13: 28 | EC13: 31 | ED13: 30 | EE13: 31 | EF13: 30 | EG13: 31 | EH13: 31 | EI13: 30 | EJ13: 31 | EK13: 30 | EL13: 31 | EM13: 31 | EN13: 28 | EO13: 31 | EP13: 30 | EQ13: 31 | ER13: 30 | ES13: 31 | ET13: 31 | EU13: 30 | EV13: 31 | EW13: 30 | EX13: 31 | EY13: 31 | EZ13: 28 | FA13: 31 | FB13: 30 | FC13: 31 | FD13: 30 | FE13: 31 | FF13: 31 | FG13: 30 | FH13: 31 | FI13: 30 | FJ13: 31 | FK13: 31 | FL13: 29 | FM13: 31 | FN13: 30 | FO13: 31 | FP13: 30 | FQ13: 31 | FR13: 31 | FS13: 30 | FT13: =FT7-FT6+1 -> 31 | FU13: 30 | FV13: 31 | FW13: 31 | FX13: 28 | FY13: 31 | FZ13: 30 | GA13: 31 | GB13: 30 | GC13: 31 | GD13: 31 | GE13: 30 | GF13: 31 | GG13: 30 | GH13: 31 | GI13: 31 | GJ13: 28 | GK13: 31 | GL13: 30 | GM13: 31 | GN13: 30 | GO13: 31 | GP13: 31 | GQ13: 30 | GR13: 31 | GS13: 30 | GT13: 31 | GU13: 31 | GV13: 28 | GW13: 31 | GX13: 30 | GY13: 31 | GZ13: 30 | HA13: 31 | HB13: 31 | HC13: 30 | HD13: 31 | HE13: 30 | HF13: 31 | HG13: 31 | HH13: 29 | HI13: 31 | HJ13: 30 | HK13: 31 | HL13: 30 | HM13: 31 | HN13: 31 | HO13: 30 | HP13: 31 | HQ13: 30 | HR13: 31 | HS13: 31 | HT13: 28 | HU13: 31 | HV13: 30 | HW13: 31 | HX13: 30 | HY13: 31 | HZ13: 31 | IA13: 30 | IB13: 31 | IC13: 30 | ID13: 31 | IE13: 31 | IF13: =IF7-IF6+1 -> 28 | IG13: 31 | IH13: 30 | II13: 31 | IJ13: 30 | IK13: 31 | IL13: 31 | IM13: 30 | IN13: 31 | IO13: 30 | IP13: 31 | IQ13: 31 | IR13: 28 | IS13: 31 | IT13: 30 | IU13: 31 | IV13: 30 | IW13: 31 | IX13: 31 | IY13: 30 | IZ13: 31 | JA13: 30 | JB13: 31 | JC13: 31 | JD13: 29 | JE13: 31 | JF13: 30 | JG13: 31 | JH13: 30 | JI13: 31 | JJ13: 31 | JK13: 30 | JL13: 31 | JM13: 30 | JN13: 31 | JO13: 31 | JP13: 28 | JQ13: 31 | JR13: 30 | JS13: 31 | JT13: 30 | JU13: 31 | JV13: 31 | JW13: 30 | JX13: 31 | JY13: 30 | JZ13: 31 | KA13: 31 | KB13: 28 | KC13: 31 | KD13: 30 | KE13: 31 | KF13: 30 | KG13: 31 | KH13: 31 | KI13: 30 | KJ13: 31 | KK13: 30 | KL13: 31 | KM13: 31 | KN13: 28 | KO13: 31 | KP13: 30 | KQ13: 31 | KR13: =KR7-KR6+1 -> 30 | KS13: 31 | KT13: 31 | KU13: 30 | KV13: 31 | KW13: 30 | KX13: 31 | KY13: 31 | KZ13: 29 | LA13: 31 | LB13: 30 | LC13: 31 | LD13: 30 | LE13: 31 | LF13: 31 | LG13: 30 | LH13: 31 | LI13: 30 | LJ13: 31 | LK13: 31 | LL13: 28 | LM13: 31 | LN13: 30 | LO13: 31 | LP13: 30 | LQ13: 31 | LR13: 31 | LS13: 30 | LT13: 31 | LU13: 30 | LV13: 31 | LW13: 31 | LX13: 28 | LY13: 31 | LZ13: 30 | MA13: 31 | MB13: 30 | MC13: 31 | MD13: 31 | ME13: 30 | MF13: 31 | MG13: =MG7-MG6+1 -> 30 | MH13: =MH7-MH6+1 -> 31
E14: Days in calendar year | S14: =SUMIF(_MonthEnds,S$7,$AU14:$MH14) -> 365 | T14: 365 | U14: 366 | V14: 365 | W14: 365 | X14: 365 | Y14: 366 | Z14: 365 | AA14: 365 | AB14: 365 | AC14: =SUMIF(_MonthEnds,AC$7,$AU14:$MH14) -> 366 | AD14: 365 | AE14: 365 | AF14: 365 | AG14: 366 | AH14: 365 | AI14: 365 | AJ14: 365 | AK14: 366 | AL14: 365 | AM14: 365 | AN14: 365 | AO14: 366 | AP14: 365 | AQ14: 365 | AT14: ` | AU14: =DATE(AU9,12,31)-DATE(AU9,1,1)+1 -> 365 | AV14: =DATE(AV9,12,31)-DATE(AV9,1,1)+1 -> 365 | AW14: 365 | AX14: 365 | AY14: 365 | AZ14: 365 | BA14: 365 | BB14: 365 | BC14: 365 | BD14: 365 | BE14: 365 | BF14: 365 | BG14: 365 | BH14: 365 | BI14: 365 | BJ14: 365 | BK14: 365 | BL14: 365 | BM14: 365 | BN14: 365 | BO14: 365 | BP14: 365 | BQ14: 365 | BR14: 365 | BS14: 366 | BT14: 366 | BU14: 366 | BV14: 366 | BW14: 366 | BX14: 366 | BY14: 366 | BZ14: 366 | CA14: 366 | CB14: 366 | CC14: 366 | CD14: 366 | CE14: 365 | CF14: 365 | CG14: 365 | CH14: 365 | CI14: 365 | CJ14: 365 | CK14: 365 | CL14: 365 | CM14: 365 | CN14: 365 | CO14: 365 | CP14: 365 | CQ14: 365 | CR14: 365 | CS14: 365 | CT14: 365 | CU14: 365 | CV14: 365 | CW14: 365 | CX14: 365 | CY14: 365 | CZ14: 365 | DA14: 365 | DB14: 365 | DC14: 365 | DD14: 365 | DE14: 365 | DF14: 365 | DG14: 365 | DH14: =DATE(DH9,12,31)-DATE(DH9,1,1)+1 -> 365 | DI14: 365 | DJ14: 365 | DK14: 365 | DL14: 365 | DM14: 365 | DN14: 365 | DO14: 366 | DP14: 366 | DQ14: 366 | DR14: 366 | DS14: 366 | DT14: 366 | DU14: 366 | DV14: 366 | DW14: 366 | DX14: 366 | DY14: 366 | DZ14: 366 | EA14: 365 | EB14: 365 | EC14: 365 | ED14: 365 | EE14: 365 | EF14: 365 | EG14: 365 | EH14: 365 | EI14: 365 | EJ14: 365 | EK14: 365 | EL14: 365 | EM14: 365 | EN14: 365 | EO14: 365 | EP14: 365 | EQ14: 365 | ER14: 365 | ES14: 365 | ET14: 365 | EU14: 365 | EV14: 365 | EW14: 365 | EX14: 365 | EY14: 365 | EZ14: 365 | FA14: 365 | FB14: 365 | FC14: 365 | FD14: 365 | FE14: 365 | FF14: 365 | FG14: 365 | FH14: 365 | FI14: 365 | FJ14: 365 | FK14: 366 | FL14: 366 | FM14: 366 | FN14: 366 | FO14: 366 | FP14: 366 | FQ14: 366 | FR14: 366 | FS14: 366 | FT14: =DATE(FT9,12,31)-DATE(FT9,1,1)+1 -> 366 | FU14: 366 | FV14: 366 | FW14: 365 | FX14: 365 | FY14: 365 | FZ14: 365 | GA14: 365 | GB14: 365 | GC14: 365 | GD14: 365 | GE14: 365 | GF14: 365 | GG14: 365 | GH14: 365 | GI14: 365 | GJ14: 365 | GK14: 365 | GL14: 365 | GM14: 365 | GN14: 365 | GO14: 365 | GP14: 365 | GQ14: 365 | GR14: 365 | GS14: 365 | GT14: 365 | GU14: 365 | GV14: 365 | GW14: 365 | GX14: 365 | GY14: 365 | GZ14: 365 | HA14: 365 | HB14: 365 | HC14: 365 | HD14: 365 | HE14: 365 | HF14: 365 | HG14: 366 | HH14: 366 | HI14: 366 | HJ14: 366 | HK14: 366 | HL14: 366 | HM14: 366 | HN14: 366 | HO14: 366 | HP14: 366 | HQ14: 366 | HR14: 366 | HS14: 365 | HT14: 365 | HU14: 365 | HV14: 365 | HW14: 365 | HX14: 365 | HY14: 365 | HZ14: 365 | IA14: 365 | IB14: 365 | IC14: 365 | ID14: 365 | IE14: 365 | IF14: =DATE(IF9,12,31)-DATE(IF9,1,1)+1 -> 365 | IG14: 365 | IH14: 365 | II14: 365 | IJ14: 365 | IK14: 365 | IL14: 365 | IM14: 365 | IN14: 365 | IO14: 365 | IP14: 365 | IQ14: 365 | IR14: 365 | IS14: 365 | IT14: 365 | IU14: 365 | IV14: 365 | IW14: 365 | IX14: 365 | IY14: 365 | IZ14: 365 | JA14: 365 | JB14: 365 | JC14: 366 | JD14: 366 | JE14: 366 | JF14: 366 | JG14: 366 | JH14: 366 | JI14: 366 | JJ14: 366 | JK14: 366 | JL14: 366 | JM14: 366 | JN14: 366 | JO14: 365 | JP14: 365 | JQ14: 365 | JR14: 365 | JS14: 365 | JT14: 365 | JU14: 365 | JV14: 365 | JW14: 365 | JX14: 365 | JY14: 365 | JZ14: 365 | KA14: 365 | KB14: 365 | KC14: 365 | KD14: 365 | KE14: 365 | KF14: 365 | KG14: 365 | KH14: 365 | KI14: 365 | KJ14: 365 | KK14: 365 | KL14: 365 | KM14: 365 | KN14: 365 | KO14: 365 | KP14: 365 | KQ14: 365 | KR14: =DATE(KR9,12,31)-DATE(KR9,1,1)+1 -> 365 | KS14: 365 | KT14: 365 | KU14: 365 | KV14: 365 | KW14: 365 | KX14: 365 | KY14: 366 | KZ14: 366 | LA14: 366 | LB14: 366 | LC14: 366 | LD14: 366 | LE14: 366 | LF14: 366 | LG14: 366 | LH14: 366 | LI14: 366 | LJ14: 366 | LK14: 365 | LL14: 365 | LM14: 365 | LN14: 365 | LO14: 365 | LP14: 365 | LQ14: 365 | LR14: 365 | LS14: 365 | LT14: 365 | LU14: 365 | LV14: 365 | LW14: 365 | LX14: 365 | LY14: 365 | LZ14: 365 | MA14: 365 | MB14: 365 | MC14: 365 | MD14: 365 | ME14: 365 | MF14: 365 | MG14: =DATE(MG9,12,31)-DATE(MG9,1,1)+1 -> 365 | MH14: =DATE(MH9,12,31)-DATE(MH9,1,1)+1 -> 365
E15: Days in financial year | F15: =NTBInputs!$F$7 -> 3 | S15: 365 | T15: 365 | U15: 366 | V15: 365 | W15: 365 | X15: 365 | Y15: 366 | Z15: 365 | AA15: 365 | AB15: 365 | AC15: 366 | AD15: 365 | AE15: 365 | AF15: 365 | AG15: 366 | AH15: 365 | AI15: 365 | AJ15: 365 | AK15: 366 | AL15: 365 | AM15: 365 | AN15: 365 | AO15: 366 | AP15: 365 | AQ15: 365 | AU15: =EOMONTH(AU6,12-AU12)-EOMONTH(AU6,-AU12) -> 365 | AV15: 365 | AW15: 365 | AX15: 365 | AY15: 365 | AZ15: 365 | BA15: 365 | BB15: 365 | BC15: 365 | BD15: 365 | BE15: 365 | BF15: 365 | BG15: 365 | BH15: 365 | BI15: 365 | BJ15: 366 | BK15: 366 | BL15: 366 | BM15: 366 | BN15: 366 | BO15: 366 | BP15: 366 | BQ15: 366 | BR15: 366 | BS15: 366 | BT15: 366 | BU15: 366 | BV15: 365 | BW15: 365 | BX15: 365 | BY15: 365 | BZ15: 365 | CA15: 365 | CB15: 365 | CC15: 365 | CD15: 365 | CE15: 365 | CF15: 365 | CG15: 365 | CH15: 365 | CI15: 365 | CJ15: 365 | CK15: 365 | CL15: 365 | CM15: 365 | CN15: 365 | CO15: 365 | CP15: 365 | CQ15: 365 | CR15: 365 | CS15: 365 | CT15: 365 | CU15: 365 | CV15: 365 | CW15: 365 | CX15: 365 | CY15: 365 | CZ15: 365 | DA15: 365 | DB15: =EOMONTH(DB6,12-DB12)-EOMONTH(DB6,-DB12) -> 365 | DC15: =EOMONTH(DC6,12-DC12)-EOMONTH(DC6,-DC12) -> 365 | DD15: 365 | DE15: 365 | DF15: 366 | DG15: 366 | DH15: 366 | DI15: 366 | DJ15: 366 | DK15: 366 | DL15: 366 | DM15: 366 | DN15: 366 | DO15: 366 | DP15: 366 | DQ15: 366 | DR15: 365 | DS15: 365 | DT15: 365 | DU15: 365 | DV15: 365 | DW15: 365 | DX15: 365 | DY15: 365 | DZ15: 365 | EA15: 365 | EB15: 365 | EC15: 365 | ED15: 365 | EE15: 365 | EF15: 365 | EG15: 365 | EH15: 365 | EI15: 365 | EJ15: 365 | EK15: 365 | EL15: 365 | EM15: 365 | EN15: 365 | EO15: 365 | EP15: 365 | EQ15: 365 | ER15: 365 | ES15: 365 | ET15: 365 | EU15: 365 | EV15: 365 | EW15: 365 | EX15: 365 | EY15: 365 | EZ15: 365 | FA15: 365 | FB15: 366 | FC15: 366 | FD15: 366 | FE15: 366 | FF15: 366 | FG15: 366 | FH15: 366 | FI15: 366 | FJ15: 366 | FK15: 366 | FL15: 366 | FM15: 366 | FN15: 365 | FO15: =EOMONTH(FO6,12-FO12)-EOMONTH(FO6,-FO12) -> 365 | FP15: 365 | FQ15: 365 | FR15: 365 | FS15: 365 | FT15: 365 | FU15: 365 | FV15: 365 | FW15: 365 | FX15: 365 | FY15: 365 | FZ15: 365 | GA15: 365 | GB15: 365 | GC15: 365 | GD15: 365 | GE15: 365 | GF15: 365 | GG15: 365 | GH15: 365 | GI15: 365 | GJ15: 365 | GK15: 365 | GL15: 365 | GM15: 365 | GN15: 365 | GO15: 365 | GP15: 365 | GQ15: 365 | GR15: 365 | GS15: 365 | GT15: 365 | GU15: 365 | GV15: 365 | GW15: 365 | GX15: 366 | GY15: 366 | GZ15: 366 | HA15: 366 | HB15: 366 | HC15: 366 | HD15: 366 | HE15: 366 | HF15: 366 | HG15: 366 | HH15: 366 | HI15: 366 | HJ15: 365 | HK15: 365 | HL15: 365 | HM15: 365 | HN15: 365 | HO15: 365 | HP15: 365 | HQ15: 365 | HR15: 365 | HS15: 365 | HT15: 365 | HU15: 365 | HV15: 365 | HW15: 365 | HX15: 365 | HY15: 365 | HZ15: 365 | IA15: =EOMONTH(IA6,12-IA12)-EOMONTH(IA6,-IA12) -> 365 | IB15: 365 | IC15: 365 | ID15: 365 | IE15: 365 | IF15: 365 | IG15: 365 | IH15: 365 | II15: 365 | IJ15: 365 | IK15: 365 | IL15: 365 | IM15: 365 | IN15: 365 | IO15: 365 | IP15: 365 | IQ15: 365 | IR15: 365 | IS15: 365 | IT15: 366 | IU15: 366 | IV15: 366 | IW15: 366 | IX15: 366 | IY15: 366 | IZ15: 366 | JA15: 366 | JB15: 366 | JC15: 366 | JD15: 366 | JE15: 366 | JF15: 365 | JG15: 365 | JH15: 365 | JI15: 365 | JJ15: 365 | JK15: 365 | JL15: 365 | JM15: 365 | JN15: 365 | JO15: 365 | JP15: 365 | JQ15: 365 | JR15: 365 | JS15: 365 | JT15: 365 | JU15: 365 | JV15: 365 | JW15: 365 | JX15: 365 | JY15: 365 | JZ15: 365 | KA15: 365 | KB15: 365 | KC15: 365 | KD15: 365 | KE15: 365 | KF15: 365 | KG15: 365 | KH15: 365 | KI15: 365 | KJ15: 365 | KK15: 365 | KL15: 365 | KM15: =EOMONTH(KM6,12-KM12)-EOMONTH(KM6,-KM12) -> 365 | KN15: 365 | KO15: 365 | KP15: 366 | KQ15: 366 | KR15: 366 | KS15: 366 | KT15: 366 | KU15: 366 | KV15: 366 | KW15: 366 | KX15: 366 | KY15: 366 | KZ15: 366 | LA15: 366 | LB15: 365 | LC15: 365 | LD15: 365 | LE15: 365 | LF15: 365 | LG15: 365 | LH15: 365 | LI15: 365 | LJ15: 365 | LK15: 365 | LL15: 365 | LM15: 365 | LN15: 365 | LO15: 365 | LP15: 365 | LQ15: 365 | LR15: 365 | LS15: 365 | LT15: 365 | LU15: 365 | LV15: 365 | LW15: 365 | LX15: 365 | LY15: 365 | LZ15: 365 | MA15: 365 | MB15: 365 | MC15: 365 | MD15: 365 | ME15: 365 | MF15: 365 | MG15: =EOMONTH(MG6,12-MG12)-EOMONTH(MG6,-MG12) -> 365 | MH15: =EOMONTH(MH6,12-MH12)-EOMONTH(MH6,-MH12) -> 365
E16: Column counter | F16: =MAX($AU$16:$DB$16) -> 60 | S16: 3 | T16: 15 | U16: 27 | V16: 39 | W16: 51 | X16: 63 | Y16: 75 | Z16: 87 | AA16: 99 | AB16: 111 | AC16: 123 | AD16: 135 | AE16: 147 | AF16: 159 | AG16: 171 | AH16: 183 | AI16: 195 | AJ16: 207 | AK16: 219 | AL16: 231 | AM16: 243 | AN16: 255 | AO16: 267 | AP16: 279 | AQ16: 291 | AT16: 0 | AU16: =AT16+1 -> 1 | AV16: =AU16+1 -> 2 | AW16: 3 | AX16: 4 | AY16: 5 | AZ16: 6 | BA16: 7 | BB16: 8 | BC16: 9 | BD16: 10 | BE16: 11 | BF16: 12 | BG16: 13 | BH16: 14 | BI16: 15 | BJ16: 16 | BK16: 17 | BL16: 18 | BM16: 19 | BN16: 20 | BO16: 21 | BP16: 22 | BQ16: 23 | BR16: 24 | BS16: 25 | BT16: 26 | BU16: 27 | BV16: 28 | BW16: 29 | BX16: 30 | BY16: 31 | BZ16: 32 | CA16: 33 | CB16: 34 | CC16: 35 | CD16: 36 | CE16: 37 | CF16: 38 | CG16: 39 | CH16: 40 | CI16: 41 | CJ16: 42 | CK16: 43 | CL16: 44 | CM16: 45 | CN16: 46 | CO16: 47 | CP16: 48 | CQ16: 49 | CR16: 50 | CS16: 51 | CT16: 52 | CU16: 53 | CV16: 54 | CW16: 55 | CX16: 56 | CY16: 57 | CZ16: 58 | DA16: 59 | DB16: 60 | DC16: 61 | DD16: 62 | DE16: 63 | DF16: 64 | DG16: 65 | DH16: =DG16+1 -> 66 | DI16: 67 | DJ16: 68 | DK16: 69 | DL16: 70 | DM16: 71 | DN16: 72 | DO16: 73 | DP16: 74 | DQ16: 75 | DR16: 76 | DS16: 77 | DT16: 78 | DU16: 79 | DV16: 80 | DW16: 81 | DX16: 82 | DY16: 83 | DZ16: 84 | EA16: 85 | EB16: 86 | EC16: 87 | ED16: 88 | EE16: 89 | EF16: 90 | EG16: 91 | EH16: 92 | EI16: 93 | EJ16: 94 | EK16: 95 | EL16: 96 | EM16: 97 | EN16: 98 | EO16: 99 | EP16: 100 | EQ16: 101 | ER16: 102 | ES16: 103 | ET16: 104 | EU16: 105 | EV16: 106 | EW16: 107 | EX16: 108 | EY16: 109 | EZ16: 110 | FA16: 111 | FB16: 112 | FC16: 113 | FD16: 114 | FE16: 115 | FF16: 116 | FG16: 117 | FH16: 118 | FI16: 119 | FJ16: 120 | FK16: 121 | FL16: 122 | FM16: 123 | FN16: 124 | FO16: 125 | FP16: 126 | FQ16: 127 | FR16: 128 | FS16: 129 | FT16: =FS16+1 -> 130 | FU16: 131 | FV16: 132 | FW16: 133 | FX16: 134 | FY16: 135 | FZ16: 136 | GA16: 137 | GB16: 138 | GC16: 139 | GD16: 140 | GE16: 141 | GF16: 142 | GG16: 143 | GH16: 144 | GI16: 145 | GJ16: 146 | GK16: 147 | GL16: 148 | GM16: 149 | GN16: 150 | GO16: 151 | GP16: 152 | GQ16: 153 | GR16: 154 | GS16: 155 | GT16: 156 | GU16: 157 | GV16: 158 | GW16: 159 | GX16: 160 | GY16: 161 | GZ16: 162 | HA16: 163 | HB16: 164 | HC16: 165 | HD16: 166 | HE16: 167 | HF16: 168 | HG16: 169 | HH16: 170 | HI16: 171 | HJ16: 172 | HK16: 173 | HL16: 174 | HM16: 175 | HN16: 176 | HO16: 177 | HP16: 178 | HQ16: 179 | HR16: 180 | HS16: 181 | HT16: 182 | HU16: 183 | HV16: 184 | HW16: 185 | HX16: 186 | HY16: 187 | HZ16: 188 | IA16: 189 | IB16: 190 | IC16: 191 | ID16: 192 | IE16: 193 | IF16: =IE16+1 -> 194 | IG16: 195 | IH16: 196 | II16: 197 | IJ16: 198 | IK16: 199 | IL16: 200 | IM16: 201 | IN16: 202 | IO16: 203 | IP16: 204 | IQ16: 205 | IR16: 206 | IS16: 207 | IT16: 208 | IU16: 209 | IV16: 210 | IW16: 211 | IX16: 212 | IY16: 213 | IZ16: 214 | JA16: 215 | JB16: 216 | JC16: 217 | JD16: 218 | JE16: 219 | JF16: 220 | JG16: 221 | JH16: 222 | JI16: 223 | JJ16: 224 | JK16: 225 | JL16: 226 | JM16: 227 | JN16: 228 | JO16: 229 | JP16: 230 | JQ16: 231 | JR16: 232 | JS16: 233 | JT16: 234 | JU16: 235 | JV16: 236 | JW16: 237 | JX16: 238 | JY16: 239 | JZ16: 240 | KA16: 241 | KB16: 242 | KC16: 243 | KD16: 244 | KE16: 245 | KF16: 246 | KG16: 247 | KH16: 248 | KI16: 249 | KJ16: 250 | KK16: 251 | KL16: 252 | KM16: 253 | KN16: 254 | KO16: 255 | KP16: 256 | KQ16: 257 | KR16: =KQ16+1 -> 258 | KS16: 259 | KT16: 260 | KU16: 261 | KV16: 262 | KW16: 263 | KX16: 264 | KY16: 265 | KZ16: 266 | LA16: 267 | LB16: 268 | LC16: 269 | LD16: 270 | LE16: 271 | LF16: 272 | LG16: 273 | LH16: 274 | LI16: 275 | LJ16: 276 | LK16: 277 | LL16: 278 | LM16: 279 | LN16: 280 | LO16: 281 | LP16: 282 | LQ16: 283 | LR16: 284 | LS16: 285 | LT16: 286 | LU16: 287 | LV16: 288 | LW16: 289 | LX16: 290 | LY16: 291 | LZ16: 292 | MA16: 293 | MB16: 294 | MC16: 295 | MD16: 296 | ME16: 297 | MF16: 298 | MG16: 299 | MH16: 300
E17: Descending column count | F17: =F16 -> 60 | S17: 298 | T17: 286 | U17: 274 | V17: 262 | W17: 250 | X17: 238 | Y17: 226 | Z17: 214 | AA17: 202 | AB17: 190 | AC17: 178 | AD17: 166 | AE17: 154 | AF17: 142 | AG17: 130 | AH17: 118 | AI17: 106 | AJ17: 94 | AK17: 82 | AL17: 70 | AM17: 58 | AN17: 46 | AO17: 34 | AP17: 22 | AQ17: 10 | AT17: =MH16+1 -> 301 | AU17: =AT17-1 -> 300 | AV17: =AU17-1 -> 299 | AW17: 298 | AX17: 297 | AY17: 296 | AZ17: 295 | BA17: 294 | BB17: 293 | BC17: 292 | BD17: 291 | BE17: 290 | BF17: 289 | BG17: 288 | BH17: 287 | BI17: 286 | BJ17: 285 | BK17: 284 | BL17: 283 | BM17: 282 | BN17: 281 | BO17: 280 | BP17: 279 | BQ17: 278 | BR17: 277 | BS17: 276 | BT17: 275 | BU17: 274 | BV17: 273 | BW17: 272 | BX17: 271 | BY17: 270 | BZ17: 269 | CA17: 268 | CB17: 267 | CC17: 266 | CD17: 265 | CE17: 264 | CF17: 263 | CG17: 262 | CH17: 261 | CI17: 260 | CJ17: 259 | CK17: 258 | CL17: 257 | CM17: 256 | CN17: 255 | CO17: 254 | CP17: 253 | CQ17: 252 | CR17: 251 | CS17: 250 | CT17: 249 | CU17: 248 | CV17: 247 | CW17: 246 | CX17: 245 | CY17: 244 | CZ17: 243 | DA17: 242 | DB17: 241 | DC17: 240 | DD17: 239 | DE17: 238 | DF17: 237 | DG17: 236 | DH17: =DG17-1 -> 235 | DI17: 234 | DJ17: 233 | DK17: 232 | DL17: 231 | DM17: 230 | DN17: 229 | DO17: 228 | DP17: 227 | DQ17: 226 | DR17: 225 | DS17: 224 | DT17: 223 | DU17: 222 | DV17: 221 | DW17: 220 | DX17: 219 | DY17: 218 | DZ17: 217 | EA17: 216 | EB17: 215 | EC17: 214 | ED17: 213 | EE17: 212 | EF17: 211 | EG17: 210 | EH17: 209 | EI17: 208 | EJ17: 207 | EK17: 206 | EL17: 205 | EM17: 204 | EN17: 203 | EO17: 202 | EP17: 201 | EQ17: 200 | ER17: 199 | ES17: 198 | ET17: 197 | EU17: 196 | EV17: 195 | EW17: 194 | EX17: 193 | EY17: 192 | EZ17: 191 | FA17: 190 | FB17: 189 | FC17: 188 | FD17: 187 | FE17: 186 | FF17: 185 | FG17: 184 | FH17: 183 | FI17: 182 | FJ17: 181 | FK17: 180 | FL17: 179 | FM17: 178 | FN17: 177 | FO17: 176 | FP17: 175 | FQ17: 174 | FR17: 173 | FS17: 172 | FT17: =FS17-1 -> 171 | FU17: 170 | FV17: 169 | FW17: 168 | FX17: 167 | FY17: 166 | FZ17: 165 | GA17: 164 | GB17: 163 | GC17: 162 | GD17: 161 | GE17: 160 | GF17: 159 | GG17: 158 | GH17: 157 | GI17: 156 | GJ17: 155 | GK17: 154 | GL17: 153 | GM17: 152 | GN17: 151 | GO17: 150 | GP17: 149 | GQ17: 148 | GR17: 147 | GS17: 146 | GT17: 145 | GU17: 144 | GV17: 143 | GW17: 142 | GX17: 141 | GY17: 140 | GZ17: 139 | HA17: 138 | HB17: 137 | HC17: 136 | HD17: 135 | HE17: 134 | HF17: 133 | HG17: 132 | HH17: 131 | HI17: 130 | HJ17: 129 | HK17: 128 | HL17: 127 | HM17: 126 | HN17: 125 | HO17: 124 | HP17: 123 | HQ17: 122 | HR17: 121 | HS17: 120 | HT17: 119 | HU17: 118 | HV17: 117 | HW17: 116 | HX17: 115 | HY17: 114 | HZ17: 113 | IA17: 112 | IB17: 111 | IC17: 110 | ID17: 109 | IE17: 108 | IF17: =IE17-1 -> 107 | IG17: 106 | IH17: 105 | II17: 104 | IJ17: 103 | IK17: 102 | IL17: 101 | IM17: 100 | IN17: 99 | IO17: 98 | IP17: 97 | IQ17: 96 | IR17: 95 | IS17: 94 | IT17: 93 | IU17: 92 | IV17: 91 | IW17: 90 | IX17: 89 | IY17: 88 | IZ17: 87 | JA17: 86 | JB17: 85 | JC17: 84 | JD17: 83 | JE17: 82 | JF17: 81 | JG17: 80 | JH17: 79 | JI17: 78 | JJ17: 77 | JK17: 76 | JL17: 75 | JM17: 74 | JN17: 73 | JO17: 72 | JP17: 71 | JQ17: 70 | JR17: 69 | JS17: 68 | JT17: 67 | JU17: 66 | JV17: 65 | JW17: 64 | JX17: 63 | JY17: 62 | JZ17: 61 | KA17: 60 | KB17: 59 | KC17: 58 | KD17: 57 | KE17: 56 | KF17: 55 | KG17: 54 | KH17: 53 | KI17: 52 | KJ17: 51 | KK17: 50 | KL17: 49 | KM17: 48 | KN17: 47 | KO17: 46 | KP17: 45 | KQ17: 44 | KR17: =KQ17-1 -> 43 | KS17: 42 | KT17: 41 | KU17: 40 | KV17: 39 | KW17: 38 | KX17: 37 | KY17: 36 | KZ17: 35 | LA17: 34 | LB17: 33 | LC17: 32 | LD17: 31 | LE17: 30 | LF17: 29 | LG17: 28 | LH17: 27 | LI17: 26 | LJ17: 25 | LK17: 24 | LL17: 23 | LM17: 22 | LN17: 21 | LO17: 20 | LP17: 19 | LQ17: 18 | LR17: 17 | LS17: 16 | LT17: 15 | LU17: 14 | LV17: 13 | LW17: 12 | LX17: 11 | LY17: 10 | LZ17: 9 | MA17: 8 | MB17: 7 | MC17: 6 | MD17: 5 | ME17: 4 | MF17: 3 | MG17: 2 | MH17: 1
E18: Quarterly Period | AU18: 1 | AV18: 1 | AW18: 1 | AX18: =AU18+1 -> 2 | AY18: =AV18+1 -> 2 | AZ18: 2 | BA18: 3 | BB18: 3 | BC18: 3 | BD18: 4 | BE18: 4 | BF18: 4 | BG18: 5 | BH18: 5 | BI18: 5 | BJ18: 6 | BK18: 6 | BL18: 6 | BM18: 7 | BN18: 7 | BO18: 7 | BP18: 8 | BQ18: 8 | BR18: 8 | BS18: 9 | BT18: 9 | BU18: 9 | BV18: 10 | BW18: 10 | BX18: 10 | BY18: 11 | BZ18: 11 | CA18: 11 | CB18: 12 | CC18: 12 | CD18: 12 | CE18: 13 | CF18: 13 | CG18: 13 | CH18: 14 | CI18: 14 | CJ18: 14 | CK18: 15 | CL18: 15 | CM18: 15 | CN18: 16 | CO18: 16 | CP18: 16 | CQ18: 17 | CR18: 17 | CS18: 17 | CT18: 18 | CU18: 18 | CV18: 18 | CW18: 19 | CX18: 19 | CY18: 19 | CZ18: 20 | DA18: 20 | DB18: 20 | DC18: 21 | DD18: 21 | DE18: 21 | DF18: 22 | DG18: 22 | DH18: 22 | DI18: 23 | DJ18: 23 | DK18: =DH18+1 -> 23 | DL18: 24 | DM18: 24 | DN18: 24 | DO18: 25 | DP18: 25 | DQ18: 25 | DR18: 26 | DS18: 26 | DT18: 26 | DU18: 27 | DV18: 27 | DW18: 27 | DX18: 28 | DY18: 28 | DZ18: 28 | EA18: 29 | EB18: 29 | EC18: 29 | ED18: 30 | EE18: 30 | EF18: 30 | EG18: 31 | EH18: 31 | EI18: 31 | EJ18: 32 | EK18: 32 | EL18: 32 | EM18: 33 | EN18: 33 | EO18: 33 | EP18: 34 | EQ18: 34 | ER18: 34 | ES18: 35 | ET18: 35 | EU18: 35 | EV18: 36 | EW18: 36 | EX18: 36 | EY18: 37 | EZ18: 37 | FA18: 37 | FB18: 38 | FC18: 38 | FD18: 38 | FE18: 39 | FF18: 39 | FG18: 39 | FH18: 40 | FI18: 40 | FJ18: 40 | FK18: 41 | FL18: 41 | FM18: 41 | FN18: 42 | FO18: 42 | FP18: 42 | FQ18: 43 | FR18: 43 | FS18: 43 | FT18: 44 | FU18: 44 | FV18: 44 | FW18: =FT18+1 -> 45 | FX18: 45 | FY18: 45 | FZ18: 46 | GA18: 46 | GB18: 46 | GC18: 47 | GD18: 47 | GE18: 47 | GF18: 48 | GG18: 48 | GH18: 48 | GI18: 49 | GJ18: 49 | GK18: 49 | GL18: 50 | GM18: 50 | GN18: 50 | GO18: 51 | GP18: 51 | GQ18: 51 | GR18: 52 | GS18: 52 | GT18: 52 | GU18: 53 | GV18: 53 | GW18: 53 | GX18: 54 | GY18: 54 | GZ18: 54 | HA18: 55 | HB18: 55 | HC18: 55 | HD18: 56 | HE18: 56 | HF18: 56 | HG18: 57 | HH18: 57 | HI18: 57 | HJ18: 58 | HK18: 58 | HL18: 58 | HM18: 59 | HN18: 59 | HO18: 59 | HP18: 60 | HQ18: 60 | HR18: 60 | HS18: 61 | HT18: 61 | HU18: 61 | HV18: 62 | HW18: 62 | HX18: 62 | HY18: 63 | HZ18: 63 | IA18: 63 | IB18: 64 | IC18: 64 | ID18: 64 | IE18: 65 | IF18: 65 | IG18: 65 | IH18: 66 | II18: =IF18+1 -> 66 | IJ18: 66 | IK18: 67 | IL18: 67 | IM18: 67 | IN18: 68 | IO18: 68 | IP18: 68 | IQ18: 69 | IR18: 69 | IS18: 69 | IT18: 70 | IU18: 70 | IV18: 70 | IW18: 71 | IX18: 71 | IY18: 71 | IZ18: 72 | JA18: 72 | JB18: 72 | JC18: 73 | JD18: 73 | JE18: 73 | JF18: 74 | JG18: 74 | JH18: 74 | JI18: 75 | JJ18: 75 | JK18: 75 | JL18: 76 | JM18: 76 | JN18: 76 | JO18: 77 | JP18: 77 | JQ18: 77 | JR18: 78 | JS18: 78 | JT18: 78 | JU18: 79 | JV18: 79 | JW18: 79 | JX18: 80 | JY18: 80 | JZ18: 80 | KA18: 81 | KB18: 81 | KC18: 81 | KD18: 82 | KE18: 82 | KF18: 82 | KG18: 83 | KH18: 83 | KI18: 83 | KJ18: 84 | KK18: 84 | KL18: 84 | KM18: 85 | KN18: 85 | KO18: 85 | KP18: 86 | KQ18: 86 | KR18: 86 | KS18: 87 | KT18: 87 | KU18: =KR18+1 -> 87 | KV18: 88 | KW18: 88 | KX18: 88 | KY18: 89 | KZ18: 89 | LA18: 89 | LB18: 90 | LC18: 90 | LD18: 90 | LE18: 91 | LF18: 91 | LG18: 91 | LH18: 92 | LI18: 92 | LJ18: 92 | LK18: 93 | LL18: 93 | LM18: 93 | LN18: 94 | LO18: 94 | LP18: 94 | LQ18: 95 | LR18: 95 | LS18: 95 | LT18: 96 | LU18: 96 | LV18: 96 | LW18: 97 | LX18: 97 | LY18: 97 | LZ18: 98 | MA18: 98 | MB18: 98 | MC18: 99 | MD18: 99 | ME18: 99 | MF18: 100 | MG18: 100 | MH18: 100 | MI18: 101
B20: General Flags - Quarterly
E22: Start date | F22: =F6 -> 2018-01-01 | AU22: =$F$22 -> 2018-01-01 | AV22: =AU23+1 -> 2018-04-01 | AW22: 2018-07-01 | AX22: 2018-10-01 | AY22: 2019-01-01 | AZ22: 2019-04-01 | BA22: 2019-07-01 | BB22: 2019-10-01 | BC22: 2020-01-01 | BD22: 2020-04-01 | BE22: 2020-07-01 | BF22: 2020-10-01 | BG22: 2021-01-01 | BH22: 2021-04-01 | BI22: 2021-07-01 | BJ22: 2021-10-01 | BK22: 2022-01-01 | BL22: 2022-04-01 | BM22: 2022-07-01 | BN22: 2022-10-01 | BO22: 2023-01-01 | BP22: 2023-04-01 | BQ22: 2023-07-01 | BR22: 2023-10-01 | BS22: 2024-01-01 | BT22: 2024-04-01 | BU22: 2024-07-01 | BV22: 2024-10-01 | BW22: 2025-01-01 | BX22: 2025-04-01 | BY22: 2025-07-01 | BZ22: 2025-10-01 | CA22: 2026-01-01 | CB22: 2026-04-01 | CC22: 2026-07-01 | CD22: 2026-10-01 | CE22: 2027-01-01 | CF22: 2027-04-01 | CG22: 2027-07-01 | CH22: 2027-10-01 | CI22: 2028-01-01 | CJ22: 2028-04-01 | CK22: 2028-07-01 | CL22: 2028-10-01 | CM22: 2029-01-01 | CN22: 2029-04-01 | CO22: 2029-07-01 | CP22: 2029-10-01 | CQ22: 2030-01-01 | CR22: 2030-04-01 | CS22: 2030-07-01 | CT22: 2030-10-01 | CU22: 2031-01-01 | CV22: 2031-04-01 | CW22: 2031-07-01 | CX22: 2031-10-01 | CY22: 2032-01-01 | CZ22: 2032-04-01 | DA22: 2032-07-01 | DB22: 2032-10-01 | DC22: 2033-01-01 | DD22: 2033-04-01 | DE22: 2033-07-01 | DF22: 2033-10-01 | DG22: 2034-01-01 | DH22: =DG23+1 -> 2034-04-01 | DI22: 2034-07-01 | DJ22: 2034-10-01 | DK22: 2035-01-01 | DL22: 2035-04-01 | DM22: 2035-07-01 | DN22: 2035-10-01 | DO22: 2036-01-01 | DP22: 2036-04-01 | DQ22: 2036-07-01 | DR22: 2036-10-01 | DS22: 2037-01-01 | DT22: 2037-04-01 | DU22: 2037-07-01 | DV22: 2037-10-01 | DW22: 2038-01-01 | DX22: 2038-04-01 | DY22: 2038-07-01 | DZ22: 2038-10-01 | EA22: 2039-01-01 | EB22: 2039-04-01 | EC22: 2039-07-01 | ED22: 2039-10-01 | EE22: 2040-01-01 | EF22: 2040-04-01 | EG22: 2040-07-01 | EH22: 2040-10-01 | EI22: 2041-01-01 | EJ22: 2041-04-01 | EK22: 2041-07-01 | EL22: 2041-10-01 | EM22: 2042-01-01 | EN22: 2042-04-01 | EO22: 2042-07-01 | EP22: 2042-10-01
E23: End date | AU23: =EOMONTH(AU22,2) -> 2018-03-31 | AV23: =EOMONTH(AV22,2) -> 2018-06-30 | AW23: 2018-09-30 | AX23: 2018-12-31 | AY23: 2019-03-31 | AZ23: 2019-06-30 | BA23: 2019-09-30 | BB23: 2019-12-31 | BC23: 2020-03-31 | BD23: 2020-06-30 | BE23: 2020-09-30 | BF23: 2020-12-31 | BG23: 2021-03-31 | BH23: 2021-06-30 | BI23: 2021-09-30 | BJ23: 2021-12-31 | BK23: 2022-03-31 | BL23: 2022-06-30 | BM23: 2022-09-30 | BN23: 2022-12-31 | BO23: 2023-03-31 | BP23: 2023-06-30 | BQ23: 2023-09-30 | BR23: 2023-12-31 | BS23: 2024-03-31 | BT23: 2024-06-30 | BU23: 2024-09-30 | BV23: 2024-12-31 | BW23: 2025-03-31 | BX23: 2025-06-30 | BY23: 2025-09-30 | BZ23: 2025-12-31 | CA23: 2026-03-31 | CB23: 2026-06-30 | CC23: 2026-09-30 | CD23: 2026-12-31 | CE23: 2027-03-31 | CF23: 2027-06-30 | CG23: 2027-09-30 | CH23: 2027-12-31 | CI23: 2028-03-31 | CJ23: 2028-06-30 | CK23: 2028-09-30 | CL23: 2028-12-31 | CM23: 2029-03-31 | CN23: 2029-06-30 | CO23: 2029-09-30 | CP23: 2029-12-31 | CQ23: 2030-03-31 | CR23: 2030-06-30 | CS23: 2030-09-30 | CT23: 2030-12-31 | CU23: 2031-03-31 | CV23: 2031-06-30 | CW23: 2031-09-30 | CX23: 2031-12-31 | CY23: 2032-03-31 | CZ23: 2032-06-30 | DA23: 2032-09-30 | DB23: 2032-12-31 | DC23: 2033-03-31 | DD23: 2033-06-30 | DE23: 2033-09-30 | DF23: 2033-12-31 | DG23: 2034-03-31 | DH23: =EOMONTH(DH22,2) -> 2034-06-30 | DI23: 2034-09-30 | DJ23: 2034-12-31 | DK23: 2035-03-31 | DL23: 2035-06-30 | DM23: 2035-09-30 | DN23: 2035-12-31 | DO23: 2036-03-31 | DP23: 2036-06-30 | DQ23: 2036-09-30 | DR23: 2036-12-31 | DS23: 2037-03-31 | DT23: 2037-06-30 | DU23: 2037-09-30 | DV23: 2037-12-31 | DW23: 2038-03-31 | DX23: 2038-06-30 | DY23: 2038-09-30 | DZ23: 2038-12-31 | EA23: 2039-03-31 | EB23: 2039-06-30 | EC23: 2039-09-30 | ED23: 2039-12-31 | EE23: 2040-03-31 | EF23: 2040-06-30 | EG23: 2040-09-30 | EH23: 2040-12-31 | EI23: 2041-03-31 | EJ23: 2041-06-30 | EK23: 2041-09-30 | EL23: 2041-12-31 | EM23: 2042-03-31 | EN23: 2042-06-30 | EO23: 2042-09-30 | EP23: 2042-12-31
E24: Summary period | AU24: =MATCH(AU23,$S$6:$AQ$6,1) -> 1 | AV24: =MATCH(AV23,$S$6:$AQ$6,1) -> 2 | AW24: 2 | AX24: 2 | AY24: 2 | AZ24: 3 | BA24: 3 | BB24: 3 | BC24: 3 | BD24: 4 | BE24: 4 | BF24: 4 | BG24: 4 | BH24: 5 | BI24: 5 | BJ24: 5 | BK24: 5 | BL24: 6 | BM24: 6 | BN24: 6 | BO24: 6 | BP24: 7 | BQ24: 7 | BR24: 7 | BS24: 7 | BT24: 8 | BU24: 8 | BV24: 8 | BW24: 8 | BX24: 9 | BY24: 9 | BZ24: 9 | CA24: 9 | CB24: 10 | CC24: 10 | CD24: 10 | CE24: 10 | CF24: 11 | CG24: 11 | CH24: 11 | CI24: 11 | CJ24: 12 | CK24: 12 | CL24: 12 | CM24: 12 | CN24: 13 | CO24: 13 | CP24: 13 | CQ24: 13 | CR24: 14 | CS24: 14 | CT24: 14 | CU24: 14 | CV24: 15 | CW24: 15 | CX24: 15 | CY24: 15 | CZ24: 16 | DA24: 16 | DB24: 16 | DC24: 16 | DD24: 17 | DE24: 17 | DF24: 17 | DG24: 17 | DH24: =MATCH(DH23,$S$6:$AQ$6,1) -> 18 | DI24: 18 | DJ24: 18 | DK24: 18 | DL24: 19 | DM24: 19 | DN24: 19 | DO24: 19 | DP24: 20 | DQ24: 20 | DR24: 20 | DS24: 20 | DT24: 21 | DU24: 21 | DV24: 21 | DW24: 21 | DX24: 22 | DY24: 22 | DZ24: 22 | EA24: 22 | EB24: 23 | EC24: 23 | ED24: 23 | EE24: 23 | EF24: 24 | EG24: 24 | EH24: 24 | EI24: 24 | EJ24: 25 | EK24: 25 | EL24: 25 | EM24: 25 | EN24: 25 | EO24: 25 | EP24: 25
E25: Calendar year | AU25: =YEAR(AU23) -> 2018 | AV25: =YEAR(AV23) -> 2018 | AW25: 2018 | AX25: 2018 | AY25: 2019 | AZ25: 2019 | BA25: 2019 | BB25: 2019 | BC25: 2020 | BD25: 2020 | BE25: 2020 | BF25: 2020 | BG25: 2021 | BH25: 2021 | BI25: 2021 | BJ25: 2021 | BK25: 2022 | BL25: 2022 | BM25: 2022 | BN25: 2022 | BO25: 2023 | BP25: 2023 | BQ25: 2023 | BR25: 2023 | BS25: 2024 | BT25: 2024 | BU25: 2024 | BV25: 2024 | BW25: 2025 | BX25: 2025 | BY25: 2025 | BZ25: 2025 | CA25: 2026 | CB25: 2026 | CC25: 2026 | CD25: 2026 | CE25: 2027 | CF25: 2027 | CG25: 2027 | CH25: 2027 | CI25: 2028 | CJ25: 2028 | CK25: 2028 | CL25: 2028 | CM25: 2029 | CN25: 2029 | CO25: 2029 | CP25: 2029 | CQ25: 2030 | CR25: 2030 | CS25: 2030 | CT25: 2030 | CU25: 2031 | CV25: 2031 | CW25: 2031 | CX25: 2031 | CY25: 2032 | CZ25: 2032 | DA25: 2032 | DB25: 2032 | DC25: 2033 | DD25: 2033 | DE25: 2033 | DF25: 2033 | DG25: 2034 | DH25: =YEAR(DH23) -> 2034 | DI25: 2034 | DJ25: 2034 | DK25: 2035 | DL25: 2035 | DM25: 2035 | DN25: 2035 | DO25: 2036 | DP25: 2036 | DQ25: 2036 | DR25: 2036 | DS25: 2037 | DT25: 2037 | DU25: 2037 | DV25: 2037 | DW25: 2038 | DX25: 2038 | DY25: 2038 | DZ25: 2038 | EA25: 2039 | EB25: 2039 | EC25: 2039 | ED25: 2039 | EE25: 2040 | EF25: 2040 | EG25: 2040 | EH25: 2040 | EI25: 2041 | EJ25: 2041 | EK25: 2041 | EL25: 2041 | EM25: 2042 | EN25: 2042 | EO25: 2042 | EP25: 2042
E26: Month in calendar year | AU26: =MONTH(AU23) -> 3 | AV26: =MONTH(AV23) -> 6 | AW26: 9 | AX26: 12 | AY26: 3 | AZ26: 6 | BA26: 9 | BB26: 12 | BC26: 3 | BD26: 6 | BE26: 9 | BF26: 12 | BG26: 3 | BH26: 6 | BI26: 9 | BJ26: 12 | BK26: 3 | BL26: 6 | BM26: 9 | BN26: 12 | BO26: 3 | BP26: 6 | BQ26: 9 | BR26: 12 | BS26: 3 | BT26: 6 | BU26: 9 | BV26: 12 | BW26: 3 | BX26: 6 | BY26: 9 | BZ26: 12 | CA26: 3 | CB26: 6 | CC26: 9 | CD26: 12 | CE26: 3 | CF26: 6 | CG26: 9 | CH26: 12 | CI26: 3 | CJ26: 6 | CK26: 9 | CL26: 12 | CM26: 3 | CN26: 6 | CO26: 9 | CP26: 12 | CQ26: 3 | CR26: 6 | CS26: 9 | CT26: 12 | CU26: 3 | CV26: 6 | CW26: 9 | CX26: 12 | CY26: 3 | CZ26: 6 | DA26: 9 | DB26: 12 | DC26: 3 | DD26: 6 | DE26: 9 | DF26: 12 | DG26: 3 | DH26: =MONTH(DH23) -> 6 | DI26: 9 | DJ26: 12 | DK26: 3 | DL26: 6 | DM26: 9 | DN26: 12 | DO26: 3 | DP26: 6 | DQ26: 9 | DR26: 12 | DS26: 3 | DT26: 6 | DU26: 9 | DV26: 12 | DW26: 3 | DX26: 6 | DY26: 9 | DZ26: 12 | EA26: 3 | EB26: 6 | EC26: 9 | ED26: 12 | EE26: 3 | EF26: 6 | EG26: 9 | EH26: 12 | EI26: 3 | EJ26: 6 | EK26: 9 | EL26: 12 | EM26: 3 | EN26: 6 | EO26: 9 | EP26: 12
E27: Financial year | F27: =NTBInputs!$F$7 -> 3 | AU27: =IF(AU26<=$F27,AU25,AU25+1) -> 2018 | AV27: =IF(AV26<=$F27,AV25,AV25+1) -> 2019 | AW27: 2019 | AX27: 2019 | AY27: 2019 | AZ27: 2020 | BA27: 2020 | BB27: 2020 | BC27: 2020 | BD27: 2021 | BE27: 2021 | BF27: 2021 | BG27: 2021 | BH27: 2022 | BI27: 2022 | BJ27: 2022 | BK27: 2022 | BL27: 2023 | BM27: 2023 | BN27: 2023 | BO27: 2023 | BP27: 2024 | BQ27: 2024 | BR27: 2024 | BS27: 2024 | BT27: 2025 | BU27: 2025 | BV27: 2025 | BW27: 2025 | BX27: 2026 | BY27: 2026 | BZ27: 2026 | CA27: 2026 | CB27: 2027 | CC27: 2027 | CD27: 2027 | CE27: 2027 | CF27: 2028 | CG27: 2028 | CH27: 2028 | CI27: 2028 | CJ27: 2029 | CK27: 2029 | CL27: 2029 | CM27: 2029 | CN27: 2030 | CO27: 2030 | CP27: 2030 | CQ27: 2030 | CR27: 2031 | CS27: 2031 | CT27: 2031 | CU27: 2031 | CV27: 2032 | CW27: 2032 | CX27: 2032 | CY27: 2032 | CZ27: 2033 | DA27: 2033 | DB27: 2033 | DC27: 2033 | DD27: 2034 | DE27: 2034 | DF27: 2034 | DG27: 2034 | DH27: =IF(DH26<=$F27,DH25,DH25+1) -> 2035 | DI27: 2035 | DJ27: 2035 | DK27: 2035 | DL27: 2036 | DM27: 2036 | DN27: 2036 | DO27: 2036 | DP27: 2037 | DQ27: 2037 | DR27: 2037 | DS27: 2037 | DT27: 2038 | DU27: 2038 | DV27: 2038 | DW27: 2038 | DX27: 2039 | DY27: 2039 | DZ27: 2039 | EA27: 2039 | EB27: 2040 | EC27: 2040 | ED27: 2040 | EE27: 2040 | EF27: 2041 | EG27: 2041 | EH27: 2041 | EI27: 2041 | EJ27: 2042 | EK27: 2042 | EL27: 2042 | EM27: 2042 | EN27: 2043 | EO27: 2043 | EP27: 2043
E28: Month in financial year | F28: =NTBInputs!$F$7 -> 3 | AU28: =12-MOD($F28-AU26,12) -> 12 | AV28: =12-MOD($F28-AV26,12) -> 3 | AW28: 6 | AX28: 9 | AY28: 12 | AZ28: 3 | BA28: 6 | BB28: 9 | BC28: 12 | BD28: 3 | BE28: 6 | BF28: 9 | BG28: 12 | BH28: 3 | BI28: 6 | BJ28: 9 | BK28: 12 | BL28: 3 | BM28: 6 | BN28: 9 | BO28: 12 | BP28: 3 | BQ28: 6 | BR28: 9 | BS28: 12 | BT28: 3 | BU28: 6 | BV28: 9 | BW28: 12 | BX28: 3 | BY28: 6 | BZ28: 9 | CA28: 12 | CB28: 3 | CC28: 6 | CD28: 9 | CE28: 12 | CF28: 3 | CG28: 6 | CH28: 9 | CI28: 12 | CJ28: 3 | CK28: 6 | CL28: 9 | CM28: 12 | CN28: 3 | CO28: 6 | CP28: 9 | CQ28: 12 | CR28: 3 | CS28: 6 | CT28: 9 | CU28: 12 | CV28: 3 | CW28: 6 | CX28: 9 | CY28: 12 | CZ28: 3 | DA28: 6 | DB28: 9 | DC28: 12 | DD28: 3 | DE28: 6 | DF28: 9 | DG28: 12 | DH28: =12-MOD($F28-DH26,12) -> 3 | DI28: 6 | DJ28: 9 | DK28: 12 | DL28: 3 | DM28: 6 | DN28: 9 | DO28: 12 | DP28: 3 | DQ28: 6 | DR28: 9 | DS28: 12 | DT28: 3 | DU28: 6 | DV28: 9 | DW28: 12 | DX28: 3 | DY28: 6 | DZ28: 9 | EA28: 12 | EB28: 3 | EC28: 6 | ED28: 9 | EE28: 12 | EF28: 3 | EG28: 6 | EH28: 9 | EI28: 12 | EJ28: 3 | EK28: 6 | EL28: 9 | EM28: 12 | EN28: 3 | EO28: 6 | EP28: 9
E29: Days in period | AU29: =AU23-AU22+1 -> 90 | AV29: =AV23-AV22+1 -> 91 | AW29: 92 | AX29: 92 | AY29: 90 | AZ29: 91 | BA29: 92 | BB29: 92 | BC29: 91 | BD29: 91 | BE29: 92 | BF29: 92 | BG29: 90 | BH29: 91 | BI29: 92 | BJ29: 92 | BK29: 90 | BL29: 91 | BM29: 92 | BN29: 92 | BO29: 90 | BP29: 91 | BQ29: 92 | BR29: 92 | BS29: 91 | BT29: 91 | BU29: 92 | BV29: 92 | BW29: 90 | BX29: 91 | BY29: 92 | BZ29: 92 | CA29: 90 | CB29: 91 | CC29: 92 | CD29: 92 | CE29: 90 | CF29: 91 | CG29: 92 | CH29: 92 | CI29: 91 | CJ29: 91 | CK29: 92 | CL29: 92 | CM29: 90 | CN29: 91 | CO29: 92 | CP29: 92 | CQ29: 90 | CR29: 91 | CS29: 92 | CT29: 92 | CU29: 90 | CV29: 91 | CW29: 92 | CX29: 92 | CY29: 91 | CZ29: 91 | DA29: 92 | DB29: 92 | DC29: 90 | DD29: 91 | DE29: 92 | DF29: 92 | DG29: 90 | DH29: =DH23-DH22+1 -> 91 | DI29: 92 | DJ29: 92 | DK29: 90 | DL29: 91 | DM29: 92 | DN29: 92 | DO29: 91 | DP29: 91 | DQ29: 92 | DR29: 92 | DS29: 90 | DT29: 91 | DU29: 92 | DV29: 92 | DW29: 90 | DX29: 91 | DY29: 92 | DZ29: 92 | EA29: 90 | EB29: 91 | EC29: 92 | ED29: 92 | EE29: 91 | EF29: 91 | EG29: 92 | EH29: 92 | EI29: 90 | EJ29: 91 | EK29: 92 | EL29: 92 | EM29: 90 | EN29: 91 | EO29: 92 | EP29: 92
E30: Days in calendar year | AU30: =DATE(AU25,12,31)-DATE(AU25,1,1)+1 -> 365 | AV30: =DATE(AV25,12,31)-DATE(AV25,1,1)+1 -> 365 | AW30: 365 | AX30: 365 | AY30: 365 | AZ30: 365 | BA30: 365 | BB30: 365 | BC30: 366 | BD30: 366 | BE30: 366 | BF30: 366 | BG30: 365 | BH30: 365 | BI30: 365 | BJ30: 365 | BK30: 365 | BL30: 365 | BM30: 365 | BN30: 365 | BO30: 365 | BP30: 365 | BQ30: 365 | BR30: 365 | BS30: 366 | BT30: 366 | BU30: 366 | BV30: 366 | BW30: 365 | BX30: 365 | BY30: 365 | BZ30: 365 | CA30: 365 | CB30: 365 | CC30: 365 | CD30: 365 | CE30: 365 | CF30: 365 | CG30: 365 | CH30: 365 | CI30: 366 | CJ30: 366 | CK30: 366 | CL30: 366 | CM30: 365 | CN30: 365 | CO30: 365 | CP30: 365 | CQ30: 365 | CR30: 365 | CS30: 365 | CT30: 365 | CU30: 365 | CV30: 365 | CW30: 365 | CX30: 365 | CY30: 366 | CZ30: 366 | DA30: 366 | DB30: 366 | DC30: 365 | DD30: 365 | DE30: 365 | DF30: 365 | DG30: 365 | DH30: =DATE(DH25,12,31)-DATE(DH25,1,1)+1 -> 365 | DI30: 365 | DJ30: 365 | DK30: 365 | DL30: 365 | DM30: 365 | DN30: 365 | DO30: 366 | DP30: 366 | DQ30: 366 | DR30: 366 | DS30: 365 | DT30: 365 | DU30: 365 | DV30: 365 | DW30: 365 | DX30: 365 | DY30: 365 | DZ30: 365 | EA30: 365 | EB30: 365 | EC30: 365 | ED30: 365 | EE30: 366 | EF30: 366 | EG30: 366 | EH30: 366 | EI30: 365 | EJ30: 365 | EK30: 365 | EL30: 365 | EM30: 365 | EN30: 365 | EO30: 365 | EP30: 365
E31: Days in financial year | F31: =NTBInputs!$F$7 -> 3 | AU31: =EOMONTH(AU22,12-AU28)-EOMONTH(AU22,-AU28) -> 365 | AV31: =EOMONTH(AV22,12-AV28)-EOMONTH(AV22,-AV28) -> 365 | AW31: 365 | AX31: 365 | AY31: 365 | AZ31: 365 | BA31: 365 | BB31: 365 | BC31: 365 | BD31: 366 | BE31: 366 | BF31: 366 | BG31: 366 | BH31: 365 | BI31: 365 | BJ31: 365 | BK31: 365 | BL31: 365 | BM31: 365 | BN31: 365 | BO31: 365 | BP31: 365 | BQ31: 365 | BR31: 365 | BS31: 365 | BT31: 366 | BU31: 366 | BV31: 366 | BW31: 366 | BX31: 365 | BY31: 365 | BZ31: 365 | CA31: 365 | CB31: 365 | CC31: 365 | CD31: 365 | CE31: 365 | CF31: 365 | CG31: 365 | CH31: 365 | CI31: 365 | CJ31: 366 | CK31: 366 | CL31: 366 | CM31: 366 | CN31: 365 | CO31: 365 | CP31: 365 | CQ31: 365 | CR31: 365 | CS31: 365 | CT31: 365 | CU31: 365 | CV31: 365 | CW31: 365 | CX31: 365 | CY31: 365 | CZ31: 366 | DA31: 366 | DB31: =EOMONTH(DB22,12-DB28)-EOMONTH(DB22,-DB28) -> 366 | DC31: =EOMONTH(DC22,12-DC28)-EOMONTH(DC22,-DC28) -> 366 | DD31: 365 | DE31: 365 | DF31: 365 | DG31: 365 | DH31: 365 | DI31: 365 | DJ31: 365 | DK31: 365 | DL31: 365 | DM31: 365 | DN31: 365 | DO31: 365 | DP31: 366 | DQ31: 366 | DR31: 366 | DS31: 366 | DT31: 365 | DU31: 365 | DV31: 365 | DW31: 365 | DX31: 365 | DY31: 365 | DZ31: 365 | EA31: 365 | EB31: 365 | EC31: 365 | ED31: 365 | EE31: 365 | EF31: 366 | EG31: 366 | EH31: 366 | EI31: 366 | EJ31: 365 | EK31: 365 | EL31: 365 | EM31: 365 | EN31: 365 | EO31: 365 | EP31: 365
E32: Column counter | F32: =MAX($AU$16:$DB$16) -> 60 | AT32: 0 | AU32: =AT32+1 -> 1 | AV32: 2 | AW32: 3 | AX32: 4 | AY32: 5 | AZ32: 6 | BA32: 7 | BB32: 8 | BC32: 9 | BD32: 10 | BE32: 11 | BF32: 12 | BG32: 13 | BH32: 14 | BI32: 15 | BJ32: 16 | BK32: 17 | BL32: 18 | BM32: 19 | BN32: 20 | BO32: 21 | BP32: 22 | BQ32: 23 | BR32: 24 | BS32: 25 | BT32: 26 | BU32: 27 | BV32: 28 | BW32: 29 | BX32: 30 | BY32: 31 | BZ32: 32 | CA32: 33 | CB32: 34 | CC32: 35 | CD32: 36 | CE32: 37 | CF32: 38 | CG32: 39 | CH32: 40 | CI32: 41 | CJ32: 42 | CK32: 43 | CL32: 44 | CM32: 45 | CN32: 46 | CO32: 47 | CP32: 48 | CQ32: 49 | CR32: 50 | CS32: 51 | CT32: 52 | CU32: 53 | CV32: 54 | CW32: 55 | CX32: 56 | CY32: 57 | CZ32: 58 | DA32: 59 | DB32: 60 | DC32: 61 | DD32: 62 | DE32: 63 | DF32: 64 | DG32: =DF32+1 -> 65 | DH32: 66 | DI32: 67 | DJ32: 68 | DK32: 69 | DL32: 70 | DM32: 71 | DN32: 72 | DO32: 73 | DP32: 74 | DQ32: 75 | DR32: 76 | DS32: 77 | DT32: 78 | DU32: 79 | DV32: 80 | DW32: 81 | DX32: 82 | DY32: 83 | DZ32: 84 | EA32: 85 | EB32: 86 | EC32: 87 | ED32: 88 | EE32: 89 | EF32: 90 | EG32: 91 | EH32: 92 | EI32: 93 | EJ32: 94 | EK32: 95 | EL32: 96 | EM32: 97 | EN32: 98 | EO32: 99 | EP32: 100
E33: Descending column count | F33: =F32 -> 60 | AT33: =EP32+1 -> 101 | AU33: =AT33-1 -> 100 | AV33: 99 | AW33: 98 | AX33: 97 | AY33: 96 | AZ33: 95 | BA33: 94 | BB33: 93 | BC33: 92 | BD33: 91 | BE33: 90 | BF33: 89 | BG33: 88 | BH33: 87 | BI33: 86 | BJ33: 85 | BK33: 84 | BL33: 83 | BM33: 82 | BN33: 81 | BO33: 80 | BP33: 79 | BQ33: 78 | BR33: 77 | BS33: 76 | BT33: 75 | BU33: 74 | BV33: 73 | BW33: 72 | BX33: 71 | BY33: 70 | BZ33: 69 | CA33: 68 | CB33: 67 | CC33: 66 | CD33: 65 | CE33: 64 | CF33: 63 | CG33: 62 | CH33: 61 | CI33: 60 | CJ33: 59 | CK33: 58 | CL33: 57 | CM33: 56 | CN33: 55 | CO33: 54 | CP33: 53 | CQ33: 52 | CR33: 51 | CS33: 50 | CT33: 49 | CU33: 48 | CV33: 47 | CW33: 46 | CX33: 45 | CY33: 44 | CZ33: 43 | DA33: 42 | DB33: 41 | DC33: 40 | DD33: 39 | DE33: 38 | DF33: 37 | DG33: =DF33-1 -> 36 | DH33: 35 | DI33: 34 | DJ33: 33 | DK33: 32 | DL33: 31 | DM33: 30 | DN33: 29 | DO33: 28 | DP33: 27 | DQ33: 26 | DR33: 25 | DS33: 24 | DT33: 23 | DU33: 22 | DV33: 21 | DW33: 20 | DX33: 19 | DY33: 18 | DZ33: 17 | EA33: 16 | EB33: 15 | EC33: 14 | ED33: 13 | EE33: 12 | EF33: 11 | EG33: 10 | EH33: 9 | EI33: 8 | EJ33: 7 | EK33: 6 | EL33: 5 | EM33: 4 | EN33: 3 | EO33: 2 | EP33: 1

Sheet NTBInputs
A1: =RIGHT(CELL("filename",$A$1),LEN(CELL("filename",$A$1))-FIND("]",CELL("filename",$A$1))) -> NTBInputs | U1: NOTES
A2: =SUM(A4:A824) -> 0 | B2: =SUM(B4:B2624) -> 0 | C2: =IF(A2>0,A2&" Errors in worksheet",IF(B2>0,B2&" Financial issues in worksheet","No errors in worksheet")) -> No errors in worksheet
A3: =SUM('Check start >>>:<<< Check End'!A2) -> 4 | B3: =SUM('Check start >>>:<<< Check End'!B2) -> 0 | C3: =IF(A3>0,A3&" Errors in workbook",IF(B3>0,B3&" Financial issues in workbook","No errors in workbook")) -> 4 Errors in workbook
B4: Model Set Up
E6: Project Name | F6: Test 1
E7: Year End Month | F7: 3
E8: Periods in a year | F8: 12
E9: Model Start Date | F9: 2018-01-01
E10: Date of first Financial Year End | F10: 2018-03-31
E11: Operations Length / years | F11: 25
E12: Hours in a Day | F12: 24
E13: Days in the year | F13: 365
E14: Model End Date | F14: =EOMONTH(F9-1,F11*PeriodsInYear) -> 2042-12-31
B16: General
C17: General
E19: Tolerance | F19: 0 | H19: Static | I19: Static
E20: Tolerance | F20: 2 | H20: Unwind | I20: Unwind
E22: Yes | F22: 1 | H22: Sculpted | I22: =H22 -> Sculpted
E23: No | F23: 0 | H23: Annuity | I23: =H23 -> Annuity
E25: OK | F25: 0
E26: Check | F26: 1
E28: Monthly | F28: 1 | G28: 12
E29: Quarterly | F29: 3 | G29: 4
E30: Annual | F30: 12 | G30: 1
B32: Asset Data
E34: Asset Name | F34: Asset 1
E36: SPV | F36: 2
E38: Triad Zone | F38: Location 2
E40: EPC (Battery only) per MWH - BASE
E41: EPC (Battery only) per MWH - Adj
E42: EPC (Battery only) per MWH Total
E44: EPC excluding battery
E46: EPC | F46: 5,000,000
E47: Grid Connection
E49: Lease (one off cost) | F49: 0
E51: Ancillary Costs 1
E52: Ancillary Costs 2
E53: Ancillary Costs 3
E54: Ancillary Costs 4
E55: Total Ancillary | F55: =SUM(F51:F54) -> 0
E57: Legal and Professional Fees | F57: 50,000
E59: Total Capex cost | F59: =F57+F55+F47+F46 -> 5,050,000
E61: Recoverable Equipment Cost | F61: 0
E62: Residual Value | F62: 0
E64: Capacity MWH | F64: 8.9000
E66: Construction Start Date | F66: 2017-07-01
E67: Commissing End Date | F67: 2017-09-06
E68: T1 Start Date | F68: 2018-10-01
E69: T4 Start Date | F69: 2020-10-01
E70: 1st Triad date | F70: 2017-11-01
B72: Revenue - CM
C73: CM General
G74: XYZ Stored inputs for AR
E75: Price Inflation | F75: CPI
E76: Capacity MWH | F76: =F64 -> 8.900
E77: Capacity KWH | F77: =F76*1000 -> 8,900
E78: T1 Start Date | F78: =F68 -> 2018-10-01
E79: T4 Start Date | F79: =F69 -> 2020-10-01
E80: T1 Price Setting | F80: Central
E81: T4 Price Setting | F81: Central
E82: CM Price Uplift Month | F82: 1 | G82: 10
E83: VAT rate | F83: 0%
C85: CM Debtor Profile
E87: Month | F87: Month 0 | G87: Month 1 | H87: Month 2 | I87: Month 3 | J87: Month 4 | K87: Month 5
A88: =IF(SUM(F88:K88)<>1,1,0) -> 0 | E88: CM Debtors | F88: 0% | G88: 50% | H88: 50% | I88: 0% | J88: 0% | K88: 0%
C90: CM Prices
E92: Capacity Market T-4 | I92: Capacity Market T-1
E93: Central | F93: High | G93: Low | I93: Central | J93: High | K93: Low | M93: Capacity Market T-4 inputs stored for XYZ AR
E94: £/kW per annum | F94: £/kW per annum | G94: £/kW per annum | I94: £/kW per annum | J94: £/kW per annum | K94: £/kW per annum
C95: CM Years (years starting in month based on input in F82)
C96: 2017
C97: 2018 | I97: 7.90 | J97: 7.90 | K97: 7.90
C98: 2019 | I98: 7.90 | J98: 7.90 | K98: 7.90
C99: 2020 | E99: 7.90 | F99: 7.90 | G99: 7.90 | M99: 22.5 | N99: 22.5 | O99: 22.5
C100: 2021 | E100: 7.90 | F100: 7.90 | G100: 7.90 | M100: 22.5 | N100: 22.5 | O100: 22.5
C101: 2022 | E101: 7.90 | F101: 7.90 | G101: 7.90 | M101: 22.5 | N101: 22.5 | O101: 22.5
C102: 2023 | E102: 7.90 | F102: 7.90 | G102: 7.90 | M102: 22.5 | N102: 22.5 | O102: 22.5
C103: 2024 | E103: 7.90 | F103: 7.90 | G103: 7.90 | M103: 22.5 | N103: 22.5 | O103: 22.5
C104: 2025 | E104: 7.90 | F104: 7.90 | G104: 7.90 | M104: 22.5 | N104: 22.5 | O104: 22.5
C105: 2026 | E105: 7.90 | F105: 7.90 | G105: 7.90 | M105: 22.5 | N105: 22.5 | O105: 22.5
C106: 2027 | E106: 7.90 | F106: 7.90 | G106: 7.90 | M106: 22.5 | N106: 22.5 | O106: 22.5
C107: 2028 | E107: 7.90 | F107: 7.90 | G107: 7.90 | M107: 22.5 | N107: 22.5 | O107: 22.5
C108: 2029 | E108: 7.90 | F108: 7.90 | G108: 7.90 | M108: 22.5 | N108: 22.5 | O108: 22.5
C109: 2030 | E109: 7.90 | F109: 7.90 | G109: 7.90 | M109: 22.5 | N109: 22.5 | O109: 22.5
C110: 2031 | E110: 7.90 | F110: 7.90 | G110: 7.90 | M110: 22.5 | N110: 22.5 | O110: 22.5
C111: 2032 | E111: 7.90 | F111: 7.90 | G111: 7.90 | M111: 22.5 | N111: 22.5 | O111: 22.5
C112: 2033 | E112: 7.90 | F112: 7.90 | G112: 7.90 | M112: 22.5 | N112: 22.5 | O112: 22.5
C113: 2034 | E113: 7.90 | F113: 7.90 | G113: 7.90 | M113: 22.5 | N113: 22.5 | O113: 22.5
C114: 2035 | E114: 7.90 | F114: 7.90 | G114: 7.90 | M114: 22.5 | N114: 22.5 | O114: 22.5
C115: 2036
C116: 2037
C117: 2038
C118: 2039
C119: 2040
C120: 2041
C121: 2042
B123: Revenue - FFR
C124: General
E126: Price Inflation | F126: Nil
E127: =E64 -> Capacity MWH | F127: =F64 -> 8.900
E128: Capacity KWH | F128: =F127*1000 -> 8,900
E129: Scenario Price Setting | F129: Central
E130: VAT rate | F130: 0%
C132: FFR Contracted
E134: Active? | F134: Date From | G134: Date to | H134: Number of hours per day | I134: Overlap?
C135: Contract 1 | E135: 0 | I135: =IF(AND(E135=1,(COUNTIF($F$135:$F$139,"<"&G135)-1)>=1),"Yes - Ensure Overlapping Contracts Number of hours equaly 24","No") -> No
C136: Contract 2 | I136: =IF(AND(E136=1,(COUNTIF($F$135:$F$139,"<"&G136)-1)>=1),"Yes - Ensure Overlapping Contracts Number of hours equaly 24","No") -> No
C137: Contract 3 | E137: 1 | F137: 2018-09-01 | G137: 2020-01-31 | H137: 24 | I137: No | U137: Duxford contract
C138: Contract 4 | I138: No
C139: Contract 5 | I139: No
E141: Month | F141: Month 0 | G141: Month 1 | H141: Month 2 | I141: Month 3 | J141: Month 4 | K141: Month 5
A142: =IF(SUM(F142:K142)<>1,1,0) -> 0 | E142: FFR Contracted Debtors | F142: 0% | G142: 100% | H142: 0% | I142: 0% | J142: 0% | K142: 0%
C144: FFR Non contracted
C146: FFR Non contracted start date | F146: 2018-09-01
C147: FFR Non contracted end date | F147: 2042-12-31
E149: Month | F149: Month 0 | G149: Month 1 | H149: Month 2 | I149: Month 3 | J149: Month 4 | K149: Month 5
A150: =IF(SUM(F150:K150)<>1,1,0) -> 0 | E150: FFR Non-Contracted Debtors | F150: 0% | G150: 100% | H150: 0% | I150: 0% | J150: 0% | K150: 0%
C152: Non Contract - FFR Prices
E154: Non Contract - FFR dynamic price
E155: Central | F155: High | G155: Low | H155: Blended
C156: Calendar Year | E156: £/MW/h | F156: £/MW/h | G156: £/MW/h | H156: £/MW/h
C157: 2017 | E157: 13.56
C158: 2018 | E158: 10.00
C159: 2019 | E159: 8.78 | F159: 9.60 | G159: 9.60
C160: 2020 | E160: 7.74 | F160: 9.60 | G160: 9.60
C161: 2021 | E161: 7.04 | F161: 9.60 | G161: 9.60
C162: 2022 | E162: 6.58 | F162: 9.60 | G162: 9.60
C163: 2023 | E163: 6.34 | F163: 9.60 | G163: 9.60
C164: 2024 | E164: 6.14 | F164: 9.60 | G164: 9.60
C165: 2025 | E165: 6.04 | F165: 9.60 | G165: 9.60
C166: 2026 | E166: 5.94 | F166: 9.60 | G166: 9.60
C167: 2027 | E167: 5.88 | F167: 9.60 | G167: 9.60
C168: 2028 | E168: 5.80 | F168: 9.60 | G168: 9.60
C169: 2029 | E169: 5.77 | F169: 9.60 | G169: 9.60
C170: 2030 | E170: 5.74 | F170: 9.60 | G170: 9.60
C171: 2031 | E171: 5.77 | F171: 9.60 | G171: 9.60
C172: 2032 | E172: 5.76 | F172: 9.60 | G172: 9.60
C173: 2033 | E173: 5.73 | F173: 9.60 | G173: 9.60
C174: 2034 | E174: 5.66 | F174: 9.60 | G174: 9.60
C175: 2035 | E175: 5.60 | F175: 9.60 | G175: 9.60
C176: 2036 | E176: 5.56 | F176: 9.60 | G176: 9.60
C177: 2037 | E177: 5.54 | F177: 9.60 | G177: 9.60
C178: 2038 | E178: 5.53 | F178: 9.60 | G178: 9.60
C179: 2039 | E179: 5.51 | F179: 9.60 | G179: 9.60
C180: 2040 | E180: 5.50 | F180: 9.60 | G180: 9.60
C181: 2041
C182: 2042
B185: Revenue - Triad
C186: Triad General
G187: Stored inputs for XYZ AR
E188: Price Inflation | F188: CPI
E189: =E38 -> Triad Zone | F189: =F38 -> Location 2
E190: =E76 -> Capacity MWH | F190: =F76 -> 8.900
E191: Capacity KWH | F191: =F190*1000 -> 8,900
E192: Triad Price Uplift Month | F192: 1 | G192: 10
E193: =E70 -> 1st Triad date | F193: =F70 -> 2017-11-01
E194: End of Triad Pricing | F194: 2026-10-01
E195: VAT rate | F195: 0%
E197: Calendar Month | F197: 1 | G197: 2 | H197: 3 | I197: 4 | J197: 5 | K197: 6 | L197: 7 | M197: 8 | N197: 9 | O197: 10 | P197: 11 | Q197: 12
A198: =IF(SUM(F198:Q198)<>1,1,0) -> 0 | E198: Triad Revenue (% of annum total in month) | F198: 33.33% | G198: 33.33% | H198: 0.00% | I198: 0.00% | J198: 0.00% | K198: 0.00% | L198: 0.00% | M198: 0.00% | N198: 0.00% | O198: 0.00% | P198: 0.00% | Q198: 33.33%
E199: Triad Hours Per month | F199: 50 | G199: 50 | H199: 50 | I199: 50 | J199: 50 | K199: 50 | L199: 50 | M199: 50 | N199: 50 | O199: 50 | P199: 50 | Q199: 50
E200: Triad Hours Per month stored for XYZ AR | F200: 50 | G200: 50 | H200: 0 | I200: 0 | J200: 0 | K200: 0 | L200: 0 | M200: 0 | N200: 0 | O200: 0 | P200: 0 | Q200: 50
E201: Triad Revenue Received / month | F201: 7
C203: Triads Pricing
E205: Triad Zone | F205: =F189 -> Location 2
C207: Triad Year | E207: Triads Probability | F207: Triads Pricing / KW per annum
C208: 2017 | E208: 100.00% | F208: =INDEX($E$238:$R$263,MATCH($C208,$C$238:$C$263,0),MATCH($F$205,$E$236:$R$236,0)) -> 29.4
C209: 2018 | E209: 100.00% | F209: 9.2
C210: 2019 | E210: 100.00% | F210: 0
C211: 2020 | E211: 100.00% | F211: 0
C212: 2021 | E212: 100.00% | F212: 0
C213: 2022 | E213: 100.00% | F213: 0
C214: 2023 | E214: 100.00% | F214: 0
C215: 2024 | E215: 100.00% | F215: 0
C216: 2025 | E216: 100.00% | F216: 0
C217: 2026 | E217: 100.00% | F217: 0
C218: 2027 | E218: 100.00% | F218: 0
C219: 2028 | E219: 100.00% | F219: 0
C220: 2029 | E220: 100.00% | F220: 0
C221: 2030 | E221: 100.00% | F221: 0
C222: 2031 | E222: 100.00% | F222: 0
C223: 2032 | E223: 100.00% | F223: 0
C224: 2033 | E224: 100.00% | F224: 0
C225: 2034 | E225: 100.00% | F225: 0
C226: 2035 | E226: 100.00% | F226: 0
C227: 2036 | E227: 100.00% | F227: 0
C228: 2037 | E228: 100.00% | F228: 0
C229: 2038 | E229: 100.00% | F229: 0
C230: 2039 | E230: 100.00% | F230: 0
C231: 2040 | E231: 100.00% | F231: 0
C232: 2041 | E232: 100.00% | F232: 0
C233: 2042 | E233: 100.00% | F233: 0
E236: Location 1 | F236: Location 2 | G236: Location 3 | H236: Location 4 | I236: Location 5 | J236: Location 6 | K236: Location 7 | L236: Location 8 | M236: Location 9 | N236: Location 10 | O236: Location 11 | P236: Location 12 | Q236: Location 13 | R236: Location 14
K237: 0.800
C238: 2017 | E238: 28.732 | F238: 29.446 | G238: 37.161 | H238: 42.593 | I238: 43.126 | J238: 44.498 | K238: 46.007 | L238: 47.259 | M238: 48.023 | N238: 44.437 | O238: 50.830 | P238: 53.371 | Q238: 51.832 | R238: 50.429
C239: 2018 | E239: 2.436 | F239: 9.216 | G239: 21.009 | H239: 27.951 | I239: 27.917 | J239: 29.518 | K239: 31.475 | L239: 32.933 | M239: 33.452 | N239: 30.865 | O239: 36.600 | P239: 38.923 | Q239: 37.883 | R239: 37.944
C240: 2019 | E240: 0.000 | F240: 0.000 | G240: 6.337 | H240: 13.235 | I240: 13.309 | J240: 14.803 | K240: 17.094 | L240: 18.331 | M240: 19.170 | N240: 15.726 | O240: 21.941 | P240: 25.046 | Q240: 23.390 | R240: 22.136
C241: 2020 | E241: 0.000 | F241: 0.000 | G241: 0.000 | H241: 0.000 | I241: 0.000 | J241: 0.540 | K241: 2.774 | L241: 3.553 | M241: 4.635 | N241: 1.648 | O241: 6.575 | P241: 9.441 | Q241: 7.642 | R241: 6.373
C242: 2021 | E242: 0.000 | F242: 0.000 | G242: 0.000 | H242: 0.000 | I242: 0.000 | J242: 0.423 | K242: 3.189 | L242: 3.897 | M242: 5.058 | N242: 2.234 | O242: 6.930 | P242: 9.967 | Q242: 7.921 | R242: 5.497
C243: 2022 | E243: 0.000 | F243: 0.000 | G243: 0.000 | H243: 0.000 | I243: 0.000 | J243: 0.672 | K243: 3.231 | L243: 4.124 | M243: 5.186 | N243: 3.185 | O243: 6.954 | P243: 10.285 | Q243: 7.929 | R243: 6.160
... 432 more rows

Sheet TBInputsM
A1: =RIGHT(CELL("filename",$A$1),LEN(CELL("filename",$A$1))-FIND("]",CELL("filename",$A$1))) -> TBInputsM
A2: =SUM(A18:A2067) -> 0 | B2: =SUM(B18:B2067) -> 0 | C2: =IF(A2>0,A2&" Errors in worksheet",IF(B2>0,B2&" Financial issues in worksheet","No errors in worksheet")) -> No errors in worksheet
A3: =SUM('Check start >>>:<<< Check End'!A2) -> 4 | B3: =SUM('Check start >>>:<<< Check End'!B2) -> 0 | C3: =IF(A3>0,A3&" Errors in workbook",IF(B3>0,B3&" Financial issues in workbook","No errors in workbook")) -> 4 Errors in workbook
E5: ='Timeline&Flags'!E6 -> Start date | S5: ='Timeline&Flags'!S6 -> 2018-01-01 | T5: ='Timeline&Flags'!T6 -> 2018-04-01 | U5: ='Timeline&Flags'!U6 -> 2019-04-01 | V5: ='Timeline&Flags'!V6 -> 2020-04-01 | W5: ='Timeline&Flags'!W6 -> 2021-04-01 | X5: ='Timeline&Flags'!X6 -> 2022-04-01 | Y5: ='Timeline&Flags'!Y6 -> 2023-04-01 | Z5: ='Timeline&Flags'!Z6 -> 2024-04-01 | AA5: ='Timeline&Flags'!AA6 -> 2025-04-01 | AB5: ='Timeline&Flags'!AB6 -> 2026-04-01 | AC5: ='Timeline&Flags'!AC6 -> 2027-04-01 | AD5: ='Timeline&Flags'!AD6 -> 2028-04-01 | AE5: ='Timeline&Flags'!AE6 -> 2029-04-01 | AF5: ='Timeline&Flags'!AF6 -> 2030-04-01 | AG5: ='Timeline&Flags'!AG6 -> 2031-04-01 | AH5: ='Timeline&Flags'!AH6 -> 2032-04-01 | AI5: ='Timeline&Flags'!AI6 -> 2033-04-01 | AJ5: ='Timeline&Flags'!AJ6 -> 2034-04-01 | AK5: ='Timeline&Flags'!AK6 -> 2035-04-01 | AL5: ='Timeline&Flags'!AL6 -> 2036-04-01 | AM5: ='Timeline&Flags'!AM6 -> 2037-04-01 | AN5: ='Timeline&Flags'!AN6 -> 2038-04-01 | AO5: ='Timeline&Flags'!AO6 -> 2039-04-01 | AP5: ='Timeline&Flags'!AP6 -> 2040-04-01 | AQ5: ='Timeline&Flags'!AQ6 -> 2041-04-01 | AU5: ='Timeline&Flags'!AU6 -> 2018-01-01 | AV5: ='Timeline&Flags'!AV6 -> 2018-02-01 | AW5: ='Timeline&Flags'!AW6 -> 2018-03-01 | AX5: ='Timeline&Flags'!AX6 -> 2018-04-01 | AY5: ='Timeline&Flags'!AY6 -> 2018-05-01 | AZ5: ='Timeline&Flags'!AZ6 -> 2018-06-01 | BA5: ='Timeline&Flags'!BA6 -> 2018-07-01 | BB5: ='Timeline&Flags'!BB6 -> 2018-08-01 | BC5: ='Timeline&Flags'!BC6 -> 2018-09-01 | BD5: ='Timeline&Flags'!BD6 -> 2018-10-01 | BE5: ='Timeline&Flags'!BE6 -> 2018-11-01 | BF5: ='Timeline&Flags'!BF6 -> 2018-12-01 | BG5: ='Timeline&Flags'!BG6 -> 2019-01-01 | BH5: ='Timeline&Flags'!BH6 -> 2019-02-01 | BI5: ='Timeline&Flags'!BI6 -> 2019-03-01 | BJ5: ='Timeline&Flags'!BJ6 -> 2019-04-01 | BK5: ='Timeline&Flags'!BK6 -> 2019-05-01 | BL5: ='Timeline&Flags'!BL6 -> 2019-06-01 | BM5: ='Timeline&Flags'!BM6 -> 2019-07-01 | BN5: ='Timeline&Flags'!BN6 -> 2019-08-01 | BO5: ='Timeline&Flags'!BO6 -> 2019-09-01 | BP5: ='Timeline&Flags'!BP6 -> 2019-10-01 | BQ5: ='Timeline&Flags'!BQ6 -> 2019-11-01 | BR5: ='Timeline&Flags'!BR6 -> 2019-12-01 | BS5: ='Timeline&Flags'!BS6 -> 2020-01-01 | BT5: ='Timeline&Flags'!BT6 -> 2020-02-01 | BU5: ='Timeline&Flags'!BU6 -> 2020-03-01 | BV5: ='Timeline&Flags'!BV6 -> 2020-04-01 | BW5: ='Timeline&Flags'!BW6 -> 2020-05-01 | BX5: ='Timeline&Flags'!BX6 -> 2020-06-01 | BY5: ='Timeline&Flags'!BY6 -> 2020-07-01 | BZ5: ='Timeline&Flags'!BZ6 -> 2020-08-01 | CA5: ='Timeline&Flags'!CA6 -> 2020-09-01 | CB5: ='Timeline&Flags'!CB6 -> 2020-10-01 | CC5: ='Timeline&Flags'!CC6 -> 2020-11-01 | CD5: ='Timeline&Flags'!CD6 -> 2020-12-01 | CE5: ='Timeline&Flags'!CE6 -> 2021-01-01 | CF5: ='Timeline&Flags'!CF6 -> 2021-02-01 | CG5: ='Timeline&Flags'!CG6 -> 2021-03-01 | CH5: ='Timeline&Flags'!CH6 -> 2021-04-01 | CI5: ='Timeline&Flags'!CI6 -> 2021-05-01 | CJ5: ='Timeline&Flags'!CJ6 -> 2021-06-01 | CK5: ='Timeline&Flags'!CK6 -> 2021-07-01 | CL5: ='Timeline&Flags'!CL6 -> 2021-08-01 | CM5: ='Timeline&Flags'!CM6 -> 2021-09-01 | CN5: ='Timeline&Flags'!CN6 -> 2021-10-01 | CO5: ='Timeline&Flags'!CO6 -> 2021-11-01 | CP5: ='Timeline&Flags'!CP6 -> 2021-12-01 | CQ5: ='Timeline&Flags'!CQ6 -> 2022-01-01 | CR5: ='Timeline&Flags'!CR6 -> 2022-02-01 | CS5: ='Timeline&Flags'!CS6 -> 2022-03-01 | CT5: ='Timeline&Flags'!CT6 -> 2022-04-01 | CU5: ='Timeline&Flags'!CU6 -> 2022-05-01 | CV5: ='Timeline&Flags'!CV6 -> 2022-06-01 | CW5: ='Timeline&Flags'!CW6 -> 2022-07-01 | CX5: ='Timeline&Flags'!CX6 -> 2022-08-01 | CY5: ='Timeline&Flags'!CY6 -> 2022-09-01 | CZ5: ='Timeline&Flags'!CZ6 -> 2022-10-01 | DA5: ='Timeline&Flags'!DA6 -> 2022-11-01 | DB5: ='Timeline&Flags'!DB6 -> 2022-12-01 | DC5: ='Timeline&Flags'!DC6 -> 2023-01-01 | DD5: ='Timeline&Flags'!DD6 -> 2023-02-01 | DE5: ='Timeline&Flags'!DE6 -> 2023-03-01 | DF5: ='Timeline&Flags'!DF6 -> 2023-04-01 | DG5: ='Timeline&Flags'!DG6 -> 2023-05-01 | DH5: ='Timeline&Flags'!DH6 -> 2023-06-01 | DI5: ='Timeline&Flags'!DI6 -> 2023-07-01 | DJ5: ='Timeline&Flags'!DJ6 -> 2023-08-01 | DK5: ='Timeline&Flags'!DK6 -> 2023-09-01 | DL5: ='Timeline&Flags'!DL6 -> 2023-10-01 | DM5: ='Timeline&Flags'!DM6 -> 2023-11-01 | DN5: ='Timeline&Flags'!DN6 -> 2023-12-01 | DO5: ='Timeline&Flags'!DO6 -> 2024-01-01 | DP5: ='Timeline&Flags'!DP6 -> 2024-02-01 | DQ5: ='Timeline&Flags'!DQ6 -> 2024-03-01 | DR5: ='Timeline&Flags'!DR6 -> 2024-04-01 | DS5: ='Timeline&Flags'!DS6 -> 2024-05-01 | DT5: ='Timeline&Flags'!DT6 -> 2024-06-01 | DU5: ='Timeline&Flags'!DU6 -> 2024-07-01 | DV5: ='Timeline&Flags'!DV6 -> 2024-08-01 | DW5: ='Timeline&Flags'!DW6 -> 2024-09-01 | DX5: ='Timeline&Flags'!DX6 -> 2024-10-01 | DY5: ='Timeline&Flags'!DY6 -> 2024-11-01 | DZ5: ='Timeline&Flags'!DZ6 -> 2024-12-01 | EA5: ='Timeline&Flags'!EA6 -> 2025-01-01 | EB5: ='Timeline&Flags'!EB6 -> 2025-02-01 | EC5: ='Timeline&Flags'!EC6 -> 2025-03-01 | ED5: ='Timeline&Flags'!ED6 -> 2025-04-01 | EE5: ='Timeline&Flags'!EE6 -> 2025-05-01 | EF5: ='Timeline&Flags'!EF6 -> 2025-06-01 | EG5: ='Timeline&Flags'!EG6 -> 2025-07-01 | EH5: ='Timeline&Flags'!EH6 -> 2025-08-01 | EI5: ='Timeline&Flags'!EI6 -> 2025-09-01 | EJ5: ='Timeline&Flags'!EJ6 -> 2025-10-01 | EK5: ='Timeline&Flags'!EK6 -> 2025-11-01 | EL5: ='Timeline&Flags'!EL6 -> 2025-12-01 | EM5: ='Timeline&Flags'!EM6 -> 2026-01-01 | EN5: ='Timeline&Flags'!EN6 -> 2026-02-01 | EO5: ='Timeline&Flags'!EO6 -> 2026-03-01 | EP5: ='Timeline&Flags'!EP6 -> 2026-04-01 | EQ5: ='Timeline&Flags'!EQ6 -> 2026-05-01 | ER5: ='Timeline&Flags'!ER6 -> 2026-06-01 | ES5: ='Timeline&Flags'!ES6 -> 2026-07-01 | ET5: ='Timeline&Flags'!ET6 -> 2026-08-01 | EU5: ='Timeline&Flags'!EU6 -> 2026-09-01 | EV5: ='Timeline&Flags'!EV6 -> 2026-10-01 | EW5: ='Timeline&Flags'!EW6 -> 2026-11-01 | EX5: ='Timeline&Flags'!EX6 -> 2026-12-01 | EY5: ='Timeline&Flags'!EY6 -> 2027-01-01 | EZ5: ='Timeline&Flags'!EZ6 -> 2027-02-01 | FA5: ='Timeline&Flags'!FA6 -> 2027-03-01 | FB5: ='Timeline&Flags'!FB6 -> 2027-04-01 | FC5: ='Timeline&Flags'!FC6 -> 2027-05-01 | FD5: ='Timeline&Flags'!FD6 -> 2027-06-01 | FE5: ='Timeline&Flags'!FE6 -> 2027-07-01 | FF5: ='Timeline&Flags'!FF6 -> 2027-08-01 | FG5: ='Timeline&Flags'!FG6 -> 2027-09-01 | FH5: ='Timeline&Flags'!FH6 -> 2027-10-01 | FI5: ='Timeline&Flags'!FI6 -> 2027-11-01 | FJ5: ='Timeline&Flags'!FJ6 -> 2027-12-01 | FK5: ='Timeline&Flags'!FK6 -> 2028-01-01 | FL5: ='Timeline&Flags'!FL6 -> 2028-02-01 | FM5: ='Timeline&Flags'!FM6 -> 2028-03-01 | FN5: ='Timeline&Flags'!FN6 -> 2028-04-01 | FO5: ='Timeline&Flags'!FO6 -> 2028-05-01 | FP5: ='Timeline&Flags'!FP6 -> 2028-06-01 | FQ5: ='Timeline&Flags'!FQ6 -> 2028-07-01 | FR5: ='Timeline&Flags'!FR6 -> 2028-08-01 | FS5: ='Timeline&Flags'!FS6 -> 2028-09-01 | FT5: ='Timeline&Flags'!FT6 -> 2028-10-01 | FU5: ='Timeline&Flags'!FU6 -> 2028-11-01 | FV5: ='Timeline&Flags'!FV6 -> 2028-12-01 | FW5: ='Timeline&Flags'!FW6 -> 2029-01-01 | FX5: ='Timeline&Flags'!FX6 -> 2029-02-01 | FY5: ='Timeline&Flags'!FY6 -> 2029-03-01 | FZ5: ='Timeline&Flags'!FZ6 -> 2029-04-01 | GA5: ='Timeline&Flags'!GA6 -> 2029-05-01 | GB5: ='Timeline&Flags'!GB6 -> 2029-06-01 | GC5: ='Timeline&Flags'!GC6 -> 2029-07-01 | GD5: ='Timeline&Flags'!GD6 -> 2029-08-01 | GE5: ='Timeline&Flags'!GE6 -> 2029-09-01 | GF5: ='Timeline&Flags'!GF6 -> 2029-10-01 | GG5: ='Timeline&Flags'!GG6 -> 2029-11-01 | GH5: ='Timeline&Flags'!GH6 -> 2029-12-01 | GI5: ='Timeline&Flags'!GI6 -> 2030-01-01 | GJ5: ='Timeline&Flags'!GJ6 -> 2030-02-01 | GK5: ='Timeline&Flags'!GK6 -> 2030-03-01 | GL5: ='Timeline&Flags'!GL6 -> 2030-04-01 | GM5: ='Timeline&Flags'!GM6 -> 2030-05-01 | GN5: ='Timeline&Flags'!GN6 -> 2030-06-01 | GO5: ='Timeline&Flags'!GO6 -> 2030-07-01 | GP5: ='Timeline&Flags'!GP6 -> 2030-08-01 | GQ5: ='Timeline&Flags'!GQ6 -> 2030-09-01 | GR5: ='Timeline&Flags'!GR6 -> 2030-10-01 | GS5: ='Timeline&Flags'!GS6 -> 2030-11-01 | GT5: ='Timeline&Flags'!GT6 -> 2030-12-01 | GU5: ='Timeline&Flags'!GU6 -> 2031-01-01 | GV5: ='Timeline&Flags'!GV6 -> 2031-02-01 | GW5: ='Timeline&Flags'!GW6 -> 2031-03-01 | GX5: ='Timeline&Flags'!GX6 -> 2031-04-01 | GY5: ='Timeline&Flags'!GY6 -> 2031-05-01 | GZ5: ='Timeline&Flags'!GZ6 -> 2031-06-01 | HA5: ='Timeline&Flags'!HA6 -> 2031-07-01 | HB5: ='Timeline&Flags'!HB6 -> 2031-08-01 | HC5: ='Timeline&Flags'!HC6 -> 2031-09-01 | HD5: ='Timeline&Flags'!HD6 -> 2031-10-01 | HE5: ='Timeline&Flags'!HE6 -> 2031-11-01 | HF5: ='Timeline&Flags'!HF6 -> 2031-12-01 | HG5: ='Timeline&Flags'!HG6 -> 2032-01-01 | HH5: ='Timeline&Flags'!HH6 -> 2032-02-01 | HI5: ='Timeline&Flags'!HI6 -> 2032-03-01 | HJ5: ='Timeline&Flags'!HJ6 -> 2032-04-01 | HK5: ='Timeline&Flags'!HK6 -> 2032-05-01 | HL5: ='Timeline&Flags'!HL6 -> 2032-06-01 | HM5: ='Timeline&Flags'!HM6 -> 2032-07-01 | HN5: ='Timeline&Flags'!HN6 -> 2032-08-01 | HO5: ='Timeline&Flags'!HO6 -> 2032-09-01 | HP5: ='Timeline&Flags'!HP6 -> 2032-10-01 | HQ5: ='Timeline&Flags'!HQ6 -> 2032-11-01 | HR5: ='Timeline&Flags'!HR6 -> 2032-12-01 | HS5: ='Timeline&Flags'!HS6 -> 2033-01-01 | HT5: ='Timeline&Flags'!HT6 -> 2033-02-01 | HU5: ='Timeline&Flags'!HU6 -> 2033-03-01 | HV5: ='Timeline&Flags'!HV6 -> 2033-04-01 | HW5: ='Timeline&Flags'!HW6 -> 2033-05-01 | HX5: ='Timeline&Flags'!HX6 -> 2033-06-01 | HY5: ='Timeline&Flags'!HY6 -> 2033-07-01 | HZ5: ='Timeline&Flags'!HZ6 -> 2033-08-01 | IA5: ='Timeline&Flags'!IA6 -> 2033-09-01 | IB5: ='Timeline&Flags'!IB6 -> 2033-10-01 | IC5: ='Timeline&Flags'!IC6 -> 2033-11-01 | ID5: ='Timeline&Flags'!ID6 -> 2033-12-01 | IE5: ='Timeline&Flags'!IE6 -> 2034-01-01 | IF5: ='Timeline&Flags'!IF6 -> 2034-02-01 | IG5: ='Timeline&Flags'!IG6 -> 2034-03-01 | IH5: ='Timeline&Flags'!IH6 -> 2034-04-01 | II5: ='Timeline&Flags'!II6 -> 2034-05-01 | IJ5: ='Timeline&Flags'!IJ6 -> 2034-06-01 | IK5: ='Timeline&Flags'!IK6 -> 2034-07-01 | IL5: ='Timeline&Flags'!IL6 -> 2034-08-01 | IM5: ='Timeline&Flags'!IM6 -> 2034-09-01 | IN5: ='Timeline&Flags'!IN6 -> 2034-10-01 | IO5: ='Timeline&Flags'!IO6 -> 2034-11-01 | IP5: ='Timeline&Flags'!IP6 -> 2034-12-01 | IQ5: ='Timeline&Flags'!IQ6 -> 2035-01-01 | IR5: ='Timeline&Flags'!IR6 -> 2035-02-01 | IS5: ='Timeline&Flags'!IS6 -> 2035-03-01 | IT5: ='Timeline&Flags'!IT6 -> 2035-04-01 | IU5: ='Timeline&Flags'!IU6 -> 2035-05-01 | IV5: ='Timeline&Flags'!IV6 -> 2035-06-01 | IW5: ='Timeline&Flags'!IW6 -> 2035-07-01 | IX5: ='Timeline&Flags'!IX6 -> 2035-08-01 | IY5: ='Timeline&Flags'!IY6 -> 2035-09-01 | IZ5: ='Timeline&Flags'!IZ6 -> 2035-10-01 | JA5: ='Timeline&Flags'!JA6 -> 2035-11-01 | JB5: ='Timeline&Flags'!JB6 -> 2035-12-01 | JC5: ='Timeline&Flags'!JC6 -> 2036-01-01 | JD5: ='Timeline&Flags'!JD6 -> 2036-02-01 | JE5: ='Timeline&Flags'!JE6 -> 2036-03-01 | JF5: ='Timeline&Flags'!JF6 -> 2036-04-01 | JG5: ='Timeline&Flags'!JG6 -> 2036-05-01 | JH5: ='Timeline&Flags'!JH6 -> 2036-06-01 | JI5: ='Timeline&Flags'!JI6 -> 2036-07-01 | JJ5: ='Timeline&Flags'!JJ6 -> 2036-08-01 | JK5: ='Timeline&Flags'!JK6 -> 2036-09-01 | JL5: ='Timeline&Flags'!JL6 -> 2036-10-01 | JM5: ='Timeline&Flags'!JM6 -> 2036-11-01 | JN5: ='Timeline&Flags'!JN6 -> 2036-12-01 | JO5: ='Timeline&Flags'!JO6 -> 2037-01-01 | JP5: ='Timeline&Flags'!JP6 -> 2037-02-01 | JQ5: ='Timeline&Flags'!JQ6 -> 2037-03-01 | JR5: ='Timeline&Flags'!JR6 -> 2037-04-01 | JS5: ='Timeline&Flags'!JS6 -> 2037-05-01 | JT5: ='Timeline&Flags'!JT6 -> 2037-06-01 | JU5: ='Timeline&Flags'!JU6 -> 2037-07-01 | JV5: ='Timeline&Flags'!JV6 -> 2037-08-01 | JW5: ='Timeline&Flags'!JW6 -> 2037-09-01 | JX5: ='Timeline&Flags'!JX6 -> 2037-10-01 | JY5: ='Timeline&Flags'!JY6 -> 2037-11-01 | JZ5: ='Timeline&Flags'!JZ6 -> 2037-12-01 | KA5: ='Timeline&Flags'!KA6 -> 2038-01-01 | KB5: ='Timeline&Flags'!KB6 -> 2038-02-01 | KC5: ='Timeline&Flags'!KC6 -> 2038-03-01 | KD5: ='Timeline&Flags'!KD6 -> 2038-04-01 | KE5: ='Timeline&Flags'!KE6 -> 2038-05-01 | KF5: ='Timeline&Flags'!KF6 -> 2038-06-01 | KG5: ='Timeline&Flags'!KG6 -> 2038-07-01 | KH5: ='Timeline&Flags'!KH6 -> 2038-08-01 | KI5: ='Timeline&Flags'!KI6 -> 2038-09-01 | KJ5: ='Timeline&Flags'!KJ6 -> 2038-10-01 | KK5: ='Timeline&Flags'!KK6 -> 2038-11-01 | KL5: ='Timeline&Flags'!KL6 -> 2038-12-01 | KM5: ='Timeline&Flags'!KM6 -> 2039-01-01 | KN5: ='Timeline&Flags'!KN6 -> 2039-02-01 | KO5: ='Timeline&Flags'!KO6 -> 2039-03-01 | KP5: ='Timeline&Flags'!KP6 -> 2039-04-01 | KQ5: ='Timeline&Flags'!KQ6 -> 2039-05-01 | KR5: ='Timeline&Flags'!KR6 -> 2039-06-01 | KS5: ='Timeline&Flags'!KS6 -> 2039-07-01 | KT5: ='Timeline&Flags'!KT6 -> 2039-08-01 | KU5: ='Timeline&Flags'!KU6 -> 2039-09-01 | KV5: ='Timeline&Flags'!KV6 -> 2039-10-01 | KW5: ='Timeline&Flags'!KW6 -> 2039-11-01 | KX5: ='Timeline&Flags'!KX6 -> 2039-12-01 | KY5: ='Timeline&Flags'!KY6 -> 2040-01-01 | KZ5: ='Timeline&Flags'!KZ6 -> 2040-02-01 | LA5: ='Timeline&Flags'!LA6 -> 2040-03-01 | LB5: ='Timeline&Flags'!LB6 -> 2040-04-01 | LC5: ='Timeline&Flags'!LC6 -> 2040-05-01 | LD5: ='Timeline&Flags'!LD6 -> 2040-06-01 | LE5: ='Timeline&Flags'!LE6 -> 2040-07-01 | LF5: ='Timeline&Flags'!LF6 -> 2040-08-01 | LG5: ='Timeline&Flags'!LG6 -> 2040-09-01 | LH5: ='Timeline&Flags'!LH6 -> 2040-10-01 | LI5: ='Timeline&Flags'!LI6 -> 2040-11-01 | LJ5: ='Timeline&Flags'!LJ6 -> 2040-12-01 | LK5: ='Timeline&Flags'!LK6 -> 2041-01-01 | LL5: ='Timeline&Flags'!LL6 -> 2041-02-01 | LM5: ='Timeline&Flags'!LM6 -> 2041-03-01 | LN5: ='Timeline&Flags'!LN6 -> 2041-04-01 | LO5: ='Timeline&Flags'!LO6 -> 2041-05-01 | LP5: ='Timeline&Flags'!LP6 -> 2041-06-01 | LQ5: ='Timeline&Flags'!LQ6 -> 2041-07-01 | LR5: ='Timeline&Flags'!LR6 -> 2041-08-01 | LS5: ='Timeline&Flags'!LS6 -> 2041-09-01 | LT5: ='Timeline&Flags'!LT6 -> 2041-10-01 | LU5: ='Timeline&Flags'!LU6 -> 2041-11-01 | LV5: ='Timeline&Flags'!LV6 -> 2041-12-01 | LW5: ='Timeline&Flags'!LW6 -> 2042-01-01 | LX5: ='Timeline&Flags'!LX6 -> 2042-02-01 | LY5: ='Timeline&Flags'!LY6 -> 2042-03-01 | LZ5: ='Timeline&Flags'!LZ6 -> 2042-04-01 | MA5: ='Timeline&Flags'!MA6 -> 2042-05-01 | MB5: ='Timeline&Flags'!MB6 -> 2042-06-01 | MC5: ='Timeline&Flags'!MC6 -> 2042-07-01 | MD5: ='Timeline&Flags'!MD6 -> 2042-08-01 | ME5: ='Timeline&Flags'!ME6 -> 2042-09-01 | MF5: ='Timeline&Flags'!MF6 -> 2042-10-01 | MG5: ='Timeline&Flags'!MG6 -> 2042-11-01 | MH5: ='Timeline&Flags'!MH6 -> 2042-12-01
E6: ='Timeline&Flags'!E7 -> End date | S6: ='Timeline&Flags'!S7 -> 2018-03-31 | T6: ='Timeline&Flags'!T7 -> 2019-03-31 | U6: ='Timeline&Flags'!U7 -> 2020-03-31 | V6: ='Timeline&Flags'!V7 -> 2021-03-31 | W6: ='Timeline&Flags'!W7 -> 2022-03-31 | X6: ='Timeline&Flags'!X7 -> 2023-03-31 | Y6: ='Timeline&Flags'!Y7 -> 2024-03-31 | Z6: ='Timeline&Flags'!Z7 -> 2025-03-31 | AA6: ='Timeline&Flags'!AA7 -> 2026-03-31 | AB6: ='Timeline&Flags'!AB7 -> 2027-03-31 | AC6: ='Timeline&Flags'!AC7 -> 2028-03-31 | AD6: ='Timeline&Flags'!AD7 -> 2029-03-31 | AE6: ='Timeline&Flags'!AE7 -> 2030-03-31 | AF6: ='Timeline&Flags'!AF7 -> 2031-03-31 | AG6: ='Timeline&Flags'!AG7 -> 2032-03-31 | AH6: ='Timeline&Flags'!AH7 -> 2033-03-31 | AI6: ='Timeline&Flags'!AI7 -> 2034-03-31 | AJ6: ='Timeline&Flags'!AJ7 -> 2035-03-31 | AK6: ='Timeline&Flags'!AK7 -> 2036-03-31 | AL6: ='Timeline&Flags'!AL7 -> 2037-03-31 | AM6: ='Timeline&Flags'!AM7 -> 2038-03-31 | AN6: ='Timeline&Flags'!AN7 -> 2039-03-31 | AO6: ='Timeline&Flags'!AO7 -> 2040-03-31 | AP6: ='Timeline&Flags'!AP7 -> 2041-03-31 | AQ6: ='Timeline&Flags'!AQ7 -> 2042-03-31 | AU6: ='Timeline&Flags'!AU7 -> 2018-01-31 | AV6: ='Timeline&Flags'!AV7 -> 2018-02-28 | AW6: ='Timeline&Flags'!AW7 -> 2018-03-31 | AX6: ='Timeline&Flags'!AX7 -> 2018-04-30 | AY6: ='Timeline&Flags'!AY7 -> 2018-05-31 | AZ6: ='Timeline&Flags'!AZ7 -> 2018-06-30 | BA6: ='Timeline&Flags'!BA7 -> 2018-07-31 | BB6: ='Timeline&Flags'!BB7 -> 2018-08-31 | BC6: ='Timeline&Flags'!BC7 -> 2018-09-30 | BD6: ='Timeline&Flags'!BD7 -> 2018-10-31 | BE6: ='Timeline&Flags'!BE7 -> 2018-11-30 | BF6: ='Timeline&Flags'!BF7 -> 2018-12-31 | BG6: ='Timeline&Flags'!BG7 -> 2019-01-31 | BH6: ='Timeline&Flags'!BH7 -> 2019-02-28 | BI6: ='Timeline&Flags'!BI7 -> 2019-03-31 | BJ6: ='Timeline&Flags'!BJ7 -> 2019-04-30 | BK6: ='Timeline&Flags'!BK7 -> 2019-05-31 | BL6: ='Timeline&Flags'!BL7 -> 2019-06-30 | BM6: ='Timeline&Flags'!BM7 -> 2019-07-31 | BN6: ='Timeline&Flags'!BN7 -> 2019-08-31 | BO6: ='Timeline&Flags'!BO7 -> 2019-09-30 | BP6: ='Timeline&Flags'!BP7 -> 2019-10-31 | BQ6: ='Timeline&Flags'!BQ7 -> 2019-11-30 | BR6: ='Timeline&Flags'!BR7 -> 2019-12-31 | BS6: ='Timeline&Flags'!BS7 -> 2020-01-31 | BT6: ='Timeline&Flags'!BT7 -> 2020-02-29 | BU6: ='Timeline&Flags'!BU7 -> 2020-03-31 | BV6: ='Timeline&Flags'!BV7 -> 2020-04-30 | BW6: ='Timeline&Flags'!BW7 -> 2020-05-31 | BX6: ='Timeline&Flags'!BX7 -> 2020-06-30 | BY6: ='Timeline&Flags'!BY7 -> 2020-07-31 | BZ6: ='Timeline&Flags'!BZ7 -> 2020-08-31 | CA6: ='Timeline&Flags'!CA7 -> 2020-09-30 | CB6: ='Timeline&Flags'!CB7 -> 2020-10-31 | CC6: ='Timeline&Flags'!CC7 -> 2020-11-30 | CD6: ='Timeline&Flags'!CD7 -> 2020-12-31 | CE6: ='Timeline&Flags'!CE7 -> 2021-01-31 | CF6: ='Timeline&Flags'!CF7 -> 2021-02-28 | CG6: ='Timeline&Flags'!CG7 -> 2021-03-31 | CH6: ='Timeline&Flags'!CH7 -> 2021-04-30 | CI6: ='Timeline&Flags'!CI7 -> 2021-05-31 | CJ6: ='Timeline&Flags'!CJ7 -> 2021-06-30 | CK6: ='Timeline&Flags'!CK7 -> 2021-07-31 | CL6: ='Timeline&Flags'!CL7 -> 2021-08-31 | CM6: ='Timeline&Flags'!CM7 -> 2021-09-30 | CN6: ='Timeline&Flags'!CN7 -> 2021-10-31 | CO6: ='Timeline&Flags'!CO7 -> 2021-11-30 | CP6: ='Timeline&Flags'!CP7 -> 2021-12-31 | CQ6: ='Timeline&Flags'!CQ7 -> 2022-01-31 | CR6: ='Timeline&Flags'!CR7 -> 2022-02-28 | CS6: ='Timeline&Flags'!CS7 -> 2022-03-31 | CT6: ='Timeline&Flags'!CT7 -> 2022-04-30 | CU6: ='Timeline&Flags'!CU7 -> 2022-05-31 | CV6: ='Timeline&Flags'!CV7 -> 2022-06-30 | CW6: ='Timeline&Flags'!CW7 -> 2022-07-31 | CX6: ='Timeline&Flags'!CX7 -> 2022-08-31 | CY6: ='Timeline&Flags'!CY7 -> 2022-09-30 | CZ6: ='Timeline&Flags'!CZ7 -> 2022-10-31 | DA6: ='Timeline&Flags'!DA7 -> 2022-11-30 | DB6: ='Timeline&Flags'!DB7 -> 2022-12-31 | DC6: ='Timeline&Flags'!DC7 -> 2023-01-31 | DD6: ='Timeline&Flags'!DD7 -> 2023-02-28 | DE6: ='Timeline&Flags'!DE7 -> 2023-03-31 | DF6: ='Timeline&Flags'!DF7 -> 2023-04-30 | DG6: ='Timeline&Flags'!DG7 -> 2023-05-31 | DH6: ='Timeline&Flags'!DH7 -> 2023-06-30 | DI6: ='Timeline&Flags'!DI7 -> 2023-07-31 | DJ6: ='Timeline&Flags'!DJ7 -> 2023-08-31 | DK6: ='Timeline&Flags'!DK7 -> 2023-09-30 | DL6: ='Timeline&Flags'!DL7 -> 2023-10-31 | DM6: ='Timeline&Flags'!DM7 -> 2023-11-30 | DN6: ='Timeline&Flags'!DN7 -> 2023-12-31 | DO6: ='Timeline&Flags'!DO7 -> 2024-01-31 | DP6: ='Timeline&Flags'!DP7 -> 2024-02-29 | DQ6: ='Timeline&Flags'!DQ7 -> 2024-03-31 | DR6: ='Timeline&Flags'!DR7 -> 2024-04-30 | DS6: ='Timeline&Flags'!DS7 -> 2024-05-31 | DT6: ='Timeline&Flags'!DT7 -> 2024-06-30 | DU6: ='Timeline&Flags'!DU7 -> 2024-07-31 | DV6: ='Timeline&Flags'!DV7 -> 2024-08-31 | DW6: ='Timeline&Flags'!DW7 -> 2024-09-30 | DX6: ='Timeline&Flags'!DX7 -> 2024-10-31 | DY6: ='Timeline&Flags'!DY7 -> 2024-11-30 | DZ6: ='Timeline&Flags'!DZ7 -> 2024-12-31 | EA6: ='Timeline&Flags'!EA7 -> 2025-01-31 | EB6: ='Timeline&Flags'!EB7 -> 2025-02-28 | EC6: ='Timeline&Flags'!EC7 -> 2025-03-31 | ED6: ='Timeline&Flags'!ED7 -> 2025-04-30 | EE6: ='Timeline&Flags'!EE7 -> 2025-05-31 | EF6: ='Timeline&Flags'!EF7 -> 2025-06-30 | EG6: ='Timeline&Flags'!EG7 -> 2025-07-31 | EH6: ='Timeline&Flags'!EH7 -> 2025-08-31 | EI6: ='Timeline&Flags'!EI7 -> 2025-09-30 | EJ6: ='Timeline&Flags'!EJ7 -> 2025-10-31 | EK6: ='Timeline&Flags'!EK7 -> 2025-11-30 | EL6: ='Timeline&Flags'!EL7 -> 2025-12-31 | EM6: ='Timeline&Flags'!EM7 -> 2026-01-31 | EN6: ='Timeline&Flags'!EN7 -> 2026-02-28 | EO6: ='Timeline&Flags'!EO7 -> 2026-03-31 | EP6: ='Timeline&Flags'!EP7 -> 2026-04-30 | EQ6: ='Timeline&Flags'!EQ7 -> 2026-05-31 | ER6: ='Timeline&Flags'!ER7 -> 2026-06-30 | ES6: ='Timeline&Flags'!ES7 -> 2026-07-31 | ET6: ='Timeline&Flags'!ET7 -> 2026-08-31 | EU6: ='Timeline&Flags'!EU7 -> 2026-09-30 | EV6: ='Timeline&Flags'!EV7 -> 2026-10-31 | EW6: ='Timeline&Flags'!EW7 -> 2026-11-30 | EX6: ='Timeline&Flags'!EX7 -> 2026-12-31 | EY6: ='Timeline&Flags'!EY7 -> 2027-01-31 | EZ6: ='Timeline&Flags'!EZ7 -> 2027-02-28 | FA6: ='Timeline&Flags'!FA7 -> 2027-03-31 | FB6: ='Timeline&Flags'!FB7 -> 2027-04-30 | FC6: ='Timeline&Flags'!FC7 -> 2027-05-31 | FD6: ='Timeline&Flags'!FD7 -> 2027-06-30 | FE6: ='Timeline&Flags'!FE7 -> 2027-07-31 | FF6: ='Timeline&Flags'!FF7 -> 2027-08-31 | FG6: ='Timeline&Flags'!FG7 -> 2027-09-30 | FH6: ='Timeline&Flags'!FH7 -> 2027-10-31 | FI6: ='Timeline&Flags'!FI7 -> 2027-11-30 | FJ6: ='Timeline&Flags'!FJ7 -> 2027-12-31 | FK6: ='Timeline&Flags'!FK7 -> 2028-01-31 | FL6: ='Timeline&Flags'!FL7 -> 2028-02-29 | FM6: ='Timeline&Flags'!FM7 -> 2028-03-31 | FN6: ='Timeline&Flags'!FN7 -> 2028-04-30 | FO6: ='Timeline&Flags'!FO7 -> 2028-05-31 | FP6: ='Timeline&Flags'!FP7 -> 2028-06-30 | FQ6: ='Timeline&Flags'!FQ7 -> 2028-07-31 | FR6: ='Timeline&Flags'!FR7 -> 2028-08-31 | FS6: ='Timeline&Flags'!FS7 -> 2028-09-30 | FT6: ='Timeline&Flags'!FT7 -> 2028-10-31 | FU6: ='Timeline&Flags'!FU7 -> 2028-11-30 | FV6: ='Timeline&Flags'!FV7 -> 2028-12-31 | FW6: ='Timeline&Flags'!FW7 -> 2029-01-31 | FX6: ='Timeline&Flags'!FX7 -> 2029-02-28 | FY6: ='Timeline&Flags'!FY7 -> 2029-03-31 | FZ6: ='Timeline&Flags'!FZ7 -> 2029-04-30 | GA6: ='Timeline&Flags'!GA7 -> 2029-05-31 | GB6: ='Timeline&Flags'!GB7 -> 2029-06-30 | GC6: ='Timeline&Flags'!GC7 -> 2029-07-31 | GD6: ='Timeline&Flags'!GD7 -> 2029-08-31 | GE6: ='Timeline&Flags'!GE7 -> 2029-09-30 | GF6: ='Timeline&Flags'!GF7 -> 2029-10-31 | GG6: ='Timeline&Flags'!GG7 -> 2029-11-30 | GH6: ='Timeline&Flags'!GH7 -> 2029-12-31 | GI6: ='Timeline&Flags'!GI7 -> 2030-01-31 | GJ6: ='Timeline&Flags'!GJ7 -> 2030-02-28 | GK6: ='Timeline&Flags'!GK7 -> 2030-03-31 | GL6: ='Timeline&Flags'!GL7 -> 2030-04-30 | GM6: ='Timeline&Flags'!GM7 -> 2030-05-31 | GN6: ='Timeline&Flags'!GN7 -> 2030-06-30 | GO6: ='Timeline&Flags'!GO7 -> 2030-07-31 | GP6: ='Timeline&Flags'!GP7 -> 2030-08-31 | GQ6: ='Timeline&Flags'!GQ7 -> 2030-09-30 | GR6: ='Timeline&Flags'!GR7 -> 2030-10-31 | GS6: ='Timeline&Flags'!GS7 -> 2030-11-30 | GT6: ='Timeline&Flags'!GT7 -> 2030-12-31 | GU6: ='Timeline&Flags'!GU7 -> 2031-01-31 | GV6: ='Timeline&Flags'!GV7 -> 2031-02-28 | GW6: ='Timeline&Flags'!GW7 -> 2031-03-31 | GX6: ='Timeline&Flags'!GX7 -> 2031-04-30 | GY6: ='Timeline&Flags'!GY7 -> 2031-05-31 | GZ6: ='Timeline&Flags'!GZ7 -> 2031-06-30 | HA6: ='Timeline&Flags'!HA7 -> 2031-07-31 | HB6: ='Timeline&Flags'!HB7 -> 2031-08-31 | HC6: ='Timeline&Flags'!HC7 -> 2031-09-30 | HD6: ='Timeline&Flags'!HD7 -> 2031-10-31 | HE6: ='Timeline&Flags'!HE7 -> 2031-11-30 | HF6: ='Timeline&Flags'!HF7 -> 2031-12-31 | HG6: ='Timeline&Flags'!HG7 -> 2032-01-31 | HH6: ='Timeline&Flags'!HH7 -> 2032-02-29 | HI6: ='Timeline&Flags'!HI7 -> 2032-03-31 | HJ6: ='Timeline&Flags'!HJ7 -> 2032-04-30 | HK6: ='Timeline&Flags'!HK7 -> 2032-05-31 | HL6: ='Timeline&Flags'!HL7 -> 2032-06-30 | HM6: ='Timeline&Flags'!HM7 -> 2032-07-31 | HN6: ='Timeline&Flags'!HN7 -> 2032-08-31 | HO6: ='Timeline&Flags'!HO7 -> 2032-09-30 | HP6: ='Timeline&Flags'!HP7 -> 2032-10-31 | HQ6: ='Timeline&Flags'!HQ7 -> 2032-11-30 | HR6: ='Timeline&Flags'!HR7 -> 2032-12-31 | HS6: ='Timeline&Flags'!HS7 -> 2033-01-31 | HT6: ='Timeline&Flags'!HT7 -> 2033-02-28 | HU6: ='Timeline&Flags'!HU7 -> 2033-03-31 | HV6: ='Timeline&Flags'!HV7 -> 2033-04-30 | HW6: ='Timeline&Flags'!HW7 -> 2033-05-31 | HX6: ='Timeline&Flags'!HX7 -> 2033-06-30 | HY6: ='Timeline&Flags'!HY7 -> 2033-07-31 | HZ6: ='Timeline&Flags'!HZ7 -> 2033-08-31 | IA6: ='Timeline&Flags'!IA7 -> 2033-09-30 | IB6: ='Timeline&Flags'!IB7 -> 2033-10-31 | IC6: ='Timeline&Flags'!IC7 -> 2033-11-30 | ID6: ='Timeline&Flags'!ID7 -> 2033-12-31 | IE6: ='Timeline&Flags'!IE7 -> 2034-01-31 | IF6: ='Timeline&Flags'!IF7 -> 2034-02-28 | IG6: ='Timeline&Flags'!IG7 -> 2034-03-31 | IH6: ='Timeline&Flags'!IH7 -> 2034-04-30 | II6: ='Timeline&Flags'!II7 -> 2034-05-31 | IJ6: ='Timeline&Flags'!IJ7 -> 2034-06-30 | IK6: ='Timeline&Flags'!IK7 -> 2034-07-31 | IL6: ='Timeline&Flags'!IL7 -> 2034-08-31 | IM6: ='Timeline&Flags'!IM7 -> 2034-09-30 | IN6: ='Timeline&Flags'!IN7 -> 2034-10-31 | IO6: ='Timeline&Flags'!IO7 -> 2034-11-30 | IP6: ='Timeline&Flags'!IP7 -> 2034-12-31 | IQ6: ='Timeline&Flags'!IQ7 -> 2035-01-31 | IR6: ='Timeline&Flags'!IR7 -> 2035-02-28 | IS6: ='Timeline&Flags'!IS7 -> 2035-03-31 | IT6: ='Timeline&Flags'!IT7 -> 2035-04-30 | IU6: ='Timeline&Flags'!IU7 -> 2035-05-31 | IV6: ='Timeline&Flags'!IV7 -> 2035-06-30 | IW6: ='Timeline&Flags'!IW7 -> 2035-07-31 | IX6: ='Timeline&Flags'!IX7 -> 2035-08-31 | IY6: ='Timeline&Flags'!IY7 -> 2035-09-30 | IZ6: ='Timeline&Flags'!IZ7 -> 2035-10-31 | JA6: ='Timeline&Flags'!JA7 -> 2035-11-30 | JB6: ='Timeline&Flags'!JB7 -> 2035-12-31 | JC6: ='Timeline&Flags'!JC7 -> 2036-01-31 | JD6: ='Timeline&Flags'!JD7 -> 2036-02-29 | JE6: ='Timeline&Flags'!JE7 -> 2036-03-31 | JF6: ='Timeline&Flags'!JF7 -> 2036-04-30 | JG6: ='Timeline&Flags'!JG7 -> 2036-05-31 | JH6: ='Timeline&Flags'!JH7 -> 2036-06-30 | JI6: ='Timeline&Flags'!JI7 -> 2036-07-31 | JJ6: ='Timeline&Flags'!JJ7 -> 2036-08-31 | JK6: ='Timeline&Flags'!JK7 -> 2036-09-30 | JL6: ='Timeline&Flags'!JL7 -> 2036-10-31 | JM6: ='Timeline&Flags'!JM7 -> 2036-11-30 | JN6: ='Timeline&Flags'!JN7 -> 2036-12-31 | JO6: ='Timeline&Flags'!JO7 -> 2037-01-31 | JP6: ='Timeline&Flags'!JP7 -> 2037-02-28 | JQ6: ='Timeline&Flags'!JQ7 -> 2037-03-31 | JR6: ='Timeline&Flags'!JR7 -> 2037-04-30 | JS6: ='Timeline&Flags'!JS7 -> 2037-05-31 | JT6: ='Timeline&Flags'!JT7 -> 2037-06-30 | JU6: ='Timeline&Flags'!JU7 -> 2037-07-31 | JV6: ='Timeline&Flags'!JV7 -> 2037-08-31 | JW6: ='Timeline&Flags'!JW7 -> 2037-09-30 | JX6: ='Timeline&Flags'!JX7 -> 2037-10-31 | JY6: ='Timeline&Flags'!JY7 -> 2037-11-30 | JZ6: ='Timeline&Flags'!JZ7 -> 2037-12-31 | KA6: ='Timeline&Flags'!KA7 -> 2038-01-31 | KB6: ='Timeline&Flags'!KB7 -> 2038-02-28 | KC6: ='Timeline&Flags'!KC7 -> 2038-03-31 | KD6: ='Timeline&Flags'!KD7 -> 2038-04-30 | KE6: ='Timeline&Flags'!KE7 -> 2038-05-31 | KF6: ='Timeline&Flags'!KF7 -> 2038-06-30 | KG6: ='Timeline&Flags'!KG7 -> 2038-07-31 | KH6: ='Timeline&Flags'!KH7 -> 2038-08-31 | KI6: ='Timeline&Flags'!KI7 -> 2038-09-30 | KJ6: ='Timeline&Flags'!KJ7 -> 2038-10-31 | KK6: ='Timeline&Flags'!KK7 -> 2038-11-30 | KL6: ='Timeline&Flags'!KL7 -> 2038-12-31 | KM6: ='Timeline&Flags'!KM7 -> 2039-01-31 | KN6: ='Timeline&Flags'!KN7 -> 2039-02-28 | KO6: ='Timeline&Flags'!KO7 -> 2039-03-31 | KP6: ='Timeline&Flags'!KP7 -> 2039-04-30 | KQ6: ='Timeline&Flags'!KQ7 -> 2039-05-31 | KR6: ='Timeline&Flags'!KR7 -> 2039-06-30 | KS6: ='Timeline&Flags'!KS7 -> 2039-07-31 | KT6: ='Timeline&Flags'!KT7 -> 2039-08-31 | KU6: ='Timeline&Flags'!KU7 -> 2039-09-30 | KV6: ='Timeline&Flags'!KV7 -> 2039-10-31 | KW6: ='Timeline&Flags'!KW7 -> 2039-11-30 | KX6: ='Timeline&Flags'!KX7 -> 2039-12-31 | KY6: ='Timeline&Flags'!KY7 -> 2040-01-31 | KZ6: ='Timeline&Flags'!KZ7 -> 2040-02-29 | LA6: ='Timeline&Flags'!LA7 -> 2040-03-31 | LB6: ='Timeline&Flags'!LB7 -> 2040-04-30 | LC6: ='Timeline&Flags'!LC7 -> 2040-05-31 | LD6: ='Timeline&Flags'!LD7 -> 2040-06-30 | LE6: ='Timeline&Flags'!LE7 -> 2040-07-31 | LF6: ='Timeline&Flags'!LF7 -> 2040-08-31 | LG6: ='Timeline&Flags'!LG7 -> 2040-09-30 | LH6: ='Timeline&Flags'!LH7 -> 2040-10-31 | LI6: ='Timeline&Flags'!LI7 -> 2040-11-30 | LJ6: ='Timeline&Flags'!LJ7 -> 2040-12-31 | LK6: ='Timeline&Flags'!LK7 -> 2041-01-31 | LL6: ='Timeline&Flags'!LL7 -> 2041-02-28 | LM6: ='Timeline&Flags'!LM7 -> 2041-03-31 | LN6: ='Timeline&Flags'!LN7 -> 2041-04-30 | LO6: ='Timeline&Flags'!LO7 -> 2041-05-31 | LP6: ='Timeline&Flags'!LP7 -> 2041-06-30 | LQ6: ='Timeline&Flags'!LQ7 -> 2041-07-31 | LR6: ='Timeline&Flags'!LR7 -> 2041-08-31 | LS6: ='Timeline&Flags'!LS7 -> 2041-09-30 | LT6: ='Timeline&Flags'!LT7 -> 2041-10-31 | LU6: ='Timeline&Flags'!LU7 -> 2041-11-30 | LV6: ='Timeline&Flags'!LV7 -> 2041-12-31 | LW6: ='Timeline&Flags'!LW7 -> 2042-01-31 | LX6: ='Timeline&Flags'!LX7 -> 2042-02-28 | LY6: ='Timeline&Flags'!LY7 -> 2042-03-31 | LZ6: ='Timeline&Flags'!LZ7 -> 2042-04-30 | MA6: ='Timeline&Flags'!MA7 -> 2042-05-31 | MB6: ='Timeline&Flags'!MB7 -> 2042-06-30 | MC6: ='Timeline&Flags'!MC7 -> 2042-07-31 | MD6: ='Timeline&Flags'!MD7 -> 2042-08-31 | ME6: ='Timeline&Flags'!ME7 -> 2042-09-30 | MF6: ='Timeline&Flags'!MF7 -> 2042-10-31 | MG6: ='Timeline&Flags'!MG7 -> 2042-11-30 | MH6: ='Timeline&Flags'!MH7 -> 2042-12-31
E7: ='Timeline&Flags'!E8 -> Summary period | S7: ='Timeline&Flags'!S8 -> 1 | T7: ='Timeline&Flags'!T8 -> 2 | U7: ='Timeline&Flags'!U8 -> 3 | V7: ='Timeline&Flags'!V8 -> 4 | W7: ='Timeline&Flags'!W8 -> 5 | X7: ='Timeline&Flags'!X8 -> 6 | Y7: ='Timeline&Flags'!Y8 -> 7 | Z7: ='Timeline&Flags'!Z8 -> 8 | AA7: ='Timeline&Flags'!AA8 -> 9 | AB7: ='Timeline&Flags'!AB8 -> 10 | AC7: ='Timeline&Flags'!AC8 -> 11 | AD7: ='Timeline&Flags'!AD8 -> 12 | AE7: ='Timeline&Flags'!AE8 -> 13 | AF7: ='Timeline&Flags'!AF8 -> 14 | AG7: ='Timeline&Flags'!AG8 -> 15 | AH7: ='Timeline&Flags'!AH8 -> 16 | AI7: ='Timeline&Flags'!AI8 -> 17 | AJ7: ='Timeline&Flags'!AJ8 -> 18 | AK7: ='Timeline&Flags'!AK8 -> 19 | AL7: ='Timeline&Flags'!AL8 -> 20 | AM7: ='Timeline&Flags'!AM8 -> 21 | AN7: ='Timeline&Flags'!AN8 -> 22 | AO7: ='Timeline&Flags'!AO8 -> 23 | AP7: ='Timeline&Flags'!AP8 -> 24 | AQ7: ='Timeline&Flags'!AQ8 -> 25 | AU7: ='Timeline&Flags'!AU8 -> 1 | AV7: ='Timeline&Flags'!AV8 -> 1 | AW7: ='Timeline&Flags'!AW8 -> 1 | AX7: ='Timeline&Flags'!AX8 -> 2 | AY7: ='Timeline&Flags'!AY8 -> 2 | AZ7: ='Timeline&Flags'!AZ8 -> 2 | BA7: ='Timeline&Flags'!BA8 -> 2 | BB7: ='Timeline&Flags'!BB8 -> 2 | BC7: ='Timeline&Flags'!BC8 -> 2 | BD7: ='Timeline&Flags'!BD8 -> 2 | BE7: ='Timeline&Flags'!BE8 -> 2 | BF7: ='Timeline&Flags'!BF8 -> 2 | BG7: ='Timeline&Flags'!BG8 -> 2 | BH7: ='Timeline&Flags'!BH8 -> 2 | BI7: ='Timeline&Flags'!BI8 -> 2 | BJ7: ='Timeline&Flags'!BJ8 -> 3 | BK7: ='Timeline&Flags'!BK8 -> 3 | BL7: ='Timeline&Flags'!BL8 -> 3 | BM7: ='Timeline&Flags'!BM8 -> 3 | BN7: ='Timeline&Flags'!BN8 -> 3 | BO7: ='Timeline&Flags'!BO8 -> 3 | BP7: ='Timeline&Flags'!BP8 -> 3 | BQ7: ='Timeline&Flags'!BQ8 -> 3 | BR7: ='Timeline&Flags'!BR8 -> 3 | BS7: ='Timeline&Flags'!BS8 -> 3 | BT7: ='Timeline&Flags'!BT8 -> 3 | BU7: ='Timeline&Flags'!BU8 -> 3 | BV7: ='Timeline&Flags'!BV8 -> 4 | BW7: ='Timeline&Flags'!BW8 -> 4 | BX7: ='Timeline&Flags'!BX8 -> 4 | BY7: ='Timeline&Flags'!BY8 -> 4 | BZ7: ='Timeline&Flags'!BZ8 -> 4 | CA7: ='Timeline&Flags'!CA8 -> 4 | CB7: ='Timeline&Flags'!CB8 -> 4 | CC7: ='Timeline&Flags'!CC8 -> 4 | CD7: ='Timeline&Flags'!CD8 -> 4 | CE7: ='Timeline&Flags'!CE8 -> 4 | CF7: ='Timeline&Flags'!CF8 -> 4 | CG7: ='Timeline&Flags'!CG8 -> 4 | CH7: ='Timeline&Flags'!CH8 -> 5 | CI7: ='Timeline&Flags'!CI8 -> 5 | CJ7: ='Timeline&Flags'!CJ8 -> 5 | CK7: ='Timeline&Flags'!CK8 -> 5 | CL7: ='Timeline&Flags'!CL8 -> 5 | CM7: ='Timeline&Flags'!CM8 -> 5 | CN7: ='Timeline&Flags'!CN8 -> 5 | CO7: ='Timeline&Flags'!CO8 -> 5 | CP7: ='Timeline&Flags'!CP8 -> 5 | CQ7: ='Timeline&Flags'!CQ8 -> 5 | CR7: ='Timeline&Flags'!CR8 -> 5 | CS7: ='Timeline&Flags'!CS8 -> 5 | CT7: ='Timeline&Flags'!CT8 -> 6 | CU7: ='Timeline&Flags'!CU8 -> 6 | CV7: ='Timeline&Flags'!CV8 -> 6 | CW7: ='Timeline&Flags'!CW8 -> 6 | CX7: ='Timeline&Flags'!CX8 -> 6 | CY7: ='Timeline&Flags'!CY8 -> 6 | CZ7: ='Timeline&Flags'!CZ8 -> 6 | DA7: ='Timeline&Flags'!DA8 -> 6 | DB7: ='Timeline&Flags'!DB8 -> 6 | DC7: ='Timeline&Flags'!DC8 -> 6 | DD7: ='Timeline&Flags'!DD8 -> 6 | DE7: ='Timeline&Flags'!DE8 -> 6 | DF7: ='Timeline&Flags'!DF8 -> 7 | DG7: ='Timeline&Flags'!DG8 -> 7 | DH7: ='Timeline&Flags'!DH8 -> 7 | DI7: ='Timeline&Flags'!DI8 -> 7 | DJ7: ='Timeline&Flags'!DJ8 -> 7 | DK7: ='Timeline&Flags'!DK8 -> 7 | DL7: ='Timeline&Flags'!DL8 -> 7 | DM7: ='Timeline&Flags'!DM8 -> 7 | DN7: ='Timeline&Flags'!DN8 -> 7 | DO7: ='Timeline&Flags'!DO8 -> 7 | DP7: ='Timeline&Flags'!DP8 -> 7 | DQ7: ='Timeline&Flags'!DQ8 -> 7 | DR7: ='Timeline&Flags'!DR8 -> 8 | DS7: ='Timeline&Flags'!DS8 -> 8 | DT7: ='Timeline&Flags'!DT8 -> 8 | DU7: ='Timeline&Flags'!DU8 -> 8 | DV7: ='Timeline&Flags'!DV8 -> 8 | DW7: ='Timeline&Flags'!DW8 -> 8 | DX7: ='Timeline&Flags'!DX8 -> 8 | DY7: ='Timeline&Flags'!DY8 -> 8 | DZ7: ='Timeline&Flags'!DZ8 -> 8 | EA7: ='Timeline&Flags'!EA8 -> 8 | EB7: ='Timeline&Flags'!EB8 -> 8 | EC7: ='Timeline&Flags'!EC8 -> 8 | ED7: ='Timeline&Flags'!ED8 -> 9 | EE7: ='Timeline&Flags'!EE8 -> 9 | EF7: ='Timeline&Flags'!EF8 -> 9 | EG7: ='Timeline&Flags'!EG8 -> 9 | EH7: ='Timeline&Flags'!EH8 -> 9 | EI7: ='Timeline&Flags'!EI8 -> 9 | EJ7: ='Timeline&Flags'!EJ8 -> 9 | EK7: ='Timeline&Flags'!EK8 -> 9 | EL7: ='Timeline&Flags'!EL8 -> 9 | EM7: ='Timeline&Flags'!EM8 -> 9 | EN7: ='Timeline&Flags'!EN8 -> 9 | EO7: ='Timeline&Flags'!EO8 -> 9 | EP7: ='Timeline&Flags'!EP8 -> 10 | EQ7: ='Timeline&Flags'!EQ8 -> 10 | ER7: ='Timeline&Flags'!ER8 -> 10 | ES7: ='Timeline&Flags'!ES8 -> 10 | ET7: ='Timeline&Flags'!ET8 -> 10 | EU7: ='Timeline&Flags'!EU8 -> 10 | EV7: ='Timeline&Flags'!EV8 -> 10 | EW7: ='Timeline&Flags'!EW8 -> 10 | EX7: ='Timeline&Flags'!EX8 -> 10 | EY7: ='Timeline&Flags'!EY8 -> 10 | EZ7: ='Timeline&Flags'!EZ8 -> 10 | FA7: ='Timeline&Flags'!FA8 -> 10 | FB7: ='Timeline&Flags'!FB8 -> 11 | FC7: ='Timeline&Flags'!FC8 -> 11 | FD7: ='Timeline&Flags'!FD8 -> 11 | FE7: ='Timeline&Flags'!FE8 -> 11 | FF7: ='Timeline&Flags'!FF8 -> 11 | FG7: ='Timeline&Flags'!FG8 -> 11 | FH7: ='Timeline&Flags'!FH8 -> 11 | FI7: ='Timeline&Flags'!FI8 -> 11 | FJ7: ='Timeline&Flags'!FJ8 -> 11 | FK7: ='Timeline&Flags'!FK8 -> 11 | FL7: ='Timeline&Flags'!FL8 -> 11 | FM7: ='Timeline&Flags'!FM8 -> 11 | FN7: ='Timeline&Flags'!FN8 -> 12 | FO7: ='Timeline&Flags'!FO8 -> 12 | FP7: ='Timeline&Flags'!FP8 -> 12 | FQ7: ='Timeline&Flags'!FQ8 -> 12 | FR7: ='Timeline&Flags'!FR8 -> 12 | FS7: ='Timeline&Flags'!FS8 -> 12 | FT7: ='Timeline&Flags'!FT8 -> 12 | FU7: ='Timeline&Flags'!FU8 -> 12 | FV7: ='Timeline&Flags'!FV8 -> 12 | FW7: ='Timeline&Flags'!FW8 -> 12 | FX7: ='Timeline&Flags'!FX8 -> 12 | FY7: ='Timeline&Flags'!FY8 -> 12 | FZ7: ='Timeline&Flags'!FZ8 -> 13 | GA7: ='Timeline&Flags'!GA8 -> 13 | GB7: ='Timeline&Flags'!GB8 -> 13 | GC7: ='Timeline&Flags'!GC8 -> 13 | GD7: ='Timeline&Flags'!GD8 -> 13 | GE7: ='Timeline&Flags'!GE8 -> 13 | GF7: ='Timeline&Flags'!GF8 -> 13 | GG7: ='Timeline&Flags'!GG8 -> 13 | GH7: ='Timeline&Flags'!GH8 -> 13 | GI7: ='Timeline&Flags'!GI8 -> 13 | GJ7: ='Timeline&Flags'!GJ8 -> 13 | GK7: ='Timeline&Flags'!GK8 -> 13 | GL7: ='Timeline&Flags'!GL8 -> 14 | GM7: ='Timeline&Flags'!GM8 -> 14 | GN7: ='Timeline&Flags'!GN8 -> 14 | GO7: ='Timeline&Flags'!GO8 -> 14 | GP7: ='Timeline&Flags'!GP8 -> 14 | GQ7: ='Timeline&Flags'!GQ8 -> 14 | GR7: ='Timeline&Flags'!GR8 -> 14 | GS7: ='Timeline&Flags'!GS8 -> 14 | GT7: ='Timeline&Flags'!GT8 -> 14 | GU7: ='Timeline&Flags'!GU8 -> 14 | GV7: ='Timeline&Flags'!GV8 -> 14 | GW7: ='Timeline&Flags'!GW8 -> 14 | GX7: ='Timeline&Flags'!GX8 -> 15 | GY7: ='Timeline&Flags'!GY8 -> 15 | GZ7: ='Timeline&Flags'!GZ8 -> 15 | HA7: ='Timeline&Flags'!HA8 -> 15 | HB7: ='Timeline&Flags'!HB8 -> 15 | HC7: ='Timeline&Flags'!HC8 -> 15 | HD7: ='Timeline&Flags'!HD8 -> 15 | HE7: ='Timeline&Flags'!HE8 -> 15 | HF7: ='Timeline&Flags'!HF8 -> 15 | HG7: ='Timeline&Flags'!HG8 -> 15 | HH7: ='Timeline&Flags'!HH8 -> 15 | HI7: ='Timeline&Flags'!HI8 -> 15 | HJ7: ='Timeline&Flags'!HJ8 -> 16 | HK7: ='Timeline&Flags'!HK8 -> 16 | HL7: ='Timeline&Flags'!HL8 -> 16 | HM7: ='Timeline&Flags'!HM8 -> 16 | HN7: ='Timeline&Flags'!HN8 -> 16 | HO7: ='Timeline&Flags'!HO8 -> 16 | HP7: ='Timeline&Flags'!HP8 -> 16 | HQ7: ='Timeline&Flags'!HQ8 -> 16 | HR7: ='Timeline&Flags'!HR8 -> 16 | HS7: ='Timeline&Flags'!HS8 -> 16 | HT7: ='Timeline&Flags'!HT8 -> 16 | HU7: ='Timeline&Flags'!HU8 -> 16 | HV7: ='Timeline&Flags'!HV8 -> 17 | HW7: ='Timeline&Flags'!HW8 -> 17 | HX7: ='Timeline&Flags'!HX8 -> 17 | HY7: ='Timeline&Flags'!HY8 -> 17 | HZ7: ='Timeline&Flags'!HZ8 -> 17 | IA7: ='Timeline&Flags'!IA8 -> 17 | IB7: ='Timeline&Flags'!IB8 -> 17 | IC7: ='Timeline&Flags'!IC8 -> 17 | ID7: ='Timeline&Flags'!ID8 -> 17 | IE7: ='Timeline&Flags'!IE8 -> 17 | IF7: ='Timeline&Flags'!IF8 -> 17 | IG7: ='Timeline&Flags'!IG8 -> 17 | IH7: ='Timeline&Flags'!IH8 -> 18 | II7: ='Timeline&Flags'!II8 -> 18 | IJ7: ='Timeline&Flags'!IJ8 -> 18 | IK7: ='Timeline&Flags'!IK8 -> 18 | IL7: ='Timeline&Flags'!IL8 -> 18 | IM7: ='Timeline&Flags'!IM8 -> 18 | IN7: ='Timeline&Flags'!IN8 -> 18 | IO7: ='Timeline&Flags'!IO8 -> 18 | IP7: ='Timeline&Flags'!IP8 -> 18 | IQ7: ='Timeline&Flags'!IQ8 -> 18 | IR7: ='Timeline&Flags'!IR8 -> 18 | IS7: ='Timeline&Flags'!IS8 -> 18 | IT7: ='Timeline&Flags'!IT8 -> 19 | IU7: ='Timeline&Flags'!IU8 -> 19 | IV7: ='Timeline&Flags'!IV8 -> 19 | IW7: ='Timeline&Flags'!IW8 -> 19 | IX7: ='Timeline&Flags'!IX8 -> 19 | IY7: ='Timeline&Flags'!IY8 -> 19 | IZ7: ='Timeline&Flags'!IZ8 -> 19 | JA7: ='Timeline&Flags'!JA8 -> 19 | JB7: ='Timeline&Flags'!JB8 -> 19 | JC7: ='Timeline&Flags'!JC8 -> 19 | JD7: ='Timeline&Flags'!JD8 -> 19 | JE7: ='Timeline&Flags'!JE8 -> 19 | JF7: ='Timeline&Flags'!JF8 -> 20 | JG7: ='Timeline&Flags'!JG8 -> 20 | JH7: ='Timeline&Flags'!JH8 -> 20 | JI7: ='Timeline&Flags'!JI8 -> 20 | JJ7: ='Timeline&Flags'!JJ8 -> 20 | JK7: ='Timeline&Flags'!JK8 -> 20 | JL7: ='Timeline&Flags'!JL8 -> 20 | JM7: ='Timeline&Flags'!JM8 -> 20 | JN7: ='Timeline&Flags'!JN8 -> 20 | JO7: ='Timeline&Flags'!JO8 -> 20 | JP7: ='Timeline&Flags'!JP8 -> 20 | JQ7: ='Timeline&Flags'!JQ8 -> 20 | JR7: ='Timeline&Flags'!JR8 -> 21 | JS7: ='Timeline&Flags'!JS8 -> 21 | JT7: ='Timeline&Flags'!JT8 -> 21 | JU7: ='Timeline&Flags'!JU8 -> 21 | JV7: ='Timeline&Flags'!JV8 -> 21 | JW7: ='Timeline&Flags'!JW8 -> 21 | JX7: ='Timeline&Flags'!JX8 -> 21 | JY7: ='Timeline&Flags'!JY8 -> 21 | JZ7: ='Timeline&Flags'!JZ8 -> 21 | KA7: ='Timeline&Flags'!KA8 -> 21 | KB7: ='Timeline&Flags'!KB8 -> 21 | KC7: ='Timeline&Flags'!KC8 -> 21 | KD7: ='Timeline&Flags'!KD8 -> 22 | KE7: ='Timeline&Flags'!KE8 -> 22 | KF7: ='Timeline&Flags'!KF8 -> 22 | KG7: ='Timeline&Flags'!KG8 -> 22 | KH7: ='Timeline&Flags'!KH8 -> 22 | KI7: ='Timeline&Flags'!KI8 -> 22 | KJ7: ='Timeline&Flags'!KJ8 -> 22 | KK7: ='Timeline&Flags'!KK8 -> 22 | KL7: ='Timeline&Flags'!KL8 -> 22 | KM7: ='Timeline&Flags'!KM8 -> 22 | KN7: ='Timeline&Flags'!KN8 -> 22 | KO7: ='Timeline&Flags'!KO8 -> 22 | KP7: ='Timeline&Flags'!KP8 -> 23 | KQ7: ='Timeline&Flags'!KQ8 -> 23 | KR7: ='Timeline&Flags'!KR8 -> 23 | KS7: ='Timeline&Flags'!KS8 -> 23 | KT7: ='Timeline&Flags'!KT8 -> 23 | KU7: ='Timeline&Flags'!KU8 -> 23 | KV7: ='Timeline&Flags'!KV8 -> 23 | KW7: ='Timeline&Flags'!KW8 -> 23 | KX7: ='Timeline&Flags'!KX8 -> 23 | KY7: ='Timeline&Flags'!KY8 -> 23 | KZ7: ='Timeline&Flags'!KZ8 -> 23 | LA7: ='Timeline&Flags'!LA8 -> 23 | LB7: ='Timeline&Flags'!LB8 -> 24 | LC7: ='Timeline&Flags'!LC8 -> 24 | LD7: ='Timeline&Flags'!LD8 -> 24 | LE7: ='Timeline&Flags'!LE8 -> 24 | LF7: ='Timeline&Flags'!LF8 -> 24 | LG7: ='Timeline&Flags'!LG8 -> 24 | LH7: ='Timeline&Flags'!LH8 -> 24 | LI7: ='Timeline&Flags'!LI8 -> 24 | LJ7: ='Timeline&Flags'!LJ8 -> 24 | LK7: ='Timeline&Flags'!LK8 -> 24 | LL7: ='Timeline&Flags'!LL8 -> 24 | LM7: ='Timeline&Flags'!LM8 -> 24 | LN7: ='Timeline&Flags'!LN8 -> 25 | LO7: ='Timeline&Flags'!LO8 -> 25 | LP7: ='Timeline&Flags'!LP8 -> 25 | LQ7: ='Timeline&Flags'!LQ8 -> 25 | LR7: ='Timeline&Flags'!LR8 -> 25 | LS7: ='Timeline&Flags'!LS8 -> 25 | LT7: ='Timeline&Flags'!LT8 -> 25 | LU7: ='Timeline&Flags'!LU8 -> 25 | LV7: ='Timeline&Flags'!LV8 -> 25 | LW7: ='Timeline&Flags'!LW8 -> 25 | LX7: ='Timeline&Flags'!LX8 -> 25 | LY7: ='Timeline&Flags'!LY8 -> 25 | LZ7: ='Timeline&Flags'!LZ8 -> 25 | MA7: ='Timeline&Flags'!MA8 -> 25 | MB7: ='Timeline&Flags'!MB8 -> 25 | MC7: ='Timeline&Flags'!MC8 -> 25 | MD7: ='Timeline&Flags'!MD8 -> 25 | ME7: ='Timeline&Flags'!ME8 -> 25 | MF7: ='Timeline&Flags'!MF8 -> 25 | MG7: ='Timeline&Flags'!MG8 -> 25 | MH7: ='Timeline&Flags'!MH8 -> 25
E8: ='Timeline&Flags'!E9 -> Calendar year | S8: ='Timeline&Flags'!S9 -> 2018 | T8: ='Timeline&Flags'!T9 -> 2019 | U8: ='Timeline&Flags'!U9 -> 2020 | V8: ='Timeline&Flags'!V9 -> 2021 | W8: ='Timeline&Flags'!W9 -> 2022 | X8: ='Timeline&Flags'!X9 -> 2023 | Y8: ='Timeline&Flags'!Y9 -> 2024 | Z8: ='Timeline&Flags'!Z9 -> 2025 | AA8: ='Timeline&Flags'!AA9 -> 2026 | AB8: ='Timeline&Flags'!AB9 -> 2027 | AC8: ='Timeline&Flags'!AC9 -> 2028 | AD8: ='Timeline&Flags'!AD9 -> 2029 | AE8: ='Timeline&Flags'!AE9 -> 2030 | AF8: ='Timeline&Flags'!AF9 -> 2031 | AG8: ='Timeline&Flags'!AG9 -> 2032 | AH8: ='Timeline&Flags'!AH9 -> 2033 | AI8: ='Timeline&Flags'!AI9 -> 2034 | AJ8: ='Timeline&Flags'!AJ9 -> 2035 | AK8: ='Timeline&Flags'!AK9 -> 2036 | AL8: ='Timeline&Flags'!AL9 -> 2037 | AM8: ='Timeline&Flags'!AM9 -> 2038 | AN8: ='Timeline&Flags'!AN9 -> 2039 | AO8: ='Timeline&Flags'!AO9 -> 2040 | AP8: ='Timeline&Flags'!AP9 -> 2041 | AQ8: ='Timeline&Flags'!AQ9 -> 2042 | AU8: ='Timeline&Flags'!AU9 -> 2018 | AV8: ='Timeline&Flags'!AV9 -> 2018 | AW8: ='Timeline&Flags'!AW9 -> 2018 | AX8: ='Timeline&Flags'!AX9 -> 2018 | AY8: ='Timeline&Flags'!AY9 -> 2018 | AZ8: ='Timeline&Flags'!AZ9 -> 2018 | BA8: ='Timeline&Flags'!BA9 -> 2018 | BB8: ='Timeline&Flags'!BB9 -> 2018 | BC8: ='Timeline&Flags'!BC9 -> 2018 | BD8: ='Timeline&Flags'!BD9 -> 2018 | BE8: ='Timeline&Flags'!BE9 -> 2018 | BF8: ='Timeline&Flags'!BF9 -> 2018 | BG8: ='Timeline&Flags'!BG9 -> 2019 | BH8: ='Timeline&Flags'!BH9 -> 2019 | BI8: ='Timeline&Flags'!BI9 -> 2019 | BJ8: ='Timeline&Flags'!BJ9 -> 2019 | BK8: ='Timeline&Flags'!BK9 -> 2019 | BL8: ='Timeline&Flags'!BL9 -> 2019 | BM8: ='Timeline&Flags'!BM9 -> 2019 | BN8: ='Timeline&Flags'!BN9 -> 2019 | BO8: ='Timeline&Flags'!BO9 -> 2019 | BP8: ='Timeline&Flags'!BP9 -> 2019 | BQ8: ='Timeline&Flags'!BQ9 -> 2019 | BR8: ='Timeline&Flags'!BR9 -> 2019 | BS8: ='Timeline&Flags'!BS9 -> 2020 | BT8: ='Timeline&Flags'!BT9 -> 2020 | BU8: ='Timeline&Flags'!BU9 -> 2020 | BV8: ='Timeline&Flags'!BV9 -> 2020 | BW8: ='Timeline&Flags'!BW9 -> 2020 | BX8: ='Timeline&Flags'!BX9 -> 2020 | BY8: ='Timeline&Flags'!BY9 -> 2020 | BZ8: ='Timeline&Flags'!BZ9 -> 2020 | CA8: ='Timeline&Flags'!CA9 -> 2020 | CB8: ='Timeline&Flags'!CB9 -> 2020 | CC8: ='Timeline&Flags'!CC9 -> 2020 | CD8: ='Timeline&Flags'!CD9 -> 2020 | CE8: ='Timeline&Flags'!CE9 -> 2021 | CF8: ='Timeline&Flags'!CF9 -> 2021 | CG8: ='Timeline&Flags'!CG9 -> 2021 | CH8: ='Timeline&Flags'!CH9 -> 2021 | CI8: ='Timeline&Flags'!CI9 -> 2021 | CJ8: ='Timeline&Flags'!CJ9 -> 2021 | CK8: ='Timeline&Flags'!CK9 -> 2021 | CL8: ='Timeline&Flags'!CL9 -> 2021 | CM8: ='Timeline&Flags'!CM9 -> 2021 | CN8: ='Timeline&Flags'!CN9 -> 2021 | CO8: ='Timeline&Flags'!CO9 -> 2021 | CP8: ='Timeline&Flags'!CP9 -> 2021 | CQ8: ='Timeline&Flags'!CQ9 -> 2022 | CR8: ='Timeline&Flags'!CR9 -> 2022 | CS8: ='Timeline&Flags'!CS9 -> 2022 | CT8: ='Timeline&Flags'!CT9 -> 2022 | CU8: ='Timeline&Flags'!CU9 -> 2022 | CV8: ='Timeline&Flags'!CV9 -> 2022 | CW8: ='Timeline&Flags'!CW9 -> 2022 | CX8: ='Timeline&Flags'!CX9 -> 2022 | CY8: ='Timeline&Flags'!CY9 -> 2022 | CZ8: ='Timeline&Flags'!CZ9 -> 2022 | DA8: ='Timeline&Flags'!DA9 -> 2022 | DB8: ='Timeline&Flags'!DB9 -> 2022 | DC8: ='Timeline&Flags'!DC9 -> 2023 | DD8: ='Timeline&Flags'!DD9 -> 2023 | DE8: ='Timeline&Flags'!DE9 -> 2023 | DF8: ='Timeline&Flags'!DF9 -> 2023 | DG8: ='Timeline&Flags'!DG9 -> 2023 | DH8: ='Timeline&Flags'!DH9 -> 2023 | DI8: ='Timeline&Flags'!DI9 -> 2023 | DJ8: ='Timeline&Flags'!DJ9 -> 2023 | DK8: ='Timeline&Flags'!DK9 -> 2023 | DL8: ='Timeline&Flags'!DL9 -> 2023 | DM8: ='Timeline&Flags'!DM9 -> 2023 | DN8: ='Timeline&Flags'!DN9 -> 2023 | DO8: ='Timeline&Flags'!DO9 -> 2024 | DP8: ='Timeline&Flags'!DP9 -> 2024 | DQ8: ='Timeline&Flags'!DQ9 -> 2024 | DR8: ='Timeline&Flags'!DR9 -> 2024 | DS8: ='Timeline&Flags'!DS9 -> 2024 | DT8: ='Timeline&Flags'!DT9 -> 2024 | DU8: ='Timeline&Flags'!DU9 -> 2024 | DV8: ='Timeline&Flags'!DV9 -> 2024 | DW8: ='Timeline&Flags'!DW9 -> 2024 | DX8: ='Timeline&Flags'!DX9 -> 2024 | DY8: ='Timeline&Flags'!DY9 -> 2024 | DZ8: ='Timeline&Flags'!DZ9 -> 2024 | EA8: ='Timeline&Flags'!EA9 -> 2025 | EB8: ='Timeline&Flags'!EB9 -> 2025 | EC8: ='Timeline&Flags'!EC9 -> 2025 | ED8: ='Timeline&Flags'!ED9 -> 2025 | EE8: ='Timeline&Flags'!EE9 -> 2025 | EF8: ='Timeline&Flags'!EF9 -> 2025 | EG8: ='Timeline&Flags'!EG9 -> 2025 | EH8: ='Timeline&Flags'!EH9 -> 2025 | EI8: ='Timeline&Flags'!EI9 -> 2025 | EJ8: ='Timeline&Flags'!EJ9 -> 2025 | EK8: ='Timeline&Flags'!EK9 -> 2025 | EL8: ='Timeline&Flags'!EL9 -> 2025 | EM8: ='Timeline&Flags'!EM9 -> 2026 | EN8: ='Timeline&Flags'!EN9 -> 2026 | EO8: ='Timeline&Flags'!EO9 -> 2026 | EP8: ='Timeline&Flags'!EP9 -> 2026 | EQ8: ='Timeline&Flags'!EQ9 -> 2026 | ER8: ='Timeline&Flags'!ER9 -> 2026 | ES8: ='Timeline&Flags'!ES9 -> 2026 | ET8: ='Timeline&Flags'!ET9 -> 2026 | EU8: ='Timeline&Flags'!EU9 -> 2026 | EV8: ='Timeline&Flags'!EV9 -> 2026 | EW8: ='Timeline&Flags'!EW9 -> 2026 | EX8: ='Timeline&Flags'!EX9 -> 2026 | EY8: ='Timeline&Flags'!EY9 -> 2027 | EZ8: ='Timeline&Flags'!EZ9 -> 2027 | FA8: ='Timeline&Flags'!FA9 -> 2027 | FB8: ='Timeline&Flags'!FB9 -> 2027 | FC8: ='Timeline&Flags'!FC9 -> 2027 | FD8: ='Timeline&Flags'!FD9 -> 2027 | FE8: ='Timeline&Flags'!FE9 -> 2027 | FF8: ='Timeline&Flags'!FF9 -> 2027 | FG8: ='Timeline&Flags'!FG9 -> 2027 | FH8: ='Timeline&Flags'!FH9 -> 2027 | FI8: ='Timeline&Flags'!FI9 -> 2027 | FJ8: ='Timeline&Flags'!FJ9 -> 2027 | FK8: ='Timeline&Flags'!FK9 -> 2028 | FL8: ='Timeline&Flags'!FL9 -> 2028 | FM8: ='Timeline&Flags'!FM9 -> 2028 | FN8: ='Timeline&Flags'!FN9 -> 2028 | FO8: ='Timeline&Flags'!FO9 -> 2028 | FP8: ='Timeline&Flags'!FP9 -> 2028 | FQ8: ='Timeline&Flags'!FQ9 -> 2028 | FR8: ='Timeline&Flags'!FR9 -> 2028 | FS8: ='Timeline&Flags'!FS9 -> 2028 | FT8: ='Timeline&Flags'!FT9 -> 2028 | FU8: ='Timeline&Flags'!FU9 -> 2028 | FV8: ='Timeline&Flags'!FV9 -> 2028 | FW8: ='Timeline&Flags'!FW9 -> 2029 | FX8: ='Timeline&Flags'!FX9 -> 2029 | FY8: ='Timeline&Flags'!FY9 -> 2029 | FZ8: ='Timeline&Flags'!FZ9 -> 2029 | GA8: ='Timeline&Flags'!GA9 -> 2029 | GB8: ='Timeline&Flags'!GB9 -> 2029 | GC8: ='Timeline&Flags'!GC9 -> 2029 | GD8: ='Timeline&Flags'!GD9 -> 2029 | GE8: ='Timeline&Flags'!GE9 -> 2029 | GF8: ='Timeline&Flags'!GF9 -> 2029 | GG8: ='Timeline&Flags'!GG9 -> 2029 | GH8: ='Timeline&Flags'!GH9 -> 2029 | GI8: ='Timeline&Flags'!GI9 -> 2030 | GJ8: ='Timeline&Flags'!GJ9 -> 2030 | GK8: ='Timeline&Flags'!GK9 -> 2030 | GL8: ='Timeline&Flags'!GL9 -> 2030 | GM8: ='Timeline&Flags'!GM9 -> 2030 | GN8: ='Timeline&Flags'!GN9 -> 2030 | GO8: ='Timeline&Flags'!GO9 -> 2030 | GP8: ='Timeline&Flags'!GP9 -> 2030 | GQ8: ='Timeline&Flags'!GQ9 -> 2030 | GR8: ='Timeline&Flags'!GR9 -> 2030 | GS8: ='Timeline&Flags'!GS9 -> 2030 | GT8: ='Timeline&Flags'!GT9 -> 2030 | GU8: ='Timeline&Flags'!GU9 -> 2031 | GV8: ='Timeline&Flags'!GV9 -> 2031 | GW8: ='Timeline&Flags'!GW9 -> 2031 | GX8: ='Timeline&Flags'!GX9 -> 2031 | GY8: ='Timeline&Flags'!GY9 -> 2031 | GZ8: ='Timeline&Flags'!GZ9 -> 2031 | HA8: ='Timeline&Flags'!HA9 -> 2031 | HB8: ='Timeline&Flags'!HB9 -> 2031 | HC8: ='Timeline&Flags'!HC9 -> 2031 | HD8: ='Timeline&Flags'!HD9 -> 2031 | HE8: ='Timeline&Flags'!HE9 -> 2031 | HF8: ='Timeline&Flags'!HF9 -> 2031 | HG8: ='Timeline&Flags'!HG9 -> 2032 | HH8: ='Timeline&Flags'!HH9 -> 2032 | HI8: ='Timeline&Flags'!HI9 -> 2032 | HJ8: ='Timeline&Flags'!HJ9 -> 2032 | HK8: ='Timeline&Flags'!HK9 -> 2032 | HL8: ='Timeline&Flags'!HL9 -> 2032 | HM8: ='Timeline&Flags'!HM9 -> 2032 | HN8: ='Timeline&Flags'!HN9 -> 2032 | HO8: ='Timeline&Flags'!HO9 -> 2032 | HP8: ='Timeline&Flags'!HP9 -> 2032 | HQ8: ='Timeline&Flags'!HQ9 -> 2032 | HR8: ='Timeline&Flags'!HR9 -> 2032 | HS8: ='Timeline&Flags'!HS9 -> 2033 | HT8: ='Timeline&Flags'!HT9 -> 2033 | HU8: ='Timeline&Flags'!HU9 -> 2033 | HV8: ='Timeline&Flags'!HV9 -> 2033 | HW8: ='Timeline&Flags'!HW9 -> 2033 | HX8: ='Timeline&Flags'!HX9 -> 2033 | HY8: ='Timeline&Flags'!HY9 -> 2033 | HZ8: ='Timeline&Flags'!HZ9 -> 2033 | IA8: ='Timeline&Flags'!IA9 -> 2033 | IB8: ='Timeline&Flags'!IB9 -> 2033 | IC8: ='Timeline&Flags'!IC9 -> 2033 | ID8: ='Timeline&Flags'!ID9 -> 2033 | IE8: ='Timeline&Flags'!IE9 -> 2034 | IF8: ='Timeline&Flags'!IF9 -> 2034 | IG8: ='Timeline&Flags'!IG9 -> 2034 | IH8: ='Timeline&Flags'!IH9 -> 2034 | II8: ='Timeline&Flags'!II9 -> 2034 | IJ8: ='Timeline&Flags'!IJ9 -> 2034 | IK8: ='Timeline&Flags'!IK9 -> 2034 | IL8: ='Timeline&Flags'!IL9 -> 2034 | IM8: ='Timeline&Flags'!IM9 -> 2034 | IN8: ='Timeline&Flags'!IN9 -> 2034 | IO8: ='Timeline&Flags'!IO9 -> 2034 | IP8: ='Timeline&Flags'!IP9 -> 2034 | IQ8: ='Timeline&Flags'!IQ9 -> 2035 | IR8: ='Timeline&Flags'!IR9 -> 2035 | IS8: ='Timeline&Flags'!IS9 -> 2035 | IT8: ='Timeline&Flags'!IT9 -> 2035 | IU8: ='Timeline&Flags'!IU9 -> 2035 | IV8: ='Timeline&Flags'!IV9 -> 2035 | IW8: ='Timeline&Flags'!IW9 -> 2035 | IX8: ='Timeline&Flags'!IX9 -> 2035 | IY8: ='Timeline&Flags'!IY9 -> 2035 | IZ8: ='Timeline&Flags'!IZ9 -> 2035 | JA8: ='Timeline&Flags'!JA9 -> 2035 | JB8: ='Timeline&Flags'!JB9 -> 2035 | JC8: ='Timeline&Flags'!JC9 -> 2036 | JD8: ='Timeline&Flags'!JD9 -> 2036 | JE8: ='Timeline&Flags'!JE9 -> 2036 | JF8: ='Timeline&Flags'!JF9 -> 2036 | JG8: ='Timeline&Flags'!JG9 -> 2036 | JH8: ='Timeline&Flags'!JH9 -> 2036 | JI8: ='Timeline&Flags'!JI9 -> 2036 | JJ8: ='Timeline&Flags'!JJ9 -> 2036 | JK8: ='Timeline&Flags'!JK9 -> 2036 | JL8: ='Timeline&Flags'!JL9 -> 2036 | JM8: ='Timeline&Flags'!JM9 -> 2036 | JN8: ='Timeline&Flags'!JN9 -> 2036 | JO8: ='Timeline&Flags'!JO9 -> 2037 | JP8: ='Timeline&Flags'!JP9 -> 2037 | JQ8: ='Timeline&Flags'!JQ9 -> 2037 | JR8: ='Timeline&Flags'!JR9 -> 2037 | JS8: ='Timeline&Flags'!JS9 -> 2037 | JT8: ='Timeline&Flags'!JT9 -> 2037 | JU8: ='Timeline&Flags'!JU9 -> 2037 | JV8: ='Timeline&Flags'!JV9 -> 2037 | JW8: ='Timeline&Flags'!JW9 -> 2037 | JX8: ='Timeline&Flags'!JX9 -> 2037 | JY8: ='Timeline&Flags'!JY9 -> 2037 | JZ8: ='Timeline&Flags'!JZ9 -> 2037 | KA8: ='Timeline&Flags'!KA9 -> 2038 | KB8: ='Timeline&Flags'!KB9 -> 2038 | KC8: ='Timeline&Flags'!KC9 -> 2038 | KD8: ='Timeline&Flags'!KD9 -> 2038 | KE8: ='Timeline&Flags'!KE9 -> 2038 | KF8: ='Timeline&Flags'!KF9 -> 2038 | KG8: ='Timeline&Flags'!KG9 -> 2038 | KH8: ='Timeline&Flags'!KH9 -> 2038 | KI8: ='Timeline&Flags'!KI9 -> 2038 | KJ8: ='Timeline&Flags'!KJ9 -> 2038 | KK8: ='Timeline&Flags'!KK9 -> 2038 | KL8: ='Timeline&Flags'!KL9 -> 2038 | KM8: ='Timeline&Flags'!KM9 -> 2039 | KN8: ='Timeline&Flags'!KN9 -> 2039 | KO8: ='Timeline&Flags'!KO9 -> 2039 | KP8: ='Timeline&Flags'!KP9 -> 2039 | KQ8: ='Timeline&Flags'!KQ9 -> 2039 | KR8: ='Timeline&Flags'!KR9 -> 2039 | KS8: ='Timeline&Flags'!KS9 -> 2039 | KT8: ='Timeline&Flags'!KT9 -> 2039 | KU8: ='Timeline&Flags'!KU9 -> 2039 | KV8: ='Timeline&Flags'!KV9 -> 2039 | KW8: ='Timeline&Flags'!KW9 -> 2039 | KX8: ='Timeline&Flags'!KX9 -> 2039 | KY8: ='Timeline&Flags'!KY9 -> 2040 | KZ8: ='Timeline&Flags'!KZ9 -> 2040 | LA8: ='Timeline&Flags'!LA9 -> 2040 | LB8: ='Timeline&Flags'!LB9 -> 2040 | LC8: ='Timeline&Flags'!LC9 -> 2040 | LD8: ='Timeline&Flags'!LD9 -> 2040 | LE8: ='Timeline&Flags'!LE9 -> 2040 | LF8: ='Timeline&Flags'!LF9 -> 2040 | LG8: ='Timeline&Flags'!LG9 -> 2040 | LH8: ='Timeline&Flags'!LH9 -> 2040 | LI8: ='Timeline&Flags'!LI9 -> 2040 | LJ8: ='Timeline&Flags'!LJ9 -> 2040 | LK8: ='Timeline&Flags'!LK9 -> 2041 | LL8: ='Timeline&Flags'!LL9 -> 2041 | LM8: ='Timeline&Flags'!LM9 -> 2041 | LN8: ='Timeline&Flags'!LN9 -> 2041 | LO8: ='Timeline&Flags'!LO9 -> 2041 | LP8: ='Timeline&Flags'!LP9 -> 2041 | LQ8: ='Timeline&Flags'!LQ9 -> 2041 | LR8: ='Timeline&Flags'!LR9 -> 2041 | LS8: ='Timeline&Flags'!LS9 -> 2041 | LT8: ='Timeline&Flags'!LT9 -> 2041 | LU8: ='Timeline&Flags'!LU9 -> 2041 | LV8: ='Timeline&Flags'!LV9 -> 2041 | LW8: ='Timeline&Flags'!LW9 -> 2042 | LX8: ='Timeline&Flags'!LX9 -> 2042 | LY8: ='Timeline&Flags'!LY9 -> 2042 | LZ8: ='Timeline&Flags'!LZ9 -> 2042 | MA8: ='Timeline&Flags'!MA9 -> 2042 | MB8: ='Timeline&Flags'!MB9 -> 2042 | MC8: ='Timeline&Flags'!MC9 -> 2042 | MD8: ='Timeline&Flags'!MD9 -> 2042 | ME8: ='Timeline&Flags'!ME9 -> 2042 | MF8: ='Timeline&Flags'!MF9 -> 2042 | MG8: ='Timeline&Flags'!MG9 -> 2042 | MH8: ='Timeline&Flags'!MH9 -> 2042
E9: ='Timeline&Flags'!E10 -> Month in calendar year | S9: ='Timeline&Flags'!S10 -> 3 | T9: ='Timeline&Flags'!T10 -> 3 | U9: ='Timeline&Flags'!U10 -> 3 | V9: ='Timeline&Flags'!V10 -> 3 | W9: ='Timeline&Flags'!W10 -> 3 | X9: ='Timeline&Flags'!X10 -> 3 | Y9: ='Timeline&Flags'!Y10 -> 3 | Z9: ='Timeline&Flags'!Z10 -> 3 | AA9: ='Timeline&Flags'!AA10 -> 3 | AB9: ='Timeline&Flags'!AB10 -> 3 | AC9: ='Timeline&Flags'!AC10 -> 3 | AD9: ='Timeline&Flags'!AD10 -> 3 | AE9: ='Timeline&Flags'!AE10 -> 3 | AF9: ='Timeline&Flags'!AF10 -> 3 | AG9: ='Timeline&Flags'!AG10 -> 3 | AH9: ='Timeline&Flags'!AH10 -> 3 | AI9: ='Timeline&Flags'!AI10 -> 3 | AJ9: ='Timeline&Flags'!AJ10 -> 3 | AK9: ='Timeline&Flags'!AK10 -> 3 | AL9: ='Timeline&Flags'!AL10 -> 3 | AM9: ='Timeline&Flags'!AM10 -> 3 | AN9: ='Timeline&Flags'!AN10 -> 3 | AO9: ='Timeline&Flags'!AO10 -> 3 | AP9: ='Timeline&Flags'!AP10 -> 3 | AQ9: ='Timeline&Flags'!AQ10 -> 3 | AU9: ='Timeline&Flags'!AU10 -> 1 | AV9: ='Timeline&Flags'!AV10 -> 2 | AW9: ='Timeline&Flags'!AW10 -> 3 | AX9: ='Timeline&Flags'!AX10 -> 4 | AY9: ='Timeline&Flags'!AY10 -> 5 | AZ9: ='Timeline&Flags'!AZ10 -> 6 | BA9: ='Timeline&Flags'!BA10 -> 7 | BB9: ='Timeline&Flags'!BB10 -> 8 | BC9: ='Timeline&Flags'!BC10 -> 9 | BD9: ='Timeline&Flags'!BD10 -> 10 | BE9: ='Timeline&Flags'!BE10 -> 11 | BF9: ='Timeline&Flags'!BF10 -> 12 | BG9: ='Timeline&Flags'!BG10 -> 1 | BH9: ='Timeline&Flags'!BH10 -> 2 | BI9: ='Timeline&Flags'!BI10 -> 3 | BJ9: ='Timeline&Flags'!BJ10 -> 4 | BK9: ='Timeline&Flags'!BK10 -> 5 | BL9: ='Timeline&Flags'!BL10 -> 6 | BM9: ='Timeline&Flags'!BM10 -> 7 | BN9: ='Timeline&Flags'!BN10 -> 8 | BO9: ='Timeline&Flags'!BO10 -> 9 | BP9: ='Timeline&Flags'!BP10 -> 10 | BQ9: ='Timeline&Flags'!BQ10 -> 11 | BR9: ='Timeline&Flags'!BR10 -> 12 | BS9: ='Timeline&Flags'!BS10 -> 1 | BT9: ='Timeline&Flags'!BT10 -> 2 | BU9: ='Timeline&Flags'!BU10 -> 3 | BV9: ='Timeline&Flags'!BV10 -> 4 | BW9: ='Timeline&Flags'!BW10 -> 5 | BX9: ='Timeline&Flags'!BX10 -> 6 | BY9: ='Timeline&Flags'!BY10 -> 7 | BZ9: ='Timeline&Flags'!BZ10 -> 8 | CA9: ='Timeline&Flags'!CA10 -> 9 | CB9: ='Timeline&Flags'!CB10 -> 10 | CC9: ='Timeline&Flags'!CC10 -> 11 | CD9: ='Timeline&Flags'!CD10 -> 12 | CE9: ='Timeline&Flags'!CE10 -> 1 | CF9: ='Timeline&Flags'!CF10 -> 2 | CG9: ='Timeline&Flags'!CG10 -> 3 | CH9: ='Timeline&Flags'!CH10 -> 4 | CI9: ='Timeline&Flags'!CI10 -> 5 | CJ9: ='Timeline&Flags'!CJ10 -> 6 | CK9: ='Timeline&Flags'!CK10 -> 7 | CL9: ='Timeline&Flags'!CL10 -> 8 | CM9: ='Timeline&Flags'!CM10 -> 9 | CN9: ='Timeline&Flags'!CN10 -> 10 | CO9: ='Timeline&Flags'!CO10 -> 11 | CP9: ='Timeline&Flags'!CP10 -> 12 | CQ9: ='Timeline&Flags'!CQ10 -> 1 | CR9: ='Timeline&Flags'!CR10 -> 2 | CS9: ='Timeline&Flags'!CS10 -> 3 | CT9: ='Timeline&Flags'!CT10 -> 4 | CU9: ='Timeline&Flags'!CU10 -> 5 | CV9: ='Timeline&Flags'!CV10 -> 6 | CW9: ='Timeline&Flags'!CW10 -> 7 | CX9: ='Timeline&Flags'!CX10 -> 8 | CY9: ='Timeline&Flags'!CY10 -> 9 | CZ9: ='Timeline&Flags'!CZ10 -> 10 | DA9: ='Timeline&Flags'!DA10 -> 11 | DB9: ='Timeline&Flags'!DB10 -> 12 | DC9: ='Timeline&Flags'!DC10 -> 1 | DD9: ='Timeline&Flags'!DD10 -> 2 | DE9: ='Timeline&Flags'!DE10 -> 3 | DF9: ='Timeline&Flags'!DF10 -> 4 | DG9: ='Timeline&Flags'!DG10 -> 5 | DH9: ='Timeline&Flags'!DH10 -> 6 | DI9: ='Timeline&Flags'!DI10 -> 7 | DJ9: ='Timeline&Flags'!DJ10 -> 8 | DK9: ='Timeline&Flags'!DK10 -> 9 | DL9: ='Timeline&Flags'!DL10 -> 10 | DM9: ='Timeline&Flags'!DM10 -> 11 | DN9: ='Timeline&Flags'!DN10 -> 12 | DO9: ='Timeline&Flags'!DO10 -> 1 | DP9: ='Timeline&Flags'!DP10 -> 2 | DQ9: ='Timeline&Flags'!DQ10 -> 3 | DR9: ='Timeline&Flags'!DR10 -> 4 | DS9: ='Timeline&Flags'!DS10 -> 5 | DT9: ='Timeline&Flags'!DT10 -> 6 | DU9: ='Timeline&Flags'!DU10 -> 7 | DV9: ='Timeline&Flags'!DV10 -> 8 | DW9: ='Timeline&Flags'!DW10 -> 9 | DX9: ='Timeline&Flags'!DX10 -> 10 | DY9: ='Timeline&Flags'!DY10 -> 11 | DZ9: ='Timeline&Flags'!DZ10 -> 12 | EA9: ='Timeline&Flags'!EA10 -> 1 | EB9: ='Timeline&Flags'!EB10 -> 2 | EC9: ='Timeline&Flags'!EC10 -> 3 | ED9: ='Timeline&Flags'!ED10 -> 4 | EE9: ='Timeline&Flags'!EE10 -> 5 | EF9: ='Timeline&Flags'!EF10 -> 6 | EG9: ='Timeline&Flags'!EG10 -> 7 | EH9: ='Timeline&Flags'!EH10 -> 8 | EI9: ='Timeline&Flags'!EI10 -> 9 | EJ9: ='Timeline&Flags'!EJ10 -> 10 | EK9: ='Timeline&Flags'!EK10 -> 11 | EL9: ='Timeline&Flags'!EL10 -> 12 | EM9: ='Timeline&Flags'!EM10 -> 1 | EN9: ='Timeline&Flags'!EN10 -> 2 | EO9: ='Timeline&Flags'!EO10 -> 3 | EP9: ='Timeline&Flags'!EP10 -> 4 | EQ9: ='Timeline&Flags'!EQ10 -> 5 | ER9: ='Timeline&Flags'!ER10 -> 6 | ES9: ='Timeline&Flags'!ES10 -> 7 | ET9: ='Timeline&Flags'!ET10 -> 8 | EU9: ='Timeline&Flags'!EU10 -> 9 | EV9: ='Timeline&Flags'!EV10 -> 10 | EW9: ='Timeline&Flags'!EW10 -> 11 | EX9: ='Timeline&Flags'!EX10 -> 12 | EY9: ='Timeline&Flags'!EY10 -> 1 | EZ9: ='Timeline&Flags'!EZ10 -> 2 | FA9: ='Timeline&Flags'!FA10 -> 3 | FB9: ='Timeline&Flags'!FB10 -> 4 | FC9: ='Timeline&Flags'!FC10 -> 5 | FD9: ='Timeline&Flags'!FD10 -> 6 | FE9: ='Timeline&Flags'!FE10 -> 7 | FF9: ='Timeline&Flags'!FF10 -> 8 | FG9: ='Timeline&Flags'!FG10 -> 9 | FH9: ='Timeline&Flags'!FH10 -> 10 | FI9: ='Timeline&Flags'!FI10 -> 11 | FJ9: ='Timeline&Flags'!FJ10 -> 12 | FK9: ='Timeline&Flags'!FK10 -> 1 | FL9: ='Timeline&Flags'!FL10 -> 2 | FM9: ='Timeline&Flags'!FM10 -> 3 | FN9: ='Timeline&Flags'!FN10 -> 4 | FO9: ='Timeline&Flags'!FO10 -> 5 | FP9: ='Timeline&Flags'!FP10 -> 6 | FQ9: ='Timeline&Flags'!FQ10 -> 7 | FR9: ='Timeline&Flags'!FR10 -> 8 | FS9: ='Timeline&Flags'!FS10 -> 9 | FT9: ='Timeline&Flags'!FT10 -> 10 | FU9: ='Timeline&Flags'!FU10 -> 11 | FV9: ='Timeline&Flags'!FV10 -> 12 | FW9: ='Timeline&Flags'!FW10 -> 1 | FX9: ='Timeline&Flags'!FX10 -> 2 | FY9: ='Timeline&Flags'!FY10 -> 3 | FZ9: ='Timeline&Flags'!FZ10 -> 4 | GA9: ='Timeline&Flags'!GA10 -> 5 | GB9: ='Timeline&Flags'!GB10 -> 6 | GC9: ='Timeline&Flags'!GC10 -> 7 | GD9: ='Timeline&Flags'!GD10 -> 8 | GE9: ='Timeline&Flags'!GE10 -> 9 | GF9: ='Timeline&Flags'!GF10 -> 10 | GG9: ='Timeline&Flags'!GG10 -> 11 | GH9: ='Timeline&Flags'!GH10 -> 12 | GI9: ='Timeline&Flags'!GI10 -> 1 | GJ9: ='Timeline&Flags'!GJ10 -> 2 | GK9: ='Timeline&Flags'!GK10 -> 3 | GL9: ='Timeline&Flags'!GL10 -> 4 | GM9: ='Timeline&Flags'!GM10 -> 5 | GN9: ='Timeline&Flags'!GN10 -> 6 | GO9: ='Timeline&Flags'!GO10 -> 7 | GP9: ='Timeline&Flags'!GP10 -> 8 | GQ9: ='Timeline&Flags'!GQ10 -> 9 | GR9: ='Timeline&Flags'!GR10 -> 10 | GS9: ='Timeline&Flags'!GS10 -> 11 | GT9: ='Timeline&Flags'!GT10 -> 12 | GU9: ='Timeline&Flags'!GU10 -> 1 | GV9: ='Timeline&Flags'!GV10 -> 2 | GW9: ='Timeline&Flags'!GW10 -> 3 | GX9: ='Timeline&Flags'!GX10 -> 4 | GY9: ='Timeline&Flags'!GY10 -> 5 | GZ9: ='Timeline&Flags'!GZ10 -> 6 | HA9: ='Timeline&Flags'!HA10 -> 7 | HB9: ='Timeline&Flags'!HB10 -> 8 | HC9: ='Timeline&Flags'!HC10 -> 9 | HD9: ='Timeline&Flags'!HD10 -> 10 | HE9: ='Timeline&Flags'!HE10 -> 11 | HF9: ='Timeline&Flags'!HF10 -> 12 | HG9: ='Timeline&Flags'!HG10 -> 1 | HH9: ='Timeline&Flags'!HH10 -> 2 | HI9: ='Timeline&Flags'!HI10 -> 3 | HJ9: ='Timeline&Flags'!HJ10 -> 4 | HK9: ='Timeline&Flags'!HK10 -> 5 | HL9: ='Timeline&Flags'!HL10 -> 6 | HM9: ='Timeline&Flags'!HM10 -> 7 | HN9: ='Timeline&Flags'!HN10 -> 8 | HO9: ='Timeline&Flags'!HO10 -> 9 | HP9: ='Timeline&Flags'!HP10 -> 10 | HQ9: ='Timeline&Flags'!HQ10 -> 11 | HR9: ='Timeline&Flags'!HR10 -> 12 | HS9: ='Timeline&Flags'!HS10 -> 1 | HT9: ='Timeline&Flags'!HT10 -> 2 | HU9: ='Timeline&Flags'!HU10 -> 3 | HV9: ='Timeline&Flags'!HV10 -> 4 | HW9: ='Timeline&Flags'!HW10 -> 5 | HX9: ='Timeline&Flags'!HX10 -> 6 | HY9: ='Timeline&Flags'!HY10 -> 7 | HZ9: ='Timeline&Flags'!HZ10 -> 8 | IA9: ='Timeline&Flags'!IA10 -> 9 | IB9: ='Timeline&Flags'!IB10 -> 10 | IC9: ='Timeline&Flags'!IC10 -> 11 | ID9: ='Timeline&Flags'!ID10 -> 12 | IE9: ='Timeline&Flags'!IE10 -> 1 | IF9: ='Timeline&Flags'!IF10 -> 2 | IG9: ='Timeline&Flags'!IG10 -> 3 | IH9: ='Timeline&Flags'!IH10 -> 4 | II9: ='Timeline&Flags'!II10 -> 5 | IJ9: ='Timeline&Flags'!IJ10 -> 6 | IK9: ='Timeline&Flags'!IK10 -> 7 | IL9: ='Timeline&Flags'!IL10 -> 8 | IM9: ='Timeline&Flags'!IM10 -> 9 | IN9: ='Timeline&Flags'!IN10 -> 10 | IO9: ='Timeline&Flags'!IO10 -> 11 | IP9: ='Timeline&Flags'!IP10 -> 12 | IQ9: ='Timeline&Flags'!IQ10 -> 1 | IR9: ='Timeline&Flags'!IR10 -> 2 | IS9: ='Timeline&Flags'!IS10 -> 3 | IT9: ='Timeline&Flags'!IT10 -> 4 | IU9: ='Timeline&Flags'!IU10 -> 5 | IV9: ='Timeline&Flags'!IV10 -> 6 | IW9: ='Timeline&Flags'!IW10 -> 7 | IX9: ='Timeline&Flags'!IX10 -> 8 | IY9: ='Timeline&Flags'!IY10 -> 9 | IZ9: ='Timeline&Flags'!IZ10 -> 10 | JA9: ='Timeline&Flags'!JA10 -> 11 | JB9: ='Timeline&Flags'!JB10 -> 12 | JC9: ='Timeline&Flags'!JC10 -> 1 | JD9: ='Timeline&Flags'!JD10 -> 2 | JE9: ='Timeline&Flags'!JE10 -> 3 | JF9: ='Timeline&Flags'!JF10 -> 4 | JG9: ='Timeline&Flags'!JG10 -> 5 | JH9: ='Timeline&Flags'!JH10 -> 6 | JI9: ='Timeline&Flags'!JI10 -> 7 | JJ9: ='Timeline&Flags'!JJ10 -> 8 | JK9: ='Timeline&Flags'!JK10 -> 9 | JL9: ='Timeline&Flags'!JL10 -> 10 | JM9: ='Timeline&Flags'!JM10 -> 11 | JN9: ='Timeline&Flags'!JN10 -> 12 | JO9: ='Timeline&Flags'!JO10 -> 1 | JP9: ='Timeline&Flags'!JP10 -> 2 | JQ9: ='Timeline&Flags'!JQ10 -> 3 | JR9: ='Timeline&Flags'!JR10 -> 4 | JS9: ='Timeline&Flags'!JS10 -> 5 | JT9: ='Timeline&Flags'!JT10 -> 6 | JU9: ='Timeline&Flags'!JU10 -> 7 | JV9: ='Timeline&Flags'!JV10 -> 8 | JW9: ='Timeline&Flags'!JW10 -> 9 | JX9: ='Timeline&Flags'!JX10 -> 10 | JY9: ='Timeline&Flags'!JY10 -> 11 | JZ9: ='Timeline&Flags'!JZ10 -> 12 | KA9: ='Timeline&Flags'!KA10 -> 1 | KB9: ='Timeline&Flags'!KB10 -> 2 | KC9: ='Timeline&Flags'!KC10 -> 3 | KD9: ='Timeline&Flags'!KD10 -> 4 | KE9: ='Timeline&Flags'!KE10 -> 5 | KF9: ='Timeline&Flags'!KF10 -> 6 | KG9: ='Timeline&Flags'!KG10 -> 7 | KH9: ='Timeline&Flags'!KH10 -> 8 | KI9: ='Timeline&Flags'!KI10 -> 9 | KJ9: ='Timeline&Flags'!KJ10 -> 10 | KK9: ='Timeline&Flags'!KK10 -> 11 | KL9: ='Timeline&Flags'!KL10 -> 12 | KM9: ='Timeline&Flags'!KM10 -> 1 | KN9: ='Timeline&Flags'!KN10 -> 2 | KO9: ='Timeline&Flags'!KO10 -> 3 | KP9: ='Timeline&Flags'!KP10 -> 4 | KQ9: ='Timeline&Flags'!KQ10 -> 5 | KR9: ='Timeline&Flags'!KR10 -> 6 | KS9: ='Timeline&Flags'!KS10 -> 7 | KT9: ='Timeline&Flags'!KT10 -> 8 | KU9: ='Timeline&Flags'!KU10 -> 9 | KV9: ='Timeline&Flags'!KV10 -> 10 | KW9: ='Timeline&Flags'!KW10 -> 11 | KX9: ='Timeline&Flags'!KX10 -> 12 | KY9: ='Timeline&Flags'!KY10 -> 1 | KZ9: ='Timeline&Flags'!KZ10 -> 2 | LA9: ='Timeline&Flags'!LA10 -> 3 | LB9: ='Timeline&Flags'!LB10 -> 4 | LC9: ='Timeline&Flags'!LC10 -> 5 | LD9: ='Timeline&Flags'!LD10 -> 6 | LE9: ='Timeline&Flags'!LE10 -> 7 | LF9: ='Timeline&Flags'!LF10 -> 8 | LG9: ='Timeline&Flags'!LG10 -> 9 | LH9: ='Timeline&Flags'!LH10 -> 10 | LI9: ='Timeline&Flags'!LI10 -> 11 | LJ9: ='Timeline&Flags'!LJ10 -> 12 | LK9: ='Timeline&Flags'!LK10 -> 1 | LL9: ='Timeline&Flags'!LL10 -> 2 | LM9: ='Timeline&Flags'!LM10 -> 3 | LN9: ='Timeline&Flags'!LN10 -> 4 | LO9: ='Timeline&Flags'!LO10 -> 5 | LP9: ='Timeline&Flags'!LP10 -> 6 | LQ9: ='Timeline&Flags'!LQ10 -> 7 | LR9: ='Timeline&Flags'!LR10 -> 8 | LS9: ='Timeline&Flags'!LS10 -> 9 | LT9: ='Timeline&Flags'!LT10 -> 10 | LU9: ='Timeline&Flags'!LU10 -> 11 | LV9: ='Timeline&Flags'!LV10 -> 12 | LW9: ='Timeline&Flags'!LW10 -> 1 | LX9: ='Timeline&Flags'!LX10 -> 2 | LY9: ='Timeline&Flags'!LY10 -> 3 | LZ9: ='Timeline&Flags'!LZ10 -> 4 | MA9: ='Timeline&Flags'!MA10 -> 5 | MB9: ='Timeline&Flags'!MB10 -> 6 | MC9: ='Timeline&Flags'!MC10 -> 7 | MD9: ='Timeline&Flags'!MD10 -> 8 | ME9: ='Timeline&Flags'!ME10 -> 9 | MF9: ='Timeline&Flags'!MF10 -> 10 | MG9: ='Timeline&Flags'!MG10 -> 11 | MH9: ='Timeline&Flags'!MH10 -> 12
E10: ='Timeline&Flags'!E11 -> Financial year | S10: ='Timeline&Flags'!S11 -> 2018 | T10: ='Timeline&Flags'!T11 -> 2019 | U10: ='Timeline&Flags'!U11 -> 2020 | V10: ='Timeline&Flags'!V11 -> 2021 | W10: ='Timeline&Flags'!W11 -> 2022 | X10: ='Timeline&Flags'!X11 -> 2023 | Y10: ='Timeline&Flags'!Y11 -> 2024 | Z10: ='Timeline&Flags'!Z11 -> 2025 | AA10: ='Timeline&Flags'!AA11 -> 2026 | AB10: ='Timeline&Flags'!AB11 -> 2027 | AC10: ='Timeline&Flags'!AC11 -> 2028 | AD10: ='Timeline&Flags'!AD11 -> 2029 | AE10: ='Timeline&Flags'!AE11 -> 2030 | AF10: ='Timeline&Flags'!AF11 -> 2031 | AG10: ='Timeline&Flags'!AG11 -> 2032 | AH10: ='Timeline&Flags'!AH11 -> 2033 | AI10: ='Timeline&Flags'!AI11 -> 2034 | AJ10: ='Timeline&Flags'!AJ11 -> 2035 | AK10: ='Timeline&Flags'!AK11 -> 2036 | AL10: ='Timeline&Flags'!AL11 -> 2037 | AM10: ='Timeline&Flags'!AM11 -> 2038 | AN10: ='Timeline&Flags'!AN11 -> 2039 | AO10: ='Timeline&Flags'!AO11 -> 2040 | AP10: ='Timeline&Flags'!AP11 -> 2041 | AQ10: ='Timeline&Flags'!AQ11 -> 2042 | AU10: ='Timeline&Flags'!AU11 -> 2018 | AV10: ='Timeline&Flags'!AV11 -> 2018 | AW10: ='Timeline&Flags'!AW11 -> 2018 | AX10: ='Timeline&Flags'!AX11 -> 2019 | AY10: ='Timeline&Flags'!AY11 -> 2019 | AZ10: ='Timeline&Flags'!AZ11 -> 2019 | BA10: ='Timeline&Flags'!BA11 -> 2019 | BB10: ='Timeline&Flags'!BB11 -> 2019 | BC10: ='Timeline&Flags'!BC11 -> 2019 | BD10: ='Timeline&Flags'!BD11 -> 2019 | BE10: ='Timeline&Flags'!BE11 -> 2019 | BF10: ='Timeline&Flags'!BF11 -> 2019 | BG10: ='Timeline&Flags'!BG11 -> 2019 | BH10: ='Timeline&Flags'!BH11 -> 2019 | BI10: ='Timeline&Flags'!BI11 -> 2019 | BJ10: ='Timeline&Flags'!BJ11 -> 2020 | BK10: ='Timeline&Flags'!BK11 -> 2020 | BL10: ='Timeline&Flags'!BL11 -> 2020 | BM10: ='Timeline&Flags'!BM11 -> 2020 | BN10: ='Timeline&Flags'!BN11 -> 2020 | BO10: ='Timeline&Flags'!BO11 -> 2020 | BP10: ='Timeline&Flags'!BP11 -> 2020 | BQ10: ='Timeline&Flags'!BQ11 -> 2020 | BR10: ='Timeline&Flags'!BR11 -> 2020 | BS10: ='Timeline&Flags'!BS11 -> 2020 | BT10: ='Timeline&Flags'!BT11 -> 2020 | BU10: ='Timeline&Flags'!BU11 -> 2020 | BV10: ='Timeline&Flags'!BV11 -> 2021 | BW10: ='Timeline&Flags'!BW11 -> 2021 | BX10: ='Timeline&Flags'!BX11 -> 2021 | BY10: ='Timeline&Flags'!BY11 -> 2021 | BZ10: ='Timeline&Flags'!BZ11 -> 2021 | CA10: ='Timeline&Flags'!CA11 -> 2021 | CB10: ='Timeline&Flags'!CB11 -> 2021 | CC10: ='Timeline&Flags'!CC11 -> 2021 | CD10: ='Timeline&Flags'!CD11 -> 2021 | CE10: ='Timeline&Flags'!CE11 -> 2021 | CF10: ='Timeline&Flags'!CF11 -> 2021 | CG10: ='Timeline&Flags'!CG11 -> 2021 | CH10: ='Timeline&Flags'!CH11 -> 2022 | CI10: ='Timeline&Flags'!CI11 -> 2022 | CJ10: ='Timeline&Flags'!CJ11 -> 2022 | CK10: ='Timeline&Flags'!CK11 -> 2022 | CL10: ='Timeline&Flags'!CL11 -> 2022 | CM10: ='Timeline&Flags'!CM11 -> 2022 | CN10: ='Timeline&Flags'!CN11 -> 2022 | CO10: ='Timeline&Flags'!CO11 -> 2022 | CP10: ='Timeline&Flags'!CP11 -> 2022 | CQ10: ='Timeline&Flags'!CQ11 -> 2022 | CR10: ='Timeline&Flags'!CR11 -> 2022 | CS10: ='Timeline&Flags'!CS11 -> 2022 | CT10: ='Timeline&Flags'!CT11 -> 2023 | CU10: ='Timeline&Flags'!CU11 -> 2023 | CV10: ='Timeline&Flags'!CV11 -> 2023 | CW10: ='Timeline&Flags'!CW11 -> 2023 | CX10: ='Timeline&Flags'!CX11 -> 2023 | CY10: ='Timeline&Flags'!CY11 -> 2023 | CZ10: ='Timeline&Flags'!CZ11 -> 2023 | DA10: ='Timeline&Flags'!DA11 -> 2023 | DB10: ='Timeline&Flags'!DB11 -> 2023 | DC10: ='Timeline&Flags'!DC11 -> 2023 | DD10: ='Timeline&Flags'!DD11 -> 2023 | DE10: ='Timeline&Flags'!DE11 -> 2023 | DF10: ='Timeline&Flags'!DF11 -> 2024 | DG10: ='Timeline&Flags'!DG11 -> 2024 | DH10: ='Timeline&Flags'!DH11 -> 2024 | DI10: ='Timeline&Flags'!DI11 -> 2024 | DJ10: ='Timeline&Flags'!DJ11 -> 2024 | DK10: ='Timeline&Flags'!DK11 -> 2024 | DL10: ='Timeline&Flags'!DL11 -> 2024 | DM10: ='Timeline&Flags'!DM11 -> 2024 | DN10: ='Timeline&Flags'!DN11 -> 2024 | DO10: ='Timeline&Flags'!DO11 -> 2024 | DP10: ='Timeline&Flags'!DP11 -> 2024 | DQ10: ='Timeline&Flags'!DQ11 -> 2024 | DR10: ='Timeline&Flags'!DR11 -> 2025 | DS10: ='Timeline&Flags'!DS11 -> 2025 | DT10: ='Timeline&Flags'!DT11 -> 2025 | DU10: ='Timeline&Flags'!DU11 -> 2025 | DV10: ='Timeline&Flags'!DV11 -> 2025 | DW10: ='Timeline&Flags'!DW11 -> 2025 | DX10: ='Timeline&Flags'!DX11 -> 2025 | DY10: ='Timeline&Flags'!DY11 -> 2025 | DZ10: ='Timeline&Flags'!DZ11 -> 2025 | EA10: ='Timeline&Flags'!EA11 -> 2025 | EB10: ='Timeline&Flags'!EB11 -> 2025 | EC10: ='Timeline&Flags'!EC11 -> 2025 | ED10: ='Timeline&Flags'!ED11 -> 2026 | EE10: ='Timeline&Flags'!EE11 -> 2026 | EF10: ='Timeline&Flags'!EF11 -> 2026 | EG10: ='Timeline&Flags'!EG11 -> 2026 | EH10: ='Timeline&Flags'!EH11 -> 2026 | EI10: ='Timeline&Flags'!EI11 -> 2026 | EJ10: ='Timeline&Flags'!EJ11 -> 2026 | EK10: ='Timeline&Flags'!EK11 -> 2026 | EL10: ='Timeline&Flags'!EL11 -> 2026 | EM10: ='Timeline&Flags'!EM11 -> 2026 | EN10: ='Timeline&Flags'!EN11 -> 2026 | EO10: ='Timeline&Flags'!EO11 -> 2026 | EP10: ='Timeline&Flags'!EP11 -> 2027 | EQ10: ='Timeline&Flags'!EQ11 -> 2027 | ER10: ='Timeline&Flags'!ER11 -> 2027 | ES10: ='Timeline&Flags'!ES11 -> 2027 | ET10: ='Timeline&Flags'!ET11 -> 2027 | EU10: ='Timeline&Flags'!EU11 -> 2027 | EV10: ='Timeline&Flags'!EV11 -> 2027 | EW10: ='Timeline&Flags'!EW11 -> 2027 | EX10: ='Timeline&Flags'!EX11 -> 2027 | EY10: ='Timeline&Flags'!EY11 -> 2027 | EZ10: ='Timeline&Flags'!EZ11 -> 2027 | FA10: ='Timeline&Flags'!FA11 -> 2027 | FB10: ='Timeline&Flags'!FB11 -> 2028 | FC10: ='Timeline&Flags'!FC11 -> 2028 | FD10: ='Timeline&Flags'!FD11 -> 2028 | FE10: ='Timeline&Flags'!FE11 -> 2028 | FF10: ='Timeline&Flags'!FF11 -> 2028 | FG10: ='Timeline&Flags'!FG11 -> 2028 | FH10: ='Timeline&Flags'!FH11 -> 2028 | FI10: ='Timeline&Flags'!FI11 -> 2028 | FJ10: ='Timeline&Flags'!FJ11 -> 2028 | FK10: ='Timeline&Flags'!FK11 -> 2028 | FL10: ='Timeline&Flags'!FL11 -> 2028 | FM10: ='Timeline&Flags'!FM11 -> 2028 | FN10: ='Timeline&Flags'!FN11 -> 2029 | FO10: ='Timeline&Flags'!FO11 -> 2029 | FP10: ='Timeline&Flags'!FP11 -> 2029 | FQ10: ='Timeline&Flags'!FQ11 -> 2029 | FR10: ='Timeline&Flags'!FR11 -> 2029 | FS10: ='Timeline&Flags'!FS11 -> 2029 | FT10: ='Timeline&Flags'!FT11 -> 2029 | FU10: ='Timeline&Flags'!FU11 -> 2029 | FV10: ='Timeline&Flags'!FV11 -> 2029 | FW10: ='Timeline&Flags'!FW11 -> 2029 | FX10: ='Timeline&Flags'!FX11 -> 2029 | FY10: ='Timeline&Flags'!FY11 -> 2029 | FZ10: ='Timeline&Flags'!FZ11 -> 2030 | GA10: ='Timeline&Flags'!GA11 -> 2030 | GB10: ='Timeline&Flags'!GB11 -> 2030 | GC10: ='Timeline&Flags'!GC11 -> 2030 | GD10: ='Timeline&Flags'!GD11 -> 2030 | GE10: ='Timeline&Flags'!GE11 -> 2030 | GF10: ='Timeline&Flags'!GF11 -> 2030 | GG10: ='Timeline&Flags'!GG11 -> 2030 | GH10: ='Timeline&Flags'!GH11 -> 2030 | GI10: ='Timeline&Flags'!GI11 -> 2030 | GJ10: ='Timeline&Flags'!GJ11 -> 2030 | GK10: ='Timeline&Flags'!GK11 -> 2030 | GL10: ='Timeline&Flags'!GL11 -> 2031 | GM10: ='Timeline&Flags'!GM11 -> 2031 | GN10: ='Timeline&Flags'!GN11 -> 2031 | GO10: ='Timeline&Flags'!GO11 -> 2031 | GP10: ='Timeline&Flags'!GP11 -> 2031 | GQ10: ='Timeline&Flags'!GQ11 -> 2031 | GR10: ='Timeline&Flags'!GR11 -> 2031 | GS10: ='Timeline&Flags'!GS11 -> 2031 | GT10: ='Timeline&Flags'!GT11 -> 2031 | GU10: ='Timeline&Flags'!GU11 -> 2031 | GV10: ='Timeline&Flags'!GV11 -> 2031 | GW10: ='Timeline&Flags'!GW11 -> 2031 | GX10: ='Timeline&Flags'!GX11 -> 2032 | GY10: ='Timeline&Flags'!GY11 -> 2032 | GZ10: ='Timeline&Flags'!GZ11 -> 2032 | HA10: ='Timeline&Flags'!HA11 -> 2032 | HB10: ='Timeline&Flags'!HB11 -> 2032 | HC10: ='Timeline&Flags'!HC11 -> 2032 | HD10: ='Timeline&Flags'!HD11 -> 2032 | HE10: ='Timeline&Flags'!HE11 -> 2032 | HF10: ='Timeline&Flags'!HF11 -> 2032 | HG10: ='Timeline&Flags'!HG11 -> 2032 | HH10: ='Timeline&Flags'!HH11 -> 2032 | HI10: ='Timeline&Flags'!HI11 -> 2032 | HJ10: ='Timeline&Flags'!HJ11 -> 2033 | HK10: ='Timeline&Flags'!HK11 -> 2033 | HL10: ='Timeline&Flags'!HL11 -> 2033 | HM10: ='Timeline&Flags'!HM11 -> 2033 | HN10: ='Timeline&Flags'!HN11 -> 2033 | HO10: ='Timeline&Flags'!HO11 -> 2033 | HP10: ='Timeline&Flags'!HP11 -> 2033 | HQ10: ='Timeline&Flags'!HQ11 -> 2033 | HR10: ='Timeline&Flags'!HR11 -> 2033 | HS10: ='Timeline&Flags'!HS11 -> 2033 | HT10: ='Timeline&Flags'!HT11 -> 2033 | HU10: ='Timeline&Flags'!HU11 -> 2033 | HV10: ='Timeline&Flags'!HV11 -> 2034 | HW10: ='Timeline&Flags'!HW11 -> 2034 | HX10: ='Timeline&Flags'!HX11 -> 2034 | HY10: ='Timeline&Flags'!HY11 -> 2034 | HZ10: ='Timeline&Flags'!HZ11 -> 2034 | IA10: ='Timeline&Flags'!IA11 -> 2034 | IB10: ='Timeline&Flags'!IB11 -> 2034 | IC10: ='Timeline&Flags'!IC11 -> 2034 | ID10: ='Timeline&Flags'!ID11 -> 2034 | IE10: ='Timeline&Flags'!IE11 -> 2034 | IF10: ='Timeline&Flags'!IF11 -> 2034 | IG10: ='Timeline&Flags'!IG11 -> 2034 | IH10: ='Timeline&Flags'!IH11 -> 2035 | II10: ='Timeline&Flags'!II11 -> 2035 | IJ10: ='Timeline&Flags'!IJ11 -> 2035 | IK10: ='Timeline&Flags'!IK11 -> 2035 | IL10: ='Timeline&Flags'!IL11 -> 2035 | IM10: ='Timeline&Flags'!IM11 -> 2035 | IN10: ='Timeline&Flags'!IN11 -> 2035 | IO10: ='Timeline&Flags'!IO11 -> 2035 | IP10: ='Timeline&Flags'!IP11 -> 2035 | IQ10: ='Timeline&Flags'!IQ11 -> 2035 | IR10: ='Timeline&Flags'!IR11 -> 2035 | IS10: ='Timeline&Flags'!IS11 -> 2035 | IT10: ='Timeline&Flags'!IT11 -> 2036 | IU10: ='Timeline&Flags'!IU11 -> 2036 | IV10: ='Timeline&Flags'!IV11 -> 2036 | IW10: ='Timeline&Flags'!IW11 -> 2036 | IX10: ='Timeline&Flags'!IX11 -> 2036 | IY10: ='Timeline&Flags'!IY11 -> 2036 | IZ10: ='Timeline&Flags'!IZ11 -> 2036 | JA10: ='Timeline&Flags'!JA11 -> 2036 | JB10: ='Timeline&Flags'!JB11 -> 2036 | JC10: ='Timeline&Flags'!JC11 -> 2036 | JD10: ='Timeline&Flags'!JD11 -> 2036 | JE10: ='Timeline&Flags'!JE11 -> 2036 | JF10: ='Timeline&Flags'!JF11 -> 2037 | JG10: ='Timeline&Flags'!JG11 -> 2037 | JH10: ='Timeline&Flags'!JH11 -> 2037 | JI10: ='Timeline&Flags'!JI11 -> 2037 | JJ10: ='Timeline&Flags'!JJ11 -> 2037 | JK10: ='Timeline&Flags'!JK11 -> 2037 | JL10: ='Timeline&Flags'!JL11 -> 2037 | JM10: ='Timeline&Flags'!JM11 -> 2037 | JN10: ='Timeline&Flags'!JN11 -> 2037 | JO10: ='Timeline&Flags'!JO11 -> 2037 | JP10: ='Timeline&Flags'!JP11 -> 2037 | JQ10: ='Timeline&Flags'!JQ11 -> 2037 | JR10: ='Timeline&Flags'!JR11 -> 2038 | JS10: ='Timeline&Flags'!JS11 -> 2038 | JT10: ='Timeline&Flags'!JT11 -> 2038 | JU10: ='Timeline&Flags'!JU11 -> 2038 | JV10: ='Timeline&Flags'!JV11 -> 2038 | JW10: ='Timeline&Flags'!JW11 -> 2038 | JX10: ='Timeline&Flags'!JX11 -> 2038 | JY10: ='Timeline&Flags'!JY11 -> 2038 | JZ10: ='Timeline&Flags'!JZ11 -> 2038 | KA10: ='Timeline&Flags'!KA11 -> 2038 | KB10: ='Timeline&Flags'!KB11 -> 2038 | KC10: ='Timeline&Flags'!KC11 -> 2038 | KD10: ='Timeline&Flags'!KD11 -> 2039 | KE10: ='Timeline&Flags'!KE11 -> 2039 | KF10: ='Timeline&Flags'!KF11 -> 2039 | KG10: ='Timeline&Flags'!KG11 -> 2039 | KH10: ='Timeline&Flags'!KH11 -> 2039 | KI10: ='Timeline&Flags'!KI11 -> 2039 | KJ10: ='Timeline&Flags'!KJ11 -> 2039 | KK10: ='Timeline&Flags'!KK11 -> 2039 | KL10: ='Timeline&Flags'!KL11 -> 2039 | KM10: ='Timeline&Flags'!KM11 -> 2039 | KN10: ='Timeline&Flags'!KN11 -> 2039 | KO10: ='Timeline&Flags'!KO11 -> 2039 | KP10: ='Timeline&Flags'!KP11 -> 2040 | KQ10: ='Timeline&Flags'!KQ11 -> 2040 | KR10: ='Timeline&Flags'!KR11 -> 2040 | KS10: ='Timeline&Flags'!KS11 -> 2040 | KT10: ='Timeline&Flags'!KT11 -> 2040 | KU10: ='Timeline&Flags'!KU11 -> 2040 | KV10: ='Timeline&Flags'!KV11 -> 2040 | KW10: ='Timeline&Flags'!KW11 -> 2040 | KX10: ='Timeline&Flags'!KX11 -> 2040 | KY10: ='Timeline&Flags'!KY11 -> 2040 | KZ10: ='Timeline&Flags'!KZ11 -> 2040 | LA10: ='Timeline&Flags'!LA11 -> 2040 | LB10: ='Timeline&Flags'!LB11 -> 2041 | LC10: ='Timeline&Flags'!LC11 -> 2041 | LD10: ='Timeline&Flags'!LD11 -> 2041 | LE10: ='Timeline&Flags'!LE11 -> 2041 | LF10: ='Timeline&Flags'!LF11 -> 2041 | LG10: ='Timeline&Flags'!LG11 -> 2041 | LH10: ='Timeline&Flags'!LH11 -> 2041 | LI10: ='Timeline&Flags'!LI11 -> 2041 | LJ10: ='Timeline&Flags'!LJ11 -> 2041 | LK10: ='Timeline&Flags'!LK11 -> 2041 | LL10: ='Timeline&Flags'!LL11 -> 2041 | LM10: ='Timeline&Flags'!LM11 -> 2041 | LN10: ='Timeline&Flags'!LN11 -> 2042 | LO10: ='Timeline&Flags'!LO11 -> 2042 | LP10: ='Timeline&Flags'!LP11 -> 2042 | LQ10: ='Timeline&Flags'!LQ11 -> 2042 | LR10: ='Timeline&Flags'!LR11 -> 2042 | LS10: ='Timeline&Flags'!LS11 -> 2042 | LT10: ='Timeline&Flags'!LT11 -> 2042 | LU10: ='Timeline&Flags'!LU11 -> 2042 | LV10: ='Timeline&Flags'!LV11 -> 2042 | LW10: ='Timeline&Flags'!LW11 -> 2042 | LX10: ='Timeline&Flags'!LX11 -> 2042 | LY10: ='Timeline&Flags'!LY11 -> 2042 | LZ10: ='Timeline&Flags'!LZ11 -> 2043 | MA10: ='Timeline&Flags'!MA11 -> 2043 | MB10: ='Timeline&Flags'!MB11 -> 2043 | MC10: ='Timeline&Flags'!MC11 -> 2043 | MD10: ='Timeline&Flags'!MD11 -> 2043 | ME10: ='Timeline&Flags'!ME11 -> 2043 | MF10: ='Timeline&Flags'!MF11 -> 2043 | MG10: ='Timeline&Flags'!MG11 -> 2043 | MH10: ='Timeline&Flags'!MH11 -> 2043
E11: ='Timeline&Flags'!E12 -> Month in financial year | S11: ='Timeline&Flags'!S12 -> 12 | T11: ='Timeline&Flags'!T12 -> 12 | U11: ='Timeline&Flags'!U12 -> 12 | V11: ='Timeline&Flags'!V12 -> 12 | W11: ='Timeline&Flags'!W12 -> 12 | X11: ='Timeline&Flags'!X12 -> 12 | Y11: ='Timeline&Flags'!Y12 -> 12 | Z11: ='Timeline&Flags'!Z12 -> 12 | AA11: ='Timeline&Flags'!AA12 -> 12 | AB11: ='Timeline&Flags'!AB12 -> 12 | AC11: ='Timeline&Flags'!AC12 -> 12 | AD11: ='Timeline&Flags'!AD12 -> 12 | AE11: ='Timeline&Flags'!AE12 -> 12 | AF11: ='Timeline&Flags'!AF12 -> 12 | AG11: ='Timeline&Flags'!AG12 -> 12 | AH11: ='Timeline&Flags'!AH12 -> 12 | AI11: ='Timeline&Flags'!AI12 -> 12 | AJ11: ='Timeline&Flags'!AJ12 -> 12 | AK11: ='Timeline&Flags'!AK12 -> 12 | AL11: ='Timeline&Flags'!AL12 -> 12 | AM11: ='Timeline&Flags'!AM12 -> 12 | AN11: ='Timeline&Flags'!AN12 -> 12 | AO11: ='Timeline&Flags'!AO12 -> 12 | AP11: ='Timeline&Flags'!AP12 -> 12 | AQ11: ='Timeline&Flags'!AQ12 -> 12 | AU11: ='Timeline&Flags'!AU12 -> 10 | AV11: ='Timeline&Flags'!AV12 -> 11 | AW11: ='Timeline&Flags'!AW12 -> 12 | AX11: ='Timeline&Flags'!AX12 -> 1 | AY11: ='Timeline&Flags'!AY12 -> 2 | AZ11: ='Timeline&Flags'!AZ12 -> 3 | BA11: ='Timeline&Flags'!BA12 -> 4 | BB11: ='Timeline&Flags'!BB12 -> 5 | BC11: ='Timeline&Flags'!BC12 -> 6 | BD11: ='Timeline&Flags'!BD12 -> 7 | BE11: ='Timeline&Flags'!BE12 -> 8 | BF11: ='Timeline&Flags'!BF12 -> 9 | BG11: ='Timeline&Flags'!BG12 -> 10 | BH11: ='Timeline&Flags'!BH12 -> 11 | BI11: ='Timeline&Flags'!BI12 -> 12 | BJ11: ='Timeline&Flags'!BJ12 -> 1 | BK11: ='Timeline&Flags'!BK12 -> 2 | BL11: ='Timeline&Flags'!BL12 -> 3 | BM11: ='Timeline&Flags'!BM12 -> 4 | BN11: ='Timeline&Flags'!BN12 -> 5 | BO11: ='Timeline&Flags'!BO12 -> 6 | BP11: ='Timeline&Flags'!BP12 -> 7 | BQ11: ='Timeline&Flags'!BQ12 -> 8 | BR11: ='Timeline&Flags'!BR12 -> 9 | BS11: ='Timeline&Flags'!BS12 -> 10 | BT11: ='Timeline&Flags'!BT12 -> 11 | BU11: ='Timeline&Flags'!BU12 -> 12 | BV11: ='Timeline&Flags'!BV12 -> 1 | BW11: ='Timeline&Flags'!BW12 -> 2 | BX11: ='Timeline&Flags'!BX12 -> 3 | BY11: ='Timeline&Flags'!BY12 -> 4 | BZ11: ='Timeline&Flags'!BZ12 -> 5 | CA11: ='Timeline&Flags'!CA12 -> 6 | CB11: ='Timeline&Flags'!CB12 -> 7 | CC11: ='Timeline&Flags'!CC12 -> 8 | CD11: ='Timeline&Flags'!CD12 -> 9 | CE11: ='Timeline&Flags'!CE12 -> 10 | CF11: ='Timeline&Flags'!CF12 -> 11 | CG11: ='Timeline&Flags'!CG12 -> 12 | CH11: ='Timeline&Flags'!CH12 -> 1 | CI11: ='Timeline&Flags'!CI12 -> 2 | CJ11: ='Timeline&Flags'!CJ12 -> 3 | CK11: ='Timeline&Flags'!CK12 -> 4 | CL11: ='Timeline&Flags'!CL12 -> 5 | CM11: ='Timeline&Flags'!CM12 -> 6 | CN11: ='Timeline&Flags'!CN12 -> 7 | CO11: ='Timeline&Flags'!CO12 -> 8 | CP11: ='Timeline&Flags'!CP12 -> 9 | CQ11: ='Timeline&Flags'!CQ12 -> 10 | CR11: ='Timeline&Flags'!CR12 -> 11 | CS11: ='Timeline&Flags'!CS12 -> 12 | CT11: ='Timeline&Flags'!CT12 -> 1 | CU11: ='Timeline&Flags'!CU12 -> 2 | CV11: ='Timeline&Flags'!CV12 -> 3 | CW11: ='Timeline&Flags'!CW12 -> 4 | CX11: ='Timeline&Flags'!CX12 -> 5 | CY11: ='Timeline&Flags'!CY12 -> 6 | CZ11: ='Timeline&Flags'!CZ12 -> 7 | DA11: ='Timeline&Flags'!DA12 -> 8 | DB11: ='Timeline&Flags'!DB12 -> 9 | DC11: ='Timeline&Flags'!DC12 -> 10 | DD11: ='Timeline&Flags'!DD12 -> 11 | DE11: ='Timeline&Flags'!DE12 -> 12 | DF11: ='Timeline&Flags'!DF12 -> 1 | DG11: ='Timeline&Flags'!DG12 -> 2 | DH11: ='Timeline&Flags'!DH12 -> 3 | DI11: ='Timeline&Flags'!DI12 -> 4 | DJ11: ='Timeline&Flags'!DJ12 -> 5 | DK11: ='Timeline&Flags'!DK12 -> 6 | DL11: ='Timeline&Flags'!DL12 -> 7 | DM11: ='Timeline&Flags'!DM12 -> 8 | DN11: ='Timeline&Flags'!DN12 -> 9 | DO11: ='Timeline&Flags'!DO12 -> 10 | DP11: ='Timeline&Flags'!DP12 -> 11 | DQ11: ='Timeline&Flags'!DQ12 -> 12 | DR11: ='Timeline&Flags'!DR12 -> 1 | DS11: ='Timeline&Flags'!DS12 -> 2 | DT11: ='Timeline&Flags'!DT12 -> 3 | DU11: ='Timeline&Flags'!DU12 -> 4 | DV11: ='Timeline&Flags'!DV12 -> 5 | DW11: ='Timeline&Flags'!DW12 -> 6 | DX11: ='Timeline&Flags'!DX12 -> 7 | DY11: ='Timeline&Flags'!DY12 -> 8 | DZ11: ='Timeline&Flags'!DZ12 -> 9 | EA11: ='Timeline&Flags'!EA12 -> 10 | EB11: ='Timeline&Flags'!EB12 -> 11 | EC11: ='Timeline&Flags'!EC12 -> 12 | ED11: ='Timeline&Flags'!ED12 -> 1 | EE11: ='Timeline&Flags'!EE12 -> 2 | EF11: ='Timeline&Flags'!EF12 -> 3 | EG11: ='Timeline&Flags'!EG12 -> 4 | EH11: ='Timeline&Flags'!EH12 -> 5 | EI11: ='Timeline&Flags'!EI12 -> 6 | EJ11: ='Timeline&Flags'!EJ12 -> 7 | EK11: ='Timeline&Flags'!EK12 -> 8 | EL11: ='Timeline&Flags'!EL12 -> 9 | EM11: ='Timeline&Flags'!EM12 -> 10 | EN11: ='Timeline&Flags'!EN12 -> 11 | EO11: ='Timeline&Flags'!EO12 -> 12 | EP11: ='Timeline&Flags'!EP12 -> 1 | EQ11: ='Timeline&Flags'!EQ12 -> 2 | ER11: ='Timeline&Flags'!ER12 -> 3 | ES11: ='Timeline&Flags'!ES12 -> 4 | ET11: ='Timeline&Flags'!ET12 -> 5 | EU11: ='Timeline&Flags'!EU12 -> 6 | EV11: ='Timeline&Flags'!EV12 -> 7 | EW11: ='Timeline&Flags'!EW12 -> 8 | EX11: ='Timeline&Flags'!EX12 -> 9 | EY11: ='Timeline&Flags'!EY12 -> 10 | EZ11: ='Timeline&Flags'!EZ12 -> 11 | FA11: ='Timeline&Flags'!FA12 -> 12 | FB11: ='Timeline&Flags'!FB12 -> 1 | FC11: ='Timeline&Flags'!FC12 -> 2 | FD11: ='Timeline&Flags'!FD12 -> 3 | FE11: ='Timeline&Flags'!FE12 -> 4 | FF11: ='Timeline&Flags'!FF12 -> 5 | FG11: ='Timeline&Flags'!FG12 -> 6 | FH11: ='Timeline&Flags'!FH12 -> 7 | FI11: ='Timeline&Flags'!FI12 -> 8 | FJ11: ='Timeline&Flags'!FJ12 -> 9 | FK11: ='Timeline&Flags'!FK12 -> 10 | FL11: ='Timeline&Flags'!FL12 -> 11 | FM11: ='Timeline&Flags'!FM12 -> 12 | FN11: ='Timeline&Flags'!FN12 -> 1 | FO11: ='Timeline&Flags'!FO12 -> 2 | FP11: ='Timeline&Flags'!FP12 -> 3 | FQ11: ='Timeline&Flags'!FQ12 -> 4 | FR11: ='Timeline&Flags'!FR12 -> 5 | FS11: ='Timeline&Flags'!FS12 -> 6 | FT11: ='Timeline&Flags'!FT12 -> 7 | FU11: ='Timeline&Flags'!FU12 -> 8 | FV11: ='Timeline&Flags'!FV12 -> 9 | FW11: ='Timeline&Flags'!FW12 -> 10 | FX11: ='Timeline&Flags'!FX12 -> 11 | FY11: ='Timeline&Flags'!FY12 -> 12 | FZ11: ='Timeline&Flags'!FZ12 -> 1 | GA11: ='Timeline&Flags'!GA12 -> 2 | GB11: ='Timeline&Flags'!GB12 -> 3 | GC11: ='Timeline&Flags'!GC12 -> 4 | GD11: ='Timeline&Flags'!GD12 -> 5 | GE11: ='Timeline&Flags'!GE12 -> 6 | GF11: ='Timeline&Flags'!GF12 -> 7 | GG11: ='Timeline&Flags'!GG12 -> 8 | GH11: ='Timeline&Flags'!GH12 -> 9 | GI11: ='Timeline&Flags'!GI12 -> 10 | GJ11: ='Timeline&Flags'!GJ12 -> 11 | GK11: ='Timeline&Flags'!GK12 -> 12 | GL11: ='Timeline&Flags'!GL12 -> 1 | GM11: ='Timeline&Flags'!GM12 -> 2 | GN11: ='Timeline&Flags'!GN12 -> 3 | GO11: ='Timeline&Flags'!GO12 -> 4 | GP11: ='Timeline&Flags'!GP12 -> 5 | GQ11: ='Timeline&Flags'!GQ12 -> 6 | GR11: ='Timeline&Flags'!GR12 -> 7 | GS11: ='Timeline&Flags'!GS12 -> 8 | GT11: ='Timeline&Flags'!GT12 -> 9 | GU11: ='Timeline&Flags'!GU12 -> 10 | GV11: ='Timeline&Flags'!GV12 -> 11 | GW11: ='Timeline&Flags'!GW12 -> 12 | GX11: ='Timeline&Flags'!GX12 -> 1 | GY11: ='Timeline&Flags'!GY12 -> 2 | GZ11: ='Timeline&Flags'!GZ12 -> 3 | HA11: ='Timeline&Flags'!HA12 -> 4 | HB11: ='Timeline&Flags'!HB12 -> 5 | HC11: ='Timeline&Flags'!HC12 -> 6 | HD11: ='Timeline&Flags'!HD12 -> 7 | HE11: ='Timeline&Flags'!HE12 -> 8 | HF11: ='Timeline&Flags'!HF12 -> 9 | HG11: ='Timeline&Flags'!HG12 -> 10 | HH11: ='Timeline&Flags'!HH12 -> 11 | HI11: ='Timeline&Flags'!HI12 -> 12 | HJ11: ='Timeline&Flags'!HJ12 -> 1 | HK11: ='Timeline&Flags'!HK12 -> 2 | HL11: ='Timeline&Flags'!HL12 -> 3 | HM11: ='Timeline&Flags'!HM12 -> 4 | HN11: ='Timeline&Flags'!HN12 -> 5 | HO11: ='Timeline&Flags'!HO12 -> 6 | HP11: ='Timeline&Flags'!HP12 -> 7 | HQ11: ='Timeline&Flags'!HQ12 -> 8 | HR11: ='Timeline&Flags'!HR12 -> 9 | HS11: ='Timeline&Flags'!HS12 -> 10 | HT11: ='Timeline&Flags'!HT12 -> 11 | HU11: ='Timeline&Flags'!HU12 -> 12 | HV11: ='Timeline&Flags'!HV12 -> 1 | HW11: ='Timeline&Flags'!HW12 -> 2 | HX11: ='Timeline&Flags'!HX12 -> 3 | HY11: ='Timeline&Flags'!HY12 -> 4 | HZ11: ='Timeline&Flags'!HZ12 -> 5 | IA11: ='Timeline&Flags'!IA12 -> 6 | IB11: ='Timeline&Flags'!IB12 -> 7 | IC11: ='Timeline&Flags'!IC12 -> 8 | ID11: ='Timeline&Flags'!ID12 -> 9 | IE11: ='Timeline&Flags'!IE12 -> 10 | IF11: ='Timeline&Flags'!IF12 -> 11 | IG11: ='Timeline&Flags'!IG12 -> 12 | IH11: ='Timeline&Flags'!IH12 -> 1 | II11: ='Timeline&Flags'!II12 -> 2 | IJ11: ='Timeline&Flags'!IJ12 -> 3 | IK11: ='Timeline&Flags'!IK12 -> 4 | IL11: ='Timeline&Flags'!IL12 -> 5 | IM11: ='Timeline&Flags'!IM12 -> 6 | IN11: ='Timeline&Flags'!IN12 -> 7 | IO11: ='Timeline&Flags'!IO12 -> 8 | IP11: ='Timeline&Flags'!IP12 -> 9 | IQ11: ='Timeline&Flags'!IQ12 -> 10 | IR11: ='Timeline&Flags'!IR12 -> 11 | IS11: ='Timeline&Flags'!IS12 -> 12 | IT11: ='Timeline&Flags'!IT12 -> 1 | IU11: ='Timeline&Flags'!IU12 -> 2 | IV11: ='Timeline&Flags'!IV12 -> 3 | IW11: ='Timeline&Flags'!IW12 -> 4 | IX11: ='Timeline&Flags'!IX12 -> 5 | IY11: ='Timeline&Flags'!IY12 -> 6 | IZ11: ='Timeline&Flags'!IZ12 -> 7 | JA11: ='Timeline&Flags'!JA12 -> 8 | JB11: ='Timeline&Flags'!JB12 -> 9 | JC11: ='Timeline&Flags'!JC12 -> 10 | JD11: ='Timeline&Flags'!JD12 -> 11 | JE11: ='Timeline&Flags'!JE12 -> 12 | JF11: ='Timeline&Flags'!JF12 -> 1 | JG11: ='Timeline&Flags'!JG12 -> 2 | JH11: ='Timeline&Flags'!JH12 -> 3 | JI11: ='Timeline&Flags'!JI12 -> 4 | JJ11: ='Timeline&Flags'!JJ12 -> 5 | JK11: ='Timeline&Flags'!JK12 -> 6 | JL11: ='Timeline&Flags'!JL12 -> 7 | JM11: ='Timeline&Flags'!JM12 -> 8 | JN11: ='Timeline&Flags'!JN12 -> 9 | JO11: ='Timeline&Flags'!JO12 -> 10 | JP11: ='Timeline&Flags'!JP12 -> 11 | JQ11: ='Timeline&Flags'!JQ12 -> 12 | JR11: ='Timeline&Flags'!JR12 -> 1 | JS11: ='Timeline&Flags'!JS12 -> 2 | JT11: ='Timeline&Flags'!JT12 -> 3 | JU11: ='Timeline&Flags'!JU12 -> 4 | JV11: ='Timeline&Flags'!JV12 -> 5 | JW11: ='Timeline&Flags'!JW12 -> 6 | JX11: ='Timeline&Flags'!JX12 -> 7 | JY11: ='Timeline&Flags'!JY12 -> 8 | JZ11: ='Timeline&Flags'!JZ12 -> 9 | KA11: ='Timeline&Flags'!KA12 -> 10 | KB11: ='Timeline&Flags'!KB12 -> 11 | KC11: ='Timeline&Flags'!KC12 -> 12 | KD11: ='Timeline&Flags'!KD12 -> 1 | KE11: ='Timeline&Flags'!KE12 -> 2 | KF11: ='Timeline&Flags'!KF12 -> 3 | KG11: ='Timeline&Flags'!KG12 -> 4 | KH11: ='Timeline&Flags'!KH12 -> 5 | KI11: ='Timeline&Flags'!KI12 -> 6 | KJ11: ='Timeline&Flags'!KJ12 -> 7 | KK11: ='Timeline&Flags'!KK12 -> 8 | KL11: ='Timeline&Flags'!KL12 -> 9 | KM11: ='Timeline&Flags'!KM12 -> 10 | KN11: ='Timeline&Flags'!KN12 -> 11 | KO11: ='Timeline&Flags'!KO12 -> 12 | KP11: ='Timeline&Flags'!KP12 -> 1 | KQ11: ='Timeline&Flags'!KQ12 -> 2 | KR11: ='Timeline&Flags'!KR12 -> 3 | KS11: ='Timeline&Flags'!KS12 -> 4 | KT11: ='Timeline&Flags'!KT12 -> 5 | KU11: ='Timeline&Flags'!KU12 -> 6 | KV11: ='Timeline&Flags'!KV12 -> 7 | KW11: ='Timeline&Flags'!KW12 -> 8 | KX11: ='Timeline&Flags'!KX12 -> 9 | KY11: ='Timeline&Flags'!KY12 -> 10 | KZ11: ='Timeline&Flags'!KZ12 -> 11 | LA11: ='Timeline&Flags'!LA12 -> 12 | LB11: ='Timeline&Flags'!LB12 -> 1 | LC11: ='Timeline&Flags'!LC12 -> 2 | LD11: ='Timeline&Flags'!LD12 -> 3 | LE11: ='Timeline&Flags'!LE12 -> 4 | LF11: ='Timeline&Flags'!LF12 -> 5 | LG11: ='Timeline&Flags'!LG12 -> 6 | LH11: ='Timeline&Flags'!LH12 -> 7 | LI11: ='Timeline&Flags'!LI12 -> 8 | LJ11: ='Timeline&Flags'!LJ12 -> 9 | LK11: ='Timeline&Flags'!LK12 -> 10 | LL11: ='Timeline&Flags'!LL12 -> 11 | LM11: ='Timeline&Flags'!LM12 -> 12 | LN11: ='Timeline&Flags'!LN12 -> 1 | LO11: ='Timeline&Flags'!LO12 -> 2 | LP11: ='Timeline&Flags'!LP12 -> 3 | LQ11: ='Timeline&Flags'!LQ12 -> 4 | LR11: ='Timeline&Flags'!LR12 -> 5 | LS11: ='Timeline&Flags'!LS12 -> 6 | LT11: ='Timeline&Flags'!LT12 -> 7 | LU11: ='Timeline&Flags'!LU12 -> 8 | LV11: ='Timeline&Flags'!LV12 -> 9 | LW11: ='Timeline&Flags'!LW12 -> 10 | LX11: ='Timeline&Flags'!LX12 -> 11 | LY11: ='Timeline&Flags'!LY12 -> 12 | LZ11: ='Timeline&Flags'!LZ12 -> 1 | MA11: ='Timeline&Flags'!MA12 -> 2 | MB11: ='Timeline&Flags'!MB12 -> 3 | MC11: ='Timeline&Flags'!MC12 -> 4 | MD11: ='Timeline&Flags'!MD12 -> 5 | ME11: ='Timeline&Flags'!ME12 -> 6 | MF11: ='Timeline&Flags'!MF12 -> 7 | MG11: ='Timeline&Flags'!MG12 -> 8 | MH11: ='Timeline&Flags'!MH12 -> 9
E12: ='Timeline&Flags'!E13 -> Days in period | S12: ='Timeline&Flags'!S13 -> 90 | T12: ='Timeline&Flags'!T13 -> 365 | U12: ='Timeline&Flags'!U13 -> 366 | V12: ='Timeline&Flags'!V13 -> 365 | W12: ='Timeline&Flags'!W13 -> 365 | X12: ='Timeline&Flags'!X13 -> 365 | Y12: ='Timeline&Flags'!Y13 -> 366 | Z12: ='Timeline&Flags'!Z13 -> 365 | AA12: ='Timeline&Flags'!AA13 -> 365 | AB12: ='Timeline&Flags'!AB13 -> 365 | AC12: ='Timeline&Flags'!AC13 -> 366 | AD12: ='Timeline&Flags'!AD13 -> 365 | AE12: ='Timeline&Flags'!AE13 -> 365 | AF12: ='Timeline&Flags'!AF13 -> 365 | AG12: ='Timeline&Flags'!AG13 -> 366 | AH12: ='Timeline&Flags'!AH13 -> 365 | AI12: ='Timeline&Flags'!AI13 -> 365 | AJ12: ='Timeline&Flags'!AJ13 -> 365 | AK12: ='Timeline&Flags'!AK13 -> 366 | AL12: ='Timeline&Flags'!AL13 -> 365 | AM12: ='Timeline&Flags'!AM13 -> 365 | AN12: ='Timeline&Flags'!AN13 -> 365 | AO12: ='Timeline&Flags'!AO13 -> 366 | AP12: ='Timeline&Flags'!AP13 -> 365 | AQ12: ='Timeline&Flags'!AQ13 -> 640 | AU12: ='Timeline&Flags'!AU13 -> 31 | AV12: ='Timeline&Flags'!AV13 -> 28 | AW12: ='Timeline&Flags'!AW13 -> 31 | AX12: ='Timeline&Flags'!AX13 -> 30 | AY12: ='Timeline&Flags'!AY13 -> 31 | AZ12: ='Timeline&Flags'!AZ13 -> 30 | BA12: ='Timeline&Flags'!BA13 -> 31 | BB12: ='Timeline&Flags'!BB13 -> 31 | BC12: ='Timeline&Flags'!BC13 -> 30 | BD12: ='Timeline&Flags'!BD13 -> 31 | BE12: ='Timeline&Flags'!BE13 -> 30 | BF12: ='Timeline&Flags'!BF13 -> 31 | BG12: ='Timeline&Flags'!BG13 -> 31 | BH12: ='Timeline&Flags'!BH13 -> 28 | BI12: ='Timeline&Flags'!BI13 -> 31 | BJ12: ='Timeline&Flags'!BJ13 -> 30 | BK12: ='Timeline&Flags'!BK13 -> 31 | BL12: ='Timeline&Flags'!BL13 -> 30 | BM12: ='Timeline&Flags'!BM13 -> 31 | BN12: ='Timeline&Flags'!BN13 -> 31 | BO12: ='Timeline&Flags'!BO13 -> 30 | BP12: ='Timeline&Flags'!BP13 -> 31 | BQ12: ='Timeline&Flags'!BQ13 -> 30 | BR12: ='Timeline&Flags'!BR13 -> 31 | BS12: ='Timeline&Flags'!BS13 -> 31 | BT12: ='Timeline&Flags'!BT13 -> 29 | BU12: ='Timeline&Flags'!BU13 -> 31 | BV12: ='Timeline&Flags'!BV13 -> 30 | BW12: ='Timeline&Flags'!BW13 -> 31 | BX12: ='Timeline&Flags'!BX13 -> 30 | BY12: ='Timeline&Flags'!BY13 -> 31 | BZ12: ='Timeline&Flags'!BZ13 -> 31 | CA12: ='Timeline&Flags'!CA13 -> 30 | CB12: ='Timeline&Flags'!CB13 -> 31 | CC12: ='Timeline&Flags'!CC13 -> 30 | CD12: ='Timeline&Flags'!CD13 -> 31 | CE12: ='Timeline&Flags'!CE13 -> 31 | CF12: ='Timeline&Flags'!CF13 -> 28 | CG12: ='Timeline&Flags'!CG13 -> 31 | CH12: ='Timeline&Flags'!CH13 -> 30 | CI12: ='Timeline&Flags'!CI13 -> 31 | CJ12: ='Timeline&Flags'!CJ13 -> 30 | CK12: ='Timeline&Flags'!CK13 -> 31 | CL12: ='Timeline&Flags'!CL13 -> 31 | CM12: ='Timeline&Flags'!CM13 -> 30 | CN12: ='Timeline&Flags'!CN13 -> 31 | CO12: ='Timeline&Flags'!CO13 -> 30 | CP12: ='Timeline&Flags'!CP13 -> 31 | CQ12: ='Timeline&Flags'!CQ13 -> 31 | CR12: ='Timeline&Flags'!CR13 -> 28 | CS12: ='Timeline&Flags'!CS13 -> 31 | CT12: ='Timeline&Flags'!CT13 -> 30 | CU12: ='Timeline&Flags'!CU13 -> 31 | CV12: ='Timeline&Flags'!CV13 -> 30 | CW12: ='Timeline&Flags'!CW13 -> 31 | CX12: ='Timeline&Flags'!CX13 -> 31 | CY12: ='Timeline&Flags'!CY13 -> 30 | CZ12: ='Timeline&Flags'!CZ13 -> 31 | DA12: ='Timeline&Flags'!DA13 -> 30 | DB12: ='Timeline&Flags'!DB13 -> 31 | DC12: ='Timeline&Flags'!DC13 -> 31 | DD12: ='Timeline&Flags'!DD13 -> 28 | DE12: ='Timeline&Flags'!DE13 -> 31 | DF12: ='Timeline&Flags'!DF13 -> 30 | DG12: ='Timeline&Flags'!DG13 -> 31 | DH12: ='Timeline&Flags'!DH13 -> 30 | DI12: ='Timeline&Flags'!DI13 -> 31 | DJ12: ='Timeline&Flags'!DJ13 -> 31 | DK12: ='Timeline&Flags'!DK13 -> 30 | DL12: ='Timeline&Flags'!DL13 -> 31 | DM12: ='Timeline&Flags'!DM13 -> 30 | DN12: ='Timeline&Flags'!DN13 -> 31 | DO12: ='Timeline&Flags'!DO13 -> 31 | DP12: ='Timeline&Flags'!DP13 -> 29 | DQ12: ='Timeline&Flags'!DQ13 -> 31 | DR12: ='Timeline&Flags'!DR13 -> 30 | DS12: ='Timeline&Flags'!DS13 -> 31 | DT12: ='Timeline&Flags'!DT13 -> 30 | DU12: ='Timeline&Flags'!DU13 -> 31 | DV12: ='Timeline&Flags'!DV13 -> 31 | DW12: ='Timeline&Flags'!DW13 -> 30 | DX12: ='Timeline&Flags'!DX13 -> 31 | DY12: ='Timeline&Flags'!DY13 -> 30 | DZ12: ='Timeline&Flags'!DZ13 -> 31 | EA12: ='Timeline&Flags'!EA13 -> 31 | EB12: ='Timeline&Flags'!EB13 -> 28 | EC12: ='Timeline&Flags'!EC13 -> 31 | ED12: ='Timeline&Flags'!ED13 -> 30 | EE12: ='Timeline&Flags'!EE13 -> 31 | EF12: ='Timeline&Flags'!EF13 -> 30 | EG12: ='Timeline&Flags'!EG13 -> 31 | EH12: ='Timeline&Flags'!EH13 -> 31 | EI12: ='Timeline&Flags'!EI13 -> 30 | EJ12: ='Timeline&Flags'!EJ13 -> 31 | EK12: ='Timeline&Flags'!EK13 -> 30 | EL12: ='Timeline&Flags'!EL13 -> 31 | EM12: ='Timeline&Flags'!EM13 -> 31 | EN12: ='Timeline&Flags'!EN13 -> 28 | EO12: ='Timeline&Flags'!EO13 -> 31 | EP12: ='Timeline&Flags'!EP13 -> 30 | EQ12: ='Timeline&Flags'!EQ13 -> 31 | ER12: ='Timeline&Flags'!ER13 -> 30 | ES12: ='Timeline&Flags'!ES13 -> 31 | ET12: ='Timeline&Flags'!ET13 -> 31 | EU12: ='Timeline&Flags'!EU13 -> 30 | EV12: ='Timeline&Flags'!EV13 -> 31 | EW12: ='Timeline&Flags'!EW13 -> 30 | EX12: ='Timeline&Flags'!EX13 -> 31 | EY12: ='Timeline&Flags'!EY13 -> 31 | EZ12: ='Timeline&Flags'!EZ13 -> 28 | FA12: ='Timeline&Flags'!FA13 -> 31 | FB12: ='Timeline&Flags'!FB13 -> 30 | FC12: ='Timeline&Flags'!FC13 -> 31 | FD12: ='Timeline&Flags'!FD13 -> 30 | FE12: ='Timeline&Flags'!FE13 -> 31 | FF12: ='Timeline&Flags'!FF13 -> 31 | FG12: ='Timeline&Flags'!FG13 -> 30 | FH12: ='Timeline&Flags'!FH13 -> 31 | FI12: ='Timeline&Flags'!FI13 -> 30 | FJ12: ='Timeline&Flags'!FJ13 -> 31 | FK12: ='Timeline&Flags'!FK13 -> 31 | FL12: ='Timeline&Flags'!FL13 -> 29 | FM12: ='Timeline&Flags'!FM13 -> 31 | FN12: ='Timeline&Flags'!FN13 -> 30 | FO12: ='Timeline&Flags'!FO13 -> 31 | FP12: ='Timeline&Flags'!FP13 -> 30 | FQ12: ='Timeline&Flags'!FQ13 -> 31 | FR12: ='Timeline&Flags'!FR13 -> 31 | FS12: ='Timeline&Flags'!FS13 -> 30 | FT12: ='Timeline&Flags'!FT13 -> 31 | FU12: ='Timeline&Flags'!FU13 -> 30 | FV12: ='Timeline&Flags'!FV13 -> 31 | FW12: ='Timeline&Flags'!FW13 -> 31 | FX12: ='Timeline&Flags'!FX13 -> 28 | FY12: ='Timeline&Flags'!FY13 -> 31 | FZ12: ='Timeline&Flags'!FZ13 -> 30 | GA12: ='Timeline&Flags'!GA13 -> 31 | GB12: ='Timeline&Flags'!GB13 -> 30 | GC12: ='Timeline&Flags'!GC13 -> 31 | GD12: ='Timeline&Flags'!GD13 -> 31 | GE12: ='Timeline&Flags'!GE13 -> 30 | GF12: ='Timeline&Flags'!GF13 -> 31 | GG12: ='Timeline&Flags'!GG13 -> 30 | GH12: ='Timeline&Flags'!GH13 -> 31 | GI12: ='Timeline&Flags'!GI13 -> 31 | GJ12: ='Timeline&Flags'!GJ13 -> 28 | GK12: ='Timeline&Flags'!GK13 -> 31 | GL12: ='Timeline&Flags'!GL13 -> 30 | GM12: ='Timeline&Flags'!GM13 -> 31 | GN12: ='Timeline&Flags'!GN13 -> 30 | GO12: ='Timeline&Flags'!GO13 -> 31 | GP12: ='Timeline&Flags'!GP13 -> 31 | GQ12: ='Timeline&Flags'!GQ13 -> 30 | GR12: ='Timeline&Flags'!GR13 -> 31 | GS12: ='Timeline&Flags'!GS13 -> 30 | GT12: ='Timeline&Flags'!GT13 -> 31 | GU12: ='Timeline&Flags'!GU13 -> 31 | GV12: ='Timeline&Flags'!GV13 -> 28 | GW12: ='Timeline&Flags'!GW13 -> 31 | GX12: ='Timeline&Flags'!GX13 -> 30 | GY12: ='Timeline&Flags'!GY13 -> 31 | GZ12: ='Timeline&Flags'!GZ13 -> 30 | HA12: ='Timeline&Flags'!HA13 -> 31 | HB12: ='Timeline&Flags'!HB13 -> 31 | HC12: ='Timeline&Flags'!HC13 -> 30 | HD12: ='Timeline&Flags'!HD13 -> 31 | HE12: ='Timeline&Flags'!HE13 -> 30 | HF12: ='Timeline&Flags'!HF13 -> 31 | HG12: ='Timeline&Flags'!HG13 -> 31 | HH12: ='Timeline&Flags'!HH13 -> 29 | HI12: ='Timeline&Flags'!HI13 -> 31 | HJ12: ='Timeline&Flags'!HJ13 -> 30 | HK12: ='Timeline&Flags'!HK13 -> 31 | HL12: ='Timeline&Flags'!HL13 -> 30 | HM12: ='Timeline&Flags'!HM13 -> 31 | HN12: ='Timeline&Flags'!HN13 -> 31 | HO12: ='Timeline&Flags'!HO13 -> 30 | HP12: ='Timeline&Flags'!HP13 -> 31 | HQ12: ='Timeline&Flags'!HQ13 -> 30 | HR12: ='Timeline&Flags'!HR13 -> 31 | HS12: ='Timeline&Flags'!HS13 -> 31 | HT12: ='Timeline&Flags'!HT13 -> 28 | HU12: ='Timeline&Flags'!HU13 -> 31 | HV12: ='Timeline&Flags'!HV13 -> 30 | HW12: ='Timeline&Flags'!HW13 -> 31 | HX12: ='Timeline&Flags'!HX13 -> 30 | HY12: ='Timeline&Flags'!HY13 -> 31 | HZ12: ='Timeline&Flags'!HZ13 -> 31 | IA12: ='Timeline&Flags'!IA13 -> 30 | IB12: ='Timeline&Flags'!IB13 -> 31 | IC12: ='Timeline&Flags'!IC13 -> 30 | ID12: ='Timeline&Flags'!ID13 -> 31 | IE12: ='Timeline&Flags'!IE13 -> 31 | IF12: ='Timeline&Flags'!IF13 -> 28 | IG12: ='Timeline&Flags'!IG13 -> 31 | IH12: ='Timeline&Flags'!IH13 -> 30 | II12: ='Timeline&Flags'!II13 -> 31 | IJ12: ='Timeline&Flags'!IJ13 -> 30 | IK12: ='Timeline&Flags'!IK13 -> 31 | IL12: ='Timeline&Flags'!IL13 -> 31 | IM12: ='Timeline&Flags'!IM13 -> 30 | IN12: ='Timeline&Flags'!IN13 -> 31 | IO12: ='Timeline&Flags'!IO13 -> 30 | IP12: ='Timeline&Flags'!IP13 -> 31 | IQ12: ='Timeline&Flags'!IQ13 -> 31 | IR12: ='Timeline&Flags'!IR13 -> 28 | IS12: ='Timeline&Flags'!IS13 -> 31 | IT12: ='Timeline&Flags'!IT13 -> 30 | IU12: ='Timeline&Flags'!IU13 -> 31 | IV12: ='Timeline&Flags'!IV13 -> 30 | IW12: ='Timeline&Flags'!IW13 -> 31 | IX12: ='Timeline&Flags'!IX13 -> 31 | IY12: ='Timeline&Flags'!IY13 -> 30 | IZ12: ='Timeline&Flags'!IZ13 -> 31 | JA12: ='Timeline&Flags'!JA13 -> 30 | JB12: ='Timeline&Flags'!JB13 -> 31 | JC12: ='Timeline&Flags'!JC13 -> 31 | JD12: ='Timeline&Flags'!JD13 -> 29 | JE12: ='Timeline&Flags'!JE13 -> 31 | JF12: ='Timeline&Flags'!JF13 -> 30 | JG12: ='Timeline&Flags'!JG13 -> 31 | JH12: ='Timeline&Flags'!JH13 -> 30 | JI12: ='Timeline&Flags'!JI13 -> 31 | JJ12: ='Timeline&Flags'!JJ13 -> 31 | JK12: ='Timeline&Flags'!JK13 -> 30 | JL12: ='Timeline&Flags'!JL13 -> 31 | JM12: ='Timeline&Flags'!JM13 -> 30 | JN12: ='Timeline&Flags'!JN13 -> 31 | JO12: ='Timeline&Flags'!JO13 -> 31 | JP12: ='Timeline&Flags'!JP13 -> 28 | JQ12: ='Timeline&Flags'!JQ13 -> 31 | JR12: ='Timeline&Flags'!JR13 -> 30 | JS12: ='Timeline&Flags'!JS13 -> 31 | JT12: ='Timeline&Flags'!JT13 -> 30 | JU12: ='Timeline&Flags'!JU13 -> 31 | JV12: ='Timeline&Flags'!JV13 -> 31 | JW12: ='Timeline&Flags'!JW13 -> 30 | JX12: ='Timeline&Flags'!JX13 -> 31 | JY12: ='Timeline&Flags'!JY13 -> 30 | JZ12: ='Timeline&Flags'!JZ13 -> 31 | KA12: ='Timeline&Flags'!KA13 -> 31 | KB12: ='Timeline&Flags'!KB13 -> 28 | KC12: ='Timeline&Flags'!KC13 -> 31 | KD12: ='Timeline&Flags'!KD13 -> 30 | KE12: ='Timeline&Flags'!KE13 -> 31 | KF12: ='Timeline&Flags'!KF13 -> 30 | KG12: ='Timeline&Flags'!KG13 -> 31 | KH12: ='Timeline&Flags'!KH13 -> 31 | KI12: ='Timeline&Flags'!KI13 -> 30 | KJ12: ='Timeline&Flags'!KJ13 -> 31 | KK12: ='Timeline&Flags'!KK13 -> 30 | KL12: ='Timeline&Flags'!KL13 -> 31 | KM12: ='Timeline&Flags'!KM13 -> 31 | KN12: ='Timeline&Flags'!KN13 -> 28 | KO12: ='Timeline&Flags'!KO13 -> 31 | KP12: ='Timeline&Flags'!KP13 -> 30 | KQ12: ='Timeline&Flags'!KQ13 -> 31 | KR12: ='Timeline&Flags'!KR13 -> 30 | KS12: ='Timeline&Flags'!KS13 -> 31 | KT12: ='Timeline&Flags'!KT13 -> 31 | KU12: ='Timeline&Flags'!KU13 -> 30 | KV12: ='Timeline&Flags'!KV13 -> 31 | KW12: ='Timeline&Flags'!KW13 -> 30 | KX12: ='Timeline&Flags'!KX13 -> 31 | KY12: ='Timeline&Flags'!KY13 -> 31 | KZ12: ='Timeline&Flags'!KZ13 -> 29 | LA12: ='Timeline&Flags'!LA13 -> 31 | LB12: ='Timeline&Flags'!LB13 -> 30 | LC12: ='Timeline&Flags'!LC13 -> 31 | LD12: ='Timeline&Flags'!LD13 -> 30 | LE12: ='Timeline&Flags'!LE13 -> 31 | LF12: ='Timeline&Flags'!LF13 -> 31 | LG12: ='Timeline&Flags'!LG13 -> 30 | LH12: ='Timeline&Flags'!LH13 -> 31 | LI12: ='Timeline&Flags'!LI13 -> 30 | LJ12: ='Timeline&Flags'!LJ13 -> 31 | LK12: ='Timeline&Flags'!LK13 -> 31 | LL12: ='Timeline&Flags'!LL13 -> 28 | LM12: ='Timeline&Flags'!LM13 -> 31 | LN12: ='Timeline&Flags'!LN13 -> 30 | LO12: ='Timeline&Flags'!LO13 -> 31 | LP12: ='Timeline&Flags'!LP13 -> 30 | LQ12: ='Timeline&Flags'!LQ13 -> 31 | LR12: ='Timeline&Flags'!LR13 -> 31 | LS12: ='Timeline&Flags'!LS13 -> 30 | LT12: ='Timeline&Flags'!LT13 -> 31 | LU12: ='Timeline&Flags'!LU13 -> 30 | LV12: ='Timeline&Flags'!LV13 -> 31 | LW12: ='Timeline&Flags'!LW13 -> 31 | LX12: ='Timeline&Flags'!LX13 -> 28 | LY12: ='Timeline&Flags'!LY13 -> 31 | LZ12: ='Timeline&Flags'!LZ13 -> 30 | MA12: ='Timeline&Flags'!MA13 -> 31 | MB12: ='Timeline&Flags'!MB13 -> 30 | MC12: ='Timeline&Flags'!MC13 -> 31 | MD12: ='Timeline&Flags'!MD13 -> 31 | ME12: ='Timeline&Flags'!ME13 -> 30 | MF12: ='Timeline&Flags'!MF13 -> 31 | MG12: ='Timeline&Flags'!MG13 -> 30 | MH12: ='Timeline&Flags'!MH13 -> 31
E13: ='Timeline&Flags'!E14 -> Days in calendar year | S13: ='Timeline&Flags'!S14 -> 365 | T13: ='Timeline&Flags'!T14 -> 365 | U13: ='Timeline&Flags'!U14 -> 366 | V13: ='Timeline&Flags'!V14 -> 365 | W13: ='Timeline&Flags'!W14 -> 365 | X13: ='Timeline&Flags'!X14 -> 365 | Y13: ='Timeline&Flags'!Y14 -> 366 | Z13: ='Timeline&Flags'!Z14 -> 365 | AA13: ='Timeline&Flags'!AA14 -> 365 | AB13: ='Timeline&Flags'!AB14 -> 365 | AC13: ='Timeline&Flags'!AC14 -> 366 | AD13: ='Timeline&Flags'!AD14 -> 365 | AE13: ='Timeline&Flags'!AE14 -> 365 | AF13: ='Timeline&Flags'!AF14 -> 365 | AG13: ='Timeline&Flags'!AG14 -> 366 | AH13: ='Timeline&Flags'!AH14 -> 365 | AI13: ='Timeline&Flags'!AI14 -> 365 | AJ13: ='Timeline&Flags'!AJ14 -> 365 | AK13: ='Timeline&Flags'!AK14 -> 366 | AL13: ='Timeline&Flags'!AL14 -> 365 | AM13: ='Timeline&Flags'!AM14 -> 365 | AN13: ='Timeline&Flags'!AN14 -> 365 | AO13: ='Timeline&Flags'!AO14 -> 366 | AP13: ='Timeline&Flags'!AP14 -> 365 | AQ13: ='Timeline&Flags'!AQ14 -> 365 | AU13: ='Timeline&Flags'!AU14 -> 365 | AV13: ='Timeline&Flags'!AV14 -> 365 | AW13: ='Timeline&Flags'!AW14 -> 365 | AX13: ='Timeline&Flags'!AX14 -> 365 | AY13: ='Timeline&Flags'!AY14 -> 365 | AZ13: ='Timeline&Flags'!AZ14 -> 365 | BA13: ='Timeline&Flags'!BA14 -> 365 | BB13: ='Timeline&Flags'!BB14 -> 365 | BC13: ='Timeline&Flags'!BC14 -> 365 | BD13: ='Timeline&Flags'!BD14 -> 365 | BE13: ='Timeline&Flags'!BE14 -> 365 | BF13: ='Timeline&Flags'!BF14 -> 365 | BG13: ='Timeline&Flags'!BG14 -> 365 | BH13: ='Timeline&Flags'!BH14 -> 365 | BI13: ='Timeline&Flags'!BI14 -> 365 | BJ13: ='Timeline&Flags'!BJ14 -> 365 | BK13: ='Timeline&Flags'!BK14 -> 365 | BL13: ='Timeline&Flags'!BL14 -> 365 | BM13: ='Timeline&Flags'!BM14 -> 365 | BN13: ='Timeline&Flags'!BN14 -> 365 | BO13: ='Timeline&Flags'!BO14 -> 365 | BP13: ='Timeline&Flags'!BP14 -> 365 | BQ13: ='Timeline&Flags'!BQ14 -> 365 | BR13: ='Timeline&Flags'!BR14 -> 365 | BS13: ='Timeline&Flags'!BS14 -> 366 | BT13: ='Timeline&Flags'!BT14 -> 366 | BU13: ='Timeline&Flags'!BU14 -> 366 | BV13: ='Timeline&Flags'!BV14 -> 366 | BW13: ='Timeline&Flags'!BW14 -> 366 | BX13: ='Timeline&Flags'!BX14 -> 366 | BY13: ='Timeline&Flags'!BY14 -> 366 | BZ13: ='Timeline&Flags'!BZ14 -> 366 | CA13: ='Timeline&Flags'!CA14 -> 366 | CB13: ='Timeline&Flags'!CB14 -> 366 | CC13: ='Timeline&Flags'!CC14 -> 366 | CD13: ='Timeline&Flags'!CD14 -> 366 | CE13: ='Timeline&Flags'!CE14 -> 365 | CF13: ='Timeline&Flags'!CF14 -> 365 | CG13: ='Timeline&Flags'!CG14 -> 365 | CH13: ='Timeline&Flags'!CH14 -> 365 | CI13: ='Timeline&Flags'!CI14 -> 365 | CJ13: ='Timeline&Flags'!CJ14 -> 365 | CK13: ='Timeline&Flags'!CK14 -> 365 | CL13: ='Timeline&Flags'!CL14 -> 365 | CM13: ='Timeline&Flags'!CM14 -> 365 | CN13: ='Timeline&Flags'!CN14 -> 365 | CO13: ='Timeline&Flags'!CO14 -> 365 | CP13: ='Timeline&Flags'!CP14 -> 365 | CQ13: ='Timeline&Flags'!CQ14 -> 365 | CR13: ='Timeline&Flags'!CR14 -> 365 | CS13: ='Timeline&Flags'!CS14 -> 365 | CT13: ='Timeline&Flags'!CT14 -> 365 | CU13: ='Timeline&Flags'!CU14 -> 365 | CV13: ='Timeline&Flags'!CV14 -> 365 | CW13: ='Timeline&Flags'!CW14 -> 365 | CX13: ='Timeline&Flags'!CX14 -> 365 | CY13: ='Timeline&Flags'!CY14 -> 365 | CZ13: ='Timeline&Flags'!CZ14 -> 365 | DA13: ='Timeline&Flags'!DA14 -> 365 | DB13: ='Timeline&Flags'!DB14 -> 365 | DC13: ='Timeline&Flags'!DC14 -> 365 | DD13: ='Timeline&Flags'!DD14 -> 365 | DE13: ='Timeline&Flags'!DE14 -> 365 | DF13: ='Timeline&Flags'!DF14 -> 365 | DG13: ='Timeline&Flags'!DG14 -> 365 | DH13: ='Timeline&Flags'!DH14 -> 365 | DI13: ='Timeline&Flags'!DI14 -> 365 | DJ13: ='Timeline&Flags'!DJ14 -> 365 | DK13: ='Timeline&Flags'!DK14 -> 365 | DL13: ='Timeline&Flags'!DL14 -> 365 | DM13: ='Timeline&Flags'!DM14 -> 365 | DN13: ='Timeline&Flags'!DN14 -> 365 | DO13: ='Timeline&Flags'!DO14 -> 366 | DP13: ='Timeline&Flags'!DP14 -> 366 | DQ13: ='Timeline&Flags'!DQ14 -> 366 | DR13: ='Timeline&Flags'!DR14 -> 366 | DS13: ='Timeline&Flags'!DS14 -> 366 | DT13: ='Timeline&Flags'!DT14 -> 366 | DU13: ='Timeline&Flags'!DU14 -> 366 | DV13: ='Timeline&Flags'!DV14 -> 366 | DW13: ='Timeline&Flags'!DW14 -> 366 | DX13: ='Timeline&Flags'!DX14 -> 366 | DY13: ='Timeline&Flags'!DY14 -> 366 | DZ13: ='Timeline&Flags'!DZ14 -> 366 | EA13: ='Timeline&Flags'!EA14 -> 365 | EB13: ='Timeline&Flags'!EB14 -> 365 | EC13: ='Timeline&Flags'!EC14 -> 365 | ED13: ='Timeline&Flags'!ED14 -> 365 | EE13: ='Timeline&Flags'!EE14 -> 365 | EF13: ='Timeline&Flags'!EF14 -> 365 | EG13: ='Timeline&Flags'!EG14 -> 365 | EH13: ='Timeline&Flags'!EH14 -> 365 | EI13: ='Timeline&Flags'!EI14 -> 365 | EJ13: ='Timeline&Flags'!EJ14 -> 365 | EK13: ='Timeline&Flags'!EK14 -> 365 | EL13: ='Timeline&Flags'!EL14 -> 365 | EM13: ='Timeline&Flags'!EM14 -> 365 | EN13: ='Timeline&Flags'!EN14 -> 365 | EO13: ='Timeline&Flags'!EO14 -> 365 | EP13: ='Timeline&Flags'!EP14 -> 365 | EQ13: ='Timeline&Flags'!EQ14 -> 365 | ER13: ='Timeline&Flags'!ER14 -> 365 | ES13: ='Timeline&Flags'!ES14 -> 365 | ET13: ='Timeline&Flags'!ET14 -> 365 | EU13: ='Timeline&Flags'!EU14 -> 365 | EV13: ='Timeline&Flags'!EV14 -> 365 | EW13: ='Timeline&Flags'!EW14 -> 365 | EX13: ='Timeline&Flags'!EX14 -> 365 | EY13: ='Timeline&Flags'!EY14 -> 365 | EZ13: ='Timeline&Flags'!EZ14 -> 365 | FA13: ='Timeline&Flags'!FA14 -> 365 | FB13: ='Timeline&Flags'!FB14 -> 365 | FC13: ='Timeline&Flags'!FC14 -> 365 | FD13: ='Timeline&Flags'!FD14 -> 365 | FE13: ='Timeline&Flags'!FE14 -> 365 | FF13: ='Timeline&Flags'!FF14 -> 365 | FG13: ='Timeline&Flags'!FG14 -> 365 | FH13: ='Timeline&Flags'!FH14 -> 365 | FI13: ='Timeline&Flags'!FI14 -> 365 | FJ13: ='Timeline&Flags'!FJ14 -> 365 | FK13: ='Timeline&Flags'!FK14 -> 366 | FL13: ='Timeline&Flags'!FL14 -> 366 | FM13: ='Timeline&Flags'!FM14 -> 366 | FN13: ='Timeline&Flags'!FN14 -> 366 | FO13: ='Timeline&Flags'!FO14 -> 366 | FP13: ='Timeline&Flags'!FP14 -> 366 | FQ13: ='Timeline&Flags'!FQ14 -> 366 | FR13: ='Timeline&Flags'!FR14 -> 366 | FS13: ='Timeline&Flags'!FS14 -> 366 | FT13: ='Timeline&Flags'!FT14 -> 366 | FU13: ='Timeline&Flags'!FU14 -> 366 | FV13: ='Timeline&Flags'!FV14 -> 366 | FW13: ='Timeline&Flags'!FW14 -> 365 | FX13: ='Timeline&Flags'!FX14 -> 365 | FY13: ='Timeline&Flags'!FY14 -> 365 | FZ13: ='Timeline&Flags'!FZ14 -> 365 | GA13: ='Timeline&Flags'!GA14 -> 365 | GB13: ='Timeline&Flags'!GB14 -> 365 | GC13: ='Timeline&Flags'!GC14 -> 365 | GD13: ='Timeline&Flags'!GD14 -> 365 | GE13: ='Timeline&Flags'!GE14 -> 365 | GF13: ='Timeline&Flags'!GF14 -> 365 | GG13: ='Timeline&Flags'!GG14 -> 365 | GH13: ='Timeline&Flags'!GH14 -> 365 | GI13: ='Timeline&Flags'!GI14 -> 365 | GJ13: ='Timeline&Flags'!GJ14 -> 365 | GK13: ='Timeline&Flags'!GK14 -> 365 | GL13: ='Timeline&Flags'!GL14 -> 365 | GM13: ='Timeline&Flags'!GM14 -> 365 | GN13: ='Timeline&Flags'!GN14 -> 365 | GO13: ='Timeline&Flags'!GO14 -> 365 | GP13: ='Timeline&Flags'!GP14 -> 365 | GQ13: ='Timeline&Flags'!GQ14 -> 365 | GR13: ='Timeline&Flags'!GR14 -> 365 | GS13: ='Timeline&Flags'!GS14 -> 365 | GT13: ='Timeline&Flags'!GT14 -> 365 | GU13: ='Timeline&Flags'!GU14 -> 365 | GV13: ='Timeline&Flags'!GV14 -> 365 | GW13: ='Timeline&Flags'!GW14 -> 365 | GX13: ='Timeline&Flags'!GX14 -> 365 | GY13: ='Timeline&Flags'!GY14 -> 365 | GZ13: ='Timeline&Flags'!GZ14 -> 365 | HA13: ='Timeline&Flags'!HA14 -> 365 | HB13: ='Timeline&Flags'!HB14 -> 365 | HC13: ='Timeline&Flags'!HC14 -> 365 | HD13: ='Timeline&Flags'!HD14 -> 365 | HE13: ='Timeline&Flags'!HE14 -> 365 | HF13: ='Timeline&Flags'!HF14 -> 365 | HG13: ='Timeline&Flags'!HG14 -> 366 | HH13: ='Timeline&Flags'!HH14 -> 366 | HI13: ='Timeline&Flags'!HI14 -> 366 | HJ13: ='Timeline&Flags'!HJ14 -> 366 | HK13: ='Timeline&Flags'!HK14 -> 366 | HL13: ='Timeline&Flags'!HL14 -> 366 | HM13: ='Timeline&Flags'!HM14 -> 366 | HN13: ='Timeline&Flags'!HN14 -> 366 | HO13: ='Timeline&Flags'!HO14 -> 366 | HP13: ='Timeline&Flags'!HP14 -> 366 | HQ13: ='Timeline&Flags'!HQ14 -> 366 | HR13: ='Timeline&Flags'!HR14 -> 366 | HS13: ='Timeline&Flags'!HS14 -> 365 | HT13: ='Timeline&Flags'!HT14 -> 365 | HU13: ='Timeline&Flags'!HU14 -> 365 | HV13: ='Timeline&Flags'!HV14 -> 365 | HW13: ='Timeline&Flags'!HW14 -> 365 | HX13: ='Timeline&Flags'!HX14 -> 365 | HY13: ='Timeline&Flags'!HY14 -> 365 | HZ13: ='Timeline&Flags'!HZ14 -> 365 | IA13: ='Timeline&Flags'!IA14 -> 365 | IB13: ='Timeline&Flags'!IB14 -> 365 | IC13: ='Timeline&Flags'!IC14 -> 365 | ID13: ='Timeline&Flags'!ID14 -> 365 | IE13: ='Timeline&Flags'!IE14 -> 365 | IF13: ='Timeline&Flags'!IF14 -> 365 | IG13: ='Timeline&Flags'!IG14 -> 365 | IH13: ='Timeline&Flags'!IH14 -> 365 | II13: ='Timeline&Flags'!II14 -> 365 | IJ13: ='Timeline&Flags'!IJ14 -> 365 | IK13: ='Timeline&Flags'!IK14 -> 365 | IL13: ='Timeline&Flags'!IL14 -> 365 | IM13: ='Timeline&Flags'!IM14 -> 365 | IN13: ='Timeline&Flags'!IN14 -> 365 | IO13: ='Timeline&Flags'!IO14 -> 365 | IP13: ='Timeline&Flags'!IP14 -> 365 | IQ13: ='Timeline&Flags'!IQ14 -> 365 | IR13: ='Timeline&Flags'!IR14 -> 365 | IS13: ='Timeline&Flags'!IS14 -> 365 | IT13: ='Timeline&Flags'!IT14 -> 365 | IU13: ='Timeline&Flags'!IU14 -> 365 | IV13: ='Timeline&Flags'!IV14 -> 365 | IW13: ='Timeline&Flags'!IW14 -> 365 | IX13: ='Timeline&Flags'!IX14 -> 365 | IY13: ='Timeline&Flags'!IY14 -> 365 | IZ13: ='Timeline&Flags'!IZ14 -> 365 | JA13: ='Timeline&Flags'!JA14 -> 365 | JB13: ='Timeline&Flags'!JB14 -> 365 | JC13: ='Timeline&Flags'!JC14 -> 366 | JD13: ='Timeline&Flags'!JD14 -> 366 | JE13: ='Timeline&Flags'!JE14 -> 366 | JF13: ='Timeline&Flags'!JF14 -> 366 | JG13: ='Timeline&Flags'!JG14 -> 366 | JH13: ='Timeline&Flags'!JH14 -> 366 | JI13: ='Timeline&Flags'!JI14 -> 366 | JJ13: ='Timeline&Flags'!JJ14 -> 366 | JK13: ='Timeline&Flags'!JK14 -> 366 | JL13: ='Timeline&Flags'!JL14 -> 366 | JM13: ='Timeline&Flags'!JM14 -> 366 | JN13: ='Timeline&Flags'!JN14 -> 366 | JO13: ='Timeline&Flags'!JO14 -> 365 | JP13: ='Timeline&Flags'!JP14 -> 365 | JQ13: ='Timeline&Flags'!JQ14 -> 365 | JR13: ='Timeline&Flags'!JR14 -> 365 | JS13: ='Timeline&Flags'!JS14 -> 365 | JT13: ='Timeline&Flags'!JT14 -> 365 | JU13: ='Timeline&Flags'!JU14 -> 365 | JV13: ='Timeline&Flags'!JV14 -> 365 | JW13: ='Timeline&Flags'!JW14 -> 365 | JX13: ='Timeline&Flags'!JX14 -> 365 | JY13: ='Timeline&Flags'!JY14 -> 365 | JZ13: ='Timeline&Flags'!JZ14 -> 365 | KA13: ='Timeline&Flags'!KA14 -> 365 | KB13: ='Timeline&Flags'!KB14 -> 365 | KC13: ='Timeline&Flags'!KC14 -> 365 | KD13: ='Timeline&Flags'!KD14 -> 365 | KE13: ='Timeline&Flags'!KE14 -> 365 | KF13: ='Timeline&Flags'!KF14 -> 365 | KG13: ='Timeline&Flags'!KG14 -> 365 | KH13: ='Timeline&Flags'!KH14 -> 365 | KI13: ='Timeline&Flags'!KI14 -> 365 | KJ13: ='Timeline&Flags'!KJ14 -> 365 | KK13: ='Timeline&Flags'!KK14 -> 365 | KL13: ='Timeline&Flags'!KL14 -> 365 | KM13: ='Timeline&Flags'!KM14 -> 365 | KN13: ='Timeline&Flags'!KN14 -> 365 | KO13: ='Timeline&Flags'!KO14 -> 365 | KP13: ='Timeline&Flags'!KP14 -> 365 | KQ13: ='Timeline&Flags'!KQ14 -> 365 | KR13: ='Timeline&Flags'!KR14 -> 365 | KS13: ='Timeline&Flags'!KS14 -> 365 | KT13: ='Timeline&Flags'!KT14 -> 365 | KU13: ='Timeline&Flags'!KU14 -> 365 | KV13: ='Timeline&Flags'!KV14 -> 365 | KW13: ='Timeline&Flags'!KW14 -> 365 | KX13: ='Timeline&Flags'!KX14 -> 365 | KY13: ='Timeline&Flags'!KY14 -> 366 | KZ13: ='Timeline&Flags'!KZ14 -> 366 | LA13: ='Timeline&Flags'!LA14 -> 366 | LB13: ='Timeline&Flags'!LB14 -> 366 | LC13: ='Timeline&Flags'!LC14 -> 366 | LD13: ='Timeline&Flags'!LD14 -> 366 | LE13: ='Timeline&Flags'!LE14 -> 366 | LF13: ='Timeline&Flags'!LF14 -> 366 | LG13: ='Timeline&Flags'!LG14 -> 366 | LH13: ='Timeline&Flags'!LH14 -> 366 | LI13: ='Timeline&Flags'!LI14 -> 366 | LJ13: ='Timeline&Flags'!LJ14 -> 366 | LK13: ='Timeline&Flags'!LK14 -> 365 | LL13: ='Timeline&Flags'!LL14 -> 365 | LM13: ='Timeline&Flags'!LM14 -> 365 | LN13: ='Timeline&Flags'!LN14 -> 365 | LO13: ='Timeline&Flags'!LO14 -> 365 | LP13: ='Timeline&Flags'!LP14 -> 365 | LQ13: ='Timeline&Flags'!LQ14 -> 365 | LR13: ='Timeline&Flags'!LR14 -> 365 | LS13: ='Timeline&Flags'!LS14 -> 365 | LT13: ='Timeline&Flags'!LT14 -> 365 | LU13: ='Timeline&Flags'!LU14 -> 365 | LV13: ='Timeline&Flags'!LV14 -> 365 | LW13: ='Timeline&Flags'!LW14 -> 365 | LX13: ='Timeline&Flags'!LX14 -> 365 | LY13: ='Timeline&Flags'!LY14 -> 365 | LZ13: ='Timeline&Flags'!LZ14 -> 365 | MA13: ='Timeline&Flags'!MA14 -> 365 | MB13: ='Timeline&Flags'!MB14 -> 365 | MC13: ='Timeline&Flags'!MC14 -> 365 | MD13: ='Timeline&Flags'!MD14 -> 365 | ME13: ='Timeline&Flags'!ME14 -> 365 | MF13: ='Timeline&Flags'!MF14 -> 365 | MG13: ='Timeline&Flags'!MG14 -> 365 | MH13: ='Timeline&Flags'!MH14 -> 365
E14: ='Timeline&Flags'!E15 -> Days in financial year | S14: ='Timeline&Flags'!S15 -> 365 | T14: ='Timeline&Flags'!T15 -> 365 | U14: ='Timeline&Flags'!U15 -> 366 | V14: ='Timeline&Flags'!V15 -> 365 | W14: ='Timeline&Flags'!W15 -> 365 | X14: ='Timeline&Flags'!X15 -> 365 | Y14: ='Timeline&Flags'!Y15 -> 366 | Z14: ='Timeline&Flags'!Z15 -> 365 | AA14: ='Timeline&Flags'!AA15 -> 365 | AB14: ='Timeline&Flags'!AB15 -> 365 | AC14: ='Timeline&Flags'!AC15 -> 366 | AD14: ='Timeline&Flags'!AD15 -> 365 | AE14: ='Timeline&Flags'!AE15 -> 365 | AF14: ='Timeline&Flags'!AF15 -> 365 | AG14: ='Timeline&Flags'!AG15 -> 366 | AH14: ='Timeline&Flags'!AH15 -> 365 | AI14: ='Timeline&Flags'!AI15 -> 365 | AJ14: ='Timeline&Flags'!AJ15 -> 365 | AK14: ='Timeline&Flags'!AK15 -> 366 | AL14: ='Timeline&Flags'!AL15 -> 365 | AM14: ='Timeline&Flags'!AM15 -> 365 | AN14: ='Timeline&Flags'!AN15 -> 365 | AO14: ='Timeline&Flags'!AO15 -> 366 | AP14: ='Timeline&Flags'!AP15 -> 365 | AQ14: ='Timeline&Flags'!AQ15 -> 365 | AU14: ='Timeline&Flags'!AU15 -> 365 | AV14: ='Timeline&Flags'!AV15 -> 365 | AW14: ='Timeline&Flags'!AW15 -> 365 | AX14: ='Timeline&Flags'!AX15 -> 365 | AY14: ='Timeline&Flags'!AY15 -> 365 | AZ14: ='Timeline&Flags'!AZ15 -> 365 | BA14: ='Timeline&Flags'!BA15 -> 365 | BB14: ='Timeline&Flags'!BB15 -> 365 | BC14: ='Timeline&Flags'!BC15 -> 365 | BD14: ='Timeline&Flags'!BD15 -> 365 | BE14: ='Timeline&Flags'!BE15 -> 365 | BF14: ='Timeline&Flags'!BF15 -> 365 | BG14: ='Timeline&Flags'!BG15 -> 365 | BH14: ='Timeline&Flags'!BH15 -> 365 | BI14: ='Timeline&Flags'!BI15 -> 365 | BJ14: ='Timeline&Flags'!BJ15 -> 366 | BK14: ='Timeline&Flags'!BK15 -> 366 | BL14: ='Timeline&Flags'!BL15 -> 366 | BM14: ='Timeline&Flags'!BM15 -> 366 | BN14: ='Timeline&Flags'!BN15 -> 366 | BO14: ='Timeline&Flags'!BO15 -> 366 | BP14: ='Timeline&Flags'!BP15 -> 366 | BQ14: ='Timeline&Flags'!BQ15 -> 366 | BR14: ='Timeline&Flags'!BR15 -> 366 | BS14: ='Timeline&Flags'!BS15 -> 366 | BT14: ='Timeline&Flags'!BT15 -> 366 | BU14: ='Timeline&Flags'!BU15 -> 366 | BV14: ='Timeline&Flags'!BV15 -> 365 | BW14: ='Timeline&Flags'!BW15 -> 365 | BX14: ='Timeline&Flags'!BX15 -> 365 | BY14: ='Timeline&Flags'!BY15 -> 365 | BZ14: ='Timeline&Flags'!BZ15 -> 365 | CA14: ='Timeline&Flags'!CA15 -> 365 | CB14: ='Timeline&Flags'!CB15 -> 365 | CC14: ='Timeline&Flags'!CC15 -> 365 | CD14: ='Timeline&Flags'!CD15 -> 365 | CE14: ='Timeline&Flags'!CE15 -> 365 | CF14: ='Timeline&Flags'!CF15 -> 365 | CG14: ='Timeline&Flags'!CG15 -> 365 | CH14: ='Timeline&Flags'!CH15 -> 365 | CI14: ='Timeline&Flags'!CI15 -> 365 | CJ14: ='Timeline&Flags'!CJ15 -> 365 | CK14: ='Timeline&Flags'!CK15 -> 365 | CL14: ='Timeline&Flags'!CL15 -> 365 | CM14: ='Timeline&Flags'!CM15 -> 365 | CN14: ='Timeline&Flags'!CN15 -> 365 | CO14: ='Timeline&Flags'!CO15 -> 365 | CP14: ='Timeline&Flags'!CP15 -> 365 | CQ14: ='Timeline&Flags'!CQ15 -> 365 | CR14: ='Timeline&Flags'!CR15 -> 365 | CS14: ='Timeline&Flags'!CS15 -> 365 | CT14: ='Timeline&Flags'!CT15 -> 365 | CU14: ='Timeline&Flags'!CU15 -> 365 | CV14: ='Timeline&Flags'!CV15 -> 365 | CW14: ='Timeline&Flags'!CW15 -> 365 | CX14: ='Timeline&Flags'!CX15 -> 365 | CY14: ='Timeline&Flags'!CY15 -> 365 | CZ14: ='Timeline&Flags'!CZ15 -> 365 | DA14: ='Timeline&Flags'!DA15 -> 365 | DB14: ='Timeline&Flags'!DB15 -> 365 | DC14: ='Timeline&Flags'!DC15 -> 365 | DD14: ='Timeline&Flags'!DD15 -> 365 | DE14: ='Timeline&Flags'!DE15 -> 365 | DF14: ='Timeline&Flags'!DF15 -> 366 | DG14: ='Timeline&Flags'!DG15 -> 366 | DH14: ='Timeline&Flags'!DH15 -> 366 | DI14: ='Timeline&Flags'!DI15 -> 366 | DJ14: ='Timeline&Flags'!DJ15 -> 366 | DK14: ='Timeline&Flags'!DK15 -> 366 | DL14: ='Timeline&Flags'!DL15 -> 366 | DM14: ='Timeline&Flags'!DM15 -> 366 | DN14: ='Timeline&Flags'!DN15 -> 366 | DO14: ='Timeline&Flags'!DO15 -> 366 | DP14: ='Timeline&Flags'!DP15 -> 366 | DQ14: ='Timeline&Flags'!DQ15 -> 366 | DR14: ='Timeline&Flags'!DR15 -> 365 | DS14: ='Timeline&Flags'!DS15 -> 365 | DT14: ='Timeline&Flags'!DT15 -> 365 | DU14: ='Timeline&Flags'!DU15 -> 365 | DV14: ='Timeline&Flags'!DV15 -> 365 | DW14: ='Timeline&Flags'!DW15 -> 365 | DX14: ='Timeline&Flags'!DX15 -> 365 | DY14: ='Timeline&Flags'!DY15 -> 365 | DZ14: ='Timeline&Flags'!DZ15 -> 365 | EA14: ='Timeline&Flags'!EA15 -> 365 | EB14: ='Timeline&Flags'!EB15 -> 365 | EC14: ='Timeline&Flags'!EC15 -> 365 | ED14: ='Timeline&Flags'!ED15 -> 365 | EE14: ='Timeline&Flags'!EE15 -> 365 | EF14: ='Timeline&Flags'!EF15 -> 365 | EG14: ='Timeline&Flags'!EG15 -> 365 | EH14: ='Timeline&Flags'!EH15 -> 365 | EI14: ='Timeline&Flags'!EI15 -> 365 | EJ14: ='Timeline&Flags'!EJ15 -> 365 | EK14: ='Timeline&Flags'!EK15 -> 365 | EL14: ='Timeline&Flags'!EL15 -> 365 | EM14: ='Timeline&Flags'!EM15 -> 365 | EN14: ='Timeline&Flags'!EN15 -> 365 | EO14: ='Timeline&Flags'!EO15 -> 365 | EP14: ='Timeline&Flags'!EP15 -> 365 | EQ14: ='Timeline&Flags'!EQ15 -> 365 | ER14: ='Timeline&Flags'!ER15 -> 365 | ES14: ='Timeline&Flags'!ES15 -> 365 | ET14: ='Timeline&Flags'!ET15 -> 365 | EU14: ='Timeline&Flags'!EU15 -> 365 | EV14: ='Timeline&Flags'!EV15 -> 365 | EW14: ='Timeline&Flags'!EW15 -> 365 | EX14: ='Timeline&Flags'!EX15 -> 365 | EY14: ='Timeline&Flags'!EY15 -> 365 | EZ14: ='Timeline&Flags'!EZ15 -> 365 | FA14: ='Timeline&Flags'!FA15 -> 365 | FB14: ='Timeline&Flags'!FB15 -> 366 | FC14: ='Timeline&Flags'!FC15 -> 366 | FD14: ='Timeline&Flags'!FD15 -> 366 | FE14: ='Timeline&Flags'!FE15 -> 366 | FF14: ='Timeline&Flags'!FF15 -> 366 | FG14: ='Timeline&Flags'!FG15 -> 366 | FH14: ='Timeline&Flags'!FH15 -> 366 | FI14: ='Timeline&Flags'!FI15 -> 366 | FJ14: ='Timeline&Flags'!FJ15 -> 366 | FK14: ='Timeline&Flags'!FK15 -> 366 | FL14: ='Timeline&Flags'!FL15 -> 366 | FM14: ='Timeline&Flags'!FM15 -> 366 | FN14: ='Timeline&Flags'!FN15 -> 365 | FO14: ='Timeline&Flags'!FO15 -> 365 | FP14: ='Timeline&Flags'!FP15 -> 365 | FQ14: ='Timeline&Flags'!FQ15 -> 365 | FR14: ='Timeline&Flags'!FR15 -> 365 | FS14: ='Timeline&Flags'!FS15 -> 365 | FT14: ='Timeline&Flags'!FT15 -> 365 | FU14: ='Timeline&Flags'!FU15 -> 365 | FV14: ='Timeline&Flags'!FV15 -> 365 | FW14: ='Timeline&Flags'!FW15 -> 365 | FX14: ='Timeline&Flags'!FX15 -> 365 | FY14: ='Timeline&Flags'!FY15 -> 365 | FZ14: ='Timeline&Flags'!FZ15 -> 365 | GA14: ='Timeline&Flags'!GA15 -> 365 | GB14: ='Timeline&Flags'!GB15 -> 365 | GC14: ='Timeline&Flags'!GC15 -> 365 | GD14: ='Timeline&Flags'!GD15 -> 365 | GE14: ='Timeline&Flags'!GE15 -> 365 | GF14: ='Timeline&Flags'!GF15 -> 365 | GG14: ='Timeline&Flags'!GG15 -> 365 | GH14: ='Timeline&Flags'!GH15 -> 365 | GI14: ='Timeline&Flags'!GI15 -> 365 | GJ14: ='Timeline&Flags'!GJ15 -> 365 | GK14: ='Timeline&Flags'!GK15 -> 365 | GL14: ='Timeline&Flags'!GL15 -> 365 | GM14: ='Timeline&Flags'!GM15 -> 365 | GN14: ='Timeline&Flags'!GN15 -> 365 | GO14: ='Timeline&Flags'!GO15 -> 365 | GP14: ='Timeline&Flags'!GP15 -> 365 | GQ14: ='Timeline&Flags'!GQ15 -> 365 | GR14: ='Timeline&Flags'!GR15 -> 365 | GS14: ='Timeline&Flags'!GS15 -> 365 | GT14: ='Timeline&Flags'!GT15 -> 365 | GU14: ='Timeline&Flags'!GU15 -> 365 | GV14: ='Timeline&Flags'!GV15 -> 365 | GW14: ='Timeline&Flags'!GW15 -> 365 | GX14: ='Timeline&Flags'!GX15 -> 366 | GY14: ='Timeline&Flags'!GY15 -> 366 | GZ14: ='Timeline&Flags'!GZ15 -> 366 | HA14: ='Timeline&Flags'!HA15 -> 366 | HB14: ='Timeline&Flags'!HB15 -> 366 | HC14: ='Timeline&Flags'!HC15 -> 366 | HD14: ='Timeline&Flags'!HD15 -> 366 | HE14: ='Timeline&Flags'!HE15 -> 366 | HF14: ='Timeline&Flags'!HF15 -> 366 | HG14: ='Timeline&Flags'!HG15 -> 366 | HH14: ='Timeline&Flags'!HH15 -> 366 | HI14: ='Timeline&Flags'!HI15 -> 366 | HJ14: ='Timeline&Flags'!HJ15 -> 365 | HK14: ='Timeline&Flags'!HK15 -> 365 | HL14: ='Timeline&Flags'!HL15 -> 365 | HM14: ='Timeline&Flags'!HM15 -> 365 | HN14: ='Timeline&Flags'!HN15 -> 365 | HO14: ='Timeline&Flags'!HO15 -> 365 | HP14: ='Timeline&Flags'!HP15 -> 365 | HQ14: ='Timeline&Flags'!HQ15 -> 365 | HR14: ='Timeline&Flags'!HR15 -> 365 | HS14: ='Timeline&Flags'!HS15 -> 365 | HT14: ='Timeline&Flags'!HT15 -> 365 | HU14: ='Timeline&Flags'!HU15 -> 365 | HV14: ='Timeline&Flags'!HV15 -> 365 | HW14: ='Timeline&Flags'!HW15 -> 365 | HX14: ='Timeline&Flags'!HX15 -> 365 | HY14: ='Timeline&Flags'!HY15 -> 365 | HZ14: ='Timeline&Flags'!HZ15 -> 365 | IA14: ='Timeline&Flags'!IA15 -> 365 | IB14: ='Timeline&Flags'!IB15 -> 365 | IC14: ='Timeline&Flags'!IC15 -> 365 | ID14: ='Timeline&Flags'!ID15 -> 365 | IE14: ='Timeline&Flags'!IE15 -> 365 | IF14: ='Timeline&Flags'!IF15 -> 365 | IG14: ='Timeline&Flags'!IG15 -> 365 | IH14: ='Timeline&Flags'!IH15 -> 365 | II14: ='Timeline&Flags'!II15 -> 365 | IJ14: ='Timeline&Flags'!IJ15 -> 365 | IK14: ='Timeline&Flags'!IK15 -> 365 | IL14: ='Timeline&Flags'!IL15 -> 365 | IM14: ='Timeline&Flags'!IM15 -> 365 | IN14: ='Timeline&Flags'!IN15 -> 365 | IO14: ='Timeline&Flags'!IO15 -> 365 | IP14: ='Timeline&Flags'!IP15 -> 365 | IQ14: ='Timeline&Flags'!IQ15 -> 365 | IR14: ='Timeline&Flags'!IR15 -> 365 | IS14: ='Timeline&Flags'!IS15 -> 365 | IT14: ='Timeline&Flags'!IT15 -> 366 | IU14: ='Timeline&Flags'!IU15 -> 366 | IV14: ='Timeline&Flags'!IV15 -> 366 | IW14: ='Timeline&Flags'!IW15 -> 366 | IX14: ='Timeline&Flags'!IX15 -> 366 | IY14: ='Timeline&Flags'!IY15 -> 366 | IZ14: ='Timeline&Flags'!IZ15 -> 366 | JA14: ='Timeline&Flags'!JA15 -> 366 | JB14: ='Timeline&Flags'!JB15 -> 366 | JC14: ='Timeline&Flags'!JC15 -> 366 | JD14: ='Timeline&Flags'!JD15 -> 366 | JE14: ='Timeline&Flags'!JE15 -> 366 | JF14: ='Timeline&Flags'!JF15 -> 365 | JG14: ='Timeline&Flags'!JG15 -> 365 | JH14: ='Timeline&Flags'!JH15 -> 365 | JI14: ='Timeline&Flags'!JI15 -> 365 | JJ14: ='Timeline&Flags'!JJ15 -> 365 | JK14: ='Timeline&Flags'!JK15 -> 365 | JL14: ='Timeline&Flags'!JL15 -> 365 | JM14: ='Timeline&Flags'!JM15 -> 365 | JN14: ='Timeline&Flags'!JN15 -> 365 | JO14: ='Timeline&Flags'!JO15 -> 365 | JP14: ='Timeline&Flags'!JP15 -> 365 | JQ14: ='Timeline&Flags'!JQ15 -> 365 | JR14: ='Timeline&Flags'!JR15 -> 365 | JS14: ='Timeline&Flags'!JS15 -> 365 | JT14: ='Timeline&Flags'!JT15 -> 365 | JU14: ='Timeline&Flags'!JU15 -> 365 | JV14: ='Timeline&Flags'!JV15 -> 365 | JW14: ='Timeline&Flags'!JW15 -> 365 | JX14: ='Timeline&Flags'!JX15 -> 365 | JY14: ='Timeline&Flags'!JY15 -> 365 | JZ14: ='Timeline&Flags'!JZ15 -> 365 | KA14: ='Timeline&Flags'!KA15 -> 365 | KB14: ='Timeline&Flags'!KB15 -> 365 | KC14: ='Timeline&Flags'!KC15 -> 365 | KD14: ='Timeline&Flags'!KD15 -> 365 | KE14: ='Timeline&Flags'!KE15 -> 365 | KF14: ='Timeline&Flags'!KF15 -> 365 | KG14: ='Timeline&Flags'!KG15 -> 365 | KH14: ='Timeline&Flags'!KH15 -> 365 | KI14: ='Timeline&Flags'!KI15 -> 365 | KJ14: ='Timeline&Flags'!KJ15 -> 365 | KK14: ='Timeline&Flags'!KK15 -> 365 | KL14: ='Timeline&Flags'!KL15 -> 365 | KM14: ='Timeline&Flags'!KM15 -> 365 | KN14: ='Timeline&Flags'!KN15 -> 365 | KO14: ='Timeline&Flags'!KO15 -> 365 | KP14: ='Timeline&Flags'!KP15 -> 366 | KQ14: ='Timeline&Flags'!KQ15 -> 366 | KR14: ='Timeline&Flags'!KR15 -> 366 | KS14: ='Timeline&Flags'!KS15 -> 366 | KT14: ='Timeline&Flags'!KT15 -> 366 | KU14: ='Timeline&Flags'!KU15 -> 366 | KV14: ='Timeline&Flags'!KV15 -> 366 | KW14: ='Timeline&Flags'!KW15 -> 366 | KX14: ='Timeline&Flags'!KX15 -> 366 | KY14: ='Timeline&Flags'!KY15 -> 366 | KZ14: ='Timeline&Flags'!KZ15 -> 366 | LA14: ='Timeline&Flags'!LA15 -> 366 | LB14: ='Timeline&Flags'!LB15 -> 365 | LC14: ='Timeline&Flags'!LC15 -> 365 | LD14: ='Timeline&Flags'!LD15 -> 365 | LE14: ='Timeline&Flags'!LE15 -> 365 | LF14: ='Timeline&Flags'!LF15 -> 365 | LG14: ='Timeline&Flags'!LG15 -> 365 | LH14: ='Timeline&Flags'!LH15 -> 365 | LI14: ='Timeline&Flags'!LI15 -> 365 | LJ14: ='Timeline&Flags'!LJ15 -> 365 | LK14: ='Timeline&Flags'!LK15 -> 365 | LL14: ='Timeline&Flags'!LL15 -> 365 | LM14: ='Timeline&Flags'!LM15 -> 365 | LN14: ='Timeline&Flags'!LN15 -> 365 | LO14: ='Timeline&Flags'!LO15 -> 365 | LP14: ='Timeline&Flags'!LP15 -> 365 | LQ14: ='Timeline&Flags'!LQ15 -> 365 | LR14: ='Timeline&Flags'!LR15 -> 365 | LS14: ='Timeline&Flags'!LS15 -> 365 | LT14: ='Timeline&Flags'!LT15 -> 365 | LU14: ='Timeline&Flags'!LU15 -> 365 | LV14: ='Timeline&Flags'!LV15 -> 365 | LW14: ='Timeline&Flags'!LW15 -> 365 | LX14: ='Timeline&Flags'!LX15 -> 365 | LY14: ='Timeline&Flags'!LY15 -> 365 | LZ14: ='Timeline&Flags'!LZ15 -> 365 | MA14: ='Timeline&Flags'!MA15 -> 365 | MB14: ='Timeline&Flags'!MB15 -> 365 | MC14: ='Timeline&Flags'!MC15 -> 365 | MD14: ='Timeline&Flags'!MD15 -> 365 | ME14: ='Timeline&Flags'!ME15 -> 365 | MF14: ='Timeline&Flags'!MF15 -> 365 | MG14: ='Timeline&Flags'!MG15 -> 365 | MH14: ='Timeline&Flags'!MH15 -> 365
E15: ='Timeline&Flags'!E16 -> Column counter | S15: ='Timeline&Flags'!S16 -> 3 | T15: ='Timeline&Flags'!T16 -> 15 | U15: ='Timeline&Flags'!U16 -> 27 | V15: ='Timeline&Flags'!V16 -> 39 | W15: ='Timeline&Flags'!W16 -> 51 | X15: ='Timeline&Flags'!X16 -> 63 | Y15: ='Timeline&Flags'!Y16 -> 75 | Z15: ='Timeline&Flags'!Z16 -> 87 | AA15: ='Timeline&Flags'!AA16 -> 99 | AB15: ='Timeline&Flags'!AB16 -> 111 | AC15: ='Timeline&Flags'!AC16 -> 123 | AD15: ='Timeline&Flags'!AD16 -> 135 | AE15: ='Timeline&Flags'!AE16 -> 147 | AF15: ='Timeline&Flags'!AF16 -> 159 | AG15: ='Timeline&Flags'!AG16 -> 171 | AH15: ='Timeline&Flags'!AH16 -> 183 | AI15: ='Timeline&Flags'!AI16 -> 195 | AJ15: ='Timeline&Flags'!AJ16 -> 207 | AK15: ='Timeline&Flags'!AK16 -> 219 | AL15: ='Timeline&Flags'!AL16 -> 231 | AM15: ='Timeline&Flags'!AM16 -> 243 | AN15: ='Timeline&Flags'!AN16 -> 255 | AO15: ='Timeline&Flags'!AO16 -> 267 | AP15: ='Timeline&Flags'!AP16 -> 279 | AQ15: ='Timeline&Flags'!AQ16 -> 291 | AU15: ='Timeline&Flags'!AU16 -> 1 | AV15: ='Timeline&Flags'!AV16 -> 2 | AW15: ='Timeline&Flags'!AW16 -> 3 | AX15: ='Timeline&Flags'!AX16 -> 4 | AY15: ='Timeline&Flags'!AY16 -> 5 | AZ15: ='Timeline&Flags'!AZ16 -> 6 | BA15: ='Timeline&Flags'!BA16 -> 7 | BB15: ='Timeline&Flags'!BB16 -> 8 | BC15: ='Timeline&Flags'!BC16 -> 9 | BD15: ='Timeline&Flags'!BD16 -> 10 | BE15: ='Timeline&Flags'!BE16 -> 11 | BF15: ='Timeline&Flags'!BF16 -> 12 | BG15: ='Timeline&Flags'!BG16 -> 13 | BH15: ='Timeline&Flags'!BH16 -> 14 | BI15: ='Timeline&Flags'!BI16 -> 15 | BJ15: ='Timeline&Flags'!BJ16 -> 16 | BK15: ='Timeline&Flags'!BK16 -> 17 | BL15: ='Timeline&Flags'!BL16 -> 18 | BM15: ='Timeline&Flags'!BM16 -> 19 | BN15: ='Timeline&Flags'!BN16 -> 20 | BO15: ='Timeline&Flags'!BO16 -> 21 | BP15: ='Timeline&Flags'!BP16 -> 22 | BQ15: ='Timeline&Flags'!BQ16 -> 23 | BR15: ='Timeline&Flags'!BR16 -> 24 | BS15: ='Timeline&Flags'!BS16 -> 25 | BT15: ='Timeline&Flags'!BT16 -> 26 | BU15: ='Timeline&Flags'!BU16 -> 27 | BV15: ='Timeline&Flags'!BV16 -> 28 | BW15: ='Timeline&Flags'!BW16 -> 29 | BX15: ='Timeline&Flags'!BX16 -> 30 | BY15: ='Timeline&Flags'!BY16 -> 31 | BZ15: ='Timeline&Flags'!BZ16 -> 32 | CA15: ='Timeline&Flags'!CA16 -> 33 | CB15: ='Timeline&Flags'!CB16 -> 34 | CC15: ='Timeline&Flags'!CC16 -> 35 | CD15: ='Timeline&Flags'!CD16 -> 36 | CE15: ='Timeline&Flags'!CE16 -> 37 | CF15: ='Timeline&Flags'!CF16 -> 38 | CG15: ='Timeline&Flags'!CG16 -> 39 | CH15: ='Timeline&Flags'!CH16 -> 40 | CI15: ='Timeline&Flags'!CI16 -> 41 | CJ15: ='Timeline&Flags'!CJ16 -> 42 | CK15: ='Timeline&Flags'!CK16 -> 43 | CL15: ='Timeline&Flags'!CL16 -> 44 | CM15: ='Timeline&Flags'!CM16 -> 45 | CN15: ='Timeline&Flags'!CN16 -> 46 | CO15: ='Timeline&Flags'!CO16 -> 47 | CP15: ='Timeline&Flags'!CP16 -> 48 | CQ15: ='Timeline&Flags'!CQ16 -> 49 | CR15: ='Timeline&Flags'!CR16 -> 50 | CS15: ='Timeline&Flags'!CS16 -> 51 | CT15: ='Timeline&Flags'!CT16 -> 52 | CU15: ='Timeline&Flags'!CU16 -> 53 | CV15: ='Timeline&Flags'!CV16 -> 54 | CW15: ='Timeline&Flags'!CW16 -> 55 | CX15: ='Timeline&Flags'!CX16 -> 56 | CY15: ='Timeline&Flags'!CY16 -> 57 | CZ15: ='Timeline&Flags'!CZ16 -> 58 | DA15: ='Timeline&Flags'!DA16 -> 59 | DB15: ='Timeline&Flags'!DB16 -> 60 | DC15: ='Timeline&Flags'!DC16 -> 61 | DD15: ='Timeline&Flags'!DD16 -> 62 | DE15: ='Timeline&Flags'!DE16 -> 63 | DF15: ='Timeline&Flags'!DF16 -> 64 | DG15: ='Timeline&Flags'!DG16 -> 65 | DH15: ='Timeline&Flags'!DH16 -> 66 | DI15: ='Timeline&Flags'!DI16 -> 67 | DJ15: ='Timeline&Flags'!DJ16 -> 68 | DK15: ='Timeline&Flags'!DK16 -> 69 | DL15: ='Timeline&Flags'!DL16 -> 70 | DM15: ='Timeline&Flags'!DM16 -> 71 | DN15: ='Timeline&Flags'!DN16 -> 72 | DO15: ='Timeline&Flags'!DO16 -> 73 | DP15: ='Timeline&Flags'!DP16 -> 74 | DQ15: ='Timeline&Flags'!DQ16 -> 75 | DR15: ='Timeline&Flags'!DR16 -> 76 | DS15: ='Timeline&Flags'!DS16 -> 77 | DT15: ='Timeline&Flags'!DT16 -> 78 | DU15: ='Timeline&Flags'!DU16 -> 79 | DV15: ='Timeline&Flags'!DV16 -> 80 | DW15: ='Timeline&Flags'!DW16 -> 81 | DX15: ='Timeline&Flags'!DX16 -> 82 | DY15: ='Timeline&Flags'!DY16 -> 83 | DZ15: ='Timeline&Flags'!DZ16 -> 84 | EA15: ='Timeline&Flags'!EA16 -> 85 | EB15: ='Timeline&Flags'!EB16 -> 86 | EC15: ='Timeline&Flags'!EC16 -> 87 | ED15: ='Timeline&Flags'!ED16 -> 88 | EE15: ='Timeline&Flags'!EE16 -> 89 | EF15: ='Timeline&Flags'!EF16 -> 90 | EG15: ='Timeline&Flags'!EG16 -> 91 | EH15: ='Timeline&Flags'!EH16 -> 92 | EI15: ='Timeline&Flags'!EI16 -> 93 | EJ15: ='Timeline&Flags'!EJ16 -> 94 | EK15: ='Timeline&Flags'!EK16 -> 95 | EL15: ='Timeline&Flags'!EL16 -> 96 | EM15: ='Timeline&Flags'!EM16 -> 97 | EN15: ='Timeline&Flags'!EN16 -> 98 | EO15: ='Timeline&Flags'!EO16 -> 99 | EP15: ='Timeline&Flags'!EP16 -> 100 | EQ15: ='Timeline&Flags'!EQ16 -> 101 | ER15: ='Timeline&Flags'!ER16 -> 102 | ES15: ='Timeline&Flags'!ES16 -> 103 | ET15: ='Timeline&Flags'!ET16 -> 104 | EU15: ='Timeline&Flags'!EU16 -> 105 | EV15: ='Timeline&Flags'!EV16 -> 106 | EW15: ='Timeline&Flags'!EW16 -> 107 | EX15: ='Timeline&Flags'!EX16 -> 108 | EY15: ='Timeline&Flags'!EY16 -> 109 | EZ15: ='Timeline&Flags'!EZ16 -> 110 | FA15: ='Timeline&Flags'!FA16 -> 111 | FB15: ='Timeline&Flags'!FB16 -> 112 | FC15: ='Timeline&Flags'!FC16 -> 113 | FD15: ='Timeline&Flags'!FD16 -> 114 | FE15: ='Timeline&Flags'!FE16 -> 115 | FF15: ='Timeline&Flags'!FF16 -> 116 | FG15: ='Timeline&Flags'!FG16 -> 117 | FH15: ='Timeline&Flags'!FH16 -> 118 | FI15: ='Timeline&Flags'!FI16 -> 119 | FJ15: ='Timeline&Flags'!FJ16 -> 120 | FK15: ='Timeline&Flags'!FK16 -> 121 | FL15: ='Timeline&Flags'!FL16 -> 122 | FM15: ='Timeline&Flags'!FM16 -> 123 | FN15: ='Timeline&Flags'!FN16 -> 124 | FO15: ='Timeline&Flags'!FO16 -> 125 | FP15: ='Timeline&Flags'!FP16 -> 126 | FQ15: ='Timeline&Flags'!FQ16 -> 127 | FR15: ='Timeline&Flags'!FR16 -> 128 | FS15: ='Timeline&Flags'!FS16 -> 129 | FT15: ='Timeline&Flags'!FT16 -> 130 | FU15: ='Timeline&Flags'!FU16 -> 131 | FV15: ='Timeline&Flags'!FV16 -> 132 | FW15: ='Timeline&Flags'!FW16 -> 133 | FX15: ='Timeline&Flags'!FX16 -> 134 | FY15: ='Timeline&Flags'!FY16 -> 135 | FZ15: ='Timeline&Flags'!FZ16 -> 136 | GA15: ='Timeline&Flags'!GA16 -> 137 | GB15: ='Timeline&Flags'!GB16 -> 138 | GC15: ='Timeline&Flags'!GC16 -> 139 | GD15: ='Timeline&Flags'!GD16 -> 140 | GE15: ='Timeline&Flags'!GE16 -> 141 | GF15: ='Timeline&Flags'!GF16 -> 142 | GG15: ='Timeline&Flags'!GG16 -> 143 | GH15: ='Timeline&Flags'!GH16 -> 144 | GI15: ='Timeline&Flags'!GI16 -> 145 | GJ15: ='Timeline&Flags'!GJ16 -> 146 | GK15: ='Timeline&Flags'!GK16 -> 147 | GL15: ='Timeline&Flags'!GL16 -> 148 | GM15: ='Timeline&Flags'!GM16 -> 149 | GN15: ='Timeline&Flags'!GN16 -> 150 | GO15: ='Timeline&Flags'!GO16 -> 151 | GP15: ='Timeline&Flags'!GP16 -> 152 | GQ15: ='Timeline&Flags'!GQ16 -> 153 | GR15: ='Timeline&Flags'!GR16 -> 154 | GS15: ='Timeline&Flags'!GS16 -> 155 | GT15: ='Timeline&Flags'!GT16 -> 156 | GU15: ='Timeline&Flags'!GU16 -> 157 | GV15: ='Timeline&Flags'!GV16 -> 158 | GW15: ='Timeline&Flags'!GW16 -> 159 | GX15: ='Timeline&Flags'!GX16 -> 160 | GY15: ='Timeline&Flags'!GY16 -> 161 | GZ15: ='Timeline&Flags'!GZ16 -> 162 | HA15: ='Timeline&Flags'!HA16 -> 163 | HB15: ='Timeline&Flags'!HB16 -> 164 | HC15: ='Timeline&Flags'!HC16 -> 165 | HD15: ='Timeline&Flags'!HD16 -> 166 | HE15: ='Timeline&Flags'!HE16 -> 167 | HF15: ='Timeline&Flags'!HF16 -> 168 | HG15: ='Timeline&Flags'!HG16 -> 169 | HH15: ='Timeline&Flags'!HH16 -> 170 | HI15: ='Timeline&Flags'!HI16 -> 171 | HJ15: ='Timeline&Flags'!HJ16 -> 172 | HK15: ='Timeline&Flags'!HK16 -> 173 | HL15: ='Timeline&Flags'!HL16 -> 174 | HM15: ='Timeline&Flags'!HM16 -> 175 | HN15: ='Timeline&Flags'!HN16 -> 176 | HO15: ='Timeline&Flags'!HO16 -> 177 | HP15: ='Timeline&Flags'!HP16 -> 178 | HQ15: ='Timeline&Flags'!HQ16 -> 179 | HR15: ='Timeline&Flags'!HR16 -> 180 | HS15: ='Timeline&Flags'!HS16 -> 181 | HT15: ='Timeline&Flags'!HT16 -> 182 | HU15: ='Timeline&Flags'!HU16 -> 183 | HV15: ='Timeline&Flags'!HV16 -> 184 | HW15: ='Timeline&Flags'!HW16 -> 185 | HX15: ='Timeline&Flags'!HX16 -> 186 | HY15: ='Timeline&Flags'!HY16 -> 187 | HZ15: ='Timeline&Flags'!HZ16 -> 188 | IA15: ='Timeline&Flags'!IA16 -> 189 | IB15: ='Timeline&Flags'!IB16 -> 190 | IC15: ='Timeline&Flags'!IC16 -> 191 | ID15: ='Timeline&Flags'!ID16 -> 192 | IE15: ='Timeline&Flags'!IE16 -> 193 | IF15: ='Timeline&Flags'!IF16 -> 194 | IG15: ='Timeline&Flags'!IG16 -> 195 | IH15: ='Timeline&Flags'!IH16 -> 196 | II15: ='Timeline&Flags'!II16 -> 197 | IJ15: ='Timeline&Flags'!IJ16 -> 198 | IK15: ='Timeline&Flags'!IK16 -> 199 | IL15: ='Timeline&Flags'!IL16 -> 200 | IM15: ='Timeline&Flags'!IM16 -> 201 | IN15: ='Timeline&Flags'!IN16 -> 202 | IO15: ='Timeline&Flags'!IO16 -> 203 | IP15: ='Timeline&Flags'!IP16 -> 204 | IQ15: ='Timeline&Flags'!IQ16 -> 205 | IR15: ='Timeline&Flags'!IR16 -> 206 | IS15: ='Timeline&Flags'!IS16 -> 207 | IT15: ='Timeline&Flags'!IT16 -> 208 | IU15: ='Timeline&Flags'!IU16 -> 209 | IV15: ='Timeline&Flags'!IV16 -> 210 | IW15: ='Timeline&Flags'!IW16 -> 211 | IX15: ='Timeline&Flags'!IX16 -> 212 | IY15: ='Timeline&Flags'!IY16 -> 213 | IZ15: ='Timeline&Flags'!IZ16 -> 214 | JA15: ='Timeline&Flags'!JA16 -> 215 | JB15: ='Timeline&Flags'!JB16 -> 216 | JC15: ='Timeline&Flags'!JC16 -> 217 | JD15: ='Timeline&Flags'!JD16 -> 218 | JE15: ='Timeline&Flags'!JE16 -> 219 | JF15: ='Timeline&Flags'!JF16 -> 220 | JG15: ='Timeline&Flags'!JG16 -> 221 | JH15: ='Timeline&Flags'!JH16 -> 222 | JI15: ='Timeline&Flags'!JI16 -> 223 | JJ15: ='Timeline&Flags'!JJ16 -> 224 | JK15: ='Timeline&Flags'!JK16 -> 225 | JL15: ='Timeline&Flags'!JL16 -> 226 | JM15: ='Timeline&Flags'!JM16 -> 227 | JN15: ='Timeline&Flags'!JN16 -> 228 | JO15: ='Timeline&Flags'!JO16 -> 229 | JP15: ='Timeline&Flags'!JP16 -> 230 | JQ15: ='Timeline&Flags'!JQ16 -> 231 | JR15: ='Timeline&Flags'!JR16 -> 232 | JS15: ='Timeline&Flags'!JS16 -> 233 | JT15: ='Timeline&Flags'!JT16 -> 234 | JU15: ='Timeline&Flags'!JU16 -> 235 | JV15: ='Timeline&Flags'!JV16 -> 236 | JW15: ='Timeline&Flags'!JW16 -> 237 | JX15: ='Timeline&Flags'!JX16 -> 238 | JY15: ='Timeline&Flags'!JY16 -> 239 | JZ15: ='Timeline&Flags'!JZ16 -> 240 | KA15: ='Timeline&Flags'!KA16 -> 241 | KB15: ='Timeline&Flags'!KB16 -> 242 | KC15: ='Timeline&Flags'!KC16 -> 243 | KD15: ='Timeline&Flags'!KD16 -> 244 | KE15: ='Timeline&Flags'!KE16 -> 245 | KF15: ='Timeline&Flags'!KF16 -> 246 | KG15: ='Timeline&Flags'!KG16 -> 247 | KH15: ='Timeline&Flags'!KH16 -> 248 | KI15: ='Timeline&Flags'!KI16 -> 249 | KJ15: ='Timeline&Flags'!KJ16 -> 250 | KK15: ='Timeline&Flags'!KK16 -> 251 | KL15: ='Timeline&Flags'!KL16 -> 252 | KM15: ='Timeline&Flags'!KM16 -> 253 | KN15: ='Timeline&Flags'!KN16 -> 254 | KO15: ='Timeline&Flags'!KO16 -> 255 | KP15: ='Timeline&Flags'!KP16 -> 256 | KQ15: ='Timeline&Flags'!KQ16 -> 257 | KR15: ='Timeline&Flags'!KR16 -> 258 | KS15: ='Timeline&Flags'!KS16 -> 259 | KT15: ='Timeline&Flags'!KT16 -> 260 | KU15: ='Timeline&Flags'!KU16 -> 261 | KV15: ='Timeline&Flags'!KV16 -> 262 | KW15: ='Timeline&Flags'!KW16 -> 263 | KX15: ='Timeline&Flags'!KX16 -> 264 | KY15: ='Timeline&Flags'!KY16 -> 265 | KZ15: ='Timeline&Flags'!KZ16 -> 266 | LA15: ='Timeline&Flags'!LA16 -> 267 | LB15: ='Timeline&Flags'!LB16 -> 268 | LC15: ='Timeline&Flags'!LC16 -> 269 | LD15: ='Timeline&Flags'!LD16 -> 270 | LE15: ='Timeline&Flags'!LE16 -> 271 | LF15: ='Timeline&Flags'!LF16 -> 272 | LG15: ='Timeline&Flags'!LG16 -> 273 | LH15: ='Timeline&Flags'!LH16 -> 274 | LI15: ='Timeline&Flags'!LI16 -> 275 | LJ15: ='Timeline&Flags'!LJ16 -> 276 | LK15: ='Timeline&Flags'!LK16 -> 277 | LL15: ='Timeline&Flags'!LL16 -> 278 | LM15: ='Timeline&Flags'!LM16 -> 279 | LN15: ='Timeline&Flags'!LN16 -> 280 | LO15: ='Timeline&Flags'!LO16 -> 281 | LP15: ='Timeline&Flags'!LP16 -> 282 | LQ15: ='Timeline&Flags'!LQ16 -> 283 | LR15: ='Timeline&Flags'!LR16 -> 284 | LS15: ='Timeline&Flags'!LS16 -> 285 | LT15: ='Timeline&Flags'!LT16 -> 286 | LU15: ='Timeline&Flags'!LU16 -> 287 | LV15: ='Timeline&Flags'!LV16 -> 288 | LW15: ='Timeline&Flags'!LW16 -> 289 | LX15: ='Timeline&Flags'!LX16 -> 290 | LY15: ='Timeline&Flags'!LY16 -> 291 | LZ15: ='Timeline&Flags'!LZ16 -> 292 | MA15: ='Timeline&Flags'!MA16 -> 293 | MB15: ='Timeline&Flags'!MB16 -> 294 | MC15: ='Timeline&Flags'!MC16 -> 295 | MD15: ='Timeline&Flags'!MD16 -> 296 | ME15: ='Timeline&Flags'!ME16 -> 297 | MF15: ='Timeline&Flags'!MF16 -> 298 | MG15: ='Timeline&Flags'!MG16 -> 299 | MH15: ='Timeline&Flags'!MH16 -> 300
E16: ='Timeline&Flags'!E17 -> Descending column count | S16: ='Timeline&Flags'!S17 -> 298 | T16: ='Timeline&Flags'!T17 -> 286 | U16: ='Timeline&Flags'!U17 -> 274 | V16: ='Timeline&Flags'!V17 -> 262 | W16: ='Timeline&Flags'!W17 -> 250 | X16: ='Timeline&Flags'!X17 -> 238 | Y16: ='Timeline&Flags'!Y17 -> 226 | Z16: ='Timeline&Flags'!Z17 -> 214 | AA16: ='Timeline&Flags'!AA17 -> 202 | AB16: ='Timeline&Flags'!AB17 -> 190 | AC16: ='Timeline&Flags'!AC17 -> 178 | AD16: ='Timeline&Flags'!AD17 -> 166 | AE16: ='Timeline&Flags'!AE17 -> 154 | AF16: ='Timeline&Flags'!AF17 -> 142 | AG16: ='Timeline&Flags'!AG17 -> 130 | AH16: ='Timeline&Flags'!AH17 -> 118 | AI16: ='Timeline&Flags'!AI17 -> 106 | AJ16: ='Timeline&Flags'!AJ17 -> 94 | AK16: ='Timeline&Flags'!AK17 -> 82 | AL16: ='Timeline&Flags'!AL17 -> 70 | AM16: ='Timeline&Flags'!AM17 -> 58 | AN16: ='Timeline&Flags'!AN17 -> 46 | AO16: ='Timeline&Flags'!AO17 -> 34 | AP16: ='Timeline&Flags'!AP17 -> 22 | AQ16: ='Timeline&Flags'!AQ17 -> 10 | AU16: ='Timeline&Flags'!AU17 -> 300 | AV16: ='Timeline&Flags'!AV17 -> 299 | AW16: ='Timeline&Flags'!AW17 -> 298 | AX16: ='Timeline&Flags'!AX17 -> 297 | AY16: ='Timeline&Flags'!AY17 -> 296 | AZ16: ='Timeline&Flags'!AZ17 -> 295 | BA16: ='Timeline&Flags'!BA17 -> 294 | BB16: ='Timeline&Flags'!BB17 -> 293 | BC16: ='Timeline&Flags'!BC17 -> 292 | BD16: ='Timeline&Flags'!BD17 -> 291 | BE16: ='Timeline&Flags'!BE17 -> 290 | BF16: ='Timeline&Flags'!BF17 -> 289 | BG16: ='Timeline&Flags'!BG17 -> 288 | BH16: ='Timeline&Flags'!BH17 -> 287 | BI16: ='Timeline&Flags'!BI17 -> 286 | BJ16: ='Timeline&Flags'!BJ17 -> 285 | BK16: ='Timeline&Flags'!BK17 -> 284 | BL16: ='Timeline&Flags'!BL17 -> 283 | BM16: ='Timeline&Flags'!BM17 -> 282 | BN16: ='Timeline&Flags'!BN17 -> 281 | BO16: ='Timeline&Flags'!BO17 -> 280 | BP16: ='Timeline&Flags'!BP17 -> 279 | BQ16: ='Timeline&Flags'!BQ17 -> 278 | BR16: ='Timeline&Flags'!BR17 -> 277 | BS16: ='Timeline&Flags'!BS17 -> 276 | BT16: ='Timeline&Flags'!BT17 -> 275 | BU16: ='Timeline&Flags'!BU17 -> 274 | BV16: ='Timeline&Flags'!BV17 -> 273 | BW16: ='Timeline&Flags'!BW17 -> 272 | BX16: ='Timeline&Flags'!BX17 -> 271 | BY16: ='Timeline&Flags'!BY17 -> 270 | BZ16: ='Timeline&Flags'!BZ17 -> 269 | CA16: ='Timeline&Flags'!CA17 -> 268 | CB16: ='Timeline&Flags'!CB17 -> 267 | CC16: ='Timeline&Flags'!CC17 -> 266 | CD16: ='Timeline&Flags'!CD17 -> 265 | CE16: ='Timeline&Flags'!CE17 -> 264 | CF16: ='Timeline&Flags'!CF17 -> 263 | CG16: ='Timeline&Flags'!CG17 -> 262 | CH16: ='Timeline&Flags'!CH17 -> 261 | CI16: ='Timeline&Flags'!CI17 -> 260 | CJ16: ='Timeline&Flags'!CJ17 -> 259 | CK16: ='Timeline&Flags'!CK17 -> 258 | CL16: ='Timeline&Flags'!CL17 -> 257 | CM16: ='Timeline&Flags'!CM17 -> 256 | CN16: ='Timeline&Flags'!CN17 -> 255 | CO16: ='Timeline&Flags'!CO17 -> 254 | CP16: ='Timeline&Flags'!CP17 -> 253 | CQ16: ='Timeline&Flags'!CQ17 -> 252 | CR16: ='Timeline&Flags'!CR17 -> 251 | CS16: ='Timeline&Flags'!CS17 -> 250 | CT16: ='Timeline&Flags'!CT17 -> 249 | CU16: ='Timeline&Flags'!CU17 -> 248 | CV16: ='Timeline&Flags'!CV17 -> 247 | CW16: ='Timeline&Flags'!CW17 -> 246 | CX16: ='Timeline&Flags'!CX17 -> 245 | CY16: ='Timeline&Flags'!CY17 -> 244 | CZ16: ='Timeline&Flags'!CZ17 -> 243 | DA16: ='Timeline&Flags'!DA17 -> 242 | DB16: ='Timeline&Flags'!DB17 -> 241 | DC16: ='Timeline&Flags'!DC17 -> 240 | DD16: ='Timeline&Flags'!DD17 -> 239 | DE16: ='Timeline&Flags'!DE17 -> 238 | DF16: ='Timeline&Flags'!DF17 -> 237 | DG16: ='Timeline&Flags'!DG17 -> 236 | DH16: ='Timeline&Flags'!DH17 -> 235 | DI16: ='Timeline&Flags'!DI17 -> 234 | DJ16: ='Timeline&Flags'!DJ17 -> 233 | DK16: ='Timeline&Flags'!DK17 -> 232 | DL16: ='Timeline&Flags'!DL17 -> 231 | DM16: ='Timeline&Flags'!DM17 -> 230 | DN16: ='Timeline&Flags'!DN17 -> 229 | DO16: ='Timeline&Flags'!DO17 -> 228 | DP16: ='Timeline&Flags'!DP17 -> 227 | DQ16: ='Timeline&Flags'!DQ17 -> 226 | DR16: ='Timeline&Flags'!DR17 -> 225 | DS16: ='Timeline&Flags'!DS17 -> 224 | DT16: ='Timeline&Flags'!DT17 -> 223 | DU16: ='Timeline&Flags'!DU17 -> 222 | DV16: ='Timeline&Flags'!DV17 -> 221 | DW16: ='Timeline&Flags'!DW17 -> 220 | DX16: ='Timeline&Flags'!DX17 -> 219 | DY16: ='Timeline&Flags'!DY17 -> 218 | DZ16: ='Timeline&Flags'!DZ17 -> 217 | EA16: ='Timeline&Flags'!EA17 -> 216 | EB16: ='Timeline&Flags'!EB17 -> 215 | EC16: ='Timeline&Flags'!EC17 -> 214 | ED16: ='Timeline&Flags'!ED17 -> 213 | EE16: ='Timeline&Flags'!EE17 -> 212 | EF16: ='Timeline&Flags'!EF17 -> 211 | EG16: ='Timeline&Flags'!EG17 -> 210 | EH16: ='Timeline&Flags'!EH17 -> 209 | EI16: ='Timeline&Flags'!EI17 -> 208 | EJ16: ='Timeline&Flags'!EJ17 -> 207 | EK16: ='Timeline&Flags'!EK17 -> 206 | EL16: ='Timeline&Flags'!EL17 -> 205 | EM16: ='Timeline&Flags'!EM17 -> 204 | EN16: ='Timeline&Flags'!EN17 -> 203 | EO16: ='Timeline&Flags'!EO17 -> 202 | EP16: ='Timeline&Flags'!EP17 -> 201 | EQ16: ='Timeline&Flags'!EQ17 -> 200 | ER16: ='Timeline&Flags'!ER17 -> 199 | ES16: ='Timeline&Flags'!ES17 -> 198 | ET16: ='Timeline&Flags'!ET17 -> 197 | EU16: ='Timeline&Flags'!EU17 -> 196 | EV16: ='Timeline&Flags'!EV17 -> 195 | EW16: ='Timeline&Flags'!EW17 -> 194 | EX16: ='Timeline&Flags'!EX17 -> 193 | EY16: ='Timeline&Flags'!EY17 -> 192 | EZ16: ='Timeline&Flags'!EZ17 -> 191 | FA16: ='Timeline&Flags'!FA17 -> 190 | FB16: ='Timeline&Flags'!FB17 -> 189 | FC16: ='Timeline&Flags'!FC17 -> 188 | FD16: ='Timeline&Flags'!FD17 -> 187 | FE16: ='Timeline&Flags'!FE17 -> 186 | FF16: ='Timeline&Flags'!FF17 -> 185 | FG16: ='Timeline&Flags'!FG17 -> 184 | FH16: ='Timeline&Flags'!FH17 -> 183 | FI16: ='Timeline&Flags'!FI17 -> 182 | FJ16: ='Timeline&Flags'!FJ17 -> 181 | FK16: ='Timeline&Flags'!FK17 -> 180 | FL16: ='Timeline&Flags'!FL17 -> 179 | FM16: ='Timeline&Flags'!FM17 -> 178 | FN16: ='Timeline&Flags'!FN17 -> 177 | FO16: ='Timeline&Flags'!FO17 -> 176 | FP16: ='Timeline&Flags'!FP17 -> 175 | FQ16: ='Timeline&Flags'!FQ17 -> 174 | FR16: ='Timeline&Flags'!FR17 -> 173 | FS16: ='Timeline&Flags'!FS17 -> 172 | FT16: ='Timeline&Flags'!FT17 -> 171 | FU16: ='Timeline&Flags'!FU17 -> 170 | FV16: ='Timeline&Flags'!FV17 -> 169 | FW16: ='Timeline&Flags'!FW17 -> 168 | FX16: ='Timeline&Flags'!FX17 -> 167 | FY16: ='Timeline&Flags'!FY17 -> 166 | FZ16: ='Timeline&Flags'!FZ17 -> 165 | GA16: ='Timeline&Flags'!GA17 -> 164 | GB16: ='Timeline&Flags'!GB17 -> 163 | GC16: ='Timeline&Flags'!GC17 -> 162 | GD16: ='Timeline&Flags'!GD17 -> 161 | GE16: ='Timeline&Flags'!GE17 -> 160 | GF16: ='Timeline&Flags'!GF17 -> 159 | GG16: ='Timeline&Flags'!GG17 -> 158 | GH16: ='Timeline&Flags'!GH17 -> 157 | GI16: ='Timeline&Flags'!GI17 -> 156 | GJ16: ='Timeline&Flags'!GJ17 -> 155 | GK16: ='Timeline&Flags'!GK17 -> 154 | GL16: ='Timeline&Flags'!GL17 -> 153 | GM16: ='Timeline&Flags'!GM17 -> 152 | GN16: ='Timeline&Flags'!GN17 -> 151 | GO16: ='Timeline&Flags'!GO17 -> 150 | GP16: ='Timeline&Flags'!GP17 -> 149 | GQ16: ='Timeline&Flags'!GQ17 -> 148 | GR16: ='Timeline&Flags'!GR17 -> 147 | GS16: ='Timeline&Flags'!GS17 -> 146 | GT16: ='Timeline&Flags'!GT17 -> 145 | GU16: ='Timeline&Flags'!GU17 -> 144 | GV16: ='Timeline&Flags'!GV17 -> 143 | GW16: ='Timeline&Flags'!GW17 -> 142 | GX16: ='Timeline&Flags'!GX17 -> 141 | GY16: ='Timeline&Flags'!GY17 -> 140 | GZ16: ='Timeline&Flags'!GZ17 -> 139 | HA16: ='Timeline&Flags'!HA17 -> 138 | HB16: ='Timeline&Flags'!HB17 -> 137 | HC16: ='Timeline&Flags'!HC17 -> 136 | HD16: ='Timeline&Flags'!HD17 -> 135 | HE16: ='Timeline&Flags'!HE17 -> 134 | HF16: ='Timeline&Flags'!HF17 -> 133 | HG16: ='Timeline&Flags'!HG17 -> 132 | HH16: ='Timeline&Flags'!HH17 -> 131 | HI16: ='Timeline&Flags'!HI17 -> 130 | HJ16: ='Timeline&Flags'!HJ17 -> 129 | HK16: ='Timeline&Flags'!HK17 -> 128 | HL16: ='Timeline&Flags'!HL17 -> 127 | HM16: ='Timeline&Flags'!HM17 -> 126 | HN16: ='Timeline&Flags'!HN17 -> 125 | HO16: ='Timeline&Flags'!HO17 -> 124 | HP16: ='Timeline&Flags'!HP17 -> 123 | HQ16: ='Timeline&Flags'!HQ17 -> 122 | HR16: ='Timeline&Flags'!HR17 -> 121 | HS16: ='Timeline&Flags'!HS17 -> 120 | HT16: ='Timeline&Flags'!HT17 -> 119 | HU16: ='Timeline&Flags'!HU17 -> 118 | HV16: ='Timeline&Flags'!HV17 -> 117 | HW16: ='Timeline&Flags'!HW17 -> 116 | HX16: ='Timeline&Flags'!HX17 -> 115 | HY16: ='Timeline&Flags'!HY17 -> 114 | HZ16: ='Timeline&Flags'!HZ17 -> 113 | IA16: ='Timeline&Flags'!IA17 -> 112 | IB16: ='Timeline&Flags'!IB17 -> 111 | IC16: ='Timeline&Flags'!IC17 -> 110 | ID16: ='Timeline&Flags'!ID17 -> 109 | IE16: ='Timeline&Flags'!IE17 -> 108 | IF16: ='Timeline&Flags'!IF17 -> 107 | IG16: ='Timeline&Flags'!IG17 -> 106 | IH16: ='Timeline&Flags'!IH17 -> 105 | II16: ='Timeline&Flags'!II17 -> 104 | IJ16: ='Timeline&Flags'!IJ17 -> 103 | IK16: ='Timeline&Flags'!IK17 -> 102 | IL16: ='Timeline&Flags'!IL17 -> 101 | IM16: ='Timeline&Flags'!IM17 -> 100 | IN16: ='Timeline&Flags'!IN17 -> 99 | IO16: ='Timeline&Flags'!IO17 -> 98 | IP16: ='Timeline&Flags'!IP17 -> 97 | IQ16: ='Timeline&Flags'!IQ17 -> 96 | IR16: ='Timeline&Flags'!IR17 -> 95 | IS16: ='Timeline&Flags'!IS17 -> 94 | IT16: ='Timeline&Flags'!IT17 -> 93 | IU16: ='Timeline&Flags'!IU17 -> 92 | IV16: ='Timeline&Flags'!IV17 -> 91 | IW16: ='Timeline&Flags'!IW17 -> 90 | IX16: ='Timeline&Flags'!IX17 -> 89 | IY16: ='Timeline&Flags'!IY17 -> 88 | IZ16: ='Timeline&Flags'!IZ17 -> 87 | JA16: ='Timeline&Flags'!JA17 -> 86 | JB16: ='Timeline&Flags'!JB17 -> 85 | JC16: ='Timeline&Flags'!JC17 -> 84 | JD16: ='Timeline&Flags'!JD17 -> 83 | JE16: ='Timeline&Flags'!JE17 -> 82 | JF16: ='Timeline&Flags'!JF17 -> 81 | JG16: ='Timeline&Flags'!JG17 -> 80 | JH16: ='Timeline&Flags'!JH17 -> 79 | JI16: ='Timeline&Flags'!JI17 -> 78 | JJ16: ='Timeline&Flags'!JJ17 -> 77 | JK16: ='Timeline&Flags'!JK17 -> 76 | JL16: ='Timeline&Flags'!JL17 -> 75 | JM16: ='Timeline&Flags'!JM17 -> 74 | JN16: ='Timeline&Flags'!JN17 -> 73 | JO16: ='Timeline&Flags'!JO17 -> 72 | JP16: ='Timeline&Flags'!JP17 -> 71 | JQ16: ='Timeline&Flags'!JQ17 -> 70 | JR16: ='Timeline&Flags'!JR17 -> 69 | JS16: ='Timeline&Flags'!JS17 -> 68 | JT16: ='Timeline&Flags'!JT17 -> 67 | JU16: ='Timeline&Flags'!JU17 -> 66 | JV16: ='Timeline&Flags'!JV17 -> 65 | JW16: ='Timeline&Flags'!JW17 -> 64 | JX16: ='Timeline&Flags'!JX17 -> 63 | JY16: ='Timeline&Flags'!JY17 -> 62 | JZ16: ='Timeline&Flags'!JZ17 -> 61 | KA16: ='Timeline&Flags'!KA17 -> 60 | KB16: ='Timeline&Flags'!KB17 -> 59 | KC16: ='Timeline&Flags'!KC17 -> 58 | KD16: ='Timeline&Flags'!KD17 -> 57 | KE16: ='Timeline&Flags'!KE17 -> 56 | KF16: ='Timeline&Flags'!KF17 -> 55 | KG16: ='Timeline&Flags'!KG17 -> 54 | KH16: ='Timeline&Flags'!KH17 -> 53 | KI16: ='Timeline&Flags'!KI17 -> 52 | KJ16: ='Timeline&Flags'!KJ17 -> 51 | KK16: ='Timeline&Flags'!KK17 -> 50 | KL16: ='Timeline&Flags'!KL17 -> 49 | KM16: ='Timeline&Flags'!KM17 -> 48 | KN16: ='Timeline&Flags'!KN17 -> 47 | KO16: ='Timeline&Flags'!KO17 -> 46 | KP16: ='Timeline&Flags'!KP17 -> 45 | KQ16: ='Timeline&Flags'!KQ17 -> 44 | KR16: ='Timeline&Flags'!KR17 -> 43 | KS16: ='Timeline&Flags'!KS17 -> 42 | KT16: ='Timeline&Flags'!KT17 -> 41 | KU16: ='Timeline&Flags'!KU17 -> 40 | KV16: ='Timeline&Flags'!KV17 -> 39 | KW16: ='Timeline&Flags'!KW17 -> 38 | KX16: ='Timeline&Flags'!KX17 -> 37 | KY16: ='Timeline&Flags'!KY17 -> 36 | KZ16: ='Timeline&Flags'!KZ17 -> 35 | LA16: ='Timeline&Flags'!LA17 -> 34 | LB16: ='Timeline&Flags'!LB17 -> 33 | LC16: ='Timeline&Flags'!LC17 -> 32 | LD16: ='Timeline&Flags'!LD17 -> 31 | LE16: ='Timeline&Flags'!LE17 -> 30 | LF16: ='Timeline&Flags'!LF17 -> 29 | LG16: ='Timeline&Flags'!LG17 -> 28 | LH16: ='Timeline&Flags'!LH17 -> 27 | LI16: ='Timeline&Flags'!LI17 -> 26 | LJ16: ='Timeline&Flags'!LJ17 -> 25 | LK16: ='Timeline&Flags'!LK17 -> 24 | LL16: ='Timeline&Flags'!LL17 -> 23 | LM16: ='Timeline&Flags'!LM17 -> 22 | LN16: ='Timeline&Flags'!LN17 -> 21 | LO16: ='Timeline&Flags'!LO17 -> 20 | LP16: ='Timeline&Flags'!LP17 -> 19 | LQ16: ='Timeline&Flags'!LQ17 -> 18 | LR16: ='Timeline&Flags'!LR17 -> 17 | LS16: ='Timeline&Flags'!LS17 -> 16 | LT16: ='Timeline&Flags'!LT17 -> 15 | LU16: ='Timeline&Flags'!LU17 -> 14 | LV16: ='Timeline&Flags'!LV17 -> 13 | LW16: ='Timeline&Flags'!LW17 -> 12 | LX16: ='Timeline&Flags'!LX17 -> 11 | LY16: ='Timeline&Flags'!LY17 -> 10 | LZ16: ='Timeline&Flags'!LZ17 -> 9 | MA16: ='Timeline&Flags'!MA17 -> 8 | MB16: ='Timeline&Flags'!MB17 -> 7 | MC16: ='Timeline&Flags'!MC17 -> 6 | MD16: ='Timeline&Flags'!MD17 -> 5 | ME16: ='Timeline&Flags'!ME17 -> 4 | MF16: ='Timeline&Flags'!MF17 -> 3 | MG16: ='Timeline&Flags'!MG17 -> 2 | MH16: ='Timeline&Flags'!MH17 -> 1
B18: Model Inputs | E18: hj | O18: NOTES
C19: Indexation Factor
E21: Calculated Indexation Flags | H21: Date from which Base Value Applies | I21: Base Value | J21: Rate p.a | K21: Uplift every | M21: Stored Rate p.a. for AR
E22: Electricty Price Inflation | H22: 2018-01-01 | I22: 1.000 | J22: 0.00% | K22: 12 | L22: =IFERROR(MATCH(H22,$AU$5:$XFD$5,0),0) -> 1 | M22: 2.50% | AU22: =IF(AND(AU$5>$H22,MOD(MOD(MONTH(AU$5)+1-MONTH($H22),12),$K22)=1),1,0) -> 0 | AV22: 0 | AW22: 0 | AX22: 0 | AY22: 0 | AZ22: 0 | BA22: 0 | BB22: 0 | BC22: 0 | BD22: 0 | BE22: 0 | BF22: 0 | BG22: 1.000 | BH22: 0 | BI22: 0 | BJ22: 0 | BK22: =IF(AND(BK$5>$H22,MOD(MOD(MONTH(BK$5)+1-MONTH($H22),12),$K22)=1),1,0) -> 0 | BL22: 0 | BM22: 0 | BN22: 0 | BO22: 0 | BP22: 0 | BQ22: 0 | BR22: 0 | BS22: 1.000 | BT22: 0 | BU22: 0 | BV22: 0 | BW22: 0 | BX22: 0 | BY22: 0 | BZ22: 0 | CA22: 0 | CB22: 0 | CC22: 0 | CD22: 0 | CE22: 1.000 | CF22: 0 | CG22: 0 | CH22: 0 | CI22: 0 | CJ22: 0 | CK22: 0 | CL22: 0 | CM22: 0 | CN22: 0 | CO22: 0 | CP22: 0 | CQ22: 1.000 | CR22: 0 | CS22: 0 | CT22: 0 | CU22: 0 | CV22: 0 | CW22: 0 | CX22: 0 | CY22: 0 | CZ22: 0 | DA22: 0 | DB22: 0 | DC22: 1.000 | DD22: 0 | DE22: 0 | DF22: 0 | DG22: 0 | DH22: 0 | DI22: 0 | DJ22: 0 | DK22: 0 | DL22: 0 | DM22: 0 | DN22: 0 | DO22: 1.000 | DP22: 0 | DQ22: 0 | DR22: 0 | DS22: 0 | DT22: 0 | DU22: 0 | DV22: 0 | DW22: =IF(AND(DW$5>$H22,MOD(MOD(MONTH(DW$5)+1-MONTH($H22),12),$K22)=1),1,0) -> 0 | DX22: 0 | DY22: 0 | DZ22: 0 | EA22: 1.000 | EB22: 0 | EC22: 0 | ED22: 0 | EE22: 0 | EF22: 0 | EG22: 0 | EH22: 0 | EI22: 0 | EJ22: 0 | EK22: 0 | EL22: 0 | EM22: 1.000 | EN22: 0 | EO22: 0 | EP22: 0 | EQ22: 0 | ER22: 0 | ES22: 0 | ET22: 0 | EU22: 0 | EV22: 0 | EW22: 0 | EX22: 0 | EY22: 1.000 | EZ22: 0 | FA22: 0 | FB22: 0 | FC22: 0 | FD22: 0 | FE22: 0 | FF22: 0 | FG22: 0 | FH22: 0 | FI22: 0 | FJ22: 0 | FK22: 1.000 | FL22: 0 | FM22: 0 | FN22: 0 | FO22: 0 | FP22: 0 | FQ22: 0 | FR22: 0 | FS22: 0 | FT22: 0 | FU22: 0 | FV22: 0 | FW22: 1.000 | FX22: 0 | FY22: 0 | FZ22: 0 | GA22: 0 | GB22: 0 | GC22: 0 | GD22: 0 | GE22: 0 | GF22: 0 | GG22: 0 | GH22: 0 | GI22: =IF(AND(GI$5>$H22,MOD(MOD(MONTH(GI$5)+1-MONTH($H22),12),$K22)=1),1,0) -> 1.000 | GJ22: 0 | GK22: 0 | GL22: 0 | GM22: 0 | GN22: 0 | GO22: 0 | GP22: 0 | GQ22: 0 | GR22: 0 | GS22: 0 | GT22: 0 | GU22: 1.000 | GV22: 0 | GW22: 0 | GX22: 0 | GY22: 0 | GZ22: 0 | HA22: 0 | HB22: 0 | HC22: 0 | HD22: 0 | HE22: 0 | HF22: 0 | HG22: 1.000 | HH22: 0 | HI22: 0 | HJ22: 0 | HK22: 0 | HL22: 0 | HM22: 0 | HN22: 0 | HO22: 0 | HP22: 0 | HQ22: 0 | HR22: 0 | HS22: 1.000 | HT22: 0 | HU22: 0 | HV22: 0 | HW22: 0 | HX22: 0 | HY22: 0 | HZ22: 0 | IA22: 0 | IB22: 0 | IC22: 0 | ID22: 0 | IE22: 1.000 | IF22: 0 | IG22: 0 | IH22: 0 | II22: 0 | IJ22: 0 | IK22: 0 | IL22: 0 | IM22: 0 | IN22: 0 | IO22: 0 | IP22: 0 | IQ22: 1.000 | IR22: 0 | IS22: 0 | IT22: 0 | IU22: =IF(AND(IU$5>$H22,MOD(MOD(MONTH(IU$5)+1-MONTH($H22),12),$K22)=1),1,0) -> 0 | IV22: 0 | IW22: 0 | IX22: 0 | IY22: 0 | IZ22: 0 | JA22: 0 | JB22: 0 | JC22: 1.000 | JD22: 0 | JE22: 0 | JF22: 0 | JG22: 0 | JH22: 0 | JI22: 0 | JJ22: 0 | JK22: 0 | JL22: 0 | JM22: 0 | JN22: 0 | JO22: 1.000 | JP22: 0 | JQ22: 0 | JR22: 0 | JS22: 0 | JT22: 0 | JU22: 0 | JV22: 0 | JW22: 0 | JX22: 0 | JY22: 0 | JZ22: 0 | KA22: 1.000 | KB22: 0 | KC22: 0 | KD22: 0 | KE22: 0 | KF22: 0 | KG22: 0 | KH22: 0 | KI22: 0 | KJ22: 0 | KK22: 0 | KL22: 0 | KM22: 1.000 | KN22: 0 | KO22: 0 | KP22: 0 | KQ22: 0 | KR22: 0 | KS22: 0 | KT22: 0 | KU22: 0 | KV22: 0 | KW22: 0 | KX22: 0 | KY22: 1.000 | KZ22: 0 | LA22: 0 | LB22: 0 | LC22: 0 | LD22: 0 | LE22: 0 | LF22: 0 | LG22: =IF(AND(LG$5>$H22,MOD(MOD(MONTH(LG$5)+1-MONTH($H22),12),$K22)=1),1,0) -> 0 | LH22: 0 | LI22: 0 | LJ22: 0 | LK22: 1.000 | LL22: 0 | LM22: 0 | LN22: 0 | LO22: 0 | LP22: 0 | LQ22: 0 | LR22: 0 | LS22: 0 | LT22: 0 | LU22: 0 | LV22: 0 | LW22: 1.000 | LX22: 0 | LY22: 0 | LZ22: 0 | MA22: 0 | MB22: 0 | MC22: 0 | MD22: 0 | ME22: 0 | MF22: 0 | MG22: 0 | MH22: 0
E23: CPI | H23: 2018-01-01 | I23: 1.000 | J23: 0.00% | K23: 12 | L23: 1 | M23: 2.00% | AU23: 0 | AV23: 0 | AW23: 0 | AX23: 0 | AY23: 0 | AZ23: 0 | BA23: 0 | BB23: 0 | BC23: 0 | BD23: 0 | BE23: 0 | BF23: 0 | BG23: 1.000 | BH23: 0 | BI23: 0 | BJ23: 0 | BK23: 0 | BL23: 0 | BM23: 0 | BN23: 0 | BO23: 0 | BP23: 0 | BQ23: 0 | BR23: 0 | BS23: 1.000 | BT23: 0 | BU23: 0 | BV23: 0 | BW23: 0 | BX23: 0 | BY23: 0 | BZ23: 0 | CA23: 0 | CB23: 0 | CC23: 0 | CD23: 0 | CE23: 1.000 | CF23: 0 | CG23: 0 | CH23: 0 | CI23: 0 | CJ23: 0 | CK23: 0 | CL23: 0 | CM23: 0 | CN23: 0 | CO23: 0 | CP23: 0 | CQ23: 1.000 | CR23: 0 | CS23: 0 | CT23: 0 | CU23: 0 | CV23: 0 | CW23: 0 | CX23: 0 | CY23: 0 | CZ23: 0 | DA23: 0 | DB23: 0 | DC23: 1.000 | DD23: 0 | DE23: 0 | DF23: 0 | DG23: 0 | DH23: 0 | DI23: 0 | DJ23: 0 | DK23: 0 | DL23: 0 | DM23: 0 | DN23: 0 | DO23: 1.000 | DP23: 0 | DQ23: 0 | DR23: 0 | DS23: 0 | DT23: 0 | DU23: 0 | DV23: 0 | DW23: 0 | DX23: 0 | DY23: 0 | DZ23: 0 | EA23: 1.000 | EB23: 0 | EC23: 0 | ED23: 0 | EE23: 0 | EF23: 0 | EG23: 0 | EH23: 0 | EI23: 0 | EJ23: 0 | EK23: 0 | EL23: 0 | EM23: 1.000 | EN23: 0 | EO23: 0 | EP23: 0 | EQ23: 0 | ER23: 0 | ES23: 0 | ET23: 0 | EU23: 0 | EV23: 0 | EW23: 0 | EX23: 0 | EY23: 1.000 | EZ23: 0 | FA23: 0 | FB23: 0 | FC23: 0 | FD23: 0 | FE23: 0 | FF23: 0 | FG23: 0 | FH23: 0 | FI23: 0 | FJ23: 0 | FK23: 1.000 | FL23: 0 | FM23: 0 | FN23: 0 | FO23: 0 | FP23: 0 | FQ23: 0 | FR23: 0 | FS23: 0 | FT23: 0 | FU23: 0 | FV23: 0 | FW23: 1.000 | FX23: 0 | FY23: 0 | FZ23: 0 | GA23: 0 | GB23: 0 | GC23: 0 | GD23: 0 | GE23: 0 | GF23: 0 | GG23: 0 | GH23: 0 | GI23: 1.000 | GJ23: 0 | GK23: 0 | GL23: 0 | GM23: 0 | GN23: 0 | GO23: 0 | GP23: 0 | GQ23: 0 | GR23: 0 | GS23: 0 | GT23: 0 | GU23: 1.000 | GV23: 0 | GW23: 0 | GX23: 0 | GY23: 0 | GZ23: 0 | HA23: 0 | HB23: 0 | HC23: 0 | HD23: 0 | HE23: 0 | HF23: 0 | HG23: 1.000 | HH23: 0 | HI23: 0 | HJ23: 0 | HK23: 0 | HL23: 0 | HM23: 0 | HN23: 0 | HO23: 0 | HP23: 0 | HQ23: 0 | HR23: 0 | HS23: 1.000 | HT23: 0 | HU23: 0 | HV23: 0 | HW23: 0 | HX23: 0 | HY23: 0 | HZ23: 0 | IA23: 0 | IB23: 0 | IC23: 0 | ID23: 0 | IE23: 1.000 | IF23: 0 | IG23: 0 | IH23: 0 | II23: 0 | IJ23: 0 | IK23: 0 | IL23: 0 | IM23: 0 | IN23: 0 | IO23: 0 | IP23: 0 | IQ23: 1.000 | IR23: 0 | IS23: 0 | IT23: 0 | IU23: 0 | IV23: 0 | IW23: 0 | IX23: 0 | IY23: 0 | IZ23: 0 | JA23: 0 | JB23: 0 | JC23: 1.000 | JD23: 0 | JE23: 0 | JF23: 0 | JG23: 0 | JH23: 0 | JI23: 0 | JJ23: 0 | JK23: 0 | JL23: 0 | JM23: 0 | JN23: 0 | JO23: 1.000 | JP23: 0 | JQ23: 0 | JR23: 0 | JS23: 0 | JT23: 0 | JU23: 0 | JV23: 0 | JW23: 0 | JX23: 0 | JY23: 0 | JZ23: 0 | KA23: 1.000 | KB23: 0 | KC23: 0 | KD23: 0 | KE23: 0 | KF23: 0 | KG23: 0 | KH23: 0 | KI23: 0 | KJ23: 0 | KK23: 0 | KL23: 0 | KM23: 1.000 | KN23: 0 | KO23: 0 | KP23: 0 | KQ23: 0 | KR23: 0 | KS23: 0 | KT23: 0 | KU23: 0 | KV23: 0 | KW23: 0 | KX23: 0 | KY23: 1.000 | KZ23: 0 | LA23: 0 | LB23: 0 | LC23: 0 | LD23: 0 | LE23: 0 | LF23: 0 | LG23: 0 | LH23: 0 | LI23: 0 | LJ23: 0 | LK23: 1.000 | LL23: 0 | LM23: 0 | LN23: 0 | LO23: 0 | LP23: 0 | LQ23: 0 | LR23: 0 | LS23: 0 | LT23: 0 | LU23: 0 | LV23: 0 | LW23: 1.000 | LX23: 0 | LY23: 0 | LZ23: 0 | MA23: 0 | MB23: 0 | MC23: 0 | MD23: 0 | ME23: 0 | MF23: 0 | MG23: 0 | MH23: 0
E24: RPI | H24: 2018-01-01 | I24: 1.000 | J24: 0.00% | K24: 12 | L24: 1 | M24: 2.50% | AU24: 0 | AV24: 0 | AW24: 0 | AX24: 0 | AY24: 0 | AZ24: 0 | BA24: 0 | BB24: 0 | BC24: 0 | BD24: 0 | BE24: 0 | BF24: 0 | BG24: 1.000 | BH24: 0 | BI24: 0 | BJ24: 0 | BK24: 0 | BL24: 0 | BM24: 0 | BN24: 0 | BO24: 0 | BP24: 0 | BQ24: 0 | BR24: 0 | BS24: 1.000 | BT24: 0 | BU24: 0 | BV24: 0 | BW24: 0 | BX24: 0 | BY24: 0 | BZ24: 0 | CA24: 0 | CB24: 0 | CC24: 0 | CD24: 0 | CE24: 1.000 | CF24: 0 | CG24: 0 | CH24: 0 | CI24: 0 | CJ24: 0 | CK24: 0 | CL24: 0 | CM24: 0 | CN24: 0 | CO24: 0 | CP24: 0 | CQ24: 1.000 | CR24: 0 | CS24: 0 | CT24: 0 | CU24: 0 | CV24: 0 | CW24: 0 | CX24: 0 | CY24: 0 | CZ24: 0 | DA24: 0 | DB24: 0 | DC24: 1.000 | DD24: 0 | DE24: 0 | DF24: 0 | DG24: 0 | DH24: 0 | DI24: 0 | DJ24: 0 | DK24: 0 | DL24: 0 | DM24: 0 | DN24: 0 | DO24: 1.000 | DP24: 0 | DQ24: 0 | DR24: 0 | DS24: 0 | DT24: 0 | DU24: 0 | DV24: 0 | DW24: 0 | DX24: 0 | DY24: 0 | DZ24: 0 | EA24: 1.000 | EB24: 0 | EC24: 0 | ED24: 0 | EE24: 0 | EF24: 0 | EG24: 0 | EH24: 0 | EI24: 0 | EJ24: 0 | EK24: 0 | EL24: 0 | EM24: 1.000 | EN24: 0 | EO24: 0 | EP24: 0 | EQ24: 0 | ER24: 0 | ES24: 0 | ET24: 0 | EU24: 0 | EV24: 0 | EW24: 0 | EX24: 0 | EY24: 1.000 | EZ24: 0 | FA24: 0 | FB24: 0 | FC24: 0 | FD24: 0 | FE24: 0 | FF24: 0 | FG24: 0 | FH24: 0 | FI24: 0 | FJ24: 0 | FK24: 1.000 | FL24: 0 | FM24: 0 | FN24: 0 | FO24: 0 | FP24: 0 | FQ24: 0 | FR24: 0 | FS24: 0 | FT24: 0 | FU24: 0 | FV24: 0 | FW24: 1.000 | FX24: 0 | FY24: 0 | FZ24: 0 | GA24: 0 | GB24: 0 | GC24: 0 | GD24: 0 | GE24: 0 | GF24: 0 | GG24: 0 | GH24: 0 | GI24: 1.000 | GJ24: 0 | GK24: 0 | GL24: 0 | GM24: 0 | GN24: 0 | GO24: 0 | GP24: 0 | GQ24: 0 | GR24: 0 | GS24: 0 | GT24: 0 | GU24: 1.000 | GV24: 0 | GW24: 0 | GX24: 0 | GY24: 0 | GZ24: 0 | HA24: 0 | HB24: 0 | HC24: 0 | HD24: 0 | HE24: 0 | HF24: 0 | HG24: 1.000 | HH24: 0 | HI24: 0 | HJ24: 0 | HK24: 0 | HL24: 0 | HM24: 0 | HN24: 0 | HO24: 0 | HP24: 0 | HQ24: 0 | HR24: 0 | HS24: 1.000 | HT24: 0 | HU24: 0 | HV24: 0 | HW24: 0 | HX24: 0 | HY24: 0 | HZ24: 0 | IA24: 0 | IB24: 0 | IC24: 0 | ID24: 0 | IE24: 1.000 | IF24: 0 | IG24: 0 | IH24: 0 | II24: 0 | IJ24: 0 | IK24: 0 | IL24: 0 | IM24: 0 | IN24: 0 | IO24: 0 | IP24: 0 | IQ24: 1.000 | IR24: 0 | IS24: 0 | IT24: 0 | IU24: 0 | IV24: 0 | IW24: 0 | IX24: 0 | IY24: 0 | IZ24: 0 | JA24: 0 | JB24: 0 | JC24: 1.000 | JD24: 0 | JE24: 0 | JF24: 0 | JG24: 0 | JH24: 0 | JI24: 0 | JJ24: 0 | JK24: 0 | JL24: 0 | JM24: 0 | JN24: 0 | JO24: 1.000 | JP24: 0 | JQ24: 0 | JR24: 0 | JS24: 0 | JT24: 0 | JU24: 0 | JV24: 0 | JW24: 0 | JX24: 0 | JY24: 0 | JZ24: 0 | KA24: 1.000 | KB24: 0 | KC24: 0 | KD24: 0 | KE24: 0 | KF24: 0 | KG24: 0 | KH24: 0 | KI24: 0 | KJ24: 0 | KK24: 0 | KL24: 0 | KM24: 1.000 | KN24: 0 | KO24: 0 | KP24: 0 | KQ24: 0 | KR24: 0 | KS24: 0 | KT24: 0 | KU24: 0 | KV24: 0 | KW24: 0 | KX24: 0 | KY24: 1.000 | KZ24: 0 | LA24: 0 | LB24: 0 | LC24: 0 | LD24: 0 | LE24: 0 | LF24: 0 | LG24: 0 | LH24: 0 | LI24: 0 | LJ24: 0 | LK24: 1.000 | LL24: 0 | LM24: 0 | LN24: 0 | LO24: 0 | LP24: 0 | LQ24: 0 | LR24: 0 | LS24: 0 | LT24: 0 | LU24: 0 | LV24: 0 | LW24: 1.000 | LX24: 0 | LY24: 0 | LZ24: 0 | MA24: 0 | MB24: 0 | MC24: 0 | MD24: 0 | ME24: 0 | MF24: 0 | MG24: 0 | MH24: 0
E25: Spare 1 | H25: 2018-01-01 | I25: 1.000 | J25: 0.00% | K25: 12 | L25: 1 | M25: 0.00% | AU25: 0 | AV25: 0 | AW25: 0 | AX25: 0 | AY25: 0 | AZ25: 0 | BA25: 0 | BB25: 0 | BC25: 0 | BD25: 0 | BE25: 0 | BF25: 0 | BG25: 1.000 | BH25: 0 | BI25: 0 | BJ25: 0 | BK25: 0 | BL25: 0 | BM25: 0 | BN25: 0 | BO25: 0 | BP25: 0 | BQ25: 0 | BR25: 0 | BS25: 1.000 | BT25: 0 | BU25: 0 | BV25: 0 | BW25: 0 | BX25: 0 | BY25: 0 | BZ25: 0 | CA25: 0 | CB25: 0 | CC25: 0 | CD25: 0 | CE25: 1.000 | CF25: 0 | CG25: 0 | CH25: 0 | CI25: 0 | CJ25: 0 | CK25: 0 | CL25: 0 | CM25: 0 | CN25: 0 | CO25: 0 | CP25: 0 | CQ25: 1.000 | CR25: 0 | CS25: 0 | CT25: 0 | CU25: 0 | CV25: 0 | CW25: 0 | CX25: 0 | CY25: 0 | CZ25: 0 | DA25: 0 | DB25: 0 | DC25: 1.000 | DD25: 0 | DE25: 0 | DF25: 0 | DG25: 0 | DH25: 0 | DI25: 0 | DJ25: 0 | DK25: 0 | DL25: 0 | DM25: 0 | DN25: 0 | DO25: 1.000 | DP25: 0 | DQ25: 0 | DR25: 0 | DS25: 0 | DT25: 0 | DU25: 0 | DV25: =IF(AND(DV$5>$H25,MOD(MOD(MONTH(DV$5)+1-MONTH($H25),12),$K25)=1),1,0) -> 0 | DW25: 0 | DX25: 0 | DY25: 0 | DZ25: 0 | EA25: 1.000 | EB25: 0 | EC25: 0 | ED25: 0 | EE25: 0 | EF25: 0 | EG25: 0 | EH25: 0 | EI25: 0 | EJ25: 0 | EK25: 0 | EL25: 0 | EM25: 1.000 | EN25: 0 | EO25: 0 | EP25: 0 | EQ25: 0 | ER25: 0 | ES25: 0 | ET25: 0 | EU25: 0 | EV25: 0 | EW25: 0 | EX25: 0 | EY25: 1.000 | EZ25: 0 | FA25: 0 | FB25: 0 | FC25: 0 | FD25: 0 | FE25: 0 | FF25: 0 | FG25: 0 | FH25: 0 | FI25: 0 | FJ25: 0 | FK25: 1.000 | FL25: 0 | FM25: 0 | FN25: 0 | FO25: 0 | FP25: 0 | FQ25: 0 | FR25: 0 | FS25: 0 | FT25: 0 | FU25: 0 | FV25: 0 | FW25: 1.000 | FX25: 0 | FY25: 0 | FZ25: 0 | GA25: 0 | GB25: 0 | GC25: 0 | GD25: 0 | GE25: 0 | GF25: 0 | GG25: 0 | GH25: 0 | GI25: 1.000 | GJ25: 0 | GK25: 0 | GL25: 0 | GM25: 0 | GN25: 0 | GO25: 0 | GP25: 0 | GQ25: 0 | GR25: 0 | GS25: 0 | GT25: 0 | GU25: 1.000 | GV25: 0 | GW25: 0 | GX25: 0 | GY25: 0 | GZ25: 0 | HA25: 0 | HB25: 0 | HC25: 0 | HD25: 0 | HE25: 0 | HF25: 0 | HG25: 1.000 | HH25: 0 | HI25: 0 | HJ25: 0 | HK25: 0 | HL25: 0 | HM25: 0 | HN25: 0 | HO25: 0 | HP25: 0 | HQ25: 0 | HR25: 0 | HS25: 1.000 | HT25: 0 | HU25: 0 | HV25: 0 | HW25: 0 | HX25: 0 | HY25: 0 | HZ25: 0 | IA25: 0 | IB25: 0 | IC25: 0 | ID25: 0 | IE25: 1.000 | IF25: 0 | IG25: 0 | IH25: 0 | II25: 0 | IJ25: 0 | IK25: 0 | IL25: 0 | IM25: 0 | IN25: 0 | IO25: 0 | IP25: 0 | IQ25: 1.000 | IR25: 0 | IS25: 0 | IT25: =IF(AND(IT$5>$H25,MOD(MOD(MONTH(IT$5)+1-MONTH($H25),12),$K25)=1),1,0) -> 0 | IU25: 0 | IV25: 0 | IW25: 0 | IX25: 0 | IY25: 0 | IZ25: 0 | JA25: 0 | JB25: 0 | JC25: 1.000 | JD25: 0 | JE25: 0 | JF25: 0 | JG25: 0 | JH25: 0 | JI25: 0 | JJ25: 0 | JK25: 0 | JL25: 0 | JM25: 0 | JN25: 0 | JO25: 1.000 | JP25: 0 | JQ25: 0 | JR25: 0 | JS25: 0 | JT25: 0 | JU25: 0 | JV25: 0 | JW25: 0 | JX25: 0 | JY25: 0 | JZ25: 0 | KA25: 1.000 | KB25: 0 | KC25: 0 | KD25: 0 | KE25: 0 | KF25: 0 | KG25: 0 | KH25: 0 | KI25: 0 | KJ25: 0 | KK25: 0 | KL25: 0 | KM25: 1.000 | KN25: 0 | KO25: 0 | KP25: 0 | KQ25: 0 | KR25: 0 | KS25: 0 | KT25: 0 | KU25: 0 | KV25: 0 | KW25: 0 | KX25: 0 | KY25: 1.000 | KZ25: 0 | LA25: 0 | LB25: 0 | LC25: 0 | LD25: 0 | LE25: 0 | LF25: 0 | LG25: 0 | LH25: 0 | LI25: 0 | LJ25: 0 | LK25: 1.000 | LL25: 0 | LM25: 0 | LN25: 0 | LO25: 0 | LP25: 0 | LQ25: 0 | LR25: 0 | LS25: 0 | LT25: 0 | LU25: 0 | LV25: 0 | LW25: 1.000 | LX25: 0 | LY25: 0 | LZ25: 0 | MA25: 0 | MB25: 0 | MC25: 0 | MD25: 0 | ME25: 0 | MF25: 0 | MG25: 0 | MH25: 0
E26: Spare 2 | H26: 2018-01-01 | I26: 1.000 | J26: 0.00% | K26: 12 | L26: 1 | M26: 2.50% | AU26: 0 | AV26: 0 | AW26: 0 | AX26: 0 | AY26: 0 | AZ26: 0 | BA26: 0 | BB26: 0 | BC26: 0 | BD26: 0 | BE26: 0 | BF26: 0 | BG26: 1.000 | BH26: 0 | BI26: 0 | BJ26: 0 | BK26: =IF(AND(BK$5>$H26,MOD(MOD(MONTH(BK$5)+1-MONTH($H26),12),$K26)=1),1,0) -> 0 | BL26: 0 | BM26: 0 | BN26: 0 | BO26: 0 | BP26: 0 | BQ26: 0 | BR26: 0 | BS26: 1.000 | BT26: 0 | BU26: 0 | BV26: 0 | BW26: 0 | BX26: 0 | BY26: 0 | BZ26: 0 | CA26: 0 | CB26: 0 | CC26: 0 | CD26: 0 | CE26: 1.000 | CF26: 0 | CG26: 0 | CH26: 0 | CI26: 0 | CJ26: 0 | CK26: 0 | CL26: 0 | CM26: 0 | CN26: 0 | CO26: 0 | CP26: 0 | CQ26: 1.000 | CR26: 0 | CS26: 0 | CT26: 0 | CU26: 0 | CV26: 0 | CW26: 0 | CX26: 0 | CY26: 0 | CZ26: 0 | DA26: 0 | DB26: 0 | DC26: 1.000 | DD26: 0 | DE26: 0 | DF26: 0 | DG26: 0 | DH26: 0 | DI26: 0 | DJ26: 0 | DK26: 0 | DL26: 0 | DM26: 0 | DN26: 0 | DO26: 1.000 | DP26: 0 | DQ26: 0 | DR26: 0 | DS26: 0 | DT26: 0 | DU26: 0 | DV26: 0 | DW26: 0 | DX26: 0 | DY26: 0 | DZ26: 0 | EA26: 1.000 | EB26: 0 | EC26: 0 | ED26: 0 | EE26: 0 | EF26: 0 | EG26: 0 | EH26: 0 | EI26: 0 | EJ26: 0 | EK26: 0 | EL26: 0 | EM26: 1.000 | EN26: 0 | EO26: 0 | EP26: 0 | EQ26: 0 | ER26: 0 | ES26: 0 | ET26: 0 | EU26: 0 | EV26: 0 | EW26: 0 | EX26: 0 | EY26: 1.000 | EZ26: 0 | FA26: 0 | FB26: 0 | FC26: 0 | FD26: 0 | FE26: 0 | FF26: 0 | FG26: 0 | FH26: 0 | FI26: 0 | FJ26: 0 | FK26: 1.000 | FL26: 0 | FM26: 0 | FN26: 0 | FO26: 0 | FP26: 0 | FQ26: 0 | FR26: 0 | FS26: 0 | FT26: 0 | FU26: 0 | FV26: 0 | FW26: 1.000 | FX26: 0 | FY26: 0 | FZ26: 0 | GA26: 0 | GB26: 0 | GC26: 0 | GD26: 0 | GE26: 0 | GF26: 0 | GG26: 0 | GH26: 0 | GI26: =IF(AND(GI$5>$H26,MOD(MOD(MONTH(GI$5)+1-MONTH($H26),12),$K26)=1),1,0) -> 1.000 | GJ26: 0 | GK26: 0 | GL26: 0 | GM26: 0 | GN26: 0 | GO26: 0 | GP26: 0 | GQ26: 0 | GR26: 0 | GS26: 0 | GT26: 0 | GU26: 1.000 | GV26: 0 | GW26: 0 | GX26: 0 | GY26: 0 | GZ26: 0 | HA26: 0 | HB26: 0 | HC26: 0 | HD26: 0 | HE26: 0 | HF26: 0 | HG26: 1.000 | HH26: 0 | HI26: 0 | HJ26: 0 | HK26: 0 | HL26: 0 | HM26: 0 | HN26: 0 | HO26: 0 | HP26: 0 | HQ26: 0 | HR26: 0 | HS26: 1.000 | HT26: 0 | HU26: 0 | HV26: 0 | HW26: 0 | HX26: 0 | HY26: 0 | HZ26: 0 | IA26: 0 | IB26: 0 | IC26: 0 | ID26: 0 | IE26: 1.000 | IF26: 0 | IG26: 0 | IH26: 0 | II26: 0 | IJ26: 0 | IK26: 0 | IL26: 0 | IM26: 0 | IN26: 0 | IO26: 0 | IP26: 0 | IQ26: 1.000 | IR26: 0 | IS26: 0 | IT26: 0 | IU26: 0 | IV26: 0 | IW26: 0 | IX26: 0 | IY26: 0 | IZ26: 0 | JA26: 0 | JB26: 0 | JC26: 1.000 | JD26: 0 | JE26: 0 | JF26: 0 | JG26: 0 | JH26: 0 | JI26: 0 | JJ26: 0 | JK26: 0 | JL26: 0 | JM26: 0 | JN26: 0 | JO26: 1.000 | JP26: 0 | JQ26: 0 | JR26: 0 | JS26: 0 | JT26: 0 | JU26: 0 | JV26: 0 | JW26: 0 | JX26: 0 | JY26: 0 | JZ26: 0 | KA26: 1.000 | KB26: 0 | KC26: 0 | KD26: 0 | KE26: 0 | KF26: 0 | KG26: 0 | KH26: 0 | KI26: 0 | KJ26: 0 | KK26: 0 | KL26: 0 | KM26: 1.000 | KN26: 0 | KO26: 0 | KP26: 0 | KQ26: 0 | KR26: 0 | KS26: 0 | KT26: 0 | KU26: 0 | KV26: 0 | KW26: 0 | KX26: 0 | KY26: 1.000 | KZ26: 0 | LA26: 0 | LB26: 0 | LC26: 0 | LD26: 0 | LE26: 0 | LF26: 0 | LG26: 0 | LH26: 0 | LI26: 0 | LJ26: 0 | LK26: 1.000 | LL26: 0 | LM26: 0 | LN26: 0 | LO26: 0 | LP26: 0 | LQ26: 0 | LR26: 0 | LS26: 0 | LT26: 0 | LU26: 0 | LV26: 0 | LW26: 1.000 | LX26: 0 | LY26: 0 | LZ26: 0 | MA26: 0 | MB26: 0 | MC26: 0 | MD26: 0 | ME26: 0 | MF26: 0 | MG26: 0 | MH26: 0
E27: Nil | H27: 2018-01-01 | I27: 1.000 | J27: 0.00% | K27: 12 | L27: 1 | M27: 0.00% | AU27: 0 | AV27: 0 | AW27: 0 | AX27: 0 | AY27: 0 | AZ27: 0 | BA27: 0 | BB27: 0 | BC27: 0 | BD27: 0 | BE27: 0 | BF27: 0 | BG27: 1.000 | BH27: 0 | BI27: 0 | BJ27: 0 | BK27: 0 | BL27: 0 | BM27: 0 | BN27: 0 | BO27: 0 | BP27: 0 | BQ27: 0 | BR27: 0 | BS27: 1.000 | BT27: 0 | BU27: 0 | BV27: 0 | BW27: 0 | BX27: 0 | BY27: 0 | BZ27: 0 | CA27: 0 | CB27: 0 | CC27: 0 | CD27: 0 | CE27: 1.000 | CF27: 0 | CG27: 0 | CH27: 0 | CI27: 0 | CJ27: 0 | CK27: 0 | CL27: 0 | CM27: 0 | CN27: 0 | CO27: 0 | CP27: 0 | CQ27: 1.000 | CR27: 0 | CS27: 0 | CT27: 0 | CU27: 0 | CV27: 0 | CW27: 0 | CX27: 0 | CY27: 0 | CZ27: 0 | DA27: 0 | DB27: 0 | DC27: 1.000 | DD27: 0 | DE27: 0 | DF27: 0 | DG27: 0 | DH27: 0 | DI27: 0 | DJ27: 0 | DK27: 0 | DL27: 0 | DM27: 0 | DN27: 0 | DO27: 1.000 | DP27: 0 | DQ27: 0 | DR27: 0 | DS27: 0 | DT27: 0 | DU27: 0 | DV27: 0 | DW27: 0 | DX27: 0 | DY27: 0 | DZ27: 0 | EA27: 1.000 | EB27: 0 | EC27: 0 | ED27: 0 | EE27: 0 | EF27: 0 | EG27: 0 | EH27: 0 | EI27: 0 | EJ27: 0 | EK27: 0 | EL27: 0 | EM27: 1.000 | EN27: 0 | EO27: 0 | EP27: 0 | EQ27: 0 | ER27: 0 | ES27: 0 | ET27: 0 | EU27: 0 | EV27: 0 | EW27: 0 | EX27: 0 | EY27: 1.000 | EZ27: 0 | FA27: 0 | FB27: 0 | FC27: 0 | FD27: 0 | FE27: 0 | FF27: 0 | FG27: 0 | FH27: 0 | FI27: 0 | FJ27: 0 | FK27: 1.000 | FL27: 0 | FM27: 0 | FN27: 0 | FO27: 0 | FP27: 0 | FQ27: 0 | FR27: 0 | FS27: 0 | FT27: 0 | FU27: 0 | FV27: 0 | FW27: 1.000 | FX27: 0 | FY27: 0 | FZ27: 0 | GA27: 0 | GB27: 0 | GC27: 0 | GD27: 0 | GE27: 0 | GF27: 0 | GG27: 0 | GH27: 0 | GI27: 1.000 | GJ27: 0 | GK27: 0 | GL27: 0 | GM27: 0 | GN27: 0 | GO27: 0 | GP27: 0 | GQ27: 0 | GR27: 0 | GS27: 0 | GT27: 0 | GU27: 1.000 | GV27: 0 | GW27: 0 | GX27: 0 | GY27: 0 | GZ27: 0 | HA27: 0 | HB27: 0 | HC27: 0 | HD27: 0 | HE27: 0 | HF27: 0 | HG27: 1.000 | HH27: 0 | HI27: 0 | HJ27: 0 | HK27: 0 | HL27: 0 | HM27: 0 | HN27: 0 | HO27: 0 | HP27: 0 | HQ27: 0 | HR27: 0 | HS27: 1.000 | HT27: 0 | HU27: 0 | HV27: 0 | HW27: 0 | HX27: 0 | HY27: 0 | HZ27: 0 | IA27: 0 | IB27: 0 | IC27: 0 | ID27: 0 | IE27: 1.000 | IF27: 0 | IG27: 0 | IH27: 0 | II27: 0 | IJ27: 0 | IK27: 0 | IL27: 0 | IM27: 0 | IN27: 0 | IO27: 0 | IP27: 0 | IQ27: 1.000 | IR27: 0 | IS27: 0 | IT27: 0 | IU27: 0 | IV27: 0 | IW27: 0 | IX27: 0 | IY27: 0 | IZ27: 0 | JA27: 0 | JB27: 0 | JC27: 1.000 | JD27: 0 | JE27: 0 | JF27: 0 | JG27: 0 | JH27: 0 | JI27: 0 | JJ27: 0 | JK27: 0 | JL27: 0 | JM27: 0 | JN27: 0 | JO27: 1.000 | JP27: 0 | JQ27: 0 | JR27: 0 | JS27: 0 | JT27: 0 | JU27: 0 | JV27: 0 | JW27: 0 | JX27: 0 | JY27: 0 | JZ27: 0 | KA27: 1.000 | KB27: 0 | KC27: 0 | KD27: 0 | KE27: 0 | KF27: 0 | KG27: 0 | KH27: 0 | KI27: 0 | KJ27: 0 | KK27: 0 | KL27: 0 | KM27: 1.000 | KN27: 0 | KO27: 0 | KP27: 0 | KQ27: 0 | KR27: 0 | KS27: 0 | KT27: 0 | KU27: 0 | KV27: 0 | KW27: 0 | KX27: 0 | KY27: 1.000 | KZ27: 0 | LA27: 0 | LB27: 0 | LC27: 0 | LD27: 0 | LE27: 0 | LF27: 0 | LG27: 0 | LH27: 0 | LI27: 0 | LJ27: 0 | LK27: 1.000 | LL27: 0 | LM27: 0 | LN27: 0 | LO27: 0 | LP27: 0 | LQ27: 0 | LR27: 0 | LS27: 0 | LT27: 0 | LU27: 0 | LV27: 0 | LW27: 1.000 | LX27: 0 | LY27: 0 | LZ27: 0 | MA27: 0 | MB27: 0 | MC27: 0 | MD27: 0 | ME27: 0 | MF27: 0 | MG27: 0 | MH27: 0
E29: Calculated Indexation Factors
E30: =E22 -> Electricty Price Inflation | H30: =H22 -> 2018-01-01 | I30: 1 | J30: 0.00% | K30: 12 | AU30: =IF(AU$5<$H30,1,IF(AU$5=$H30,$I30,AT30*(1+$J30*AU22)^($K30/12))) -> 1.000 | AV30: 1.000 | AW30: 1.000 | AX30: 1.000 | AY30: 1.000 | AZ30: 1.000 | BA30: 1.000 | BB30: 1.000 | BC30: 1.000 | BD30: 1.000 | BE30: 1.000 | BF30: 1.000 | BG30: 1.000 | BH30: 1.000 | BI30: 1.000 | BJ30: 1.000 | BK30: 1.000 | BL30: 1.000 | BM30: 1.000 | BN30: 1.000 | BO30: 1.000 | BP30: 1.000 | BQ30: 1.000 | BR30: 1.000 | BS30: 1.000 | BT30: 1.000 | BU30: 1.000 | BV30: 1.000 | BW30: 1.000 | BX30: 1.000 | BY30: 1.000 | BZ30: 1.000 | CA30: 1.000 | CB30: 1.000 | CC30: 1.000 | CD30: 1.000 | CE30: 1.000 | CF30: 1.000 | CG30: 1.000 | CH30: 1.000 | CI30: 1.000 | CJ30: 1.000 | CK30: 1.000 | CL30: 1.000 | CM30: 1.000 | CN30: 1.000 | CO30: 1.000 | CP30: 1.000 | CQ30: 1.000 | CR30: 1.000 | CS30: 1.000 | CT30: 1.000 | CU30: 1.000 | CV30: 1.000 | CW30: 1.000 | CX30: 1.000 | CY30: 1.000 | CZ30: 1.000 | DA30: 1.000 | DB30: 1.000 | DC30: 1.000 | DD30: 1.000 | DE30: 1.000 | DF30: 1.000 | DG30: =IF(DG$5<$H30,1,IF(DG$5=$H30,$I30,DF30*(1+$J30*DG22)^($K30/12))) -> 1.000 | DH30: 1.000 | DI30: 1.000 | DJ30: 1.000 | DK30: 1.000 | DL30: 1.000 | DM30: 1.000 | DN30: 1.000 | DO30: 1.000 | DP30: 1.000 | DQ30: 1.000 | DR30: 1.000 | DS30: 1.000 | DT30: 1.000 | DU30: 1.000 | DV30: 1.000 | DW30: 1.000 | DX30: 1.000 | DY30: 1.000 | DZ30: 1.000 | EA30: 1.000 | EB30: 1.000 | EC30: 1.000 | ED30: 1.000 | EE30: 1.000 | EF30: 1.000 | EG30: 1.000 | EH30: 1.000 | EI30: 1.000 | EJ30: 1.000 | EK30: 1.000 | EL30: 1.000 | EM30: 1.000 | EN30: 1.000 | EO30: 1.000 | EP30: 1.000 | EQ30: 1.000 | ER30: 1.000 | ES30: 1.000 | ET30: 1.000 | EU30: 1.000 | EV30: 1.000 | EW30: 1.000 | EX30: 1.000 | EY30: 1.000 | EZ30: 1.000 | FA30: 1.000 | FB30: 1.000 | FC30: 1.000 | FD30: 1.000 | FE30: 1.000 | FF30: 1.000 | FG30: 1.000 | FH30: 1.000 | FI30: 1.000 | FJ30: 1.000 | FK30: 1.000 | FL30: 1.000 | FM30: 1.000 | FN30: 1.000 | FO30: 1.000 | FP30: 1.000 | FQ30: 1.000 | FR30: 1.000 | FS30: =IF(FS$5<$H30,1,IF(FS$5=$H30,$I30,FR30*(1+$J30*FS22)^($K30/12))) -> 1.000 | FT30: 1.000 | FU30: 1.000 | FV30: 1.000 | FW30: 1.000 | FX30: 1.000 | FY30: 1.000 | FZ30: 1.000 | GA30: 1.000 | GB30: 1.000 | GC30: 1.000 | GD30: 1.000 | GE30: 1.000 | GF30: 1.000 | GG30: 1.000 | GH30: 1.000 | GI30: 1.000 | GJ30: 1.000 | GK30: 1.000 | GL30: 1.000 | GM30: 1.000 | GN30: 1.000 | GO30: 1.000 | GP30: 1.000 | GQ30: 1.000 | GR30: 1.000 | GS30: 1.000 | GT30: 1.000 | GU30: 1.000 | GV30: 1.000 | GW30: 1.000 | GX30: 1.000 | GY30: 1.000 | GZ30: 1.000 | HA30: 1.000 | HB30: 1.000 | HC30: 1.000 | HD30: 1.000 | HE30: 1.000 | HF30: 1.000 | HG30: 1.000 | HH30: 1.000 | HI30: 1.000 | HJ30: 1.000 | HK30: 1.000 | HL30: 1.000 | HM30: 1.000 | HN30: 1.000 | HO30: 1.000 | HP30: 1.000 | HQ30: 1.000 | HR30: 1.000 | HS30: 1.000 | HT30: 1.000 | HU30: 1.000 | HV30: 1.000 | HW30: 1.000 | HX30: 1.000 | HY30: 1.000 | HZ30: 1.000 | IA30: 1.000 | IB30: 1.000 | IC30: 1.000 | ID30: 1.000 | IE30: =IF(IE$5<$H30,1,IF(IE$5=$H30,$I30,ID30*(1+$J30*IE22)^($K30/12))) -> 1.000 | IF30: 1.000 | IG30: 1.000 | IH30: 1.000 | II30: 1.000 | IJ30: 1.000 | IK30: 1.000 | IL30: 1.000 | IM30: 1.000 | IN30: 1.000 | IO30: 1.000 | IP30: 1.000 | IQ30: 1.000 | IR30: 1.000 | IS30: 1.000 | IT30: 1.000 | IU30: 1.000 | IV30: 1.000 | IW30: 1.000 | IX30: 1.000 | IY30: 1.000 | IZ30: 1.000 | JA30: 1.000 | JB30: 1.000 | JC30: 1.000 | JD30: 1.000 | JE30: 1.000 | JF30: 1.000 | JG30: 1.000 | JH30: 1.000 | JI30: 1.000 | JJ30: 1.000 | JK30: 1.000 | JL30: 1.000 | JM30: 1.000 | JN30: 1.000 | JO30: 1.000 | JP30: 1.000 | JQ30: 1.000 | JR30: 1.000 | JS30: 1.000 | JT30: 1.000 | JU30: 1.000 | JV30: 1.000 | JW30: 1.000 | JX30: 1.000 | JY30: 1.000 | JZ30: 1.000 | KA30: 1.000 | KB30: 1.000 | KC30: 1.000 | KD30: 1.000 | KE30: 1.000 | KF30: 1.000 | KG30: 1.000 | KH30: 1.000 | KI30: 1.000 | KJ30: 1.000 | KK30: 1.000 | KL30: 1.000 | KM30: 1.000 | KN30: 1.000 | KO30: 1.000 | KP30: 1.000 | KQ30: =IF(KQ$5<$H30,1,IF(KQ$5=$H30,$I30,KP30*(1+$J30*KQ22)^($K30/12))) -> 1.000 | KR30: 1.000 | KS30: 1.000 | KT30: 1.000 | KU30: 1.000 | KV30: 1.000 | KW30: 1.000 | KX30: 1.000 | KY30: 1.000 | KZ30: 1.000 | LA30: 1.000 | LB30: 1.000 | LC30: 1.000 | LD30: 1.000 | LE30: 1.000 | LF30: 1.000 | LG30: 1.000 | LH30: 1.000 | LI30: 1.000 | LJ30: 1.000 | LK30: 1.000 | LL30: 1.000 | LM30: 1.000 | LN30: 1.000 | LO30: 1.000 | LP30: 1.000 | LQ30: 1.000 | LR30: 1.000 | LS30: 1.000 | LT30: 1.000 | LU30: 1.000 | LV30: 1.000 | LW30: 1.000 | LX30: 1.000 | LY30: 1.000 | LZ30: 1.000 | MA30: 1.000 | MB30: 1.000 | MC30: 1.000 | MD30: 1.000 | ME30: 1.000 | MF30: 1.000 | MG30: 1.000 | MH30: 1.000
E31: CPI | H31: 2018-01-01 | I31: 1 | J31: 0.00% | K31: 12 | AU31: 1.000 | AV31: 1.000 | AW31: 1.000 | AX31: 1.000 | AY31: 1.000 | AZ31: 1.000 | BA31: 1.000 | BB31: 1.000 | BC31: 1.000 | BD31: 1.000 | BE31: 1.000 | BF31: 1.000 | BG31: 1.000 | BH31: 1.000 | BI31: 1.000 | BJ31: 1.000 | BK31: 1.000 | BL31: 1.000 | BM31: 1.000 | BN31: 1.000 | BO31: 1.000 | BP31: 1.000 | BQ31: 1.000 | BR31: 1.000 | BS31: 1.000 | BT31: 1.000 | BU31: 1.000 | BV31: 1.000 | BW31: 1.000 | BX31: 1.000 | BY31: 1.000 | BZ31: 1.000 | CA31: 1.000 | CB31: 1.000 | CC31: 1.000 | CD31: 1.000 | CE31: 1.000 | CF31: 1.000 | CG31: 1.000 | CH31: 1.000 | CI31: 1.000 | CJ31: 1.000 | CK31: 1.000 | CL31: 1.000 | CM31: 1.000 | CN31: 1.000 | CO31: 1.000 | CP31: 1.000 | CQ31: 1.000 | CR31: 1.000 | CS31: 1.000 | CT31: 1.000 | CU31: 1.000 | CV31: 1.000 | CW31: 1.000 | CX31: 1.000 | CY31: 1.000 | CZ31: 1.000 | DA31: 1.000 | DB31: 1.000 | DC31: 1.000 | DD31: 1.000 | DE31: 1.000 | DF31: 1.000 | DG31: 1.000 | DH31: 1.000 | DI31: 1.000 | DJ31: 1.000 | DK31: 1.000 | DL31: 1.000 | DM31: 1.000 | DN31: 1.000 | DO31: 1.000 | DP31: 1.000 | DQ31: 1.000 | DR31: 1.000 | DS31: 1.000 | DT31: 1.000 | DU31: 1.000 | DV31: 1.000 | DW31: 1.000 | DX31: 1.000 | DY31: 1.000 | DZ31: 1.000 | EA31: 1.000 | EB31: 1.000 | EC31: 1.000 | ED31: 1.000 | EE31: 1.000 | EF31: 1.000 | EG31: 1.000 | EH31: 1.000 | EI31: 1.000 | EJ31: 1.000 | EK31: 1.000 | EL31: 1.000 | EM31: 1.000 | EN31: 1.000 | EO31: 1.000 | EP31: 1.000 | EQ31: 1.000 | ER31: 1.000 | ES31: 1.000 | ET31: 1.000 | EU31: 1.000 | EV31: 1.000 | EW31: 1.000 | EX31: 1.000 | EY31: 1.000 | EZ31: 1.000 | FA31: 1.000 | FB31: 1.000 | FC31: 1.000 | FD31: 1.000 | FE31: 1.000 | FF31: 1.000 | FG31: 1.000 | FH31: 1.000 | FI31: 1.000 | FJ31: 1.000 | FK31: 1.000 | FL31: 1.000 | FM31: 1.000 | FN31: 1.000 | FO31: 1.000 | FP31: 1.000 | FQ31: 1.000 | FR31: 1.000 | FS31: 1.000 | FT31: 1.000 | FU31: 1.000 | FV31: 1.000 | FW31: 1.000 | FX31: 1.000 | FY31: 1.000 | FZ31: 1.000 | GA31: 1.000 | GB31: 1.000 | GC31: 1.000 | GD31: 1.000 | GE31: 1.000 | GF31: 1.000 | GG31: 1.000 | GH31: 1.000 | GI31: 1.000 | GJ31: 1.000 | GK31: 1.000 | GL31: 1.000 | GM31: 1.000 | GN31: 1.000 | GO31: 1.000 | GP31: 1.000 | GQ31: 1.000 | GR31: 1.000 | GS31: 1.000 | GT31: 1.000 | GU31: 1.000 | GV31: 1.000 | GW31: 1.000 | GX31: 1.000 | GY31: 1.000 | GZ31: 1.000 | HA31: 1.000 | HB31: 1.000 | HC31: 1.000 | HD31: 1.000 | HE31: 1.000 | HF31: 1.000 | HG31: 1.000 | HH31: 1.000 | HI31: 1.000 | HJ31: 1.000 | HK31: 1.000 | HL31: 1.000 | HM31: 1.000 | HN31: 1.000 | HO31: 1.000 | HP31: 1.000 | HQ31: 1.000 | HR31: 1.000 | HS31: 1.000 | HT31: 1.000 | HU31: 1.000 | HV31: 1.000 | HW31: 1.000 | HX31: 1.000 | HY31: 1.000 | HZ31: 1.000 | IA31: 1.000 | IB31: 1.000 | IC31: 1.000 | ID31: 1.000 | IE31: 1.000 | IF31: 1.000 | IG31: 1.000 | IH31: 1.000 | II31: 1.000 | IJ31: 1.000 | IK31: 1.000 | IL31: 1.000 | IM31: 1.000 | IN31: 1.000 | IO31: 1.000 | IP31: 1.000 | IQ31: 1.000 | IR31: 1.000 | IS31: 1.000 | IT31: 1.000 | IU31: 1.000 | IV31: 1.000 | IW31: 1.000 | IX31: 1.000 | IY31: 1.000 | IZ31: 1.000 | JA31: 1.000 | JB31: 1.000 | JC31: 1.000 | JD31: 1.000 | JE31: 1.000 | JF31: 1.000 | JG31: 1.000 | JH31: 1.000 | JI31: 1.000 | JJ31: 1.000 | JK31: 1.000 | JL31: 1.000 | JM31: 1.000 | JN31: 1.000 | JO31: 1.000 | JP31: 1.000 | JQ31: 1.000 | JR31: 1.000 | JS31: 1.000 | JT31: 1.000 | JU31: 1.000 | JV31: 1.000 | JW31: 1.000 | JX31: 1.000 | JY31: 1.000 | JZ31: 1.000 | KA31: 1.000 | KB31: 1.000 | KC31: 1.000 | KD31: 1.000 | KE31: 1.000 | KF31: 1.000 | KG31: 1.000 | KH31: 1.000 | KI31: 1.000 | KJ31: 1.000 | KK31: 1.000 | KL31: 1.000 | KM31: 1.000 | KN31: 1.000 | KO31: 1.000 | KP31: 1.000 | KQ31: 1.000 | KR31: 1.000 | KS31: 1.000 | KT31: 1.000 | KU31: 1.000 | KV31: 1.000 | KW31: 1.000 | KX31: 1.000 | KY31: 1.000 | KZ31: 1.000 | LA31: 1.000 | LB31: 1.000 | LC31: 1.000 | LD31: 1.000 | LE31: 1.000 | LF31: 1.000 | LG31: 1.000 | LH31: 1.000 | LI31: 1.000 | LJ31: 1.000 | LK31: 1.000 | LL31: 1.000 | LM31: 1.000 | LN31: 1.000 | LO31: 1.000 | LP31: 1.000 | LQ31: 1.000 | LR31: 1.000 | LS31: 1.000 | LT31: 1.000 | LU31: 1.000 | LV31: 1.000 | LW31: 1.000 | LX31: 1.000 | LY31: 1.000 | LZ31: 1.000 | MA31: 1.000 | MB31: 1.000 | MC31: 1.000 | MD31: 1.000 | ME31: 1.000 | MF31: 1.000 | MG31: 1.000 | MH31: 1.000
E32: RPI | H32: 2018-01-01 | I32: 1 | J32: 0.00% | K32: 12 | AU32: 1.000 | AV32: 1.000 | AW32: 1.000 | AX32: 1.000 | AY32: 1.000 | AZ32: 1.000 | BA32: 1.000 | BB32: 1.000 | BC32: 1.000 | BD32: 1.000 | BE32: 1.000 | BF32: 1.000 | BG32: 1.000 | BH32: 1.000 | BI32: 1.000 | BJ32: 1.000 | BK32: 1.000 | BL32: 1.000 | BM32: 1.000 | BN32: 1.000 | BO32: 1.000 | BP32: 1.000 | BQ32: 1.000 | BR32: 1.000 | BS32: 1.000 | BT32: 1.000 | BU32: 1.000 | BV32: 1.000 | BW32: 1.000 | BX32: 1.000 | BY32: 1.000 | BZ32: 1.000 | CA32: 1.000 | CB32: 1.000 | CC32: 1.000 | CD32: 1.000 | CE32: 1.000 | CF32: 1.000 | CG32: 1.000 | CH32: 1.000 | CI32: 1.000 | CJ32: 1.000 | CK32: 1.000 | CL32: 1.000 | CM32: 1.000 | CN32: 1.000 | CO32: 1.000 | CP32: 1.000 | CQ32: 1.000 | CR32: 1.000 | CS32: 1.000 | CT32: 1.000 | CU32: 1.000 | CV32: 1.000 | CW32: 1.000 | CX32: 1.000 | CY32: 1.000 | CZ32: 1.000 | DA32: 1.000 | DB32: 1.000 | DC32: 1.000 | DD32: 1.000 | DE32: 1.000 | DF32: 1.000 | DG32: 1.000 | DH32: 1.000 | DI32: 1.000 | DJ32: 1.000 | DK32: 1.000 | DL32: 1.000 | DM32: 1.000 | DN32: 1.000 | DO32: 1.000 | DP32: 1.000 | DQ32: 1.000 | DR32: 1.000 | DS32: 1.000 | DT32: 1.000 | DU32: 1.000 | DV32: 1.000 | DW32: 1.000 | DX32: 1.000 | DY32: 1.000 | DZ32: 1.000 | EA32: 1.000 | EB32: 1.000 | EC32: 1.000 | ED32: 1.000 | EE32: 1.000 | EF32: 1.000 | EG32: 1.000 | EH32: 1.000 | EI32: 1.000 | EJ32: 1.000 | EK32: 1.000 | EL32: 1.000 | EM32: 1.000 | EN32: 1.000 | EO32: 1.000 | EP32: 1.000 | EQ32: 1.000 | ER32: 1.000 | ES32: 1.000 | ET32: 1.000 | EU32: 1.000 | EV32: 1.000 | EW32: 1.000 | EX32: 1.000 | EY32: 1.000 | EZ32: 1.000 | FA32: 1.000 | FB32: 1.000 | FC32: 1.000 | FD32: 1.000 | FE32: 1.000 | FF32: 1.000 | FG32: 1.000 | FH32: 1.000 | FI32: 1.000 | FJ32: 1.000 | FK32: 1.000 | FL32: 1.000 | FM32: 1.000 | FN32: 1.000 | FO32: 1.000 | FP32: 1.000 | FQ32: 1.000 | FR32: 1.000 | FS32: 1.000 | FT32: 1.000 | FU32: 1.000 | FV32: 1.000 | FW32: 1.000 | FX32: 1.000 | FY32: 1.000 | FZ32: 1.000 | GA32: 1.000 | GB32: 1.000 | GC32: 1.000 | GD32: 1.000 | GE32: 1.000 | GF32: 1.000 | GG32: 1.000 | GH32: 1.000 | GI32: 1.000 | GJ32: 1.000 | GK32: 1.000 | GL32: 1.000 | GM32: 1.000 | GN32: 1.000 | GO32: 1.000 | GP32: 1.000 | GQ32: 1.000 | GR32: 1.000 | GS32: 1.000 | GT32: 1.000 | GU32: 1.000 | GV32: 1.000 | GW32: 1.000 | GX32: 1.000 | GY32: 1.000 | GZ32: 1.000 | HA32: 1.000 | HB32: 1.000 | HC32: 1.000 | HD32: 1.000 | HE32: 1.000 | HF32: 1.000 | HG32: 1.000 | HH32: 1.000 | HI32: 1.000 | HJ32: 1.000 | HK32: 1.000 | HL32: 1.000 | HM32: 1.000 | HN32: 1.000 | HO32: 1.000 | HP32: 1.000 | HQ32: 1.000 | HR32: 1.000 | HS32: 1.000 | HT32: 1.000 | HU32: 1.000 | HV32: 1.000 | HW32: 1.000 | HX32: 1.000 | HY32: 1.000 | HZ32: 1.000 | IA32: 1.000 | IB32: 1.000 | IC32: 1.000 | ID32: 1.000 | IE32: 1.000 | IF32: 1.000 | IG32: 1.000 | IH32: 1.000 | II32: 1.000 | IJ32: 1.000 | IK32: 1.000 | IL32: 1.000 | IM32: 1.000 | IN32: 1.000 | IO32: 1.000 | IP32: 1.000 | IQ32: 1.000 | IR32: 1.000 | IS32: 1.000 | IT32: 1.000 | IU32: 1.000 | IV32: 1.000 | IW32: 1.000 | IX32: 1.000 | IY32: 1.000 | IZ32: 1.000 | JA32: 1.000 | JB32: 1.000 | JC32: 1.000 | JD32: 1.000 | JE32: 1.000 | JF32: 1.000 | JG32: 1.000 | JH32: 1.000 | JI32: 1.000 | JJ32: 1.000 | JK32: 1.000 | JL32: 1.000 | JM32: 1.000 | JN32: 1.000 | JO32: 1.000 | JP32: 1.000 | JQ32: 1.000 | JR32: 1.000 | JS32: 1.000 | JT32: 1.000 | JU32: 1.000 | JV32: 1.000 | JW32: 1.000 | JX32: 1.000 | JY32: 1.000 | JZ32: 1.000 | KA32: 1.000 | KB32: 1.000 | KC32: 1.000 | KD32: 1.000 | KE32: 1.000 | KF32: 1.000 | KG32: 1.000 | KH32: 1.000 | KI32: 1.000 | KJ32: 1.000 | KK32: 1.000 | KL32: 1.000 | KM32: 1.000 | KN32: 1.000 | KO32: 1.000 | KP32: 1.000 | KQ32: 1.000 | KR32: 1.000 | KS32: 1.000 | KT32: 1.000 | KU32: 1.000 | KV32: 1.000 | KW32: 1.000 | KX32: 1.000 | KY32: 1.000 | KZ32: 1.000 | LA32: 1.000 | LB32: 1.000 | LC32: 1.000 | LD32: 1.000 | LE32: 1.000 | LF32: 1.000 | LG32: 1.000 | LH32: 1.000 | LI32: 1.000 | LJ32: 1.000 | LK32: 1.000 | LL32: 1.000 | LM32: 1.000 | LN32: 1.000 | LO32: 1.000 | LP32: 1.000 | LQ32: 1.000 | LR32: 1.000 | LS32: 1.000 | LT32: 1.000 | LU32: 1.000 | LV32: 1.000 | LW32: 1.000 | LX32: 1.000 | LY32: 1.000 | LZ32: 1.000 | MA32: 1.000 | MB32: 1.000 | MC32: 1.000 | MD32: 1.000 | ME32: 1.000 | MF32: 1.000 | MG32: 1.000 | MH32: 1.000
E33: Spare 1 | H33: 2018-01-01 | I33: 1 | J33: 0.00% | K33: 12 | AU33: 1.000 | AV33: 1.000 | AW33: 1.000 | AX33: 1.000 | AY33: 1.000 | AZ33: 1.000 | BA33: 1.000 | BB33: 1.000 | BC33: 1.000 | BD33: 1.000 | BE33: 1.000 | BF33: 1.000 | BG33: 1.000 | BH33: 1.000 | BI33: 1.000 | BJ33: 1.000 | BK33: 1.000 | BL33: 1.000 | BM33: 1.000 | BN33: 1.000 | BO33: 1.000 | BP33: 1.000 | BQ33: 1.000 | BR33: 1.000 | BS33: 1.000 | BT33: 1.000 | BU33: 1.000 | BV33: 1.000 | BW33: 1.000 | BX33: 1.000 | BY33: 1.000 | BZ33: 1.000 | CA33: 1.000 | CB33: 1.000 | CC33: 1.000 | CD33: 1.000 | CE33: 1.000 | CF33: 1.000 | CG33: 1.000 | CH33: 1.000 | CI33: 1.000 | CJ33: 1.000 | CK33: 1.000 | CL33: 1.000 | CM33: 1.000 | CN33: 1.000 | CO33: 1.000 | CP33: 1.000 | CQ33: 1.000 | CR33: 1.000 | CS33: 1.000 | CT33: 1.000 | CU33: 1.000 | CV33: 1.000 | CW33: 1.000 | CX33: 1.000 | CY33: 1.000 | CZ33: 1.000 | DA33: 1.000 | DB33: 1.000 | DC33: 1.000 | DD33: 1.000 | DE33: 1.000 | DF33: =IF(DF$5<$H33,1,IF(DF$5=$H33,$I33,DE33*(1+$J33*DF25)^($K33/12))) -> 1.000 | DG33: 1.000 | DH33: 1.000 | DI33: 1.000 | DJ33: 1.000 | DK33: 1.000 | DL33: 1.000 | DM33: 1.000 | DN33: 1.000 | DO33: 1.000 | DP33: 1.000 | DQ33: 1.000 | DR33: 1.000 | DS33: 1.000 | DT33: 1.000 | DU33: 1.000 | DV33: 1.000 | DW33: 1.000 | DX33: 1.000 | DY33: 1.000 | DZ33: 1.000 | EA33: 1.000 | EB33: 1.000 | EC33: 1.000 | ED33: 1.000 | EE33: 1.000 | EF33: 1.000 | EG33: 1.000 | EH33: 1.000 | EI33: 1.000 | EJ33: 1.000 | EK33: 1.000 | EL33: 1.000 | EM33: 1.000 | EN33: 1.000 | EO33: 1.000 | EP33: 1.000 | EQ33: 1.000 | ER33: 1.000 | ES33: 1.000 | ET33: 1.000 | EU33: 1.000 | EV33: 1.000 | EW33: 1.000 | EX33: 1.000 | EY33: 1.000 | EZ33: 1.000 | FA33: 1.000 | FB33: 1.000 | FC33: 1.000 | FD33: 1.000 | FE33: 1.000 | FF33: 1.000 | FG33: 1.000 | FH33: 1.000 | FI33: 1.000 | FJ33: 1.000 | FK33: 1.000 | FL33: 1.000 | FM33: 1.000 | FN33: 1.000 | FO33: 1.000 | FP33: 1.000 | FQ33: 1.000 | FR33: 1.000 | FS33: 1.000 | FT33: 1.000 | FU33: 1.000 | FV33: 1.000 | FW33: 1.000 | FX33: 1.000 | FY33: 1.000 | FZ33: 1.000 | GA33: 1.000 | GB33: 1.000 | GC33: 1.000 | GD33: 1.000 | GE33: 1.000 | GF33: 1.000 | GG33: 1.000 | GH33: 1.000 | GI33: 1.000 | GJ33: 1.000 | GK33: 1.000 | GL33: 1.000 | GM33: 1.000 | GN33: 1.000 | GO33: 1.000 | GP33: 1.000 | GQ33: 1.000 | GR33: 1.000 | GS33: 1.000 | GT33: 1.000 | GU33: 1.000 | GV33: 1.000 | GW33: 1.000 | GX33: 1.000 | GY33: 1.000 | GZ33: 1.000 | HA33: 1.000 | HB33: 1.000 | HC33: 1.000 | HD33: 1.000 | HE33: 1.000 | HF33: 1.000 | HG33: 1.000 | HH33: 1.000 | HI33: 1.000 | HJ33: 1.000 | HK33: 1.000 | HL33: 1.000 | HM33: 1.000 | HN33: 1.000 | HO33: 1.000 | HP33: 1.000 | HQ33: 1.000 | HR33: 1.000 | HS33: 1.000 | HT33: 1.000 | HU33: 1.000 | HV33: 1.000 | HW33: 1.000 | HX33: 1.000 | HY33: 1.000 | HZ33: 1.000 | IA33: 1.000 | IB33: 1.000 | IC33: 1.000 | ID33: =IF(ID$5<$H33,1,IF(ID$5=$H33,$I33,IC33*(1+$J33*ID25)^($K33/12))) -> 1.000 | IE33: 1.000 | IF33: 1.000 | IG33: 1.000 | IH33: 1.000 | II33: 1.000 | IJ33: 1.000 | IK33: 1.000 | IL33: 1.000 | IM33: 1.000 | IN33: 1.000 | IO33: 1.000 | IP33: 1.000 | IQ33: 1.000 | IR33: 1.000 | IS33: 1.000 | IT33: 1.000 | IU33: 1.000 | IV33: 1.000 | IW33: 1.000 | IX33: 1.000 | IY33: 1.000 | IZ33: 1.000 | JA33: 1.000 | JB33: 1.000 | JC33: 1.000 | JD33: 1.000 | JE33: 1.000 | JF33: 1.000 | JG33: 1.000 | JH33: 1.000 | JI33: 1.000 | JJ33: 1.000 | JK33: 1.000 | JL33: 1.000 | JM33: 1.000 | JN33: 1.000 | JO33: 1.000 | JP33: 1.000 | JQ33: 1.000 | JR33: 1.000 | JS33: 1.000 | JT33: 1.000 | JU33: 1.000 | JV33: 1.000 | JW33: 1.000 | JX33: 1.000 | JY33: 1.000 | JZ33: 1.000 | KA33: 1.000 | KB33: 1.000 | KC33: 1.000 | KD33: 1.000 | KE33: 1.000 | KF33: 1.000 | KG33: 1.000 | KH33: 1.000 | KI33: 1.000 | KJ33: 1.000 | KK33: 1.000 | KL33: 1.000 | KM33: 1.000 | KN33: 1.000 | KO33: 1.000 | KP33: =IF(KP$5<$H33,1,IF(KP$5=$H33,$I33,KO33*(1+$J33*KP25)^($K33/12))) -> 1.000 | KQ33: 1.000 | KR33: 1.000 | KS33: 1.000 | KT33: 1.000 | KU33: 1.000 | KV33: 1.000 | KW33: 1.000 | KX33: 1.000 | KY33: 1.000 | KZ33: 1.000 | LA33: 1.000 | LB33: 1.000 | LC33: 1.000 | LD33: 1.000 | LE33: 1.000 | LF33: 1.000 | LG33: 1.000 | LH33: 1.000 | LI33: 1.000 | LJ33: 1.000 | LK33: 1.000 | LL33: 1.000 | LM33: 1.000 | LN33: 1.000 | LO33: 1.000 | LP33: 1.000 | LQ33: 1.000 | LR33: 1.000 | LS33: 1.000 | LT33: 1.000 | LU33: 1.000 | LV33: 1.000 | LW33: 1.000 | LX33: 1.000 | LY33: 1.000 | LZ33: 1.000 | MA33: 1.000 | MB33: 1.000 | MC33: 1.000 | MD33: 1.000 | ME33: 1.000 | MF33: 1.000 | MG33: 1.000 | MH33: 1.000
E34: Spare 2 | H34: 2018-01-01 | I34: 1 | J34: 0.00% | K34: 12 | AU34: =IF(AU$5<$H34,1,IF(AU$5=$H34,$I34,AT34*(1+$J34*AU26)^($K34/12))) -> 1.000 | AV34: 1.000 | AW34: 1.000 | AX34: 1.000 | AY34: 1.000 | AZ34: 1.000 | BA34: 1.000 | BB34: 1.000 | BC34: 1.000 | BD34: 1.000 | BE34: 1.000 | BF34: 1.000 | BG34: 1.000 | BH34: 1.000 | BI34: 1.000 | BJ34: 1.000 | BK34: 1.000 | BL34: 1.000 | BM34: 1.000 | BN34: 1.000 | BO34: 1.000 | BP34: 1.000 | BQ34: 1.000 | BR34: 1.000 | BS34: 1.000 | BT34: 1.000 | BU34: 1.000 | BV34: 1.000 | BW34: 1.000 | BX34: 1.000 | BY34: 1.000 | BZ34: 1.000 | CA34: 1.000 | CB34: 1.000 | CC34: 1.000 | CD34: 1.000 | CE34: 1.000 | CF34: 1.000 | CG34: 1.000 | CH34: 1.000 | CI34: 1.000 | CJ34: 1.000 | CK34: 1.000 | CL34: 1.000 | CM34: 1.000 | CN34: 1.000 | CO34: 1.000 | CP34: 1.000 | CQ34: 1.000 | CR34: 1.000 | CS34: 1.000 | CT34: 1.000 | CU34: 1.000 | CV34: 1.000 | CW34: 1.000 | CX34: 1.000 | CY34: 1.000 | CZ34: 1.000 | DA34: 1.000 | DB34: 1.000 | DC34: 1.000 | DD34: 1.000 | DE34: 1.000 | DF34: 1.000 | DG34: 1.000 | DH34: =IF(DH$5<$H34,1,IF(DH$5=$H34,$I34,DG34*(1+$J34*DH26)^($K34/12))) -> 1.000 | DI34: 1.000 | DJ34: 1.000 | DK34: 1.000 | DL34: 1.000 | DM34: 1.000 | DN34: 1.000 | DO34: 1.000 | DP34: 1.000 | DQ34: 1.000 | DR34: 1.000 | DS34: 1.000 | DT34: 1.000 | DU34: 1.000 | DV34: 1.000 | DW34: 1.000 | DX34: 1.000 | DY34: 1.000 | DZ34: 1.000 | EA34: 1.000 | EB34: 1.000 | EC34: 1.000 | ED34: 1.000 | EE34: 1.000 | EF34: 1.000 | EG34: 1.000 | EH34: 1.000 | EI34: 1.000 | EJ34: 1.000 | EK34: 1.000 | EL34: 1.000 | EM34: 1.000 | EN34: 1.000 | EO34: 1.000 | EP34: 1.000 | EQ34: 1.000 | ER34: 1.000 | ES34: 1.000 | ET34: 1.000 | EU34: 1.000 | EV34: 1.000 | EW34: 1.000 | EX34: 1.000 | EY34: 1.000 | EZ34: 1.000 | FA34: 1.000 | FB34: 1.000 | FC34: 1.000 | FD34: 1.000 | FE34: 1.000 | FF34: 1.000 | FG34: 1.000 | FH34: 1.000 | FI34: 1.000 | FJ34: 1.000 | FK34: 1.000 | FL34: 1.000 | FM34: 1.000 | FN34: 1.000 | FO34: 1.000 | FP34: 1.000 | FQ34: 1.000 | FR34: 1.000 | FS34: 1.000 | FT34: 1.000 | FU34: 1.000 | FV34: 1.000 | FW34: 1.000 | FX34: 1.000 | FY34: 1.000 | FZ34: 1.000 | GA34: 1.000 | GB34: 1.000 | GC34: 1.000 | GD34: 1.000 | GE34: 1.000 | GF34: 1.000 | GG34: 1.000 | GH34: 1.000 | GI34: 1.000 | GJ34: 1.000 | GK34: 1.000 | GL34: 1.000 | GM34: 1.000 | GN34: 1.000 | GO34: 1.000 | GP34: 1.000 | GQ34: 1.000 | GR34: 1.000 | GS34: 1.000 | GT34: 1.000 | GU34: 1.000 | GV34: 1.000 | GW34: 1.000 | GX34: 1.000 | GY34: 1.000 | GZ34: 1.000 | HA34: 1.000 | HB34: 1.000 | HC34: 1.000 | HD34: 1.000 | HE34: 1.000 | HF34: 1.000 | HG34: 1.000 | HH34: 1.000 | HI34: 1.000 | HJ34: 1.000 | HK34: 1.000 | HL34: 1.000 | HM34: 1.000 | HN34: 1.000 | HO34: 1.000 | HP34: 1.000 | HQ34: 1.000 | HR34: 1.000 | HS34: 1.000 | HT34: 1.000 | HU34: 1.000 | HV34: 1.000 | HW34: 1.000 | HX34: 1.000 | HY34: 1.000 | HZ34: 1.000 | IA34: 1.000 | IB34: 1.000 | IC34: 1.000 | ID34: 1.000 | IE34: =IF(IE$5<$H34,1,IF(IE$5=$H34,$I34,ID34*(1+$J34*IE26)^($K34/12))) -> 1.000 | IF34: 1.000 | IG34: 1.000 | IH34: 1.000 | II34: 1.000 | IJ34: 1.000 | IK34: 1.000 | IL34: 1.000 | IM34: 1.000 | IN34: 1.000 | IO34: 1.000 | IP34: 1.000 | IQ34: 1.000 | IR34: 1.000 | IS34: 1.000 | IT34: 1.000 | IU34: 1.000 | IV34: 1.000 | IW34: 1.000 | IX34: 1.000 | IY34: 1.000 | IZ34: 1.000 | JA34: 1.000 | JB34: 1.000 | JC34: 1.000 | JD34: 1.000 | JE34: 1.000 | JF34: 1.000 | JG34: 1.000 | JH34: 1.000 | JI34: 1.000 | JJ34: 1.000 | JK34: 1.000 | JL34: 1.000 | JM34: 1.000 | JN34: 1.000 | JO34: 1.000 | JP34: 1.000 | JQ34: 1.000 | JR34: 1.000 | JS34: 1.000 | JT34: 1.000 | JU34: 1.000 | JV34: 1.000 | JW34: 1.000 | JX34: 1.000 | JY34: 1.000 | JZ34: 1.000 | KA34: 1.000 | KB34: 1.000 | KC34: 1.000 | KD34: 1.000 | KE34: 1.000 | KF34: 1.000 | KG34: 1.000 | KH34: 1.000 | KI34: 1.000 | KJ34: 1.000 | KK34: 1.000 | KL34: 1.000 | KM34: 1.000 | KN34: 1.000 | KO34: 1.000 | KP34: 1.000 | KQ34: 1.000 | KR34: 1.000 | KS34: 1.000 | KT34: 1.000 | KU34: 1.000 | KV34: 1.000 | KW34: 1.000 | KX34: 1.000 | KY34: 1.000 | KZ34: 1.000 | LA34: 1.000 | LB34: 1.000 | LC34: 1.000 | LD34: 1.000 | LE34: 1.000 | LF34: 1.000 | LG34: 1.000 | LH34: 1.000 | LI34: 1.000 | LJ34: 1.000 | LK34: 1.000 | LL34: 1.000 | LM34: 1.000 | LN34: 1.000 | LO34: 1.000 | LP34: 1.000 | LQ34: 1.000 | LR34: 1.000 | LS34: 1.000 | LT34: 1.000 | LU34: 1.000 | LV34: 1.000 | LW34: 1.000 | LX34: 1.000 | LY34: 1.000 | LZ34: 1.000 | MA34: 1.000 | MB34: 1.000 | MC34: 1.000 | MD34: 1.000 | ME34: 1.000 | MF34: 1.000 | MG34: 1.000 | MH34: 1.000
E35: Nil | H35: 2018-01-01 | I35: 1 | J35: 0.00% | K35: 12 | AU35: 1.000 | AV35: 1.000 | AW35: 1.000 | AX35: 1.000 | AY35: 1.000 | AZ35: 1.000 | BA35: 1.000 | BB35: 1.000 | BC35: 1.000 | BD35: 1.000 | BE35: 1.000 | BF35: 1.000 | BG35: 1.000 | BH35: 1.000 | BI35: 1.000 | BJ35: 1.000 | BK35: 1.000 | BL35: 1.000 | BM35: 1.000 | BN35: 1.000 | BO35: 1.000 | BP35: 1.000 | BQ35: 1.000 | BR35: 1.000 | BS35: 1.000 | BT35: 1.000 | BU35: 1.000 | BV35: 1.000 | BW35: 1.000 | BX35: 1.000 | BY35: 1.000 | BZ35: 1.000 | CA35: 1.000 | CB35: 1.000 | CC35: 1.000 | CD35: 1.000 | CE35: 1.000 | CF35: 1.000 | CG35: 1.000 | CH35: 1.000 | CI35: 1.000 | CJ35: 1.000 | CK35: 1.000 | CL35: 1.000 | CM35: 1.000 | CN35: 1.000 | CO35: 1.000 | CP35: 1.000 | CQ35: 1.000 | CR35: 1.000 | CS35: 1.000 | CT35: 1.000 | CU35: 1.000 | CV35: 1.000 | CW35: 1.000 | CX35: 1.000 | CY35: 1.000 | CZ35: 1.000 | DA35: 1.000 | DB35: 1.000 | DC35: 1.000 | DD35: 1.000 | DE35: 1.000 | DF35: 1.000 | DG35: 1.000 | DH35: 1.000 | DI35: 1.000 | DJ35: 1.000 | DK35: 1.000 | DL35: 1.000 | DM35: 1.000 | DN35: 1.000 | DO35: 1.000 | DP35: 1.000 | DQ35: 1.000 | DR35: 1.000 | DS35: 1.000 | DT35: 1.000 | DU35: 1.000 | DV35: 1.000 | DW35: 1.000 | DX35: 1.000 | DY35: 1.000 | DZ35: 1.000 | EA35: 1.000 | EB35: 1.000 | EC35: 1.000 | ED35: 1.000 | EE35: 1.000 | EF35: 1.000 | EG35: 1.000 | EH35: 1.000 | EI35: 1.000 | EJ35: 1.000 | EK35: 1.000 | EL35: 1.000 | EM35: 1.000 | EN35: 1.000 | EO35: 1.000 | EP35: 1.000 | EQ35: 1.000 | ER35: 1.000 | ES35: 1.000 | ET35: 1.000 | EU35: 1.000 | EV35: 1.000 | EW35: 1.000 | EX35: 1.000 | EY35: 1.000 | EZ35: 1.000 | FA35: 1.000 | FB35: 1.000 | FC35: 1.000 | FD35: 1.000 | FE35: 1.000 | FF35: 1.000 | FG35: 1.000 | FH35: 1.000 | FI35: 1.000 | FJ35: 1.000 | FK35: 1.000 | FL35: 1.000 | FM35: 1.000 | FN35: 1.000 | FO35: 1.000 | FP35: 1.000 | FQ35: 1.000 | FR35: 1.000 | FS35: 1.000 | FT35: 1.000 | FU35: 1.000 | FV35: 1.000 | FW35: 1.000 | FX35: 1.000 | FY35: 1.000 | FZ35: 1.000 | GA35: 1.000 | GB35: 1.000 | GC35: 1.000 | GD35: 1.000 | GE35: 1.000 | GF35: 1.000 | GG35: 1.000 | GH35: 1.000 | GI35: 1.000 | GJ35: 1.000 | GK35: 1.000 | GL35: 1.000 | GM35: 1.000 | GN35: 1.000 | GO35: 1.000 | GP35: 1.000 | GQ35: 1.000 | GR35: 1.000 | GS35: 1.000 | GT35: 1.000 | GU35: 1.000 | GV35: 1.000 | GW35: 1.000 | GX35: 1.000 | GY35: 1.000 | GZ35: 1.000 | HA35: 1.000 | HB35: 1.000 | HC35: 1.000 | HD35: 1.000 | HE35: 1.000 | HF35: 1.000 | HG35: 1.000 | HH35: 1.000 | HI35: 1.000 | HJ35: 1.000 | HK35: 1.000 | HL35: 1.000 | HM35: 1.000 | HN35: 1.000 | HO35: 1.000 | HP35: 1.000 | HQ35: 1.000 | HR35: 1.000 | HS35: 1.000 | HT35: 1.000 | HU35: 1.000 | HV35: 1.000 | HW35: 1.000 | HX35: 1.000 | HY35: 1.000 | HZ35: 1.000 | IA35: 1.000 | IB35: 1.000 | IC35: 1.000 | ID35: 1.000 | IE35: 1.000 | IF35: 1.000 | IG35: 1.000 | IH35: 1.000 | II35: 1.000 | IJ35: 1.000 | IK35: 1.000 | IL35: 1.000 | IM35: 1.000 | IN35: 1.000 | IO35: 1.000 | IP35: 1.000 | IQ35: 1.000 | IR35: 1.000 | IS35: 1.000 | IT35: 1.000 | IU35: 1.000 | IV35: 1.000 | IW35: 1.000 | IX35: 1.000 | IY35: 1.000 | IZ35: 1.000 | JA35: 1.000 | JB35: 1.000 | JC35: 1.000 | JD35: 1.000 | JE35: 1.000 | JF35: 1.000 | JG35: 1.000 | JH35: 1.000 | JI35: 1.000 | JJ35: 1.000 | JK35: 1.000 | JL35: 1.000 | JM35: 1.000 | JN35: 1.000 | JO35: 1.000 | JP35: 1.000 | JQ35: 1.000 | JR35: 1.000 | JS35: 1.000 | JT35: 1.000 | JU35: 1.000 | JV35: 1.000 | JW35: 1.000 | JX35: 1.000 | JY35: 1.000 | JZ35: 1.000 | KA35: 1.000 | KB35: 1.000 | KC35: 1.000 | KD35: 1.000 | KE35: 1.000 | KF35: 1.000 | KG35: 1.000 | KH35: 1.000 | KI35: 1.000 | KJ35: 1.000 | KK35: 1.000 | KL35: 1.000 | KM35: 1.000 | KN35: 1.000 | KO35: 1.000 | KP35: 1.000 | KQ35: 1.000 | KR35: 1.000 | KS35: 1.000 | KT35: 1.000 | KU35: 1.000 | KV35: 1.000 | KW35: 1.000 | KX35: 1.000 | KY35: 1.000 | KZ35: 1.000 | LA35: 1.000 | LB35: 1.000 | LC35: 1.000 | LD35: 1.000 | LE35: 1.000 | LF35: 1.000 | LG35: 1.000 | LH35: 1.000 | LI35: 1.000 | LJ35: 1.000 | LK35: 1.000 | LL35: 1.000 | LM35: 1.000 | LN35: 1.000 | LO35: 1.000 | LP35: 1.000 | LQ35: 1.000 | LR35: 1.000 | LS35: 1.000 | LT35: 1.000 | LU35: 1.000 | LV35: 1.000 | LW35: 1.000 | LX35: 1.000 | LY35: 1.000 | LZ35: =IF(LZ$5<$H35,1,IF(LZ$5=$H35,$I35,LY35*(1+$J35*LZ27)^($K35/12))) -> 1.000 | MA35: 1.000 | MB35: 1.000 | MC35: 1.000 | MD35: 1.000 | ME35: 1.000 | MF35: 1.000 | MG35: 1.000 | MH35: 1.000
E37: Manual Indexation Factors
E38: =E30 -> Electricty Price Inflation
E39: CPI
E40: RPI
E41: Spare 1
E42: Spare 2
E43: Nil
E45: Chosen Indexation Factor | F45: Select Indexation approach
E46: =E38 -> Electricty Price Inflation | F46: Calculation | AU46: =IF($F46="Manual",AU38,AU30) -> 1.000 | AV46: 1.000 | AW46: 1.000 | AX46: 1.000 | AY46: 1.000 | AZ46: 1.000 | BA46: 1.000 | BB46: 1.000 | BC46: 1.000 | BD46: 1.000 | BE46: 1.000 | BF46: 1.000 | BG46: 1.000 | BH46: 1.000 | BI46: 1.000 | BJ46: 1.000 | BK46: 1.000 | BL46: 1.000 | BM46: 1.000 | BN46: 1.000 | BO46: 1.000 | BP46: 1.000 | BQ46: 1.000 | BR46: 1.000 | BS46: 1.000 | BT46: 1.000 | BU46: 1.000 | BV46: 1.000 | BW46: 1.000 | BX46: 1.000 | BY46: 1.000 | BZ46: 1.000 | CA46: 1.000 | CB46: 1.000 | CC46: 1.000 | CD46: 1.000 | CE46: 1.000 | CF46: 1.000 | CG46: 1.000 | CH46: 1.000 | CI46: 1.000 | CJ46: 1.000 | CK46: 1.000 | CL46: 1.000 | CM46: 1.000 | CN46: 1.000 | CO46: 1.000 | CP46: 1.000 | CQ46: 1.000 | CR46: 1.000 | CS46: 1.000 | CT46: 1.000 | CU46: 1.000 | CV46: 1.000 | CW46: 1.000 | CX46: 1.000 | CY46: 1.000 | CZ46: 1.000 | DA46: 1.000 | DB46: 1.000 | DC46: 1.000 | DD46: 1.000 | DE46: 1.000 | DF46: 1.000 | DG46: =IF($F46="Manual",DG38,DG30) -> 1.000 | DH46: 1.000 | DI46: 1.000 | DJ46: 1.000 | DK46: 1.000 | DL46: 1.000 | DM46: 1.000 | DN46: 1.000 | DO46: 1.000 | DP46: 1.000 | DQ46: 1.000 | DR46: 1.000 | DS46: 1.000 | DT46: 1.000 | DU46: 1.000 | DV46: 1.000 | DW46: 1.000 | DX46: 1.000 | DY46: 1.000 | DZ46: 1.000 | EA46: 1.000 | EB46: 1.000 | EC46: 1.000 | ED46: 1.000 | EE46: 1.000 | EF46: 1.000 | EG46: 1.000 | EH46: 1.000 | EI46: 1.000 | EJ46: 1.000 | EK46: 1.000 | EL46: 1.000 | EM46: 1.000 | EN46: 1.000 | EO46: 1.000 | EP46: 1.000 | EQ46: 1.000 | ER46: 1.000 | ES46: 1.000 | ET46: 1.000 | EU46: 1.000 | EV46: 1.000 | EW46: 1.000 | EX46: 1.000 | EY46: 1.000 | EZ46: 1.000 | FA46: 1.000 | FB46: 1.000 | FC46: 1.000 | FD46: 1.000 | FE46: 1.000 | FF46: 1.000 | FG46: 1.000 | FH46: 1.000 | FI46: 1.000 | FJ46: 1.000 | FK46: 1.000 | FL46: 1.000 | FM46: 1.000 | FN46: 1.000 | FO46: 1.000 | FP46: 1.000 | FQ46: 1.000 | FR46: 1.000 | FS46: =IF($F46="Manual",FS38,FS30) -> 1.000 | FT46: 1.000 | FU46: 1.000 | FV46: 1.000 | FW46: 1.000 | FX46: 1.000 | FY46: 1.000 | FZ46: 1.000 | GA46: 1.000 | GB46: 1.000 | GC46: 1.000 | GD46: 1.000 | GE46: 1.000 | GF46: 1.000 | GG46: 1.000 | GH46: 1.000 | GI46: 1.000 | GJ46: 1.000 | GK46: 1.000 | GL46: 1.000 | GM46: 1.000 | GN46: 1.000 | GO46: 1.000 | GP46: 1.000 | GQ46: 1.000 | GR46: 1.000 | GS46: 1.000 | GT46: 1.000 | GU46: 1.000 | GV46: 1.000 | GW46: 1.000 | GX46: 1.000 | GY46: 1.000 | GZ46: 1.000 | HA46: 1.000 | HB46: 1.000 | HC46: 1.000 | HD46: 1.000 | HE46: 1.000 | HF46: 1.000 | HG46: 1.000 | HH46: 1.000 | HI46: 1.000 | HJ46: 1.000 | HK46: 1.000 | HL46: 1.000 | HM46: 1.000 | HN46: 1.000 | HO46: 1.000 | HP46: 1.000 | HQ46: 1.000 | HR46: 1.000 | HS46: 1.000 | HT46: 1.000 | HU46: 1.000 | HV46: 1.000 | HW46: 1.000 | HX46: 1.000 | HY46: 1.000 | HZ46: 1.000 | IA46: 1.000 | IB46: 1.000 | IC46: 1.000 | ID46: 1.000 | IE46: =IF($F46="Manual",IE38,IE30) -> 1.000 | IF46: 1.000 | IG46: 1.000 | IH46: 1.000 | II46: 1.000 | IJ46: 1.000 | IK46: 1.000 | IL46: 1.000 | IM46: 1.000 | IN46: 1.000 | IO46: 1.000 | IP46: 1.000 | IQ46: 1.000 | IR46: 1.000 | IS46: 1.000 | IT46: 1.000 | IU46: 1.000 | IV46: 1.000 | IW46: 1.000 | IX46: 1.000 | IY46: 1.000 | IZ46: 1.000 | JA46: 1.000 | JB46: 1.000 | JC46: 1.000 | JD46: 1.000 | JE46: 1.000 | JF46: 1.000 | JG46: 1.000 | JH46: 1.000 | JI46: 1.000 | JJ46: 1.000 | JK46: 1.000 | JL46: 1.000 | JM46: 1.000 | JN46: 1.000 | JO46: 1.000 | JP46: 1.000 | JQ46: 1.000 | JR46: 1.000 | JS46: 1.000 | JT46: 1.000 | JU46: 1.000 | JV46: 1.000 | JW46: 1.000 | JX46: 1.000 | JY46: 1.000 | JZ46: 1.000 | KA46: 1.000 | KB46: 1.000 | KC46: 1.000 | KD46: 1.000 | KE46: 1.000 | KF46: 1.000 | KG46: 1.000 | KH46: 1.000 | KI46: 1.000 | KJ46: 1.000 | KK46: 1.000 | KL46: 1.000 | KM46: 1.000 | KN46: 1.000 | KO46: 1.000 | KP46: 1.000 | KQ46: =IF($F46="Manual",KQ38,KQ30) -> 1.000 | KR46: 1.000 | KS46: 1.000 | KT46: 1.000 | KU46: 1.000 | KV46: 1.000 | KW46: 1.000 | KX46: 1.000 | KY46: 1.000 | KZ46: 1.000 | LA46: 1.000 | LB46: 1.000 | LC46: 1.000 | LD46: 1.000 | LE46: 1.000 | LF46: 1.000 | LG46: 1.000 | LH46: 1.000 | LI46: 1.000 | LJ46: 1.000 | LK46: 1.000 | LL46: 1.000 | LM46: 1.000 | LN46: 1.000 | LO46: 1.000 | LP46: 1.000 | LQ46: 1.000 | LR46: 1.000 | LS46: 1.000 | LT46: 1.000 | LU46: 1.000 | LV46: 1.000 | LW46: 1.000 | LX46: 1.000 | LY46: 1.000 | LZ46: 1.000 | MA46: 1.000 | MB46: 1.000 | MC46: 1.000 | MD46: 1.000 | ME46: 1.000 | MF46: 1.000 | MG46: 1.000 | MH46: 1.000
E47: CPI | F47: Calculation | AU47: 1.000 | AV47: 1.000 | AW47: 1.000 | AX47: 1.000 | AY47: 1.000 | AZ47: 1.000 | BA47: 1.000 | BB47: 1.000 | BC47: 1.000 | BD47: 1.000 | BE47: 1.000 | BF47: 1.000 | BG47: 1.000 | BH47: 1.000 | BI47: 1.000 | BJ47: 1.000 | BK47: 1.000 | BL47: 1.000 | BM47: 1.000 | BN47: 1.000 | BO47: 1.000 | BP47: 1.000 | BQ47: 1.000 | BR47: 1.000 | BS47: 1.000 | BT47: 1.000 | BU47: 1.000 | BV47: 1.000 | BW47: 1.000 | BX47: 1.000 | BY47: 1.000 | BZ47: 1.000 | CA47: 1.000 | CB47: 1.000 | CC47: 1.000 | CD47: 1.000 | CE47: 1.000 | CF47: 1.000 | CG47: 1.000 | CH47: 1.000 | CI47: 1.000 | CJ47: 1.000 | CK47: 1.000 | CL47: 1.000 | CM47: 1.000 | CN47: 1.000 | CO47: 1.000 | CP47: 1.000 | CQ47: 1.000 | CR47: 1.000 | CS47: 1.000 | CT47: 1.000 | CU47: 1.000 | CV47: 1.000 | CW47: 1.000 | CX47: 1.000 | CY47: 1.000 | CZ47: 1.000 | DA47: 1.000 | DB47: 1.000 | DC47: 1.000 | DD47: 1.000 | DE47: 1.000 | DF47: 1.000 | DG47: 1.000 | DH47: 1.000 | DI47: 1.000 | DJ47: 1.000 | DK47: 1.000 | DL47: 1.000 | DM47: 1.000 | DN47: 1.000 | DO47: 1.000 | DP47: 1.000 | DQ47: 1.000 | DR47: 1.000 | DS47: 1.000 | DT47: 1.000 | DU47: 1.000 | DV47: 1.000 | DW47: 1.000 | DX47: 1.000 | DY47: 1.000 | DZ47: 1.000 | EA47: 1.000 | EB47: 1.000 | EC47: 1.000 | ED47: 1.000 | EE47: 1.000 | EF47: 1.000 | EG47: 1.000 | EH47: 1.000 | EI47: 1.000 | EJ47: 1.000 | EK47: 1.000 | EL47: 1.000 | EM47: 1.000 | EN47: 1.000 | EO47: 1.000 | EP47: 1.000 | EQ47: 1.000 | ER47: 1.000 | ES47: 1.000 | ET47: 1.000 | EU47: 1.000 | EV47: 1.000 | EW47: 1.000 | EX47: 1.000 | EY47: 1.000 | EZ47: 1.000 | FA47: 1.000 | FB47: 1.000 | FC47: 1.000 | FD47: 1.000 | FE47: 1.000 | FF47: 1.000 | FG47: 1.000 | FH47: 1.000 | FI47: 1.000 | FJ47: 1.000 | FK47: 1.000 | FL47: 1.000 | FM47: 1.000 | FN47: 1.000 | FO47: 1.000 | FP47: 1.000 | FQ47: 1.000 | FR47: 1.000 | FS47: 1.000 | FT47: 1.000 | FU47: 1.000 | FV47: 1.000 | FW47: 1.000 | FX47: 1.000 | FY47: 1.000 | FZ47: 1.000 | GA47: 1.000 | GB47: 1.000 | GC47: 1.000 | GD47: 1.000 | GE47: 1.000 | GF47: 1.000 | GG47: 1.000 | GH47: 1.000 | GI47: 1.000 | GJ47: 1.000 | GK47: 1.000 | GL47: 1.000 | GM47: 1.000 | GN47: 1.000 | GO47: 1.000 | GP47: 1.000 | GQ47: 1.000 | GR47: 1.000 | GS47: 1.000 | GT47: 1.000 | GU47: 1.000 | GV47: 1.000 | GW47: 1.000 | GX47: 1.000 | GY47: 1.000 | GZ47: 1.000 | HA47: 1.000 | HB47: 1.000 | HC47: 1.000 | HD47: 1.000 | HE47: 1.000 | HF47: 1.000 | HG47: 1.000 | HH47: 1.000 | HI47: 1.000 | HJ47: 1.000 | HK47: 1.000 | HL47: 1.000 | HM47: 1.000 | HN47: 1.000 | HO47: 1.000 | HP47: 1.000 | HQ47: 1.000 | HR47: 1.000 | HS47: 1.000 | HT47: 1.000 | HU47: 1.000 | HV47: 1.000 | HW47: 1.000 | HX47: 1.000 | HY47: 1.000 | HZ47: 1.000 | IA47: 1.000 | IB47: 1.000 | IC47: 1.000 | ID47: 1.000 | IE47: 1.000 | IF47: 1.000 | IG47: 1.000 | IH47: 1.000 | II47: 1.000 | IJ47: 1.000 | IK47: 1.000 | IL47: 1.000 | IM47: 1.000 | IN47: 1.000 | IO47: 1.000 | IP47: 1.000 | IQ47: 1.000 | IR47: 1.000 | IS47: 1.000 | IT47: 1.000 | IU47: 1.000 | IV47: 1.000 | IW47: 1.000 | IX47: 1.000 | IY47: 1.000 | IZ47: 1.000 | JA47: 1.000 | JB47: 1.000 | JC47: 1.000 | JD47: 1.000 | JE47: 1.000 | JF47: 1.000 | JG47: 1.000 | JH47: 1.000 | JI47: 1.000 | JJ47: 1.000 | JK47: 1.000 | JL47: 1.000 | JM47: 1.000 | JN47: 1.000 | JO47: 1.000 | JP47: 1.000 | JQ47: 1.000 | JR47: 1.000 | JS47: 1.000 | JT47: 1.000 | JU47: 1.000 | JV47: 1.000 | JW47: 1.000 | JX47: 1.000 | JY47: 1.000 | JZ47: 1.000 | KA47: 1.000 | KB47: 1.000 | KC47: 1.000 | KD47: 1.000 | KE47: 1.000 | KF47: 1.000 | KG47: 1.000 | KH47: 1.000 | KI47: 1.000 | KJ47: 1.000 | KK47: 1.000 | KL47: 1.000 | KM47: 1.000 | KN47: 1.000 | KO47: 1.000 | KP47: 1.000 | KQ47: 1.000 | KR47: 1.000 | KS47: 1.000 | KT47: 1.000 | KU47: 1.000 | KV47: 1.000 | KW47: 1.000 | KX47: 1.000 | KY47: 1.000 | KZ47: 1.000 | LA47: 1.000 | LB47: 1.000 | LC47: 1.000 | LD47: 1.000 | LE47: 1.000 | LF47: 1.000 | LG47: 1.000 | LH47: 1.000 | LI47: 1.000 | LJ47: 1.000 | LK47: 1.000 | LL47: 1.000 | LM47: 1.000 | LN47: 1.000 | LO47: 1.000 | LP47: 1.000 | LQ47: 1.000 | LR47: 1.000 | LS47: 1.000 | LT47: 1.000 | LU47: 1.000 | LV47: 1.000 | LW47: 1.000 | LX47: 1.000 | LY47: 1.000 | LZ47: 1.000 | MA47: 1.000 | MB47: 1.000 | MC47: 1.000 | MD47: 1.000 | ME47: 1.000 | MF47: 1.000 | MG47: 1.000 | MH47: 1.000
E48: RPI | F48: Calculation | AU48: 1.000 | AV48: 1.000 | AW48: 1.000 | AX48: 1.000 | AY48: 1.000 | AZ48: 1.000 | BA48: 1.000 | BB48: 1.000 | BC48: 1.000 | BD48: 1.000 | BE48: 1.000 | BF48: 1.000 | BG48: 1.000 | BH48: 1.000 | BI48: 1.000 | BJ48: 1.000 | BK48: 1.000 | BL48: 1.000 | BM48: 1.000 | BN48: 1.000 | BO48: 1.000 | BP48: 1.000 | BQ48: 1.000 | BR48: 1.000 | BS48: 1.000 | BT48: 1.000 | BU48: 1.000 | BV48: 1.000 | BW48: 1.000 | BX48: 1.000 | BY48: 1.000 | BZ48: 1.000 | CA48: 1.000 | CB48: 1.000 | CC48: 1.000 | CD48: 1.000 | CE48: 1.000 | CF48: 1.000 | CG48: 1.000 | CH48: 1.000 | CI48: 1.000 | CJ48: 1.000 | CK48: 1.000 | CL48: 1.000 | CM48: 1.000 | CN48: 1.000 | CO48: 1.000 | CP48: 1.000 | CQ48: 1.000 | CR48: 1.000 | CS48: 1.000 | CT48: 1.000 | CU48: 1.000 | CV48: 1.000 | CW48: 1.000 | CX48: 1.000 | CY48: 1.000 | CZ48: 1.000 | DA48: 1.000 | DB48: 1.000 | DC48: 1.000 | DD48: 1.000 | DE48: 1.000 | DF48: 1.000 | DG48: 1.000 | DH48: 1.000 | DI48: 1.000 | DJ48: 1.000 | DK48: 1.000 | DL48: 1.000 | DM48: 1.000 | DN48: 1.000 | DO48: 1.000 | DP48: 1.000 | DQ48: 1.000 | DR48: 1.000 | DS48: 1.000 | DT48: 1.000 | DU48: 1.000 | DV48: 1.000 | DW48: 1.000 | DX48: 1.000 | DY48: 1.000 | DZ48: 1.000 | EA48: 1.000 | EB48: 1.000 | EC48: 1.000 | ED48: 1.000 | EE48: 1.000 | EF48: 1.000 | EG48: 1.000 | EH48: 1.000 | EI48: 1.000 | EJ48: 1.000 | EK48: 1.000 | EL48: 1.000 | EM48: 1.000 | EN48: 1.000 | EO48: 1.000 | EP48: 1.000 | EQ48: 1.000 | ER48: 1.000 | ES48: 1.000 | ET48: 1.000 | EU48: 1.000 | EV48: 1.000 | EW48: 1.000 | EX48: 1.000 | EY48: 1.000 | EZ48: 1.000 | FA48: 1.000 | FB48: 1.000 | FC48: 1.000 | FD48: 1.000 | FE48: 1.000 | FF48: 1.000 | FG48: 1.000 | FH48: 1.000 | FI48: 1.000 | FJ48: 1.000 | FK48: 1.000 | FL48: 1.000 | FM48: 1.000 | FN48: 1.000 | FO48: 1.000 | FP48: 1.000 | FQ48: 1.000 | FR48: 1.000 | FS48: 1.000 | FT48: 1.000 | FU48: 1.000 | FV48: 1.000 | FW48: 1.000 | FX48: 1.000 | FY48: 1.000 | FZ48: 1.000 | GA48: 1.000 | GB48: 1.000 | GC48: 1.000 | GD48: 1.000 | GE48: 1.000 | GF48: 1.000 | GG48: 1.000 | GH48: 1.000 | GI48: 1.000 | GJ48: 1.000 | GK48: 1.000 | GL48: 1.000 | GM48: 1.000 | GN48: 1.000 | GO48: 1.000 | GP48: 1.000 | GQ48: 1.000 | GR48: 1.000 | GS48: 1.000 | GT48: 1.000 | GU48: 1.000 | GV48: 1.000 | GW48: 1.000 | GX48: 1.000 | GY48: 1.000 | GZ48: 1.000 | HA48: 1.000 | HB48: 1.000 | HC48: 1.000 | HD48: 1.000 | HE48: 1.000 | HF48: 1.000 | HG48: 1.000 | HH48: 1.000 | HI48: 1.000 | HJ48: 1.000 | HK48: 1.000 | HL48: 1.000 | HM48: 1.000 | HN48: 1.000 | HO48: 1.000 | HP48: 1.000 | HQ48: 1.000 | HR48: 1.000 | HS48: 1.000 | HT48: 1.000 | HU48: 1.000 | HV48: 1.000 | HW48: 1.000 | HX48: 1.000 | HY48: 1.000 | HZ48: 1.000 | IA48: 1.000 | IB48: 1.000 | IC48: 1.000 | ID48: 1.000 | IE48: 1.000 | IF48: 1.000 | IG48: 1.000 | IH48: 1.000 | II48: 1.000 | IJ48: 1.000 | IK48: 1.000 | IL48: 1.000 | IM48: 1.000 | IN48: 1.000 | IO48: 1.000 | IP48: 1.000 | IQ48: 1.000 | IR48: 1.000 | IS48: 1.000 | IT48: 1.000 | IU48: 1.000 | IV48: 1.000 | IW48: 1.000 | IX48: 1.000 | IY48: 1.000 | IZ48: 1.000 | JA48: 1.000 | JB48: 1.000 | JC48: 1.000 | JD48: 1.000 | JE48: 1.000 | JF48: 1.000 | JG48: 1.000 | JH48: 1.000 | JI48: 1.000 | JJ48: 1.000 | JK48: 1.000 | JL48: 1.000 | JM48: 1.000 | JN48: 1.000 | JO48: 1.000 | JP48: 1.000 | JQ48: 1.000 | JR48: 1.000 | JS48: 1.000 | JT48: 1.000 | JU48: 1.000 | JV48: 1.000 | JW48: 1.000 | JX48: 1.000 | JY48: 1.000 | JZ48: 1.000 | KA48: 1.000 | KB48: 1.000 | KC48: 1.000 | KD48: 1.000 | KE48: 1.000 | KF48: 1.000 | KG48: 1.000 | KH48: 1.000 | KI48: 1.000 | KJ48: 1.000 | KK48: 1.000 | KL48: 1.000 | KM48: 1.000 | KN48: 1.000 | KO48: 1.000 | KP48: 1.000 | KQ48: 1.000 | KR48: 1.000 | KS48: 1.000 | KT48: 1.000 | KU48: 1.000 | KV48: 1.000 | KW48: 1.000 | KX48: 1.000 | KY48: 1.000 | KZ48: 1.000 | LA48: 1.000 | LB48: 1.000 | LC48: 1.000 | LD48: 1.000 | LE48: 1.000 | LF48: 1.000 | LG48: 1.000 | LH48: 1.000 | LI48: 1.000 | LJ48: 1.000 | LK48: 1.000 | LL48: 1.000 | LM48: 1.000 | LN48: 1.000 | LO48: 1.000 | LP48: 1.000 | LQ48: 1.000 | LR48: 1.000 | LS48: 1.000 | LT48: 1.000 | LU48: 1.000 | LV48: 1.000 | LW48: 1.000 | LX48: 1.000 | LY48: 1.000 | LZ48: 1.000 | MA48: 1.000 | MB48: 1.000 | MC48: 1.000 | MD48: 1.000 | ME48: 1.000 | MF48: 1.000 | MG48: 1.000 | MH48: 1.000
E49: Spare 1 | F49: Calculation | AU49: 1.000 | AV49: 1.000 | AW49: 1.000 | AX49: 1.000 | AY49: 1.000 | AZ49: 1.000 | BA49: 1.000 | BB49: 1.000 | BC49: 1.000 | BD49: 1.000 | BE49: 1.000 | BF49: 1.000 | BG49: 1.000 | BH49: 1.000 | BI49: 1.000 | BJ49: 1.000 | BK49: 1.000 | BL49: 1.000 | BM49: 1.000 | BN49: 1.000 | BO49: 1.000 | BP49: 1.000 | BQ49: 1.000 | BR49: 1.000 | BS49: 1.000 | BT49: 1.000 | BU49: 1.000 | BV49: 1.000 | BW49: 1.000 | BX49: 1.000 | BY49: 1.000 | BZ49: 1.000 | CA49: 1.000 | CB49: 1.000 | CC49: 1.000 | CD49: 1.000 | CE49: 1.000 | CF49: 1.000 | CG49: 1.000 | CH49: 1.000 | CI49: 1.000 | CJ49: 1.000 | CK49: 1.000 | CL49: 1.000 | CM49: 1.000 | CN49: 1.000 | CO49: 1.000 | CP49: 1.000 | CQ49: 1.000 | CR49: 1.000 | CS49: 1.000 | CT49: 1.000 | CU49: 1.000 | CV49: 1.000 | CW49: 1.000 | CX49: 1.000 | CY49: 1.000 | CZ49: 1.000 | DA49: 1.000 | DB49: 1.000 | DC49: 1.000 | DD49: 1.000 | DE49: 1.000 | DF49: =IF($F49="Manual",DF41,DF33) -> 1.000 | DG49: 1.000 | DH49: 1.000 | DI49: 1.000 | DJ49: 1.000 | DK49: 1.000 | DL49: 1.000 | DM49: 1.000 | DN49: 1.000 | DO49: 1.000 | DP49: 1.000 | DQ49: 1.000 | DR49: 1.000 | DS49: 1.000 | DT49: 1.000 | DU49: 1.000 | DV49: 1.000 | DW49: 1.000 | DX49: 1.000 | DY49: 1.000 | DZ49: 1.000 | EA49: 1.000 | EB49: 1.000 | EC49: 1.000 | ED49: 1.000 | EE49: 1.000 | EF49: 1.000 | EG49: 1.000 | EH49: 1.000 | EI49: 1.000 | EJ49: 1.000 | EK49: 1.000 | EL49: 1.000 | EM49: 1.000 | EN49: 1.000 | EO49: 1.000 | EP49: 1.000 | EQ49: 1.000 | ER49: 1.000 | ES49: 1.000 | ET49: 1.000 | EU49: 1.000 | EV49: 1.000 | EW49: 1.000 | EX49: 1.000 | EY49: 1.000 | EZ49: 1.000 | FA49: 1.000 | FB49: 1.000 | FC49: 1.000 | FD49: 1.000 | FE49: 1.000 | FF49: 1.000 | FG49: 1.000 | FH49: 1.000 | FI49: 1.000 | FJ49: 1.000 | FK49: 1.000 | FL49: 1.000 | FM49: 1.000 | FN49: 1.000 | FO49: 1.000 | FP49: 1.000 | FQ49: 1.000 | FR49: =IF($F49="Manual",FR41,FR33) -> 1.000 | FS49: 1.000 | FT49: 1.000 | FU49: 1.000 | FV49: 1.000 | FW49: 1.000 | FX49: 1.000 | FY49: 1.000 | FZ49: 1.000 | GA49: 1.000 | GB49: 1.000 | GC49: 1.000 | GD49: 1.000 | GE49: 1.000 | GF49: 1.000 | GG49: 1.000 | GH49: 1.000 | GI49: 1.000 | GJ49: 1.000 | GK49: 1.000 | GL49: 1.000 | GM49: 1.000 | GN49: 1.000 | GO49: 1.000 | GP49: 1.000 | GQ49: 1.000 | GR49: 1.000 | GS49: 1.000 | GT49: 1.000 | GU49: 1.000 | GV49: 1.000 | GW49: 1.000 | GX49: 1.000 | GY49: 1.000 | GZ49: 1.000 | HA49: 1.000 | HB49: 1.000 | HC49: 1.000 | HD49: 1.000 | HE49: 1.000 | HF49: 1.000 | HG49: 1.000 | HH49: 1.000 | HI49: 1.000 | HJ49: 1.000 | HK49: 1.000 | HL49: 1.000 | HM49: 1.000 | HN49: 1.000 | HO49: 1.000 | HP49: 1.000 | HQ49: 1.000 | HR49: 1.000 | HS49: 1.000 | HT49: 1.000 | HU49: 1.000 | HV49: 1.000 | HW49: 1.000 | HX49: 1.000 | HY49: 1.000 | HZ49: 1.000 | IA49: 1.000 | IB49: 1.000 | IC49: 1.000 | ID49: =IF($F49="Manual",ID41,ID33) -> 1.000 | IE49: 1.000 | IF49: 1.000 | IG49: 1.000 | IH49: 1.000 | II49: 1.000 | IJ49: 1.000 | IK49: 1.000 | IL49: 1.000 | IM49: 1.000 | IN49: 1.000 | IO49: 1.000 | IP49: 1.000 | IQ49: 1.000 | IR49: 1.000 | IS49: 1.000 | IT49: 1.000 | IU49: 1.000 | IV49: 1.000 | IW49: 1.000 | IX49: 1.000 | IY49: 1.000 | IZ49: 1.000 | JA49: 1.000 | JB49: 1.000 | JC49: 1.000 | JD49: 1.000 | JE49: 1.000 | JF49: 1.000 | JG49: 1.000 | JH49: 1.000 | JI49: 1.000 | JJ49: 1.000 | JK49: 1.000 | JL49: 1.000 | JM49: 1.000 | JN49: 1.000 | JO49: 1.000 | JP49: 1.000 | JQ49: 1.000 | JR49: 1.000 | JS49: 1.000 | JT49: 1.000 | JU49: 1.000 | JV49: 1.000 | JW49: 1.000 | JX49: 1.000 | JY49: 1.000 | JZ49: 1.000 | KA49: 1.000 | KB49: 1.000 | KC49: 1.000 | KD49: 1.000 | KE49: 1.000 | KF49: 1.000 | KG49: 1.000 | KH49: 1.000 | KI49: 1.000 | KJ49: 1.000 | KK49: 1.000 | KL49: 1.000 | KM49: 1.000 | KN49: 1.000 | KO49: 1.000 | KP49: =IF($F49="Manual",KP41,KP33) -> 1.000 | KQ49: 1.000 | KR49: 1.000 | KS49: 1.000 | KT49: 1.000 | KU49: 1.000 | KV49: 1.000 | KW49: 1.000 | KX49: 1.000 | KY49: 1.000 | KZ49: 1.000 | LA49: 1.000 | LB49: 1.000 | LC49: 1.000 | LD49: 1.000 | LE49: 1.000 | LF49: 1.000 | LG49: 1.000 | LH49: 1.000 | LI49: 1.000 | LJ49: 1.000 | LK49: 1.000 | LL49: 1.000 | LM49: 1.000 | LN49: 1.000 | LO49: 1.000 | LP49: 1.000 | LQ49: 1.000 | LR49: 1.000 | LS49: 1.000 | LT49: 1.000 | LU49: 1.000 | LV49: 1.000 | LW49: 1.000 | LX49: 1.000 | LY49: 1.000 | LZ49: 1.000 | MA49: 1.000 | MB49: 1.000 | MC49: 1.000 | MD49: 1.000 | ME49: 1.000 | MF49: 1.000 | MG49: 1.000 | MH49: 1.000
